Workbook

Sheet Read before
C1: Population denominators estimation tool
C2: MSF-OCBA. Emergency Preparedness and Response (v.6, October 2019)
B4: Introduction
C5: This tool aims at facilitating the estimation of the most widely used population denominators in the MSF interventions (particularly in emergencies). For a total population entered by the user, the tool provides with disaggregated data by age groups for that specific country/region. The figures correspond to any one day and not to a period of time.
B6: Data Sources / formulas:
C7: Population data: United Nations, Department of Economic and Social Affairs, Population Division (2017). World Population Prospects: The 2017 Revision, DVD Edition:
C8: Formula for Pregnant and Lactating Women (PLW):
C9: Formula for 0-5 months (10% of children U5): "...assuming that 90% of the children under five years old are aged between six and 59 months".(From "Measuring Mortality, Nutritional Status, and Food Security in Crisis Situations: SMART Methodology. SMART Manual Version 2 published in 2017), page 41.
C10: Crude Mortality Rate has been extrapolated from Annual Crude Death Rate.
B12: How to use the excel file
C13: 1. Choose the country or area of the intervention from the PULL-DOWN LIST, and enter the year of the intervention.
C14: 2. Enter key figures of your intervention's target population: Total population, % of U5, % of U1, % of Crude Birth Rate:
C15: Use the most recent and reliable data if available locally. In absence of reliable figures, enter the suggested % for the selected country/area. In emergencies where there is not access to Family Planning (i.e. Chronic violent context), use 4,5% of Crude Birth Rate.
C16: 3. For reactive vaccination campaigns, enter the antigen and the maximum targeted age.
B17: Support
C18: Please, send any comment and/or contribution to improve the tool to:
C19: carmen.ramirezdelapiscina@barcelona.msf.org

Sheet Denominator estimations
E1: ='Read before'!C1 -> Population denominators estimation tool
E2: ='Read before'!C2 -> MSF-OCBA. Emergency Preparedness and Response (v.6, October 2019)
D6: Choose region/country from the pull-down list | R6: GENERAL EMERGENCY INTERVENTIONS | AC6: REACTIVE VACCINATION CAMPAIGNS
H7: ↓
R9: ALL AGES | S9: Age group | T9: % | U9: Population | V9: Male | W9: Female | AC9: Choose antigen → | AE9: Meningitis_Polysacharide
F10: Enter year → | H10: 2022 | S10: All ages | T10: =SUM(T11:T15) ->  | U10: =SUM(U11:U15) ->  | V10: =U10*$I$18 ->  | W10: =$I$19*U10 -> 
S11: 0 - 4 y | T11: =H34 -> 0.1717 | U11: =$H$30*T11 -> 50479.8 | AC11: Enter maximum targeted age → | AE11: <99 y.o.
S12: 5 - 14 y | T12: =VLOOKUP($D$8,TABLAEDADES,20,FALSE)-$M$16 ->  | U12: =$H$30*T12 -> 
D13: ="General data for '"&D8&"'" -> General data for '' | S13: 15 - 29 y | T13: =VLOOKUP($D$8,TABLAEDADES,29,FALSE)-$M$16 ->  | U13: =$H$30*T13 ->  | X13: =SUM(T11:T15) -> 
S14: 30 - 44 y | T14: =VLOOKUP($D$8,TABLAEDADES,34,FALSE)-$M$16 ->  | U14: =$H$30*T14 -> 
H15: Total Population in 2015 | I15: =VLOOKUP($D$8,'General Table'!$D$11:$F$251,3,FALSE)*1000 ->  | M15: =H34-I20 ->  | S15: >= 45 y | T15: =VLOOKUP($D$8,TABLAEDADES,49,FALSE)-$M$16 ->  | U15: =$H$30*T15 -> 
H16: ="Total Population proyected to "&H10 -> Total Population proyected to 2022 | I16: =IF(H10=2015,I15,(100%+I22)^(H10-2015)*I15) ->  | M16: =M15/4 ->  | AC16: =AE9 -> Meningitis_Polysacharide
H17: Ratio Male : Female (males per 100 females) | I17: =L22&" : 100" ->  | S17: 5 - 9 y.o. | T17: =VLOOKUP(D8,TABLAEDADES,16,FALSE)-$M$16 ->  | U17: =$H$30*T17 ->  | V17: =U17*$I$18 ->  | W17: =$I$19*U17 ->  | AC17: ="Reactive vaccination campaign" -> Reactive vaccination campaign
H18: % Male | I18: =L22/N22 ->  | S18: 10 - 17 y.o. | T18: =VLOOKUP(D8,TABLAEDADES,22,FALSE)-$M$16-T11-T17 ->  | U18: =$H$30*T18 ->  | V18: =U18*$I$18 ->  | W18: =$I$19*U18 ->  | AC18: Age group | AD18: % Tot Pop | AE18: Population
H19: % Female | I19: =M22/N22 ->  | S19: >= 18 y.o. | T19: =VLOOKUP(D8,TABLAEDADES,24,FALSE)-$M$16*2 ->  | U19: =$H$30*T19 ->  | V19: =U19*$I$18 ->  | W19: =$I$19*U19 ->  | AC19: ='Vaccination-Ages for antigen'!B29 -> 2 - 99 y | AD19: ='Vaccination-Ages for antigen'!C29 ->  | AE19: =AD19*$H$30 -> 
H20: Children Under 5 (0-59m) | I20: =VLOOKUP(D8,TABLAEDADES,7,FALSE) ->  | AC20: ='Vaccination-Ages for antigen'!B30 -> 2 - 4 y (24 - 59m) | AD20: =IF('Vaccination-Ages for antigen'!C30=0,"",'Vaccination-Ages for antigen'!C30) -> 0.0995 | AE20: =IFERROR(AD20*$H$30,"") -> 29253
H21: Children Under 1 (0-11m) | I21: =VLOOKUP(D8,TABLAEDADES,5,FALSE)/2 ->  | S21: 0 - 14 y | T21: =T11+T12 ->  | U21: =$H$30*T21 ->  | V21: =U21*$I$18 ->  | W21: =U21*$I$19 ->  | AC21: ='Vaccination-Ages for antigen'!B31 -> 5 - 14 y | AD21: =IF('Vaccination-Ages for antigen'!C31=0,"",'Vaccination-Ages for antigen'!C31) -> 
H22: Annual growth rate | I22: =VLOOKUP($D$8,'Annual growth rate'!$C$10:$E$282,3,FALSE)% ->  | L22: =ROUND(VLOOKUP($D$8,'Ratio males-females'!$C$10:$E$250,3,FALSE),1) ->  | M22: 100 | N22: =M22+L22 ->  | S22: 15 - 44 y | T22: =T13+T14 ->  | U22: =T22*$H$30 ->  | V22: =U22*$I$18 ->  | W22: =$I$19*U22 ->  | X22: =SUM(T21:T22) ->  | AC22: =IF('Vaccination-Ages for antigen'!B32=0,"",'Vaccination-Ages for antigen'!B32) -> 15- 29 y | AD22: =IF('Vaccination-Ages for antigen'!C32=0,"",'Vaccination-Ages for antigen'!C32) -> 
H23: Crude Birth Rate | I23: =ROUND(L23,1)&"/1000 ("&ROUND(L23/10,2)&"%)" ->  | L23: =VLOOKUP(D8,Crude_birth_rate,3,FALSE) ->  | AC23: =IF('Vaccination-Ages for antigen'!B33=0,"",'Vaccination-Ages for antigen'!B33) -> 30-44 y | AD23: =IF('Vaccination-Ages for antigen'!C33=0,"",'Vaccination-Ages for antigen'!C33) -> 
H24: Crude Death Rate | I24: =ROUND(L24,1)&"/1000 ("&ROUND(L24/10,2)&"%)" ->  | L24: =VLOOKUP(D8,'Crude Death Rate'!D11:G251,4,FALSE) ->  | S24: 15 - 49 y | T24: =T22+VLOOKUP($D$8,TABLAEDADES,36,FALSE) ->  | U24: =T24*$H$30 ->  | V24: =U24*$I$18 ->  | W24: =U24*$I$19 ->  | X24: =SUM(T24:T25) ->  | AC24: =IF('Vaccination-Ages for antigen'!B34=0,"",'Vaccination-Ages for antigen'!B34) -> >= 45 y | AD24: =IF('Vaccination-Ages for antigen'!C34=0,"",'Vaccination-Ages for antigen'!C34) -> 
H25: Crude Mortality Rate (CMR) | I25: =ROUND(L25,2)&" deaths/10000/day)" ->  | L25: =L24/36.5 ->  | S25: >= 50 y | T25: =VLOOKUP($D$8,TABLAEDADES,53,FALSE)-$M$16 ->  | U25: =T25*$H$30 ->  | V25: =U25*$I$18 ->  | W25: =U25*$I$19 ->  | AC25: =IF('Vaccination-Ages for antigen'!B35=0,"",'Vaccination-Ages for antigen'!B35) ->  | AD25: =IF('Vaccination-Ages for antigen'!C35=0,"",'Vaccination-Ages for antigen'!C35) -> 
AC26: =IF('Vaccination-Ages for antigen'!B36=0,"",'Vaccination-Ages for antigen'!B36) ->  | AD26: =IF('Vaccination-Ages for antigen'!C36=0,"",'Vaccination-Ages for antigen'!C36) -> 
R27: UNDER 5 y.o. | S27: Age group | T27: % of total pop. | U27: U5 Population | V27: Male | W27: Female | AC27: =IF('Vaccination-Ages for antigen'!B37=0,"",'Vaccination-Ages for antigen'!B37) ->  | AD27: =IF('Vaccination-Ages for antigen'!C37=0,"",'Vaccination-Ages for antigen'!C37) -> 
D28: Confirm figures of your intervention's target population: | S28: Total U5 | T28: =$H$34 -> 0.1717 | U28: =U11 -> 50479.8 | V28: =U28*$L$22/$N$22 ->  | W28: =U28*$M$22/$N$22 ->  | AC28: =IF('Vaccination-Ages for antigen'!B38=0,"",'Vaccination-Ages for antigen'!B38) ->  | AD28: =IF('Vaccination-Ages for antigen'!C38=0,"",'Vaccination-Ages for antigen'!C38) -> 
S29: U1 (0 - 11 m) | T29: =T34 -> 0.0361 | U29: =$H$30*T29 -> 10613.4 | V29: =U29*$I$18 ->  | W29: =U29*$I$19 -> 
D30: Enter TOTAL population → | H30: 294000 | S30: U2 (0 - 23 m) | T30: =T34+T35 -> 0.0722 | U30: =$H$30*T30 -> 21226.8 | V30: =U30*$I$18 ->  | W30: =U30*$I$19 -> 
S31: U3 (0 - 35 m) | T31: =T34+T35+T36 -> 0.1053666667 | U31: =$H$30*T31 -> 30977.8
S32: U4 (0 - 48 m) | T32: =T34+T35+T36+T37 -> 0.1385333333 | U32: =$H$30*T32 -> 40728.8
I33: ="("&(ROUND($I$20*100,2)&"% is suggested for '"&$D$8&"', in absence of other reliable figures)") ->  | AC33: HMIS AGE GROUPS
D34: Enter % of U5 population → | H34: 0.1717 | S34: 0 - 11 m | T34: =$H$38 -> 0.0361 | U34: =$H$30*T34 -> 10613.4 | V34: =U34*$I$18 ->  | W34: =U34*$I$19 -> 
S35: 12 - 23 m | T35: =H38 -> 0.0361 | U35: 10613.4 | V35: =U35*$I$18 ->  | W35: =U35*$I$19 -> 
S36: 24 - 35 m | T36: =($H$34-$H$38*2)/3 -> 0.03316666667 | U36: 9751 | AC36: Age group | AD36: %
I37: ="("&(ROUND($I$21*100,2)&"% is suggested for "&$D$8&" ,in absence of other reliable figures)") ->  | S37: 36 - 47 m | T37: =($H$34-$H$38*2)/3 -> 0.03316666667 | U37: 9751 | AC37: 0 - 6 w | AD37: =T55 -> 0.003962307692
D38: Enter % of U1 population → | H38: 0.0361 | S38: 48 - 59 m | T38: =($H$34-$H$38*2)/3 -> 0.03316666667 | U38: 9751 | AC38: 7 w - 2 m | AD38: =T56 -> 0.004622692308
AC39: 3 - 5 m | AD39: =T57 -> 0.008585
S40: 6 - 23 m | T40: =T30-T50 -> 0.05503 | U40: 16178.82 | W40: =U40*$I$19 ->  | AC40: 6 - 8 m | AD40: =T51 -> 0.009465
I41: =L42&"% suggested for "&D8&" if Family Planning accessible." ->  | S41: 24 - 47 m | T41: =T36+T37 -> 0.06633333333 | U41: 19502 | AC41: 9 - 11 m | AD41: =T52 -> 0.009465
D42: Enter Crude Birth Rate → | H42: 0.0405 | L42: =ROUND(L23/10,2) ->  | S42: 24 - 59 m | T42: =T36+T37+T38 -> 0.0995 | U42: 29253 | AC42: 12 - 23 m | AD42: =T35 -> 0.0361
I43: 4,50% suggested if Family Planning NOT accessible | L43: 4.5 | AC43: 24 - 59 m | AD43: =T42 -> 0.0995
S44: 6 - 23 m | T44: =T35+T51+T52 -> 0.05503 | U44: =$H$30*T44 -> 16178.82 | V44: =U44*$I$18 ->  | W44: =U44*$I$19 ->  | AC44: 5 - 14 y | AD44: =T12 -> 
S45: 6 - 35 m | T45: =T44+T36 -> 0.08819666667 | U45: =$H$30*T45 -> 25929.82 | V45: =U45*$I$18 ->  | W45: =U45*$I$19 ->  | AC45: 15 - 29 y | AD45: =T13 -> 
S46: 6 - 59 m | T46: =T45+T37+T38 -> 0.15453 | U46: 45431.82 | AC46: >= 30 y | AD46: =T14+T15 -> 
R48: UNDER 1 y.o. | S48: Age group | T48: % of total pop. | U48: U1 Population | V48: Male | W48: Female
S49: Total U1 | T49: =$H$38 -> 0.0361 | U49: =U34 -> 10613.4 | V49: =U49*$I$18 ->  | W49: =U49*$I$19 -> 
S50: 0 - 5 m (< 6 m) | T50: =T28*0.1 -> 0.01717 | U50: =T50*$H$30 -> 5047.98
S51: 6 - 8 m | T51: =($T$49-T50)/2 -> 0.009465 | U51: =T51*$H$30 -> 2782.71
S52: 9 - 11 m | T52: =($T$49-T50)/2 -> 0.009465 | U52: =T52*$H$30 -> 2782.71
S54: 0 - 4 weeks (< 1 m) | T54: =T50/26*4 -> 0.002641538462 | U54: =T100 -> 777 | V54: =U54*$I$18 ->  | W54: =U54*$I$19 -> 
S55: 0 - 6 weeks | T55: =$T$50/26*6 -> 0.003962307692 | U55: =T55*$H$30 -> 1164.918462
S56: 7 weeks - 2 m | T56: =T50-T55-T57 -> 0.004622692308 | U56: =T56*$H$30 -> 1359.071538
S57: 3 - 5 m | T57: =$T$50/2 -> 0.008585 | U57: =T57*$H$30 -> 2523.99
R59: NUT | S59: Age group | T59: % of total pop. | U59: 1-23 m Pop. | V59: Male | W59: Female
S60: Total 1 - 23 m | T60: =T34+T35-T54 -> 0.06955846154 | U60: =T99&" ("&U99&"%)" -> 20450 (100%) | V60: =T99*$I$18 ->  | W60: =T99*$I$19 -> 
S61: 1 - 5 m | T61: =(T50-T54) -> 0.01452846154 | U61: =T101&" ("&U101&"%)" -> 4271 (20,89%) | V61: =T101*$I$18 ->  | W61: =T101*$I$19 -> 
S62: 6 - 23 m | T62: =T44 -> 0.05503 | U62: =T102&" ("&U102&"%)" -> 16179 (79,11%) | V62: =T102*$I$18 ->  | W62: =T102*$I$19 -> 
R64: PLW | S64: Women groups | U64: % of total pop | V64: Female pop.
S65: Women child-bearing age | T65: 15 - 44 y | U65: =T22*I19 ->  | V65: =U65*$H$30 -> 
T66: 15 - 49 y | U66: =I19*T24 -> 
S67: Total PLW | U67: =U69+U71 -> 0.04821722793 | V67: 14175.86501
S68: PW 2nd-3rd trim. & LW | U68: =U70+U71 -> 0.03786815195 | V68: =U68*$H$30 -> 11133.23667
S69: Total PW | U69: =H42/365.25*280 -> 0.03104722793 | V69: 9127.88501
S70: PW 2nd and 3rd trimester | U70: =U69*2/3 -> 0.02069815195 | V70: 6085.256674
S71: ="LW (6 months post-partum)" -> LW (6 months post-partum) | U71: =T50 -> 0.01717 | V71: 5047.98
S98: Cálculos Nut
S99: Total 1-23 m | T99: =ROUND(T60*$H$30,0) -> 20450 | U99: 100
S100: 0-4 w (<1 m) | T100: =ROUND(T54*$H$30,0) -> 777 | U100: =ROUND(T100/$T$99*100,2) -> 3.8
S101: 1 - 5 m | T101: =ROUND(T61*$H$30,0) -> 4271 | U101: =ROUND(T101/$T$99*100,2) -> 20.89
S102: 6 - 23 m | T102: =ROUND(T62*$H$30,0) -> 16179 | U102: =ROUND(T102/$T$99*100,2) -> 79.11

Sheet Vaccination Table (hidden)
D1: MSF-OCBA. Emergency Preparedness
D2: Total population (both sexes combined) by five-year age group, major area, region and country
D3: Reference date (as of 1 July)
D4: Source: United Nations, Department of Economic and Social Affairs, Population Division (2017). World Population Prospects: The 2017 Revision, DVD Edition.
D7: 1 | E7: 2 | F7: 3 | G7: 4 | H7: 5 | I7: 6 | J7: 7 | K7: 8 | L7: 9 | M7: 10 | N7: 11 | O7: 12 | P7: 13 | Q7: 14 | R7: 15 | S7: 16 | T7: 17 | U7: 18 | V7: 19 | W7: 20 | X7: 21 | Y7: 22 | Z7: 23 | AA7: 24
D8: Major area, region, country | E8: Notes | F8: Total Population (Thousands)
G9: 5-9 | I9: 10-14 | K9: 5-11 | M9: 5-14 | O9: 15-19 | Q9: 15-29 | S9: 30-44 | U9: >=45 | W9: 9 | X9: 9-14 | Z9: FINAL
B10: Order | C10: Code | G10: # | H10: % | I10: # | J10: % | K10: # | L10: % | M10: # | N10: % | O10: # | P10: % | Q10: # | R10: % | S10: # | T10: % | U10: # | V10: % | W10: # | X10: # | Y10: % | Z10: # | AA10: %
A11: ='General Table'!A11 -> 1 | C11: ='General Table'!C11 -> 900 | D11: ='General Table'!D11 -> WORLD | F11: ='General Table'!F11 -> 7383008.82 | G11: ='General Table'!R11 -> 644476 | H11: =G11/F11 -> 0.08729178248 | I11: ='General Table'!T11 -> 612407 | J11: =I11/F11 -> 0.08294816042 | K11: =G11+I11/5*2 -> 889438.8 | L11: =K11/F11 -> 0.1204710467 | M11: =G11+I11 -> 1256883 | N11: =M11/F11 -> 0.1702399429 | O11: ='General Table'!AB11 -> 593639 | P11: =O11/F11 -> 0.08040610738 | Q11: ='General Table'!AE11 -> 1806909 | R11: =Q11/F11 -> 0.2447388381 | S11: ='General Table'!AJ11 -> 1540189 | T11: =S11/F11 -> 0.2086126453 | U11: ='General Table'!AY11 -> 2105380 | V11: =U11/F11 -> 0.285165581 | W11: =G11/5 -> 128895.2 | X11: =W11+I11 -> 741302.2 | Y11: =X11/F11 -> 0.1004065169
A12: ='General Table'!A12 -> 2 | C12: ='General Table'!C12 -> 901 | D12: ='General Table'!D12 -> More developed regions | F12: ='General Table'!F12 -> 1253206.55 | G12: ='General Table'!R12 -> 69791 | H12: 0.05568994193 | I12: ='General Table'!T12 -> 67129 | J12: 0.05356579089 | K12: 96642.6 | L12: 0.07711625829 | M12: 136920 | N12: 0.1092557328 | O12: ='General Table'!AB12 -> 68954 | P12: 0.05502205522 | Q12: ='General Table'!AE12 -> 231492 | R12: 0.1847197495 | S12: ='General Table'!AJ12 -> 257024 | T12: 0.205093087 | U12: ='General Table'!AY12 -> 558649 | V12: 0.4457756784 | W12: 13958.2 | X12: 81087.2 | Y12: =X12/F12 -> 0.06470377928
A13: ='General Table'!A13 -> 3 | C13: ='General Table'!C13 -> 902 | D13: ='General Table'!D13 -> Less developed regions | F13: ='General Table'!F13 -> 6129802.27 | G13: ='General Table'!R13 -> 574685 | H13: 0.09375261627 | I13: ='General Table'!T13 -> 545278 | J13: 0.08895523477 | K13: 792796.2 | L13: 0.1293347102 | M13: 1119963 | N13: 0.182707851 | O13: ='General Table'!AB13 -> 524685 | P13: 0.0855957463 | Q13: ='General Table'!AE13 -> 1575417 | R13: 0.2570094321 | S13: ='General Table'!AJ13 -> 1283165 | T13: 0.2093322009 | U13: ='General Table'!AY13 -> 1546730 | V13: 0.2523295095 | W13: 114937 | X13: 660215 | Y13: 0.107705758
A14: ='General Table'!A14 -> 4 | C14: ='General Table'!C14 -> 941 | D14: ='General Table'!D14 -> Least developed countries | F14: ='General Table'!F14 -> 956631.11 | G14: ='General Table'!R14 -> 127648 | H14: 0.1334349246 | I14: ='General Table'!T14 -> 115614 | J14: 0.1208553629 | K14: 173893.6 | L14: 0.1817770697 | M14: 243262 | N14: 0.2542902875 | O14: ='General Table'!AB14 -> 102145 | P14: 0.1067757456 | Q14: ='General Table'!AE14 -> 265911 | R14: 0.2779660804 | S14: ='General Table'!AJ14 -> 164227 | T14: 0.1716722342 | U14: ='General Table'!AY14 -> 142461 | V14: 0.1489194722 | W14: 25529.6 | X14: 141143.6 | Y14: 0.1475423479
A15: ='General Table'!A15 -> 5 | C15: ='General Table'!C15 -> 934 | D15: ='General Table'!D15 -> Less developed regions, excluding least developed countries | F15: ='General Table'!F15 -> 5173171.17 | G15: ='General Table'!R15 -> 447037 | H15: 0.08641449999 | I15: ='General Table'!T15 -> 429664 | J15: 0.08305621173 | K15: 618902.6 | L15: 0.1196369847 | M15: 876701 | N15: 0.1694707117 | O15: ='General Table'!AB15 -> 422540 | P15: 0.08167910671 | Q15: ='General Table'!AE15 -> 1309506 | R15: 0.2531340945 | S15: ='General Table'!AJ15 -> 1118937 | T15: 0.2162961486 | U15: ='General Table'!AY15 -> 1404267 | V15: 0.2714518723 | W15: 89407.4 | X15: 519071.4 | Y15: 0.1003391117
A16: ='General Table'!A16 -> 6 | C16: ='General Table'!C16 -> 948 | D16: ='General Table'!D16 -> Less developed regions, excluding China | F16: ='General Table'!F16 -> 4701441.32 | G16: ='General Table'!R16 -> 491037 | H16: 0.1044439283 | I16: ='General Table'!T16 -> 464951 | J16: 0.09889541703 | K16: 677017.4 | L16: 0.1440020951 | M16: 955988 | N16: 0.2033393453 | O16: ='General Table'!AB16 -> 441954 | P16: 0.09400393835 | Q16: ='General Table'!AE16 -> 1257378 | R16: 0.2674452183 | S16: ='General Table'!AJ16 -> 958714 | T16: 0.2039191675 | U16: ='General Table'!AY16 -> 1012048 | V16: 0.2152633482 | W16: 98207.4 | X16: 563158.4 | Y16: 0.1197842027
A17: ='General Table'!A17 -> 7 | C17: ='General Table'!C17 -> 1503 | D17: ='General Table'!D17 -> High-income countries | F17: ='General Table'!F17 -> 1180060.96 | G17: ='General Table'!R17 -> 66832 | H17: 0.05663436235 | I17: ='General Table'!T17 -> 65597 | J17: 0.05558780624 | K17: 93070.8 | L17: 0.07886948484 | M17: 132429 | N17: 0.1122221686 | O17: ='General Table'!AB17 -> 68564 | P17: 0.05810208313 | Q17: ='General Table'!AE17 -> 222317 | R17: 0.1883945046 | S17: ='General Table'!AJ17 -> 247128 | T17: 0.2094196896 | U17: ='General Table'!AY17 -> 513083 | V17: 0.4347936398 | W17: 13366.4 | X17: 78963.4 | Y17: 0.06691467871
A18: ='General Table'!A18 -> 8 | C18: ='General Table'!C18 -> 1517 | D18: ='General Table'!D18 -> Middle-income countries | F18: ='General Table'!F18 -> 5558263.98 | G18: ='General Table'!R18 -> 485905 | H18: 0.08742028118 | I18: ='General Table'!T18 -> 466097 | J18: 0.08385657854 | K18: 672343.8 | L18: 0.1209629126 | M18: 952002 | N18: 0.1712768597 | O18: ='General Table'!AB18 -> 455397 | P18: 0.08193151704 | Q18: ='General Table'!AE18 -> 1407317 | R18: 0.253193624 | S18: ='General Table'!AJ18 -> 1190346 | T18: 0.2141578745 | U18: ='General Table'!AY18 -> 1503694 | V18: 0.2705330307 | W18: 97181 | X18: 563278 | Y18: 0.1013406348
A19: ='General Table'!A19 -> 9 | C19: ='General Table'!C19 -> 1502 | D19: ='General Table'!D19 -> Upper-middle-income countries | F19: ='General Table'!F19 -> 2588362.98 | G19: ='General Table'!R19 -> 177131 | H19: 0.06843360123 | I19: ='General Table'!T19 -> 170974 | J19: 0.06605487767 | K19: 245520.6 | L19: 0.09485555229 | M19: 348105 | N19: 0.1344884789 | O19: ='General Table'!AB19 -> 174030 | P19: 0.06723554669 | Q19: ='General Table'!AE19 -> 605396 | R19: 0.2338914614 | S19: ='General Table'!AJ19 -> 583672 | T19: 0.2254985118 | U19: ='General Table'!AY19 -> 866040 | V19: 0.3345898573 | W19: 35426.2 | X19: 206400.2 | Y19: 0.07974159791
A20: ='General Table'!A20 -> 10 | C20: ='General Table'!C20 -> 1501 | D20: ='General Table'!D20 -> Lower-middle-income countries | F20: ='General Table'!F20 -> 2969901 | G20: ='General Table'!R20 -> 308774 | H20: 0.1039677754 | I20: ='General Table'!T20 -> 295123 | J20: 0.09937132585 | K20: 426823.2 | L20: 0.1437163057 | M20: 603897 | N20: 0.2033391012 | O20: ='General Table'!AB20 -> 281367 | P20: 0.09473952162 | Q20: ='General Table'!AE20 -> 801922 | R20: 0.270016408 | S20: ='General Table'!AJ20 -> 606675 | T20: 0.2042744859 | U20: ='General Table'!AY20 -> 637655 | V20: 0.2147058101 | W20: 61754.8 | X20: 356877.8 | Y20: 0.1201648809
A21: ='General Table'!A21 -> 11 | C21: ='General Table'!C21 -> 1500 | D21: ='General Table'!D21 -> Low-income countries | F21: ='General Table'!F21 -> 641858.61 | G21: ='General Table'!R21 -> 91494 | H21: 0.142545412 | I21: ='General Table'!T21 -> 80473 | J21: 0.1253749638 | K21: 123683.2 | L21: 0.1926953975 | M21: 171967 | N21: 0.2679203758 | O21: ='General Table'!AB21 -> 69451 | P21: 0.1082029577 | Q21: ='General Table'!AE21 -> 176660 | R21: 0.2752319549 | S21: ='General Table'!AJ21 -> 102155 | T21: 0.159154989 | U21: ='General Table'!AY21 -> 87677 | V21: 0.1365986194 | W21: 18298.8 | X21: 98771.8 | Y21: 0.1538840462
A22: ='General Table'!A22 -> 12 | C22: ='General Table'!C22 -> 947 | D22: ='General Table'!D22 -> Sub-Saharan Africa | F22: ='General Table'!F22 -> 969234.25 | G22: ='General Table'!R22 -> 138491 | H22: 0.1428870265 | I22: ='General Table'!T22 -> 120081 | J22: 0.1238926503 | K22: 186523.4 | L22: 0.1924440867 | M22: 258572 | N22: 0.2667796768 | O22: ='General Table'!AB22 -> 103123 | P22: 0.1063963639 | Q22: ='General Table'!AE22 -> 266003 | R22: 0.2744465541 | S22: ='General Table'!AJ22 -> 157947 | T22: 0.1629606052 | U22: ='General Table'!AY22 -> 127785 | V22: 0.1318411932 | W22: 27698.2 | X22: 147779.2 | Y22: 0.1524700556
A23: ='General Table'!A23 -> 13 | C23: ='General Table'!C23 -> 903 | D23: ='General Table'!D23 -> AFRICA | F23: ='General Table'!F23 -> 1194369.91 | G23: ='General Table'!R23 -> 162115 | H23: 0.1357326559 | I23: ='General Table'!T23 -> 141159 | J23: 0.1181870029 | K23: 218578.6 | L23: 0.183007457 | M23: 303274 | N23: 0.2539196588 | O23: ='General Table'!AB23 -> 122872 | P23: 0.102876001 | Q23: ='General Table'!AE23 -> 325348 | R23: 0.2724013702 | S23: ='General Table'!AJ23 -> 203878 | T23: 0.1706992099 | U23: ='General Table'!AY23 -> 174881 | V23: 0.1464211368 | W23: 32423 | X23: 173582 | Y23: 0.1453335341
A24: ='General Table'!A24 -> 14 | C24: ='General Table'!C24 -> 910 | D24: ='General Table'!D24 -> Eastern Africa | F24: ='General Table'!F24 -> 399458.03 | G24: ='General Table'!R24 -> 57617 | H24: 0.1442379316 | I24: ='General Table'!T24 -> 50978 | J24: 0.1276179127 | K24: 78008.2 | L24: 0.1952850967 | M24: 108595 | N24: 0.2718558443 | O24: ='General Table'!AB24 -> 44247 | P24: 0.1107675818 | Q24: ='General Table'!AE24 -> 112823 | R24: 0.2824401853 | S24: ='General Table'!AJ24 -> 63883 | T24: 0.1599241853 | U24: ='General Table'!AY24 -> 49469 | V24: 0.1238402943 | W24: 11523.4 | X24: 62501.4 | Y24: 0.156465499
A25: ='General Table'!A25 -> 15 | C25: ='General Table'!C25 -> 108 | D25: ='General Table'!D25 -> Burundi | F25: ='General Table'!F25 -> 10199.27 | G25: ='General Table'!R25 -> 1512 | H25: 0.1482459039 | I25: ='General Table'!T25 -> 1199 | J25: 0.117557433 | K25: 1991.6 | L25: 0.1952688771 | M25: 2711 | N25: 0.2658033369 | O25: ='General Table'!AB25 -> 1044 | P25: 0.102360267 | Q25: ='General Table'!AE25 -> 2874 | R25: 0.2817848728 | S25: ='General Table'!AJ25 -> 1482 | T25: 0.1453045169 | U25: ='General Table'!AY25 -> 1280 | V25: 0.1254991779 | W25: 302.4 | X25: 1501.4 | Y25: 0.1472066138
A26: ='General Table'!A26 -> 16 | C26: ='General Table'!C26 -> 174 | D26: ='General Table'!D26 -> Comoros | F26: ='General Table'!F26 -> 777.42 | G26: ='General Table'!R26 -> 104 | H26: 0.1337758226 | I26: ='General Table'!T26 -> 91 | J26: 0.1170538448 | K26: 140.4 | L26: 0.1805973605 | M26: 195 | N26: 0.2508296674 | O26: ='General Table'!AB26 -> 81 | P26: 0.1041907849 | Q26: ='General Table'!AE26 -> 219 | R26: 0.281701011 | S26: ='General Table'!AJ26 -> 135 | T26: 0.1736513082 | U26: ='General Table'!AY26 -> 111 | V26: 0.1427799645 | W26: 20.8 | X26: 111.8 | Y26: 0.1438090093
A27: ='General Table'!A27 -> 17 | C27: ='General Table'!C27 -> 262 | D27: ='General Table'!D27 -> Djibouti | F27: ='General Table'!F27 -> 927.41 | G27: ='General Table'!R27 -> 97 | H27: 0.1045923594 | I27: ='General Table'!T27 -> 99 | J27: 0.1067489029 | K27: 136.6 | L27: 0.1472919205 | M27: 196 | N27: 0.2113412622 | O27: ='General Table'!AB27 -> 97 | P27: 0.1045923594 | Q27: ='General Table'!AE27 -> 282 | R27: 0.3040726324 | S27: ='General Table'!AJ27 -> 186 | T27: 0.2005585448 | U27: ='General Table'!AY27 -> 163 | V27: 0.1757582946 | W27: 19.4 | X27: 118.4 | Y27: 0.1276673747
A28: ='General Table'!A28 -> 18 | C28: ='General Table'!C28 -> 232 | D28: ='General Table'!D28 -> Eritrea | F28: ='General Table'!F28 -> 4846.98 | G28: ='General Table'!R28 -> 704 | H28: 0.1452450804 | I28: ='General Table'!T28 -> 602 | J28: 0.1242010489 | K28: 944.8 | L28: 0.1949255 | M28: 1306 | N28: 0.2694461293 | O28: ='General Table'!AB28 -> 483 | P28: 0.09964967877 | Q28: ='General Table'!AE28 -> 1350 | R28: 0.2785239469 | S28: ='General Table'!AJ28 -> 819 | T28: 0.1689711944 | U28: ='General Table'!AY28 -> 626 | V28: 0.1291525857 | W28: 140.8 | X28: 742.8 | Y28: 0.153250065
A29: ='General Table'!A29 -> 19 | C29: ='General Table'!C29 -> 231 | D29: ='General Table'!D29 -> Ethiopia | F29: ='General Table'!F29 -> 99873.03 | G29: ='General Table'!R29 -> 13661 | H29: 0.1367836742 | I29: ='General Table'!T29 -> 12996 | J29: 0.13012522 | K29: 18859.4 | L29: 0.1888337622 | M29: 26657 | N29: 0.2669088942 | O29: ='General Table'!AB29 -> 11776 | P29: 0.11790971 | Q29: ='General Table'!AE29 -> 29176 | R29: 0.2921309186 | S29: ='General Table'!AJ29 -> 15787 | T29: 0.1580707024 | U29: ='General Table'!AY29 -> 13353 | V29: 0.1336997586 | W29: 2732.2 | X29: 15728.2 | Y29: 0.1574819548
A30: ='General Table'!A30 -> 20 | C30: ='General Table'!C30 -> 404 | D30: ='General Table'!D30 -> Kenya | F30: ='General Table'!F30 -> 47236.26 | G30: ='General Table'!R30 -> 6632 | H30: 0.140400616 | I30: ='General Table'!T30 -> 5901 | J30: 0.1249252163 | K30: 8992.4 | L30: 0.1903707025 | M30: 12533 | N30: 0.2653258323 | O30: ='General Table'!AB30 -> 5164 | P30: 0.1093227957 | Q30: ='General Table'!AE30 -> 13567 | R30: 0.2872157957 | S30: ='General Table'!AJ30 -> 8495 | T30: 0.1798406563 | U30: ='General Table'!AY30 -> 5645 | V30: 0.119505651 | W30: 1326.4 | X30: 7227.4 | Y30: 0.1530053395
A31: ='General Table'!A31 -> 21 | C31: ='General Table'!C31 -> 450 | D31: ='General Table'!D31 -> Madagascar | F31: ='General Table'!F31 -> 24234.09 | G31: ='General Table'!R31 -> 3356 | H31: 0.1384826086 | I31: ='General Table'!T31 -> 3036 | J31: 0.125278069 | K31: 4570.4 | L31: 0.1885938362 | M31: 6392 | N31: 0.2637606776 | O31: ='General Table'!AB31 -> 2704 | P31: 0.1115783592 | Q31: ='General Table'!AE31 -> 6810 | R31: 0.2810091074 | S31: ='General Table'!AJ31 -> 4020 | T31: 0.1658820282 | U31: ='General Table'!AY31 -> 3312 | V31: 0.1366669844 | W31: 671.2 | X31: 3707.2 | Y31: 0.1529745908
A32: ='General Table'!A32 -> 22 | C32: ='General Table'!C32 -> 454 | D32: ='General Table'!D32 -> Malawi | F32: ='General Table'!F32 -> 17573.61 | G32: ='General Table'!R32 -> 2678 | H32: 0.1523875857 | I32: ='General Table'!T32 -> 2281 | J32: 0.1297968943 | K32: 3590.4 | L32: 0.2043063434 | M32: 4959 | N32: 0.28218448 | O32: ='General Table'!AB32 -> 1981 | P32: 0.1127258429 | Q32: ='General Table'!AE32 -> 5128 | R32: 0.2918011723 | S32: ='General Table'!AJ32 -> 2692 | T32: 0.1531842348 | U32: ='General Table'!AY32 -> 1907 | V32: 0.1085149835 | W32: 535.6 | X32: 2816.6 | Y32: 0.1602744115
A33: ='General Table'!A33 -> 23 | C33: ='General Table'!C33 -> 480 | D33: ='General Table'!D33 -> Mauritius | F33: ='General Table'!F33 -> 1259.46 | G33: ='General Table'!R33 -> 81 | H33: 0.06431327712 | I33: ='General Table'!T33 -> 95 | J33: 0.07542915218 | K33: 119 | L33: 0.09448493799 | M33: 176 | N33: 0.1397424293 | O33: ='General Table'!AB33 -> 94 | P33: 0.0746351611 | Q33: ='General Table'!AE33 -> 286 | R33: 0.2270814476 | S33: ='General Table'!AJ33 -> 272 | T33: 0.2159655725 | U33: ='General Table'!AY33 -> 455 | V33: 0.3612659394 | W33: 16.2 | X33: 111.2 | Y33: 0.0882918076
A34: ='General Table'!A34 -> 24 | C34: ='General Table'!C34 -> 175 | D34: ='General Table'!D34 -> Mayotte | F34: ='General Table'!F34 -> 240.02 | G34: ='General Table'!R34 -> 35 | H34: 0.1458211816 | I34: ='General Table'!T34 -> 30 | J34: 0.1249895842 | K34: 47 | L34: 0.1958170152 | M34: 65 | N34: 0.2708107658 | O34: ='General Table'!AB34 -> 25 | P34: 0.1041579868 | Q34: ='General Table'!AE34 -> 61 | R34: 0.2541454879 | S34: ='General Table'!AJ34 -> 44 | T34: 0.1833180568 | U34: ='General Table'!AY34 -> 33 | V34: 0.1374885426 | W34: 7 | X34: 37 | Y34: 0.1541538205
A35: ='General Table'!A35 -> 25 | C35: ='General Table'!C35 -> 508 | D35: ='General Table'!D35 -> Mozambique | F35: ='General Table'!F35 -> 28010.69 | G35: ='General Table'!R35 -> 4197 | H35: 0.149835652 | I35: ='General Table'!T35 -> 3620 | J35: 0.1292363737 | K35: 5645 | L35: 0.2015302015 | M35: 7817 | N35: 0.2790720257 | O35: ='General Table'!AB35 -> 3029 | P35: 0.1081372862 | Q35: ='General Table'!AE35 -> 7572 | R35: 0.2703253651 | S35: ='General Table'!AJ35 -> 4256 | T35: 0.1519419907 | U35: ='General Table'!AY35 -> 3520 | V35: 0.1256663081 | W35: 839.4 | X35: 4459.4 | Y35: 0.1592035041
A36: ='General Table'!A36 -> 26 | C36: ='General Table'!C36 -> 638 | D36: ='General Table'!D36 -> Réunion | F36: ='General Table'!F36 -> 863.36 | G36: ='General Table'!R36 -> 69 | H36: 0.07992031134 | I36: ='General Table'!T36 -> 72 | J36: 0.08339510749 | K36: 97.8 | L36: 0.1132783543 | M36: 141 | N36: 0.1633154188 | O36: ='General Table'!AB36 -> 68 | P36: 0.07876204596 | Q36: ='General Table'!AE36 -> 178 | R36: 0.206171238 | S36: ='General Table'!AJ36 -> 165 | T36: 0.191113788 | U36: ='General Table'!AY36 -> 312 | V36: 0.3613787991 | W36: 13.8 | X36: 85.8 | Y36: 0.09937916976
A37: ='General Table'!A37 -> 27 | C37: ='General Table'!C37 -> 646 | D37: ='General Table'!D37 -> Rwanda | F37: ='General Table'!F37 -> 11629.55 | G37: ='General Table'!R37 -> 1611 | H37: 0.1385264262 | I37: ='General Table'!T37 -> 1399 | J37: 0.120297002 | K37: 2170.6 | L37: 0.186645227 | M37: 3010 | N37: 0.2588234282 | O37: ='General Table'!AB37 -> 1207 | P37: 0.1037873348 | Q37: ='General Table'!AE37 -> 3280 | R37: 0.2820401477 | S37: ='General Table'!AJ37 -> 2026 | T37: 0.1742113839 | U37: ='General Table'!AY37 -> 1578 | V37: 0.1356888272 | W37: 322.2 | X37: 1721.2 | Y37: 0.1480022873
A38: ='General Table'!A38 -> 28 | C38: ='General Table'!C38 -> 690 | D38: ='General Table'!D38 -> Seychelles | F38: ='General Table'!F38 -> 93.74 | G38: ='General Table'!R38 -> 7 | H38: 0.07467463196 | I38: ='General Table'!T38 -> 6 | J38: 0.06400682739 | K38: 9.4 | L38: 0.1002773629 | M38: 13 | N38: 0.1386814594 | O38: ='General Table'!AB38 -> 6 | P38: 0.06400682739 | Q38: ='General Table'!AE38 -> 20 | R38: 0.2133560913 | S38: ='General Table'!AJ38 -> 23 | T38: 0.245359505 | U38: ='General Table'!AY38 -> 31 | V38: 0.3307019415 | W38: 1.4 | X38: 7.4 | Y38: 0.07894175379
A39: ='General Table'!A39 -> 29 | C39: ='General Table'!C39 -> 706 | D39: ='General Table'!D39 -> Somalia | F39: ='General Table'!F39 -> 13908.13 | G39: ='General Table'!R39 -> 2140 | H39: 0.153866839 | I39: ='General Table'!T39 -> 1796 | J39: 0.1291331042 | K39: 2858.4 | L39: 0.2055200807 | M39: 3936 | N39: 0.2829999432 | O39: ='General Table'!AB39 -> 1537 | P39: 0.1105109026 | Q39: ='General Table'!AE39 -> 3758 | R39: 0.2702016734 | S39: ='General Table'!AJ39 -> 1966 | T39: 0.1413561708 | U39: ='General Table'!AY39 -> 1693 | V39: 0.1217273638 | W39: 428 | X39: 2224 | Y39: 0.159906472
A40: ='General Table'!A40 -> 30 | C40: ='General Table'!C40 -> 728 | D40: ='General Table'!D40 -> South Sudan | F40: ='General Table'!F40 -> 11882.14 | G40: ='General Table'!R40 -> 1655 | H40: 0.1392846743 | I40: ='General Table'!T40 -> 1463 | J40: 0.1231259689 | K40: 2240.2 | L40: 0.1885350619 | M40: 3118 | N40: 0.2624106432 | O40: ='General Table'!AB40 -> 1305 | P40: 0.1098287009 | Q40: ='General Table'!AE40 -> 3347 | R40: 0.2816832658 | S40: ='General Table'!AJ40 -> 1886 | T40: 0.1587256168 | U40: ='General Table'!AY40 -> 1649 | V40: 0.1387797148 | W40: 331 | X40: 1794 | Y40: 0.1509829038
A41: ='General Table'!A41 -> 31 | C41: ='General Table'!C41 -> 800 | D41: ='General Table'!D41 -> Uganda | F41: ='General Table'!F41 -> 40144.87 | G41: ='General Table'!R41 -> 6416 | H41: 0.1598211677 | I41: ='General Table'!T41 -> 5433 | J41: 0.135334851 | K41: 8589.2 | L41: 0.2139551081 | M41: 11849 | N41: 0.2951560187 | O41: ='General Table'!AB41 -> 4487 | P41: 0.1117701963 | Q41: ='General Table'!AE41 -> 11170 | R41: 0.278242276 | S41: ='General Table'!AJ41 -> 5813 | T41: 0.1448005685 | U41: ='General Table'!AY41 -> 3802 | V41: 0.09470699494 | W41: 1283.2 | X41: 6716.2 | Y41: 0.1672990845
A42: ='General Table'!A42 -> 32 | C42: ='General Table'!C42 -> 834 | D42: ='General Table'!D42 -> United Republic of Tanzania | F42: ='General Table'!F42 -> 53879.96 | G42: ='General Table'!R42 -> 8078 | H42: 0.1499258723 | I42: ='General Table'!T42 -> 6853 | J42: 0.1271901464 | K42: 10819.2 | L42: 0.2008019308 | M42: 14931 | N42: 0.2771160186 | O42: ='General Table'!AB42 -> 5652 | P42: 0.1048998552 | Q42: ='General Table'!AE42 -> 14478 | R42: 0.26870844 | S42: ='General Table'!AJ42 -> 8432 | T42: 0.156496033 | U42: ='General Table'!AY42 -> 6620 | V42: 0.1228657185 | W42: 1615.6 | X42: 8468.6 | Y42: 0.1571753208
A43: ='General Table'!A43 -> 33 | C43: ='General Table'!C43 -> 894 | D43: ='General Table'!D43 -> Zambia | F43: ='General Table'!F43 -> 16100.59 | G43: ='General Table'!R43 -> 2414 | H43: 0.1499323938 | I43: ='General Table'!T43 -> 2142 | J43: 0.1330386029 | K43: 3270.8 | L43: 0.203147835 | M43: 4556 | N43: 0.2829709967 | O43: ='General Table'!AB43 -> 1814 | P43: 0.1126666787 | Q43: ='General Table'!AE43 -> 4571 | R43: 0.2839026396 | S43: ='General Table'!AJ43 -> 2567 | T43: 0.1594351511 | U43: ='General Table'!AY43 -> 1656 | V43: 0.1028533737 | W43: 482.8 | X43: 2624.8 | Y43: 0.1630250817
A44: ='General Table'!A44 -> 34 | C44: ='General Table'!C44 -> 716 | D44: ='General Table'!D44 -> Zimbabwe | F44: ='General Table'!F44 -> 15777.45 | G44: ='General Table'!R44 -> 2173 | H44: 0.1377282134 | I44: ='General Table'!T44 -> 1865 | J44: 0.1182066811 | K44: 2919 | L44: 0.1850108858 | M44: 4038 | N44: 0.2559348944 | O44: ='General Table'!AB44 -> 1692 | P44: 0.1072416645 | Q44: ='General Table'!AE44 -> 4694 | R44: 0.297513223 | S44: ='General Table'!AJ44 -> 2817 | T44: 0.1785459628 | U44: ='General Table'!AY44 -> 1724 | V44: 0.1092698757 | W44: 434.6 | X44: 2299.6 | Y44: 0.1457523237
A45: ='General Table'!A45 -> 35 | C45: ='General Table'!C45 -> 911 | D45: ='General Table'!D45 -> Middle Africa | F45: ='General Table'!F45 -> 153742.72 | G45: ='General Table'!R45 -> 23272 | H45: 0.1513697689 | I45: ='General Table'!T45 -> 19356 | J45: 0.1258986442 | K45: 31014.4 | L45: 0.2017292266 | M45: 42628 | N45: 0.2772684131 | O45: ='General Table'!AB45 -> 16013 | P45: 0.1041545252 | Q45: ='General Table'!AE45 -> 40907 | R45: 0.2660743871 | S45: ='General Table'!AJ45 -> 23427 | T45: 0.1523779467 | U45: ='General Table'!AY45 -> 19166 | V45: 0.1246628133 | W45: 4654.4 | X45: 24010.4 | Y45: 0.156172598
A46: ='General Table'!A46 -> 36 | C46: ='General Table'!C46 -> 24 | D46: ='General Table'!D46 -> Angola | F46: ='General Table'!F46 -> 27859.31 | G46: ='General Table'!R46 -> 4377 | H46: 0.1571108545 | I46: ='General Table'!T46 -> 3581 | J46: 0.1285387183 | K46: 5809.4 | L46: 0.2085263418 | M46: 7958 | N46: 0.2856495728 | O46: ='General Table'!AB46 -> 2905 | P46: 0.1042739393 | Q46: ='General Table'!AE46 -> 7362 | R46: 0.2642563653 | S46: ='General Table'!AJ46 -> 4161 | T46: 0.1493576115 | U46: ='General Table'!AY46 -> 3221 | V46: 0.1156166466 | W46: 875.4 | X46: 4456.4 | Y46: 0.1599608892
A47: ='General Table'!A47 -> 37 | C47: ='General Table'!C47 -> 120 | D47: ='General Table'!D47 -> Cameroon | F47: ='General Table'!F47 -> 22834.52 | G47: ='General Table'!R47 -> 3275 | H47: 0.1434232031 | I47: ='General Table'!T47 -> 2810 | J47: 0.1230592979 | K47: 4399 | L47: 0.1926469223 | M47: 6085 | N47: 0.2664825011 | O47: ='General Table'!AB47 -> 2396 | P47: 0.1049288533 | Q47: ='General Table'!AE47 -> 6397 | R47: 0.2801460245 | S47: ='General Table'!AJ47 -> 3737 | T47: 0.1636557283 | U47: ='General Table'!AY47 -> 2873 | V47: 0.1258182786 | W47: 655 | X47: 3465 | Y47: 0.1517439386
A48: ='General Table'!A48 -> 38 | C48: ='General Table'!C48 -> 140 | D48: ='General Table'!D48 -> Central African Republic | F48: ='General Table'!F48 -> 4546.1 | G48: ='General Table'!R48 -> 658 | H48: 0.144739447 | I48: ='General Table'!T48 -> 601 | J48: 0.1322012274 | K48: 898.4 | L48: 0.197619938 | M48: 1259 | N48: 0.2769406744 | O48: ='General Table'!AB48 -> 516 | P48: 0.1135038824 | Q48: ='General Table'!AE48 -> 1258 | R48: 0.2767207057 | S48: ='General Table'!AJ48 -> 680 | T48: 0.1495787598 | U48: ='General Table'!AY48 -> 621 | V48: 0.1366006027 | W48: 131.6 | X48: 732.6 | Y48: 0.1611491168
A49: ='General Table'!A49 -> 39 | C49: ='General Table'!C49 -> 148 | D49: ='General Table'!D49 -> Chad | F49: ='General Table'!F49 -> 14009.41 | G49: ='General Table'!R49 -> 2195 | H49: 0.1566804027 | I49: ='General Table'!T49 -> 1870 | J49: 0.1334817098 | K49: 2943 | L49: 0.2100730866 | M49: 4065 | N49: 0.2901621125 | O49: ='General Table'!AB49 -> 1564 | P49: 0.1116392482 | Q49: ='General Table'!AE49 -> 3870 | R49: 0.2762428967 | S49: ='General Table'!AJ49 -> 1958 | T49: 0.139763202 | U49: ='General Table'!AY49 -> 1516 | V49: 0.1082129797 | W49: 439 | X49: 2309 | Y49: 0.1648177903
A50: ='General Table'!A50 -> 40 | C50: ='General Table'!C50 -> 178 | D50: ='General Table'!D50 -> Congo | F50: ='General Table'!F50 -> 4995.65 | G50: ='General Table'!R50 -> 713 | H50: 0.14272417 | I50: ='General Table'!T50 -> 592 | J50: 0.1185030977 | K50: 949.8 | L50: 0.1901254091 | M50: 1305 | N50: 0.2612272677 | O50: ='General Table'!AB50 -> 491 | P50: 0.09828550839 | Q50: ='General Table'!AE50 -> 1267 | R50: 0.25362065 | S50: ='General Table'!AJ50 -> 896 | T50: 0.1793560398 | U50: ='General Table'!AY50 -> 712 | V50: 0.1425239959 | W50: 142.6 | X50: 734.6 | Y50: 0.1470479317
A51: ='General Table'!A51 -> 41 | C51: ='General Table'!C51 -> 180 | D51: ='General Table'!D51 -> Democratic Republic of the Congo | F51: ='General Table'!F51 -> 76196.62 | G51: ='General Table'!R51 -> 11652 | H51: 0.1529201689 | I51: ='General Table'!T51 -> 9562 | J51: 0.1254911307 | K51: 15476.8 | L51: 0.2031166212 | M51: 21214 | N51: 0.2784112996 | O51: ='General Table'!AB51 -> 7839 | P51: 0.1028785791 | Q51: ='General Table'!AE51 -> 19836 | R51: 0.2603265079 | S51: ='General Table'!AJ51 -> 11315 | T51: 0.1484974005 | U51: ='General Table'!AY51 -> 9732 | V51: 0.1277222008 | W51: 2330.4 | X51: 11892.4 | Y51: 0.1560751645
A52: ='General Table'!A52 -> 42 | C52: ='General Table'!C52 -> 226 | D52: ='General Table'!D52 -> Equatorial Guinea | F52: ='General Table'!F52 -> 1175.39 | G52: ='General Table'!R52 -> 145 | H52: 0.1233633092 | I52: ='General Table'!T52 -> 118 | J52: 0.1003922102 | K52: 192.2 | L52: 0.1635201933 | M52: 263 | N52: 0.2237555194 | O52: ='General Table'!AB52 -> 99 | P52: 0.08422736283 | Q52: ='General Table'!AE52 -> 331 | R52: 0.2816086576 | S52: ='General Table'!AJ52 -> 253 | T52: 0.215247705 | U52: ='General Table'!AY52 -> 150 | V52: 0.1276172164 | W52: 29 | X52: 147 | Y52: 0.1250648721
A53: ='General Table'!A53 -> 43 | C53: ='General Table'!C53 -> 266 | D53: ='General Table'!D53 -> Gabon | F53: ='General Table'!F53 -> 1930.18 | G53: ='General Table'!R53 -> 227 | H53: 0.1176056119 | I53: ='General Table'!T53 -> 196 | J53: 0.1015449336 | K53: 305.4 | L53: 0.1582235854 | M53: 423 | N53: 0.2191505455 | O53: ='General Table'!AB53 -> 183 | P53: 0.09480981048 | Q53: ='General Table'!AE53 -> 531 | R53: 0.2751038763 | S53: ='General Table'!AJ53 -> 395 | T53: 0.2046441265 | U53: ='General Table'!AY53 -> 317 | V53: 0.1642333876 | W53: 45.4 | X53: 241.4 | Y53: 0.125066056
A54: ='General Table'!A54 -> 44 | C54: ='General Table'!C54 -> 678 | D54: ='General Table'!D54 -> Sao Tome and Principe | F54: ='General Table'!F54 -> 195.55 | G54: ='General Table'!R54 -> 28 | H54: 0.143185886 | I54: ='General Table'!T54 -> 26 | J54: 0.1329583227 | K54: 38.4 | L54: 0.196369215 | M54: 54 | N54: 0.2761442086 | O54: ='General Table'!AB54 -> 21 | P54: 0.1073894145 | Q54: ='General Table'!AE54 -> 54 | R54: 0.2761442086 | S54: ='General Table'!AJ54 -> 32 | T54: 0.1636410125 | U54: ='General Table'!AY54 -> 24 | V54: 0.1227307594 | W54: 5.6 | X54: 31.6 | Y54: 0.1615954999
A55: ='General Table'!A55 -> 45 | C55: ='General Table'!C55 -> 912 | D55: ='General Table'!D55 -> Northern Africa | F55: ='General Table'!F55 -> 225135.66 | G55: ='General Table'!R55 -> 23624 | H55: 0.1049322884 | I55: ='General Table'!T55 -> 21078 | J55: 0.09362355124 | K55: 32055.2 | L55: 0.1423817089 | M55: 44702 | N55: 0.1985558396 | O55: ='General Table'!AB55 -> 19749 | P55: 0.08772044375 | Q55: ='General Table'!AE55 -> 59344 | R55: 0.2635921826 | S55: ='General Table'!AJ55 -> 45930 | T55: 0.2040103287 | U55: ='General Table'!AY55 -> 47094 | V55: 0.2091805447 | W55: 4724.8 | X55: 25802.8 | Y55: 0.1146100089
A56: ='General Table'!A56 -> 46 | C56: ='General Table'!C56 -> 12 | D56: ='General Table'!D56 -> Algeria | F56: ='General Table'!F56 -> 39871.53 | G56: ='General Table'!R56 -> 3837 | H56: 0.09623407981 | I56: ='General Table'!T56 -> 2924 | J56: 0.07333553541 | K56: 5006.6 | L56: 0.125568294 | M56: 6761 | N56: 0.1695696152 | O56: ='General Table'!AB56 -> 3018 | P56: 0.07569310734 | Q56: ='General Table'!AE56 -> 10386 | R56: 0.2604866179 | S56: ='General Table'!AJ56 -> 9135 | T56: 0.2291108468 | U56: ='General Table'!AY56 -> 8925 | V56: 0.2238439307 | W56: 767.4 | X56: 3691.4 | Y56: 0.09258235137
A57: ='General Table'!A57 -> 47 | C57: ='General Table'!C57 -> 818 | D57: ='General Table'!D57 -> Egypt | F57: ='General Table'!F57 -> 93778.17 | G57: ='General Table'!R57 -> 9797 | H57: 0.1044699422 | I57: ='General Table'!T57 -> 8903 | J57: 0.09493680672 | K57: 13358.2 | L57: 0.1424446649 | M57: 18700 | N57: 0.1994067489 | O57: ='General Table'!AB57 -> 8137 | P57: 0.08676859444 | Q57: ='General Table'!AE57 -> 24775 | R57: 0.2641872837 | S57: ='General Table'!AJ57 -> 18922 | T57: 0.2017740376 | U57: ='General Table'!AY57 -> 19007 | V57: 0.2026804319 | W57: 1959.4 | X57: 10862.4 | Y57: 0.1158307952
A58: ='General Table'!A58 -> 48 | C58: ='General Table'!C58 -> 434 | D58: ='General Table'!D58 -> Libya | F58: ='General Table'!F58 -> 6234.96 | G58: ='General Table'!R58 -> 596 | H58: 0.09559002784 | I58: ='General Table'!T58 -> 557 | J58: 0.08933497569 | K58: 818.8 | L58: 0.1313240181 | M58: 1153 | N58: 0.1849250035 | O58: ='General Table'!AB58 -> 536 | P58: 0.08596687068 | Q58: ='General Table'!AE58 -> 1654 | R58: 0.2652783659 | S58: ='General Table'!AJ58 -> 1602 | T58: 0.2569382963 | U58: ='General Table'!AY58 -> 1195 | V58: 0.1916612135 | W58: 119.2 | X58: 676.2 | Y58: 0.1084529813
A59: ='General Table'!A59 -> 49 | C59: ='General Table'!C59 -> 504 | D59: ='General Table'!D59 -> Morocco | F59: ='General Table'!F59 -> 34803.32 | G59: ='General Table'!R59 -> 3146 | H59: 0.09039367509 | I59: ='General Table'!T59 -> 3023 | J59: 0.08685952949 | K59: 4355.2 | L59: 0.1251374869 | M59: 6169 | N59: 0.1772532046 | O59: ='General Table'!AB59 -> 2958 | P59: 0.08499189158 | Q59: ='General Table'!AE59 -> 8986 | R59: 0.2581937585 | S59: ='General Table'!AJ59 -> 7304 | T59: 0.2098650359 | U59: ='General Table'!AY59 -> 8886 | V59: 0.2553204694 | W59: 629.2 | X59: 3652.2 | Y59: 0.1049382645
A60: ='General Table'!A60 -> 50 | C60: ='General Table'!C60 -> 729 | D60: ='General Table'!D60 -> Sudan | F60: ='General Table'!F60 -> 38647.8 | G60: ='General Table'!R60 -> 5341 | H60: 0.1381967408 | I60: ='General Table'!T60 -> 4834 | J60: 0.1250782709 | K60: 7274.6 | L60: 0.1882280492 | M60: 10175 | N60: 0.2632750118 | O60: ='General Table'!AB60 -> 4226 | P60: 0.109346457 | Q60: ='General Table'!AE60 -> 10633 | R60: 0.2751256216 | S60: ='General Table'!AJ60 -> 6286 | T60: 0.1626483267 | U60: ='General Table'!AY60 -> 5694 | V60: 0.1473305078 | W60: 1068.2 | X60: 5902.2 | Y60: 0.1527176191
A61: ='General Table'!A61 -> 51 | C61: ='General Table'!C61 -> 788 | D61: ='General Table'!D61 -> Tunisia | F61: ='General Table'!F61 -> 11273.66 | G61: ='General Table'!R61 -> 857 | H61: 0.07601790368 | I61: ='General Table'!T61 -> 791 | J61: 0.07016354937 | K61: 1173.4 | L61: 0.1040833234 | M61: 1648 | N61: 0.1461814531 | O61: ='General Table'!AB61 -> 827 | P61: 0.07335683354 | Q61: ='General Table'!AE61 -> 2762 | R61: 0.2449958576 | S61: ='General Table'!AJ61 -> 2549 | T61: 0.2261022596 | U61: ='General Table'!AY61 -> 3292 | V61: 0.2920080967 | W61: 171.4 | X61: 962.4 | Y61: 0.08536713011
A62: ='General Table'!A62 -> 52 | C62: ='General Table'!C62 -> 732 | D62: ='General Table'!D62 -> Western Sahara | F62: ='General Table'!F62 -> 526.22 | G62: ='General Table'!R62 -> 49 | H62: 0.09311694728 | I62: ='General Table'!T62 -> 47 | J62: 0.08931625556 | K62: 67.8 | L62: 0.1288434495 | M62: 96 | N62: 0.1824332028 | O62: ='General Table'!AB62 -> 46 | P62: 0.0874159097 | Q62: ='General Table'!AE62 -> 147 | R62: 0.2793508419 | S62: ='General Table'!AJ62 -> 132 | T62: 0.2508456539 | U62: ='General Table'!AY62 -> 97 | V62: 0.1843335487 | W62: 9.8 | X62: 56.8 | Y62: 0.107939645
A63: ='General Table'!A63 -> 53 | C63: ='General Table'!C63 -> 913 | D63: ='General Table'!D63 -> Southern Africa | F63: ='General Table'!F63 -> 63419.64 | G63: ='General Table'!R63 -> 6318 | H63: 0.09962213598 | I63: ='General Table'!T63 -> 6067 | J63: 0.09566437148 | K63: 8744.8 | L63: 0.1378878846 | M63: 12385 | N63: 0.1952865075 | O63: ='General Table'!AB63 -> 6019 | P63: 0.09490750815 | Q63: ='General Table'!AE63 -> 17931 | R63: 0.2827357582 | S63: ='General Table'!AJ63 -> 13456 | T63: 0.2121740205 | U63: ='General Table'!AY63 -> 12936 | V63: 0.2039746678 | W63: 1263.6 | X63: 7330.6 | Y63: 0.1155887987
A64: ='General Table'!A64 -> 54 | C64: ='General Table'!C64 -> 72 | D64: ='General Table'!D64 -> Botswana | F64: ='General Table'!F64 -> 2209.2 | G64: ='General Table'!R64 -> 231 | H64: 0.1045627376 | I64: ='General Table'!T64 -> 216 | J64: 0.09777294948 | K64: 317.4 | L64: 0.1436719174 | M64: 447 | N64: 0.2023356871 | O64: ='General Table'!AB64 -> 215 | P64: 0.09732029694 | Q64: ='General Table'!AE64 -> 642 | R64: 0.2906029332 | S64: ='General Table'!AJ64 -> 493 | T64: 0.2231577041 | U64: ='General Table'!AY64 -> 371 | V64: 0.1679340938 | W64: 46.2 | X64: 262.2 | Y64: 0.118685497
A65: ='General Table'!A65 -> 55 | C65: ='General Table'!C65 -> 426 | D65: ='General Table'!D65 -> Lesotho | F65: ='General Table'!F65 -> 2174.65 | G65: ='General Table'!R65 -> 251 | H65: 0.1154208723 | I65: ='General Table'!T65 -> 244 | J65: 0.1122019635 | K65: 348.6 | L65: 0.1603016577 | M65: 495 | N65: 0.2276228359 | O65: ='General Table'!AB65 -> 250 | P65: 0.1149610282 | Q65: ='General Table'!AE65 -> 694 | R65: 0.3191318143 | S65: ='General Table'!AJ65 -> 382 | T65: 0.1756604511 | U65: ='General Table'!AY65 -> 323 | V65: 0.1485296484 | W65: 50.2 | X65: 294.2 | Y65: 0.135286138
A66: ='General Table'!A66 -> 56 | C66: ='General Table'!C66 -> 516 | D66: ='General Table'!D66 -> Namibia | F66: ='General Table'!F66 -> 2425.56 | G66: ='General Table'!R66 -> 291 | H66: 0.1199722951 | I66: ='General Table'!T66 -> 272 | J66: 0.1121390524 | K66: 399.8 | L66: 0.164827916 | M66: 563 | N66: 0.2321113475 | O66: ='General Table'!AB66 -> 267 | P66: 0.1100776728 | Q66: ='General Table'!AE66 -> 732 | R66: 0.3017859793 | S66: ='General Table'!AJ66 -> 434 | T66: 0.1789277528 | U66: ='General Table'!AY66 -> 363 | V66: 0.1496561619 | W66: 58.2 | X66: 330.2 | Y66: 0.1361335114
A67: ='General Table'!A67 -> 57 | C67: ='General Table'!C67 -> 710 | D67: ='General Table'!D67 -> South Africa | F67: ='General Table'!F67 -> 55291.23 | G67: ='General Table'!R67 -> 5380 | H67: 0.09730295383 | I67: ='General Table'!T67 -> 5182 | J67: 0.09372191575 | K67: 7452.8 | L67: 0.1347917201 | M67: 10562 | N67: 0.1910248696 | O67: ='General Table'!AB67 -> 5137 | P67: 0.09290804346 | Q67: ='General Table'!AE67 -> 15430 | R67: 0.2790677654 | S67: ='General Table'!AJ67 -> 11923 | T67: 0.2156399849 | U67: ='General Table'!AY67 -> 11712 | V67: 0.2118238281 | W67: 1076 | X67: 6258 | Y67: 0.1131825065
A68: ='General Table'!A68 -> 58 | C68: ='General Table'!C68 -> 748 | D68: ='General Table'!D68 -> Swaziland | F68: ='General Table'!F68 -> 1319.01 | G68: ='General Table'!R68 -> 166 | H68: 0.1258519647 | I68: ='General Table'!T68 -> 152 | J68: 0.1152379436 | K68: 226.8 | L68: 0.1719471422 | M68: 318 | N68: 0.2410899083 | O68: ='General Table'!AB68 -> 150 | P68: 0.1137216549 | Q68: ='General Table'!AE68 -> 434 | R68: 0.3290346548 | S68: ='General Table'!AJ68 -> 223 | T68: 0.1690661936 | U68: ='General Table'!AY68 -> 167 | V68: 0.1266101091 | W68: 33.2 | X68: 185.2 | Y68: 0.1404083366
A69: ='General Table'!A69 -> 59 | C69: ='General Table'!C69 -> 914 | D69: ='General Table'!D69 -> Western Africa | F69: ='General Table'!F69 -> 352613.86 | G69: ='General Table'!R69 -> 51284 | H69: 0.1454395468 | I69: ='General Table'!T69 -> 43679 | J69: 0.1238720452 | K69: 68755.6 | L69: 0.1949883649 | M69: 94963 | N69: 0.269311592 | O69: ='General Table'!AB69 -> 36843 | P69: 0.1044853994 | Q69: ='General Table'!AE69 -> 94342 | R69: 0.2675504587 | S69: ='General Table'!AJ69 -> 57181 | T69: 0.162163223 | U69: ='General Table'!AY69 -> 46213 | V69: 0.1310583764 | W69: 10256.8 | X69: 53935.8 | Y69: 0.1529599546
A70: ='General Table'!A70 -> 60 | C70: ='General Table'!C70 -> 204 | D70: ='General Table'!D70 -> Benin | F70: ='General Table'!F70 -> 10575.95 | G70: ='General Table'!R70 -> 1507 | H70: 0.1424931094 | I70: ='General Table'!T70 -> 1306 | J70: 0.1234877245 | K70: 2029.4 | L70: 0.1918881992 | M70: 2813 | N70: 0.2659808339 | O70: ='General Table'!AB70 -> 1134 | P70: 0.1072244101 | Q70: ='General Table'!AE70 -> 2901 | R70: 0.2743015994 | S70: ='General Table'!AJ70 -> 1679 | T70: 0.1587564238 | U70: ='General Table'!AY70 -> 1444 | V70: 0.1365361977 | W70: 301.4 | X70: 1607.4 | Y70: 0.1519863464
A71: ='General Table'!A71 -> 61 | C71: ='General Table'!C71 -> 854 | D71: ='General Table'!D71 -> Burkina Faso | F71: ='General Table'!F71 -> 18110.62 | G71: ='General Table'!R71 -> 2755 | H71: 0.1521206894 | I71: ='General Table'!T71 -> 2338 | J71: 0.1290955252 | K71: 3690.2 | L71: 0.2037588995 | M71: 5093 | N71: 0.2812162146 | O71: ='General Table'!AB71 -> 1968 | P71: 0.1086655233 | Q71: ='General Table'!AE71 -> 4977 | R71: 0.2748111329 | S71: ='General Table'!AJ71 -> 2798 | T71: 0.1544949869 | U71: ='General Table'!AY71 -> 2082 | V71: 0.1149601725 | W71: 551 | X71: 2889 | Y71: 0.159519663
A72: ='General Table'!A72 -> 62 | C72: ='General Table'!C72 -> 132 | D72: ='General Table'!D72 -> Cabo Verde | F72: ='General Table'!F72 -> 532.91 | G72: ='General Table'!R72 -> 55 | H72: 0.1032069205 | I72: ='General Table'!T72 -> 56 | J72: 0.10508341 | K72: 77.4 | L72: 0.1452402845 | M72: 111 | N72: 0.2082903304 | O72: ='General Table'!AB72 -> 58 | P72: 0.1088363889 | Q72: ='General Table'!AE72 -> 167 | R72: 0.3133737404 | S72: ='General Table'!AJ72 -> 101 | T72: 0.1895254358 | U72: ='General Table'!AY72 -> 100 | V72: 0.1876489464 | W72: 11 | X72: 67 | Y72: 0.1257247941
A73: ='General Table'!A73 -> 63 | C73: ='General Table'!C73 -> 384 | D73: ='General Table'!D73 -> Côte d'Ivoire | F73: ='General Table'!F73 -> 23108.47 | G73: ='General Table'!R73 -> 3239 | H73: 0.1401650564 | I73: ='General Table'!T73 -> 2865 | J73: 0.1239805145 | K73: 4385 | L73: 0.1897572622 | M73: 6104 | N73: 0.2641455709 | O73: ='General Table'!AB73 -> 2545 | P73: 0.1101327782 | Q73: ='General Table'!AE73 -> 6414 | R73: 0.2775605655 | S73: ='General Table'!AJ73 -> 3685 | T73: 0.1594653389 | U73: ='General Table'!AY73 -> 3144 | V73: 0.1360540096 | W73: 647.8 | X73: 3512.8 | Y73: 0.1520135258
A74: ='General Table'!A74 -> 64 | C74: ='General Table'!C74 -> 270 | D74: ='General Table'!D74 -> Gambia | F74: ='General Table'!F74 -> 1977.59 | G74: ='General Table'!R74 -> 298 | H74: 0.1506884642 | I74: ='General Table'!T74 -> 253 | J74: 0.1279334948 | K74: 399.2 | L74: 0.2018618622 | M74: 551 | N74: 0.2786219591 | O74: ='General Table'!AB74 -> 214 | P74: 0.1082125213 | Q74: ='General Table'!AE74 -> 543 | R74: 0.2745766312 | S74: ='General Table'!AJ74 -> 307 | T74: 0.1552394581 | U74: ='General Table'!AY74 -> 225 | V74: 0.1137748472 | W74: 59.6 | X74: 312.6 | Y74: 0.1580711877
A75: ='General Table'!A75 -> 65 | C75: ='General Table'!C75 -> 288 | D75: ='General Table'!D75 -> Ghana | F75: ='General Table'!F75 -> 27582.82 | G75: ='General Table'!R75 -> 3548 | H75: =G75/F75 -> 0.1286307926 | I75: ='General Table'!T75 -> 3130 | J75: =I75/F75 -> 0.1134764321 | K75: =G75+I75/5*2 -> 4800 | L75: =K75/F75 -> 0.1740213655 | M75: =G75+I75 -> 6678 | N75: =M75/F75 -> 0.2421072247 | O75: ='General Table'!AB75 -> 2879 | P75: =O75/F75 -> 0.1043765648 | Q75: ='General Table'!AE75 -> 7693 | R75: =Q75/F75 -> 0.2789054926 | S75: ='General Table'!AJ75 -> 5010 | T75: =S75/F75 -> 0.1816348002 | U75: ='General Table'!AY75 -> 4179 | V75: =U75/F75 -> 0.1515073513 | W75: =G75/5 -> 709.6 | X75: =W75+I75 -> 3839.6 | Y75: 0.1392025906
A76: ='General Table'!A76 -> 66 | C76: ='General Table'!C76 -> 324 | D76: ='General Table'!D76 -> Guinea | F76: ='General Table'!F76 -> 12091.53 | G76: ='General Table'!R76 -> 1713 | H76: 0.1416694165 | I76: ='General Table'!T76 -> 1494 | J76: 0.1235575647 | K76: 2310.6 | L76: 0.1910924424 | M76: 3207 | N76: 0.2652269812 | O76: ='General Table'!AB76 -> 1291 | P76: 0.1067689531 | Q76: ='General Table'!AE76 -> 3323 | R76: 0.2748204735 | S76: ='General Table'!AJ76 -> 1908 | T76: 0.1577964079 | U76: ='General Table'!AY76 -> 1702 | V76: 0.1407596888 | W76: 342.6 | X76: 1836.6 | Y76: =X76/F76 -> 0.151891448
A77: ='General Table'!A77 -> 67 | C77: ='General Table'!C77 -> 624 | D77: ='General Table'!D77 -> Guinea-Bissau | F77: ='General Table'!F77 -> 1770.53 | G77: ='General Table'!R77 -> 244 | H77: 0.1378118417 | I77: ='General Table'!T77 -> 209 | J77: 0.1180437496 | K77: 327.6 | L77: 0.1850293415 | M77: 453 | N77: 0.2558555913 | O77: ='General Table'!AB77 -> 186 | P77: 0.1050532891 | Q77: ='General Table'!AE77 -> 502 | R77: 0.2835309201 | S77: ='General Table'!AJ77 -> 295 | T77: 0.1666167758 | U77: ='General Table'!AY77 -> 234 | V77: 0.1321638154 | W77: 48.8 | X77: 257.8 | Y77: 0.1456061179
A78: ='General Table'!A78 -> 68 | C78: ='General Table'!C78 -> 430 | D78: ='General Table'!D78 -> Liberia | F78: ='General Table'!F78 -> 4499.62 | G78: ='General Table'!R78 -> 637 | H78: 0.1415675101 | I78: ='General Table'!T78 -> 565 | J78: 0.1255661589 | K78: 863 | L78: 0.1917939737 | M78: 1202 | N78: 0.2671336691 | O78: ='General Table'!AB78 -> 476 | P78: 0.1057867109 | Q78: ='General Table'!AE78 -> 1210 | R78: 0.268911597 | S78: ='General Table'!AJ78 -> 759 | T78: 0.1686809108 | U78: ='General Table'!AY78 -> 625 | V78: 0.1389006183 | W78: 127.4 | X78: 692.4 | Y78: 0.1538796609
A79: ='General Table'!A79 -> 69 | C79: ='General Table'!C79 -> 466 | D79: ='General Table'!D79 -> Mali | F79: ='General Table'!F79 -> 17467.91 | G79: ='General Table'!R79 -> 2805 | H79: 0.1605801724 | I79: ='General Table'!T79 -> 2294 | J79: 0.1313265296 | K79: 3722.6 | L79: 0.2131107843 | M79: 5099 | N79: 0.2919067021 | O79: ='General Table'!AB79 -> 1841 | P79: 0.1053932611 | Q79: ='General Table'!AE79 -> 4570 | R79: 0.2616225982 | S79: ='General Table'!AJ79 -> 2601 | T79: 0.1489016144 | U79: ='General Table'!AY79 -> 1922 | V79: 0.1100303356 | W79: 561 | X79: 2855 | Y79: 0.1634425641
A80: ='General Table'!A80 -> 70 | C80: ='General Table'!C80 -> 478 | D80: ='General Table'!D80 -> Mauritania | F80: ='General Table'!F80 -> 4182.34 | G80: ='General Table'!R80 -> 556 | H80: 0.1329399331 | I80: ='General Table'!T80 -> 487 | J80: 0.1164419918 | K80: 750.8 | L80: 0.1795167299 | M80: 1043 | N80: 0.249381925 | O80: ='General Table'!AB80 -> 430 | P80: 0.1028132577 | Q80: ='General Table'!AE80 -> 1147 | R80: 0.2742483873 | S80: ='General Table'!AJ80 -> 742 | T80: 0.1774126446 | U80: ='General Table'!AY80 -> 610 | V80: 0.1458513655 | W80: 111.2 | X80: 598.2 | Y80: 0.1430299784
A81: ='General Table'!A81 -> 71 | C81: ='General Table'!C81 -> 562 | D81: ='General Table'!D81 -> Niger | F81: ='General Table'!F81 -> 19896.97 | G81: ='General Table'!R81 -> 3273 | H81: 0.1644974084 | I81: ='General Table'!T81 -> 2650 | J81: 0.1331861082 | K81: 4333 | L81: 0.2177718517 | M81: 5923 | N81: 0.2976835166 | O81: ='General Table'!AB81 -> 2054 | P81: 0.1032317986 | Q81: ='General Table'!AE81 -> 4816 | R81: 0.2420469046 | S81: ='General Table'!AJ81 -> 2663 | T81: 0.1338394741 | U81: ='General Table'!AY81 -> 2430 | V81: 0.1221291483 | W81: 654.6 | X81: 3304.6 | Y81: 0.1660855899
A82: ='General Table'!A82 -> 72 | C82: ='General Table'!C82 -> 566 | D82: ='General Table'!D82 -> Nigeria | F82: ='General Table'!F82 -> 181181.74 | G82: ='General Table'!R82 -> 26418 | H82: 0.1458093956 | I82: ='General Table'!T82 -> 22401 | J82: 0.1236382872 | K82: 35378.4 | L82: 0.1952647105 | M82: 48819 | N82: 0.2694476828 | O82: ='General Table'!AB82 -> 18649 | P82: 0.1029297986 | Q82: ='General Table'!AE82 -> 47885 | R82: 0.2642926379 | S82: ='General Table'!AJ82 -> 29644 | T82: 0.1636147219 | U82: ='General Table'!AY82 -> 23724 | V82: 0.1309403475 | W82: 5283.6 | X82: 27684.6 | Y82: 0.1528001663
A83: ='General Table'!A83 -> 73 | C83: ='General Table'!C83 -> 686 | D83: ='General Table'!D83 -> Senegal | F83: ='General Table'!F83 -> 14976.99 | G83: ='General Table'!R83 -> 2147 | H83: 0.1433532372 | I83: ='General Table'!T83 -> 1809 | J83: 0.1207852846 | K83: 2870.6 | L83: 0.191667351 | M83: 3956 | N83: 0.2641385218 | O83: ='General Table'!AB83 -> 1570 | P83: 0.104827472 | Q83: ='General Table'!AE83 -> 4156 | R83: 0.2774923399 | S83: ='General Table'!AJ83 -> 2472 | T83: 0.1650531916 | U83: ='General Table'!AY83 -> 1901 | V83: 0.1269280409 | W83: 429.4 | X83: 2238.4 | Y83: 0.1494559321
A84: ='General Table'!A84 -> 74 | C84: ='General Table'!C84 -> 694 | D84: ='General Table'!D84 -> Sierra Leone | F84: ='General Table'!F84 -> 7237.03 | G84: ='General Table'!R84 -> 1042 | H84: 0.1439817163 | I84: ='General Table'!T84 -> 915 | J84: 0.126433081 | K84: 1408 | L84: 0.1945549486 | M84: 1957 | N84: 0.2704147972 | O84: ='General Table'!AB84 -> 789 | P84: 0.1090226239 | Q84: ='General Table'!AE84 -> 2022 | R84: 0.2793963822 | S84: ='General Table'!AJ84 -> 1219 | T84: 0.1684392631 | U84: ='General Table'!AY84 -> 904 | V84: 0.1249131204 | W84: 208.4 | X84: 1123.4 | Y84: 0.1552294242
A85: ='General Table'!A85 -> 75 | C85: ='General Table'!C85 -> 768 | D85: ='General Table'!D85 -> Togo | F85: ='General Table'!F85 -> 7416.8 | G85: ='General Table'!R85 -> 1048 | H85: 0.1413008305 | I85: ='General Table'!T85 -> 907 | J85: 0.1222899364 | K85: 1410.8 | L85: 0.1902168051 | M85: 1955 | N85: 0.2635907669 | O85: ='General Table'!AB85 -> 759 | P85: 0.1023352389 | Q85: ='General Table'!AE85 -> 2015 | R85: 0.2716805091 | S85: ='General Table'!AJ85 -> 1299 | T85: 0.1751429188 | U85: ='General Table'!AY85 -> 988 | V85: 0.1332110883 | W85: 209.6 | X85: 1116.6 | Y85: 0.1505501025
A86: ='General Table'!A86 -> 76 | C86: ='General Table'!C86 -> 935 | D86: ='General Table'!D86 -> ASIA | F86: ='General Table'!F86 -> 4419897.6 | G86: ='General Table'!R86 -> 363350 | H86: 0.0822077869 | I86: ='General Table'!T86 -> 353688 | J86: 0.0800217634 | K86: 504825.2 | L86: 0.1142164923 | M86: 717038 | N86: 0.1622295503 | O86: ='General Table'!AB86 -> 350920 | P86: 0.07939550455 | Q86: ='General Table'!AE86 -> 1102574 | R86: 0.2494569105 | S86: ='General Table'!AJ86 -> 964975 | T86: 0.2183251938 | U86: ='General Table'!AY86 -> 1267196 | V86: 0.2867025698 | W86: 72670 | X86: 426358 | Y86: 0.09646332078
A87: ='General Table'!A87 -> 77 | C87: ='General Table'!C87 -> 906 | D87: ='General Table'!D87 -> Eastern Asia | F87: ='General Table'!F87 -> 1635150.37 | G87: ='General Table'!R87 -> 93506 | H87: 0.0571849548 | I87: ='General Table'!T87 -> 90617 | J87: 0.05541814482 | K87: 129752.8 | L87: 0.07935221273 | M87: 184123 | N87: 0.1126030996 | O87: ='General Table'!AB87 -> 94063 | P87: 0.05752559625 | Q87: ='General Table'!AE87 -> 353545 | R87: 0.2162155888 | S87: ='General Table'!AJ87 -> 368731 | T87: 0.225502808 | U87: ='General Table'!AY87 -> 631836 | V87: 0.3864084989 | W87: 18701.2 | X87: 109318.2 | Y87: 0.06685513578
A88: ='General Table'!A88 -> 78 | C88: ='General Table'!C88 -> 156 | D88: ='General Table'!D88 -> China | F88: ='General Table'!F88 -> 1397028.55 | G88: ='General Table'!R88 -> 82367 | H88: 0.05895870918 | I88: ='General Table'!T88 -> 78821 | J88: 0.05642046471 | K88: 113895.4 | L88: 0.08152689507 | M88: 161188 | N88: 0.1153791739 | O88: ='General Table'!AB88 -> 80820 | P88: 0.05785135887 | Q88: ='General Table'!AE88 -> 311842 | R88: 0.2232180581 | S88: ='General Table'!AJ88 -> 316894 | T88: 0.2268343049 | U88: ='General Table'!AY88 -> 521218 | V88: 0.3730904426 | W88: 16473.4 | X88: 95294.4 | Y88: 0.06821220654
A89: ='General Table'!A89 -> 79 | C89: ='General Table'!C89 -> 344 | D89: ='General Table'!D89 -> China, Hong Kong SAR | F89: ='General Table'!F89 -> 7245.7 | G89: ='General Table'!R89 -> 275 | H89: 0.03795354486 | I89: ='General Table'!T89 -> 260 | J89: 0.03588335151 | K89: 379 | L89: 0.05230688546 | M89: 535 | N89: 0.07383689637 | O89: ='General Table'!AB89 -> 359 | P89: 0.04954662766 | Q89: ='General Table'!AE89 -> 1314 | R89: 0.181348938 | S89: ='General Table'!AJ89 -> 1703 | T89: 0.2350359524 | U89: ='General Table'!AY89 -> 3419 | V89: 0.4718660723 | W89: 55 | X89: 315 | Y89: 0.04347406048
A90: ='General Table'!A90 -> 80 | C90: ='General Table'!C90 -> 446 | D90: ='General Table'!D90 -> China, Macao SAR | F90: ='General Table'!F90 -> 600.94 | G90: ='General Table'!R90 -> 23 | H90: 0.03827337172 | I90: ='General Table'!T90 -> 19 | J90: 0.03161713316 | K90: 30.6 | L90: 0.05092022498 | M90: 42 | N90: 0.06989050488 | O90: ='General Table'!AB90 -> 31 | P90: 0.05158584884 | Q90: ='General Table'!AE90 -> 143 | R90: 0.2379605285 | S90: ='General Table'!AJ90 -> 152 | T90: 0.2529370653 | U90: ='General Table'!AY90 -> 232 | V90: 0.3860618365 | W90: 4.6 | X90: 23.6 | Y90: 0.0392718075
A91: ='General Table'!A91 -> 81 | C91: ='General Table'!C91 -> 408 | D91: ='General Table'!D91 -> Dem. People's Republic of Korea | F91: ='General Table'!F91 -> 23485.76 | G91: ='General Table'!R91 -> 982 | H91: 0.04181257068 | I91: ='General Table'!T91 -> 1227 | J91: 0.05224442386 | K91: 1472.8 | L91: 0.06271034022 | M91: 2209 | N91: 0.09405699454 | O91: ='General Table'!AB91 -> 1519 | P91: 0.06467748968 | Q91: ='General Table'!AE91 -> 4736 | R91: 0.2016541087 | S91: ='General Table'!AJ91 -> 5702 | T91: 0.2427854155 | U91: ='General Table'!AY91 -> 9813 | V91: 0.4178276539 | W91: 196.4 | X91: 1423.4 | Y91: 0.06060693799
A92: ='General Table'!A92 -> 82 | C92: ='General Table'!C92 -> 392 | D92: ='General Table'!D92 -> Japan | F92: ='General Table'!F92 -> 25243.92 | G92: ='General Table'!R92 -> 1733 | H92: 0.06865019379 | I92: ='General Table'!T92 -> 1885 | J92: 0.07467144564 | K92: 2487 | L92: 0.09851877204 | M92: 3618 | N92: 0.1433216394 | O92: ='General Table'!AB92 -> 1954 | P92: 0.07740477707 | Q92: ='General Table'!AE92 -> 5831 | R92: 0.2309863127 | S92: ='General Table'!AJ92 -> 5577 | T92: 0.220924484 | U92: ='General Table'!AY92 -> 8508 | V92: 0.3370316496 | W92: 346.6 | X92: 2231.6 | Y92: 0.0884014844
A93: ='General Table'!A93 -> 83 | C93: ='General Table'!C93 -> 496 | D93: ='General Table'!D93 -> Mongolia | F93: ='General Table'!F93 -> 127974.96 | G93: ='General Table'!R93 -> 5560 | H93: 0.04344599912 | I93: ='General Table'!T93 -> 5670 | J93: 0.04430554227 | K93: 7828 | L93: 0.06116821603 | M93: 11230 | N93: 0.0877515414 | O93: ='General Table'!AB93 -> 5980 | P93: 0.04672789114 | Q93: ='General Table'!AE93 -> 18875 | R93: 0.1474897902 | S93: ='General Table'!AJ93 -> 26136 | T93: 0.204227452 | U93: ='General Table'!AY93 -> 66338 | V93: 0.5183670306 | W93: 1112 | X93: 6782 | Y93: 0.0529947421
A94: ='General Table'!A94 -> 84 | C94: ='General Table'!C94 -> 410 | D94: ='General Table'!D94 -> Republic of Korea | F94: ='General Table'!F94 -> 2976.88 | G94: ='General Table'!R94 -> 279 | H94: 0.09372228642 | I94: ='General Table'!T94 -> 219 | J94: 0.07356695601 | K94: 366.6 | L94: 0.1231490688 | M94: 498 | N94: 0.1672892424 | O94: ='General Table'!AB94 -> 229 | P94: 0.07692617774 | Q94: ='General Table'!AE94 -> 810 | R94: 0.2720969606 | S94: ='General Table'!AJ94 -> 687 | T94: 0.2307785332 | U94: ='General Table'!AY94 -> 624 | V94: 0.2096154363 | W94: 55.8 | X94: 274.8 | Y94: 0.09231141329
A95: ='General Table'!A95 -> 85 | C95: ='General Table'!C95 -> 158 | D95: ='General Table'!D95 -> Other non-specified areas | F95: ='General Table'!F95 -> 50593.66 | G95: ='General Table'!R95 -> 2287 | H95: 0.04520329227 | I95: ='General Table'!T95 -> 2515 | J95: 0.04970978577 | K95: 3293 | L95: 0.06508720658 | M95: 4802 | N95: 0.09491307804 | O95: ='General Table'!AB95 -> 3171 | P95: 0.06267583725 | Q95: ='General Table'!AE95 -> 9992 | R95: 0.1974951012 | S95: ='General Table'!AJ95 -> 11879 | T95: 0.2347922645 | U95: ='General Table'!AY95 -> 21688 | V95: 0.4286703117 | W95: 457.4 | X95: 2972.4 | Y95: 0.05875044423
A96: ='General Table'!A96 -> 86 | C96: ='General Table'!C96 -> 921 | D96: ='General Table'!D96 -> South-Central Asia | F96: ='General Table'!F96 -> 1892013.48 | G96: ='General Table'!R96 -> 187997 | H96: 0.09936345697 | I96: ='General Table'!T96 -> 183514 | J96: 0.09699402353 | K96: 261402.6 | L96: 0.1381610664 | M96: 371511 | N96: 0.1963574805 | O96: ='General Table'!AB96 -> 178967 | P96: 0.0945907637 | Q96: ='General Table'!AE96 -> 518359 | R96: 0.2739721495 | S96: ='General Table'!AJ96 -> 397107 | T96: 0.2098859253 | U96: ='General Table'!AY96 -> 419179 | V96: 0.2215518042 | W96: 37599.4 | X96: 221113.4 | Y96: 0.1168667149
A97: ='General Table'!A97 -> 87 | C97: ='General Table'!C97 -> 5500 | D97: ='General Table'!D97 -> Central Asia | F97: ='General Table'!F97 -> 68705.01 | G97: ='General Table'!R97 -> 6684 | H97: 0.0972854818 | I97: ='General Table'!T97 -> 5500 | J97: 0.08005238628 | K97: 8884 | L97: 0.1293064363 | M97: 12184 | N97: 0.1773378681 | O97: ='General Table'!AB97 -> 5784 | P97: 0.08418600041 | Q97: ='General Table'!AE97 -> 19152 | R97: 0.278756964 | S97: ='General Table'!AJ97 -> 14134 | T97: 0.2057200778 | U97: ='General Table'!AY97 -> 15454 | V97: 0.2249326505 | W97: 1336.8 | X97: 6836.8 | Y97: 0.09950948264
A98: ='General Table'!A98 -> 88 | C98: ='General Table'!C98 -> 398 | D98: ='General Table'!D98 -> Kazakhstan | F98: ='General Table'!F98 -> 17749.65 | G98: ='General Table'!R98 -> 1623 | H98: 0.09143842273 | I98: ='General Table'!T98 -> 1139 | J98: 0.06417027941 | K98: 2078.6 | L98: 0.1171065345 | M98: 2762 | N98: 0.1556087021 | O98: ='General Table'!AB98 -> 1130 | P98: 0.06366322716 | Q98: ='General Table'!AE98 -> 4344 | R98: 0.2447372202 | S98: ='General Table'!AJ98 -> 3728 | T98: 0.2100323105 | U98: ='General Table'!AY98 -> 4925 | V98: 0.27747026 | W98: 324.6 | X98: 1463.6 | Y98: 0.08245796396
A99: ='General Table'!A99 -> 89 | C99: ='General Table'!C99 -> 417 | D99: ='General Table'!D99 -> Kyrgyzstan | F99: ='General Table'!F99 -> 5865.4 | G99: ='General Table'!R99 -> 598 | H99: 0.1019538309 | I99: ='General Table'!T99 -> 478 | J99: 0.08149486821 | K99: 789.2 | L99: 0.1345517782 | M99: 1076 | N99: 0.1834486992 | O99: ='General Table'!AB99 -> 513 | P99: 0.08746206567 | Q99: ='General Table'!AE99 -> 1665 | R99: 0.2838681079 | S99: ='General Table'!AJ99 -> 1111 | T99: 0.1894158966 | U99: ='General Table'!AY99 -> 1264 | V99: 0.2155010741 | W99: 119.6 | X99: 597.6 | Y99: 0.1018856344
A100: ='General Table'!A100 -> 90 | C100: ='General Table'!C100 -> 762 | D100: ='General Table'!D100 -> Tajikistan | F100: ='General Table'!F100 -> 8548.65 | G100: ='General Table'!R100 -> 995 | H100: 0.1163926468 | I100: ='General Table'!T100 -> 842 | J100: 0.09849508402 | K100: 1331.8 | L100: 0.1557906804 | M100: 1837 | N100: 0.2148877308 | O100: ='General Table'!AB100 -> 867 | P100: 0.1014195224 | Q100: ='General Table'!AE100 -> 2524 | R100: 0.295251297 | S100: ='General Table'!AJ100 -> 1556 | T100: 0.1820170436 | U100: ='General Table'!AY100 -> 1467 | V100: 0.1716060431 | W100: 199 | X100: 1041 | Y100: 0.1217736134
A101: ='General Table'!A101 -> 91 | C101: ='General Table'!C101 -> 795 | D101: ='General Table'!D101 -> Turkmenistan | F101: ='General Table'!F101 -> 5565.28 | G101: ='General Table'!R101 -> 527 | H101: 0.09469424719 | I101: ='General Table'!T101 -> 488 | J101: 0.08768651353 | K101: 722.2 | L101: 0.1297688526 | M101: 1015 | N101: 0.1823807607 | O101: ='General Table'!AB101 -> 466 | P101: 0.083733433 | Q101: ='General Table'!AE101 -> 1552 | R101: 0.2788718627 | S101: ='General Table'!AJ101 -> 1156 | T101: 0.2077164132 | U101: ='General Table'!AY101 -> 1161 | V101: 0.2086148406 | W101: 105.4 | X101: 593.4 | Y101: 0.106625363
A102: ='General Table'!A102 -> 92 | C102: ='General Table'!C102 -> 860 | D102: ='General Table'!D102 -> Uzbekistan | F102: ='General Table'!F102 -> 30976.02 | G102: ='General Table'!R102 -> 2940 | H102: 0.0949121288 | I102: ='General Table'!T102 -> 2553 | J102: 0.08241859348 | K102: 3961.2 | L102: 0.1278795662 | M102: 5493 | N102: 0.1773307223 | O102: ='General Table'!AB102 -> 2807 | P102: 0.09061848488 | Q102: ='General Table'!AE102 -> 9065 | R102: 0.2926457305 | S102: ='General Table'!AJ102 -> 6583 | T102: 0.2125192326 | U102: ='General Table'!AY102 -> 6639 | V102: 0.2143270827 | W102: 588 | X102: 3141 | Y102: 0.1014010192
A103: ='General Table'!A103 -> 93 | C103: ='General Table'!C103 -> 5501 | D103: ='General Table'!D103 -> Southern Asia | F103: ='General Table'!F103 -> 1823308.47 | G103: ='General Table'!R103 -> 181313 | H103: 0.0994417582 | I103: ='General Table'!T103 -> 178014 | J103: 0.09763240995 | K103: 252518.6 | L103: 0.1384947222 | M103: 359327 | N103: 0.1970741681 | O103: ='General Table'!AB103 -> 173184 | P103: 0.09498337931 | Q103: ='General Table'!AE103 -> 499208 | R103: 0.2737923989 | S103: ='General Table'!AJ103 -> 382972 | T103: 0.2100423523 | U103: ='General Table'!AY103 -> 403726 | V103: 0.2214249572 | W103: 36262.6 | X103: 214276.6 | Y103: 0.1175207616
A104: ='General Table'!A104 -> 94 | C104: ='General Table'!C104 -> 4 | D104: ='General Table'!D104 -> Afghanistan | F104: ='General Table'!F104 -> 33736.49 | G104: ='General Table'!R104 -> 5142 | H104: 0.1524165673 | I104: ='General Table'!T104 -> 4642 | J104: 0.1375958198 | K104: 6998.8 | L104: 0.2074548953 | M104: 9784 | N104: 0.2900123872 | O104: ='General Table'!AB104 -> 3945 | P104: 0.1169356978 | Q104: ='General Table'!AE104 -> 9573 | R104: 0.2837580317 | S104: ='General Table'!AJ104 -> 5196 | T104: 0.1540172081 | U104: ='General Table'!AY104 -> 3943 | V104: 0.1168764148 | W104: 1028.4 | X104: 5670.4 | Y104: 0.1680791333
A105: ='General Table'!A105 -> 95 | C105: ='General Table'!C105 -> 50 | D105: ='General Table'!D105 -> Bangladesh | F105: ='General Table'!F105 -> 161200.89 | G105: ='General Table'!R105 -> 15716 | H105: 0.09749325826 | I105: ='General Table'!T105 -> 16458 | J105: 0.1020962105 | K105: 22299.2 | L105: 0.1383317425 | M105: 32174 | N105: 0.1995894688 | O105: ='General Table'!AB105 -> 16116 | P105: 0.09997463414 | Q105: ='General Table'!AE105 -> 45795 | R105: 0.2840865209 | S105: ='General Table'!AJ105 -> 35302 | T105: 0.2189938281 | U105: ='General Table'!AY105 -> 32676 | V105: 0.2027035955 | W105: 3143.2 | X105: 19601.2 | Y105: 0.1215948622
A106: ='General Table'!A106 -> 96 | C106: ='General Table'!C106 -> 64 | D106: ='General Table'!D106 -> Bhutan | F106: ='General Table'!F106 -> 787.39 | G106: ='General Table'!R106 -> 73 | H106: 0.09271136286 | I106: ='General Table'!T106 -> 72 | J106: 0.09144134419 | K106: 101.8 | L106: 0.1292879005 | M106: 145 | N106: 0.184152707 | O106: ='General Table'!AB106 -> 76 | P106: 0.09652141886 | Q106: ='General Table'!AE106 -> 239 | R106: 0.303534462 | S106: ='General Table'!AJ106 -> 184 | T106: 0.2336834351 | U106: ='General Table'!AY106 -> 150 | V106: 0.1905028004 | W106: 14.6 | X106: 86.6 | Y106: 0.1099836168
A107: ='General Table'!A107 -> 97 | C107: ='General Table'!C107 -> 356 | D107: ='General Table'!D107 -> India | F107: ='General Table'!F107 -> 1309053.98 | G107: ='General Table'!R107 -> 126977 | H107: 0.09699905576 | I107: ='General Table'!T107 -> 126752 | J107: 0.09682717591 | K107: 177677.8 | L107: 0.1357299261 | M107: 253729 | N107: 0.1938262317 | O107: ='General Table'!AB107 -> 123333 | P107: 0.09421536612 | Q107: ='General Table'!AE107 -> 354322 | R107: 0.2706702744 | S107: ='General Table'!AJ107 -> 276543 | T107: 0.2112540844 | U107: ='General Table'!AY107 -> 303047 | V107: 0.2315007667 | W107: 25395.4 | X107: 152147.4 | Y107: 0.1162269871
A108: ='General Table'!A108 -> 98 | C108: ='General Table'!C108 -> 364 | D108: ='General Table'!D108 -> Iran (Islamic Republic of) | F108: ='General Table'!F108 -> 79360.49 | G108: ='General Table'!R108 -> 6418 | H108: 0.08087147647 | I108: ='General Table'!T108 -> 5437 | J108: 0.06851016167 | K108: 8592.8 | L108: 0.1082755411 | M108: 11855 | N108: 0.1493816381 | O108: ='General Table'!AB108 -> 5491 | P108: 0.06919060102 | Q108: ='General Table'!AE108 -> 21811 | R108: 0.2748344926 | S108: ='General Table'!AJ108 -> 20911 | T108: 0.2634938368 | U108: ='General Table'!AY108 -> 17881 | V108: 0.225313629 | W108: 1283.6 | X108: 6720.6 | Y108: 0.08468445696
A109: ='General Table'!A109 -> 99 | C109: ='General Table'!C109 -> 462 | D109: ='General Table'!D109 -> Maldives | F109: ='General Table'!F109 -> 418.4 | G109: ='General Table'!R109 -> 32 | H109: 0.07648183556 | I109: ='General Table'!T109 -> 27 | J109: 0.06453154876 | K109: 42.8 | L109: 0.1022944551 | M109: 59 | N109: 0.1410133843 | O109: ='General Table'!AB109 -> 31 | P109: 0.0740917782 | Q109: ='General Table'!AE109 -> 135 | R109: 0.3226577438 | S109: ='General Table'!AJ109 -> 109 | T109: 0.2605162524 | U109: ='General Table'!AY109 -> 77 | V109: 0.1840344168 | W109: 6.4 | X109: 33.4 | Y109: 0.07982791587
A110: ='General Table'!A110 -> 100 | C110: ='General Table'!C110 -> 524 | D110: ='General Table'!D110 -> Nepal | F110: ='General Table'!F110 -> 28656.28 | G110: ='General Table'!R110 -> 3150 | H110: 0.109923549 | I110: ='General Table'!T110 -> 3374 | J110: 0.1177403348 | K110: 4499.6 | L110: 0.1570196829 | M110: 6524 | N110: 0.2276638838 | O110: ='General Table'!AB110 -> 3251 | P110: 0.1134480819 | Q110: ='General Table'!AE110 -> 8270 | R110: 0.2885929367 | S110: ='General Table'!AJ110 -> 5263 | T110: 0.1836595678 | U110: ='General Table'!AY110 -> 5792 | V110: 0.2021197448 | W110: 630 | X110: 4004 | Y110: 0.1397250446
A111: ='General Table'!A111 -> 101 | C111: ='General Table'!C111 -> 586 | D111: ='General Table'!D111 -> Pakistan | F111: ='General Table'!F111 -> 189380.51 | G111: ='General Table'!R111 -> 22056 | H111: 0.1164639381 | I111: ='General Table'!T111 -> 19552 | J111: 0.1032418806 | K111: 29876.8 | L111: 0.1577606904 | M111: 41608 | N111: 0.2197058187 | O111: ='General Table'!AB111 -> 19355 | P111: 0.1022016468 | Q111: ='General Table'!AE111 -> 54491 | R111: 0.2877328823 | S111: ='General Table'!AJ111 -> 35032 | T111: 0.1849820766 | U111: ='General Table'!AY111 -> 33537 | V111: 0.1770879168 | W111: 4411.2 | X111: 23963.2 | Y111: 0.1265346682
A112: ='General Table'!A112 -> 102 | C112: ='General Table'!C112 -> 144 | D112: ='General Table'!D112 -> Sri Lanka | F112: ='General Table'!F112 -> 20714.04 | G112: ='General Table'!R112 -> 1749 | H112: 0.08443548434 | I112: ='General Table'!T112 -> 1699 | J112: 0.0820216626 | K112: 2428.6 | L112: 0.1172441494 | M112: 3448 | N112: 0.1664571469 | O112: ='General Table'!AB112 -> 1585 | P112: 0.07651814904 | Q112: ='General Table'!AE112 -> 4569 | R112: 0.2205750303 | S112: ='General Table'!AJ112 -> 4433 | T112: 0.2140094351 | U112: ='General Table'!AY112 -> 6622 | V112: 0.3196865508 | W112: 349.8 | X112: 2048.8 | Y112: 0.09890875947
A113: ='General Table'!A113 -> 103 | C113: ='General Table'!C113 -> 920 | D113: ='General Table'!D113 -> South-Eastern Asia | F113: ='General Table'!F113 -> 634609.85 | G113: ='General Table'!R113 -> 56147 | H113: 0.08847483221 | I113: ='General Table'!T113 -> 55666 | J113: 0.08771688621 | K113: 78413.4 | L113: 0.1235615867 | M113: 111813 | N113: 0.1761917184 | O113: ='General Table'!AB113 -> 55089 | P113: 0.08680766616 | Q113: ='General Table'!AE113 -> 163060 | R113: 0.2569452712 | S113: ='General Table'!AJ113 -> 140507 | T113: 0.2214069006 | U113: ='General Table'!AY113 -> 161444 | V113: 0.2543988247 | W113: 11229.4 | X113: 66895.4 | Y113: 0.1054118527
A114: ='General Table'!A114 -> 104 | C114: ='General Table'!C114 -> 96 | D114: ='General Table'!D114 -> Brunei Darussalam | F114: ='General Table'!F114 -> 417.54 | G114: ='General Table'!R114 -> 31 | H114: 0.07424438377 | I114: ='General Table'!T114 -> 34 | J114: 0.08142932414 | K114: 44.6 | L114: 0.1068161134 | M114: 65 | N114: 0.1556737079 | O114: ='General Table'!AB114 -> 36 | P114: 0.08621928438 | Q114: ='General Table'!AE114 -> 110 | R114: 0.2634478134 | S114: ='General Table'!AJ114 -> 108 | T114: 0.2586578531 | U114: ='General Table'!AY114 -> 99 | V114: 0.237103032 | W114: 6.2 | X114: 40.2 | Y114: 0.09627820089
A115: ='General Table'!A115 -> 105 | C115: ='General Table'!C115 -> 116 | D115: ='General Table'!D115 -> Cambodia | F115: ='General Table'!F115 -> 15517.64 | G115: ='General Table'!R115 -> 1654 | H115: 0.106588373 | I115: ='General Table'!T115 -> 1485 | J115: 0.09569754164 | K115: 2248 | L115: 0.1448673896 | M115: 3139 | N115: 0.2022859146 | O115: ='General Table'!AB115 -> 1567 | P115: 0.1009818503 | Q115: ='General Table'!AE115 -> 4472 | R115: 0.2881881523 | S115: ='General Table'!AJ115 -> 3160 | T115: 0.2036392132 | U115: ='General Table'!AY115 -> 2981 | V115: 0.192103954 | W115: 330.8 | X115: 1815.8 | Y115: 0.1170152162
A116: ='General Table'!A116 -> 106 | C116: ='General Table'!C116 -> 360 | D116: ='General Table'!D116 -> Indonesia | F116: ='General Table'!F116 -> 258162.11 | G116: ='General Table'!R116 -> 23651 | H116: 0.09161297915 | I116: ='General Table'!T116 -> 23677 | J116: 0.09171369106 | K116: 33121.8 | L116: 0.1282984556 | M116: 47328 | N116: 0.1833266702 | O116: ='General Table'!AB116 -> 22512 | P116: 0.08720102264 | Q116: ='General Table'!AE116 -> 65614 | R116: 0.2541581334 | S116: ='General Table'!AJ116 -> 58822 | T116: 0.2278490829 | U116: ='General Table'!AY116 -> 61809 | V116: 0.2394193323 | W116: 4730.2 | X116: 28407.2 | Y116: 0.1100362869
A117: ='General Table'!A117 -> 107 | C117: ='General Table'!C117 -> 418 | D117: ='General Table'!D117 -> Lao People's Democratic Republic | F117: ='General Table'!F117 -> 6663.97 | G117: ='General Table'!R117 -> 758 | H117: 0.1137460103 | I117: ='General Table'!T117 -> 717 | J117: 0.1075935216 | K117: 1044.8 | L117: 0.1567834189 | M117: 1475 | N117: 0.2213395318 | O117: ='General Table'!AB117 -> 715 | P117: 0.1072934002 | Q117: ='General Table'!AE117 -> 2020 | R117: 0.3031226131 | S117: ='General Table'!AJ117 -> 1269 | T117: 0.1904270277 | U117: ='General Table'!AY117 -> 1129 | V117: 0.1694185298 | W117: 151.6 | X117: 868.6 | Y117: 0.1303427236
A118: ='General Table'!A118 -> 108 | C118: ='General Table'!C118 -> 458 | D118: ='General Table'!D118 -> Malaysia | F118: ='General Table'!F118 -> 30723.16 | G118: ='General Table'!R118 -> 2486 | H118: 0.08091615576 | I118: ='General Table'!T118 -> 2615 | J118: 0.0851149426 | K118: 3532 | L118: 0.1149621328 | M118: 5101 | N118: 0.1660310984 | O118: ='General Table'!AB118 -> 2898 | P118: 0.09432623467 | Q118: ='General Table'!AE118 -> 9121 | R118: 0.296877014 | S118: ='General Table'!AJ118 -> 6658 | T118: 0.2167094791 | U118: ='General Table'!AY118 -> 7273 | V118: 0.2367269513 | W118: 497.2 | X118: 3112.2 | Y118: 0.1012981738
A119: ='General Table'!A119 -> 109 | C119: ='General Table'!C119 -> 104 | D119: ='General Table'!D119 -> Myanmar | F119: ='General Table'!F119 -> 52403.67 | G119: ='General Table'!R119 -> 4858 | H119: 0.09270343089 | I119: ='General Table'!T119 -> 5197 | J119: 0.09917244346 | K119: 6936.8 | L119: 0.1323724083 | M119: 10055 | N119: 0.1918758743 | O119: ='General Table'!AB119 -> 4845 | P119: 0.09245535666 | Q119: ='General Table'!AE119 -> 13562 | R119: 0.2587986681 | S119: ='General Table'!AJ119 -> 11469 | T119: 0.2188587173 | U119: ='General Table'!AY119 -> 12762 | V119: 0.2435325617 | W119: 971.6 | X119: 6168.6 | Y119: 0.1177131296
A120: ='General Table'!A120 -> 110 | C120: ='General Table'!C120 -> 608 | D120: ='General Table'!D120 -> Philippines | F120: ='General Table'!F120 -> 101716.36 | G120: ='General Table'!R120 -> 10889 | H120: 0.1070525921 | I120: ='General Table'!T120 -> 10459 | J120: 0.1028251503 | K120: 15072.6 | L120: 0.1481826522 | M120: 21348 | N120: 0.2098777424 | O120: ='General Table'!AB120 -> 10208 | P120: 0.1003575039 | Q120: ='General Table'!AE120 -> 28133 | R120: 0.2765828427 | S120: ='General Table'!AJ120 -> 19901 | T120: 0.1956519089 | U120: ='General Table'!AY120 -> 20900 | V120: 0.2054733378 | W120: 2177.8 | X120: 12636.8 | Y120: 0.1242356687
A121: ='General Table'!A121 -> 111 | C121: ='General Table'!C121 -> 702 | D121: ='General Table'!D121 -> Singapore | F121: ='General Table'!F121 -> 5535.26 | G121: ='General Table'!R121 -> 281 | H121: 0.05076545637 | I121: ='General Table'!T121 -> 313 | J121: 0.05654657595 | K121: 406.2 | L121: 0.07338408675 | M121: 594 | N121: 0.1073120323 | O121: ='General Table'!AB121 -> 353 | P121: 0.06377297543 | Q121: ='General Table'!AE121 -> 1086 | R121: 0.196196746 | S121: ='General Table'!AJ121 -> 1277 | T121: 0.2307028035 | U121: ='General Table'!AY121 -> 2316 | V121: 0.41840853 | W121: 56.2 | X121: 369.2 | Y121: 0.06669966722
A122: ='General Table'!A122 -> 112 | C122: ='General Table'!C122 -> 764 | D122: ='General Table'!D122 -> Thailand | F122: ='General Table'!F122 -> 68657.6 | G122: ='General Table'!R122 -> 4121 | H122: 0.06002248841 | I122: ='General Table'!T122 -> 4388 | J122: 0.0639113514 | K122: 5876.2 | L122: 0.08558702897 | M122: 8509 | N122: 0.1239338398 | O122: ='General Table'!AB122 -> 4819 | P122: 0.07018887931 | Q122: ='General Table'!AE122 -> 14125 | R122: 0.205731048 | S122: ='General Table'!AJ122 -> 15908 | T122: 0.2317004964 | U122: ='General Table'!AY122 -> 26270 | V122: 0.3826233367 | W122: 824.2 | X122: 5212.2 | Y122: 0.07591584908
A123: ='General Table'!A123 -> 113 | C123: ='General Table'!C123 -> 626 | D123: ='General Table'!D123 -> Timor-Leste | F123: ='General Table'!F123 -> 1240.98 | G123: ='General Table'!R123 -> 183 | H123: 0.147464101 | I123: ='General Table'!T123 -> 159 | J123: 0.1281245467 | K123: 246.6 | L123: 0.1987139196 | M123: 342 | N123: 0.2755886477 | O123: ='General Table'!AB123 -> 155 | P123: 0.1249012877 | Q123: ='General Table'!AE123 -> 344 | R123: 0.2772002772 | S123: ='General Table'!AJ123 -> 170 | T123: 0.1369885091 | U123: ='General Table'!AY123 -> 180 | V123: 0.1450466567 | W123: 36.6 | X123: 195.6 | Y123: 0.1576173669
A124: ='General Table'!A124 -> 114 | C124: ='General Table'!C124 -> 704 | D124: ='General Table'!D124 -> Viet Nam | F124: ='General Table'!F124 -> 93571.57 | G124: ='General Table'!R124 -> 7233 | H124: 0.07729911981 | I124: ='General Table'!T124 -> 6623 | J124: 0.07078004569 | K124: 9882.2 | L124: 0.1056111381 | M124: 13856 | N124: 0.1480791655 | O124: ='General Table'!AB124 -> 6982 | P124: 0.07461668111 | Q124: ='General Table'!AE124 -> 24473 | R124: 0.2615431161 | S124: ='General Table'!AJ124 -> 21766 | T124: 0.2326133889 | U124: ='General Table'!AY124 -> 25724 | V124: 0.2749125616 | W124: 1446.6 | X124: 8069.6 | Y124: 0.08623986965
A125: ='General Table'!A125 -> 115 | C125: ='General Table'!C125 -> 922 | D125: ='General Table'!D125 -> Western Asia | F125: ='General Table'!F125 -> 258123.91 | G125: ='General Table'!R125 -> 25700 | H125: 0.09956458509 | I125: ='General Table'!T125 -> 23891 | J125: 0.09255632305 | K125: 35256.4 | L125: 0.1365871143 | M125: 49591 | N125: 0.1921209081 | O125: ='General Table'!AB125 -> 22800 | P125: 0.08832967082 | Q125: ='General Table'!AE125 -> 67610 | R125: 0.2619284668 | S125: ='General Table'!AJ125 -> 58628 | T125: 0.2271312255 | U125: ='General Table'!AY125 -> 54730 | V125: 0.212029951 | W125: 5140 | X125: 29031 | Y125: 0.1124692401
A126: ='General Table'!A126 -> 116 | C126: ='General Table'!C126 -> 51 | D126: ='General Table'!D126 -> Armenia | F126: ='General Table'!F126 -> 2916.95 | G126: ='General Table'!R126 -> 199 | H126: 0.06822194415 | I126: ='General Table'!T126 -> 174 | J126: 0.05965134815 | K126: 268.6 | L126: 0.09208248342 | M126: 373 | N126: 0.1278732923 | O126: ='General Table'!AB126 -> 182 | P126: 0.06239393887 | Q126: ='General Table'!AE126 -> 692 | R126: 0.2372340973 | S126: ='General Table'!AJ126 -> 600 | T126: 0.205694304 | U126: ='General Table'!AY126 -> 1044 | V126: 0.3579080889 | W126: 39.8 | X126: 213.8 | Y126: 0.07329573699
A127: ='General Table'!A127 -> 117 | C127: ='General Table'!C127 -> 31 | D127: ='General Table'!D127 -> Azerbaijan | F127: ='General Table'!F127 -> 9617.48 | G127: ='General Table'!R127 -> 699 | H127: 0.07268016154 | I127: ='General Table'!T127 -> 638 | J127: 0.06633754372 | K127: 954.2 | L127: 0.09921517903 | M127: 1337 | N127: 0.1390177053 | O127: ='General Table'!AB127 -> 720 | P127: 0.07486368571 | Q127: ='General Table'!AE127 -> 2554 | R127: 0.2655581296 | S127: ='General Table'!AJ127 -> 2122 | T127: 0.2206399181 | U127: ='General Table'!AY127 -> 2737 | V127: 0.284585983 | W127: 139.8 | X127: 777.8 | Y127: 0.08087357603
A128: ='General Table'!A128 -> 118 | C128: ='General Table'!C128 -> 48 | D128: ='General Table'!D128 -> Bahrain | F128: ='General Table'!F128 -> 1371.86 | G128: ='General Table'!R128 -> 96 | H128: 0.06997798609 | I128: ='General Table'!T128 -> 84 | J128: 0.06123073783 | K128: 129.6 | L128: 0.09447028122 | M128: 180 | N128: 0.1312087239 | O128: ='General Table'!AB128 -> 74 | P128: 0.05394136428 | Q128: ='General Table'!AE128 -> 354 | R128: 0.2580438237 | S128: ='General Table'!AJ128 -> 459 | T128: 0.334582246 | U128: ='General Table'!AY128 -> 271 | V128: 0.1975420232 | W128: 19.2 | X128: 103.2 | Y128: 0.07522633505
A129: ='General Table'!A129 -> 119 | C129: ='General Table'!C129 -> 196 | D129: ='General Table'!D129 -> Cyprus | F129: ='General Table'!F129 -> 1160.99 | G129: ='General Table'!R129 -> 65 | H129: 0.05598670101 | I129: ='General Table'!T129 -> 65 | J129: 0.05598670101 | K129: 91 | L129: 0.07838138141 | M129: 130 | N129: 0.111973402 | O129: ='General Table'!AB129 -> 78 | P129: 0.06718404121 | Q129: ='General Table'!AE129 -> 291 | R129: 0.2506481537 | S129: ='General Table'!AJ129 -> 259 | T129: 0.2230854702 | U129: ='General Table'!AY129 -> 417 | V129: 0.3591762203 | W129: 13 | X129: 78 | Y129: 0.06718404121
A130: ='General Table'!A130 -> 120 | C130: ='General Table'!C130 -> 268 | D130: ='General Table'!D130 -> Georgia | F130: ='General Table'!F130 -> 3951.52 | G130: ='General Table'!R130 -> 250 | H130: 0.06326679354 | I130: ='General Table'!T130 -> 214 | J130: 0.05415637527 | K130: 335.6 | L130: 0.08492934364 | M130: 464 | N130: 0.1174231688 | O130: ='General Table'!AB130 -> 236 | P130: 0.0597238531 | Q130: ='General Table'!AE130 -> 803 | R130: 0.2032129408 | S130: ='General Table'!AJ130 -> 804 | T130: 0.203466008 | U130: ='General Table'!AY130 -> 1606 | V130: 0.4064258817 | W130: 50 | X130: 264 | Y130: 0.06680973398
A131: ='General Table'!A131 -> 121 | C131: ='General Table'!C131 -> 368 | D131: ='General Table'!D131 -> Iraq | F131: ='General Table'!F131 -> 36115.65 | G131: ='General Table'!R131 -> 4867 | H131: 0.1347615231 | I131: ='General Table'!T131 -> 4215 | J131: 0.1167084076 | K131: 6553 | L131: 0.1814448861 | M131: 9082 | N131: 0.2514699306 | O131: ='General Table'!AB131 -> 3804 | P131: 0.1053282995 | Q131: ='General Table'!AE131 -> 9980 | R131: 0.2763344976 | S131: ='General Table'!AJ131 -> 6475 | T131: 0.1792851575 | U131: ='General Table'!AY131 -> 4975 | V131: 0.1377519164 | W131: 973.4 | X131: 5188.4 | Y131: 0.1436607122
A132: ='General Table'!A132 -> 122 | C132: ='General Table'!C132 -> 376 | D132: ='General Table'!D132 -> Israel | F132: ='General Table'!F132 -> 8064.55 | G132: ='General Table'!R132 -> 745 | H132: 0.09237961201 | I132: ='General Table'!T132 -> 672 | J132: 0.08332765002 | K132: 1013.8 | L132: 0.125710672 | M132: 1417 | N132: 0.175707262 | O132: ='General Table'!AB132 -> 624 | P132: 0.07737567502 | Q132: ='General Table'!AE132 -> 1759 | R132: 0.2181150839 | S132: ='General Table'!AJ132 -> 1608 | T132: 0.1993911626 | U132: ='General Table'!AY132 -> 2452 | V132: 0.304046723 | W132: 149 | X132: 821 | Y132: 0.1018035724
A133: ='General Table'!A133 -> 123 | C133: ='General Table'!C133 -> 400 | D133: ='General Table'!D133 -> Jordan | F133: ='General Table'!F133 -> 9159.3 | G133: ='General Table'!R133 -> 1102 | H133: 0.1203148712 | I133: ='General Table'!T133 -> 996 | J133: 0.1087419344 | K133: 1500.4 | L133: 0.163811645 | M133: 2098 | N133: 0.2290568057 | O133: ='General Table'!AB133 -> 922 | P133: 0.1006627144 | Q133: ='General Table'!AE133 -> 2521 | R133: 0.2752393742 | S133: ='General Table'!AJ133 -> 1840 | T133: 0.2008887142 | U133: ='General Table'!AY133 -> 1497 | V133: 0.1634404376 | W133: 220.4 | X133: 1216.4 | Y133: 0.1328049087
A134: ='General Table'!A134 -> 124 | C134: ='General Table'!C134 -> 414 | D134: ='General Table'!D134 -> Kuwait | F134: ='General Table'!F134 -> 3935.79 | G134: ='General Table'!R134 -> 280 | H134: 0.07114200707 | I134: ='General Table'!T134 -> 232 | J134: 0.05894623443 | K134: 372.8 | L134: 0.09472050084 | M134: 512 | N134: 0.1300882415 | O134: ='General Table'!AB134 -> 218 | P134: 0.05538913407 | Q134: ='General Table'!AE134 -> 804 | R134: 0.2042791917 | S134: ='General Table'!AJ134 -> 1448 | T134: 0.367905808 | U134: ='General Table'!AY134 -> 861 | V134: 0.2187616717 | W134: 56 | X134: 288 | Y134: 0.07317463584
A135: ='General Table'!A135 -> 125 | C135: ='General Table'!C135 -> 422 | D135: ='General Table'!D135 -> Lebanon | F135: ='General Table'!F135 -> 5851.48 | G135: ='General Table'!R135 -> 439 | H135: 0.07502375467 | I135: ='General Table'!T135 -> 504 | J135: 0.08613205548 | K135: 640.6 | L135: 0.1094765769 | M135: 943 | N135: 0.1611558102 | O135: ='General Table'!AB135 -> 557 | P135: 0.09518959306 | Q135: ='General Table'!AE135 -> 1684 | R135: 0.2877904393 | S135: ='General Table'!AJ135 -> 1209 | T135: 0.206614395 | U135: ='General Table'!AY135 -> 1555 | V135: 0.2657447347 | W135: 87.8 | X135: 591.8 | Y135: 0.1011368064
A136: ='General Table'!A136 -> 126 | C136: ='General Table'!C136 -> 512 | D136: ='General Table'!D136 -> Oman | F136: ='General Table'!F136 -> 4199.81 | G136: ='General Table'!R136 -> 302 | H136: 0.07190801489 | I136: ='General Table'!T136 -> 245 | J136: 0.05833597234 | K136: 400 | L136: 0.09524240382 | M136: 547 | N136: 0.1302439872 | O136: ='General Table'!AB136 -> 236 | P136: 0.05619301826 | Q136: ='General Table'!AE136 -> 1312 | R136: 0.3123950845 | S136: ='General Table'!AJ136 -> 1350 | T136: 0.3214431129 | U136: ='General Table'!AY136 -> 608 | V136: 0.1447684538 | W136: 60.4 | X136: 305.4 | Y136: 0.07271757532
A137: ='General Table'!A137 -> 127 | C137: ='General Table'!C137 -> 634 | D137: ='General Table'!D137 -> Qatar | F137: ='General Table'!F137 -> 2481.54 | G137: ='General Table'!R137 -> 117 | H137: 0.04714814188 | I137: ='General Table'!T137 -> 98 | J137: 0.03949160602 | K137: 156.2 | L137: 0.06294478429 | M137: 215 | N137: 0.0866397479 | O137: ='General Table'!AB137 -> 102 | P137: 0.04110350831 | Q137: ='General Table'!AE137 -> 794 | R137: 0.3199626039 | S137: ='General Table'!AJ137 -> 955 | T137: 0.3848416709 | U137: ='General Table'!AY137 -> 391 | V137: 0.1575634485 | W137: 23.4 | X137: 121.4 | Y137: 0.04892123439
A138: ='General Table'!A138 -> 128 | C138: ='General Table'!C138 -> 682 | D138: ='General Table'!D138 -> Saudi Arabia | F138: ='General Table'!F138 -> 31557.14 | G138: ='General Table'!R138 -> 2765 | H138: 0.08761883998 | I138: ='General Table'!T138 -> 2479 | J138: 0.07855591476 | K138: 3756.6 | L138: 0.1190412059 | M138: 5244 | N138: 0.1661747547 | O138: ='General Table'!AB138 -> 2339 | P138: 0.0741195178 | Q138: ='General Table'!AE138 -> 7700 | R138: 0.2440018329 | S138: ='General Table'!AJ138 -> 9384 | T138: 0.2973653506 | U138: ='General Table'!AY138 -> 6268 | V138: 0.1986238297 | W138: 553 | X138: 3032 | Y138: 0.09607968276
A139: ='General Table'!A139 -> 129 | C139: ='General Table'!C139 -> 275 | D139: ='General Table'!D139 -> State of Palestine | F139: ='General Table'!F139 -> 4662.88 | G139: ='General Table'!R139 -> 619 | H139: =G139/F139 -> 0.1327505748 | I139: ='General Table'!T139 -> 553 | J139: =I139/F139 -> 0.1185962324 | K139: =G139+I139/5*2 -> 840.2 | L139: =K139/F139 -> 0.1801890677 | M139: =G139+I139 -> 1172 | N139: =M139/F139 -> 0.2513468071 | O139: ='General Table'!AB139 -> 530 | P139: =O139/F139 -> 0.1136636585 | Q139: ='General Table'!AE139 -> 1398 | R139: =Q139/F139 -> 0.2998147068 | S139: ='General Table'!AJ139 -> 774 | T139: =S139/F139 -> 0.1659918334 | U139: ='General Table'!AY139 -> 620 | V139: =U139/F139 -> 0.1329650345 | W139: =G139/5 -> 123.8 | X139: =W139+I139 -> 676.8 | Y139: 0.1451463473
A140: ='General Table'!A140 -> 130 | C140: ='General Table'!C140 -> 760 | D140: ='General Table'!D140 -> Syrian Arab Republic | F140: ='General Table'!F140 -> 18734.99 | G140: ='General Table'!R140 -> 2472 | H140: 0.1319456269 | I140: ='General Table'!T140 -> 2427 | J140: 0.1295437041 | K140: 3442.8 | L140: 0.1837631085 | M140: 4899 | N140: 0.2614893309 | O140: ='General Table'!AB140 -> 2159 | P140: 0.1152389193 | Q140: ='General Table'!AE140 -> 5073 | R140: 0.2707767658 | S140: ='General Table'!AJ140 -> 3304 | T140: 0.176354511 | U140: ='General Table'!AY140 -> 3222 | V140: 0.1719776739 | W140: 494.4 | X140: 2921.4 | Y140: =X140/F140 -> 0.1559328294
A141: ='General Table'!A141 -> 131 | C141: ='General Table'!C141 -> 792 | D141: ='General Table'!D141 -> Turkey | F141: ='General Table'!F141 -> 78271.47 | G141: ='General Table'!R141 -> 6619 | H141: 0.08456465683 | I141: ='General Table'!T141 -> 6665 | J141: 0.085152355 | K141: 9285 | L141: 0.1186255988 | M141: 13284 | N141: 0.1697170118 | O141: ='General Table'!AB141 -> 6670 | P141: 0.08521623524 | Q141: ='General Table'!AE141 -> 19297 | R141: 0.246539384 | S141: ='General Table'!AJ141 -> 17615 | T141: 0.2250500725 | U141: ='General Table'!AY141 -> 21335 | V141: 0.2725769683 | W141: 1323.8 | X141: 7988.8 | Y141: 0.1020652864
A142: ='General Table'!A142 -> 132 | C142: ='General Table'!C142 -> 784 | D142: ='General Table'!D142 -> United Arab Emirates | F142: ='General Table'!F142 -> 9154.3 | G142: ='General Table'!R142 -> 438 | H142: 0.04784636728 | I142: ='General Table'!T142 -> 353 | J142: 0.03856111336 | K142: 579.2 | L142: 0.06327081262 | M142: 791 | N142: 0.08640748064 | O142: ='General Table'!AB142 -> 329 | P142: 0.0359393946 | Q142: ='General Table'!AE142 -> 2260 | R142: 0.2468785161 | S142: ='General Table'!AJ142 -> 4050 | T142: 0.4424150399 | U142: ='General Table'!AY142 -> 1581 | V142: 0.172705723 | W142: 87.6 | X142: 440.6 | Y142: 0.04813038681
A143: ='General Table'!A143 -> 133 | C143: ='General Table'!C143 -> 887 | D143: ='General Table'!D143 -> Yemen | F143: ='General Table'!F143 -> 26916.21 | G143: ='General Table'!R143 -> 3626 | H143: 0.1347143599 | I143: ='General Table'!T143 -> 3277 | J143: 0.1217481956 | K143: 4936.8 | L143: 0.1834136381 | M143: 6903 | N143: 0.2564625555 | O143: ='General Table'!AB143 -> 3020 | P143: 0.112200046 | Q143: ='General Table'!AE143 -> 8335 | R143: 0.3096646965 | S143: ='General Table'!AJ143 -> 4374 | T143: 0.162504305 | U143: ='General Table'!AY143 -> 3286 | V143: 0.1220825666 | W143: 725.2 | X143: 4002.2 | Y143: 0.1486910676
A144: ='General Table'!A144 -> 134 | C144: ='General Table'!C144 -> 908 | D144: ='General Table'!D144 -> EUROPE | F144: ='General Table'!F144 -> 740813.96 | G144: ='General Table'!R144 -> 39534 | H144: 0.05336562502 | I144: ='General Table'!T144 -> 37172 | J144: 0.05017724018 | K144: 54402.8 | L144: 0.07343652109 | M144: 76706 | N144: 0.1035428652 | O144: ='General Table'!AB144 -> 37753 | P144: 0.05096151266 | Q144: ='General Table'!AE144 -> 132963 | R144: 0.1794823089 | S144: ='General Table'!AJ144 -> 156294 | T144: 0.2109760459 | U144: ='General Table'!AY144 -> 334781 | V144: 0.4519096805 | W144: 7906.8 | X144: 45078.8 | Y144: 0.06085036518
A145: ='General Table'!A145 -> 135 | C145: ='General Table'!C145 -> 923 | D145: ='General Table'!D145 -> Eastern Europe | F145: ='General Table'!F145 -> 293243.71 | G145: ='General Table'!R145 -> 15777 | H145: 0.05380166552 | I145: ='General Table'!T145 -> 13894 | J145: 0.04738038541 | K145: 21334.6 | L145: 0.07275381968 | M145: 29671 | N145: 0.1011820509 | O145: ='General Table'!AB145 -> 13824 | P145: 0.04714167612 | Q145: ='General Table'!AE145 -> 55880 | R145: 0.190558222 | S145: ='General Table'!AJ145 -> 66667 | T145: 0.2273433248 | U145: ='General Table'!AY145 -> 123966 | V145: 0.4227405253 | W145: 3155.4 | X145: 17049.4 | Y145: 0.05814071852
A146: ='General Table'!A146 -> 136 | C146: ='General Table'!C146 -> 112 | D146: ='General Table'!D146 -> Belarus | F146: ='General Table'!F146 -> 9485.77 | G146: ='General Table'!R146 -> 512 | H146: 0.05397558659 | I146: ='General Table'!T146 -> 443 | J146: 0.04670153293 | K146: 689.2 | L146: 0.07265619976 | M146: 955 | N146: 0.1006771195 | O146: ='General Table'!AB146 -> 461 | P146: 0.04859911214 | Q146: ='General Table'!AE146 -> 1843 | R146: 0.1942910275 | S146: ='General Table'!AJ146 -> 2083 | T146: 0.2195920837 | U146: ='General Table'!AY146 -> 4028 | V146: 0.4246360601 | W146: 102.4 | X146: 545.4 | Y146: 0.05749665025
A147: ='General Table'!A147 -> 137 | C147: ='General Table'!C147 -> 100 | D147: ='General Table'!D147 -> Bulgaria | F147: ='General Table'!F147 -> 7177.4 | G147: ='General Table'!R147 -> 354 | H147: 0.04932148132 | I147: ='General Table'!T147 -> 315 | J147: 0.0438877588 | K147: 480 | L147: 0.06687658484 | M147: 669 | N147: 0.09320924011 | O147: ='General Table'!AB147 -> 305 | P147: 0.04249449661 | Q147: ='General Table'!AE147 -> 1187 | R147: 0.1653802213 | S147: ='General Table'!AJ147 -> 1560 | T147: 0.2173489007 | U147: ='General Table'!AY147 -> 3423 | V147: 0.4769136456 | W147: 70.8 | X147: 385.8 | Y147: 0.05375205506
A148: ='General Table'!A148 -> 138 | C148: ='General Table'!C148 -> 203 | D148: ='General Table'!D148 -> Czech Republic | F148: ='General Table'!F148 -> 10603.76 | G148: ='General Table'!R148 -> 571 | H148: 0.05384882344 | I148: ='General Table'!T148 -> 481 | J148: 0.04536126808 | K148: 763.4 | L148: 0.07199333067 | M148: 1052 | N148: 0.09921009151 | O148: ='General Table'!AB148 -> 456 | P148: 0.04300361381 | Q148: ='General Table'!AE148 -> 1772 | R148: 0.1671105344 | S148: ='General Table'!AJ148 -> 2548 | T148: 0.2402921228 | U148: ='General Table'!AY148 -> 4680 | V148: 0.4413528786 | W148: 114.2 | X148: 595.2 | Y148: 0.05613103277
A149: ='General Table'!A149 -> 139 | C149: ='General Table'!C149 -> 348 | D149: ='General Table'!D149 -> Hungary | F149: ='General Table'!F149 -> 9783.93 | G149: ='General Table'!R149 -> 483 | H149: 0.04936666554 | I149: ='General Table'!T149 -> 483 | J149: 0.04936666554 | K149: 676.2 | L149: 0.06911333176 | M149: 966 | N149: 0.09873333108 | O149: ='General Table'!AB149 -> 513 | P149: 0.05243291806 | Q149: ='General Table'!AE149 -> 1753 | R149: 0.1791713555 | S149: ='General Table'!AJ149 -> 2244 | T149: 0.2293556884 | U149: ='General Table'!AY149 -> 4375 | V149: 0.4471618256 | W149: 96.6 | X149: 579.6 | Y149: 0.05923999865
A150: ='General Table'!A150 -> 140 | C150: ='General Table'!C150 -> 616 | D150: ='General Table'!D150 -> Poland | F150: ='General Table'!F150 -> 38265.23 | G150: ='General Table'!R150 -> 2003 | H150: 0.0523451708 | I150: ='General Table'!T150 -> 1790 | J150: 0.04677875973 | K150: 2719 | L150: 0.07105667469 | M150: 3793 | N150: 0.09912393052 | O150: ='General Table'!AB150 -> 2024 | P150: 0.05289397189 | Q150: ='General Table'!AE150 -> 7357 | R150: 0.1922633158 | S150: ='General Table'!AJ150 -> 8919 | T150: 0.2330836637 | U150: ='General Table'!AY150 -> 16295 | V150: 0.4258435138 | W150: 400.6 | X150: 2190.6 | Y150: 0.05724779388
A151: ='General Table'!A151 -> 141 | C151: ='General Table'!C151 -> 498 | D151: ='General Table'!D151 -> Republic of Moldova | F151: ='General Table'!F151 -> 4065.98 | G151: ='General Table'!R151 -> 216 | H151: 0.05312372417 | I151: ='General Table'!T151 -> 201 | J151: 0.04943457666 | K151: 296.4 | L151: 0.07289755483 | M151: 417 | N151: 0.1025583008 | O151: ='General Table'!AB151 -> 243 | P151: 0.05976418969 | Q151: ='General Table'!AE151 -> 1001 | R151: 0.2461891106 | S151: ='General Table'!AJ151 -> 929 | T151: 0.2284812026 | U151: ='General Table'!AY151 -> 1498 | V151: 0.3684228648 | W151: 43.2 | X151: 244.2 | Y151: 0.06005932149
A152: ='General Table'!A152 -> 142 | C152: ='General Table'!C152 -> 642 | D152: ='General Table'!D152 -> Romania | F152: ='General Table'!F152 -> 19876.62 | G152: ='General Table'!R152 -> 1049 | H152: 0.05277557251 | I152: ='General Table'!T152 -> 1044 | J152: 0.05252402068 | K152: 1466.6 | L152: 0.07378518078 | M152: 2093 | N152: 0.1052995932 | O152: ='General Table'!AB152 -> 1088 | P152: 0.05473767673 | Q152: ='General Table'!AE152 -> 3663 | R152: 0.1842868657 | S152: ='General Table'!AJ152 -> 4359 | T152: 0.2193028795 | U152: ='General Table'!AY152 -> 8791 | V152: 0.4422784155 | W152: 209.8 | X152: 1253.8 | Y152: 0.06307913518
A153: ='General Table'!A153 -> 143 | C153: ='General Table'!C153 -> 643 | D153: ='General Table'!D153 -> Russian Federation | F153: ='General Table'!F153 -> 143888 | G153: ='General Table'!R153 -> 7938 | H153: 0.05516790837 | I153: ='General Table'!T153 -> 6927 | J153: 0.04814161014 | K153: 10708.8 | L153: 0.07442455243 | M153: 14865 | N153: 0.1033095185 | O153: ='General Table'!AB153 -> 6333 | P153: 0.04401339931 | Q153: ='General Table'!AE153 -> 27835 | R153: 0.1934490715 | S153: ='General Table'!AJ153 -> 32552 | T153: 0.2262315134 | U153: ='General Table'!AY153 -> 59281 | V153: 0.4119940509 | W153: 1587.6 | X153: 8514.6 | Y153: 0.05917519182
A154: ='General Table'!A154 -> 144 | C154: ='General Table'!C154 -> 703 | D154: ='General Table'!D154 -> Slovakia | F154: ='General Table'!F154 -> 5439.32 | G154: ='General Table'!R154 -> 283 | H154: 0.05202856239 | I154: ='General Table'!T154 -> 263 | J154: 0.04835163219 | K154: 388.2 | L154: 0.07136921527 | M154: 546 | N154: 0.1003801946 | O154: ='General Table'!AB154 -> 290 | P154: 0.05331548797 | Q154: ='General Table'!AE154 -> 1065 | R154: 0.1957965334 | S154: ='General Table'!AJ154 -> 1308 | T154: 0.2404712354 | U154: ='General Table'!AY154 -> 2234 | V154: 0.4107131038 | W154: 56.6 | X154: 319.6 | Y154: 0.05875734467
A155: ='General Table'!A155 -> 145 | C155: ='General Table'!C155 -> 804 | D155: ='General Table'!D155 -> Ukraine | F155: ='General Table'!F155 -> 44657.7 | G155: ='General Table'!R155 -> 2369 | H155: 0.05304796261 | I155: ='General Table'!T155 -> 1946 | J155: 0.04357591188 | K155: 3147.4 | L155: 0.07047832737 | M155: 4315 | N155: 0.09662387449 | O155: ='General Table'!AB155 -> 2113 | P155: 0.04731546855 | Q155: ='General Table'!AE155 -> 8408 | R155: 0.1882766018 | S155: ='General Table'!AJ155 -> 10166 | T155: 0.2276427134 | U155: ='General Table'!AY155 -> 19359 | V155: 0.4334974708 | W155: 473.8 | X155: 2419.8 | Y155: 0.0541855044
A156: ='General Table'!A156 -> 146 | C156: ='General Table'!C156 -> 924 | D156: ='General Table'!D156 -> Northern Europe | F156: ='General Table'!F156 -> 103097.29 | G156: ='General Table'!R156 -> 6185 | H156: 0.05999187758 | I156: ='General Table'!T156 -> 5623 | J156: 0.05454071586 | K156: 8434.2 | L156: 0.08180816392 | M156: 11808 | N156: 0.1145325934 | O156: ='General Table'!AB156 -> 5899 | P156: 0.05721779884 | Q156: ='General Table'!AE156 -> 19503 | R156: 0.1891708308 | S156: ='General Table'!AJ156 -> 20320 | T156: 0.1970953844 | U156: ='General Table'!AY156 -> 45218 | V156: 0.4385954277 | W156: 1237 | X156: 6860 | Y156: 0.06653909138
A157: ='General Table'!A157 -> 147 | C157: ='General Table'!C157 -> 830 | D157: ='General Table'!D157 -> Channel Islands | F157: ='General Table'!F157 -> 163.76 | G157: ='General Table'!R157 -> 8 | H157: 0.04885197851 | I157: ='General Table'!T157 -> 8 | J157: 0.04885197851 | K157: 11.2 | L157: 0.06839276991 | M157: 16 | N157: 0.09770395701 | O157: ='General Table'!AB157 -> 9 | P157: 0.05495847582 | Q157: ='General Table'!AE157 -> 29 | R157: 0.1770884221 | S157: ='General Table'!AJ157 -> 35 | T157: 0.213727406 | U157: ='General Table'!AY157 -> 76 | V157: 0.4640937958 | W157: 1.6 | X157: 9.6 | Y157: 0.05862237421
A158: ='General Table'!A158 -> 148 | C158: ='General Table'!C158 -> 208 | D158: ='General Table'!D158 -> Denmark | F158: ='General Table'!F158 -> 5688.7 | G158: ='General Table'!R158 -> 333 | H158: 0.05853709986 | I158: ='General Table'!T158 -> 330 | J158: 0.0580097386 | K158: 465 | L158: 0.08174099531 | M158: 663 | N158: 0.1165468385 | O158: ='General Table'!AB158 -> 360 | P158: 0.06328335121 | Q158: ='General Table'!AE158 -> 1095 | R158: 0.1924868599 | S158: ='General Table'!AJ158 -> 1048 | T158: 0.1842248668 | U158: ='General Table'!AY158 -> 2587 | V158: 0.4547611932 | W158: 66.6 | X158: 396.6 | Y158: 0.06971715858
A159: ='General Table'!A159 -> 149 | C159: ='General Table'!C159 -> 233 | D159: ='General Table'!D159 -> Estonia | F159: ='General Table'!F159 -> 1315.32 | G159: ='General Table'!R159 -> 77 | H159: 0.05854088739 | I159: ='General Table'!T159 -> 64 | J159: 0.04865736095 | K159: 102.6 | L159: 0.07800383177 | M159: 141 | N159: 0.1071982483 | O159: ='General Table'!AB159 -> 58 | P159: 0.04409573336 | Q159: ='General Table'!AE159 -> 233 | R159: 0.1771432047 | S159: ='General Table'!AJ159 -> 275 | T159: 0.2090745978 | U159: ='General Table'!AY159 -> 594 | V159: 0.4516011313 | W159: 15.4 | X159: 79.4 | Y159: 0.06036553842
A160: ='General Table'!A160 -> 150 | C160: ='General Table'!C160 -> 246 | D160: ='General Table'!D160 -> Finland | F160: ='General Table'!F160 -> 5481.97 | G160: ='General Table'!R160 -> 307 | H160: 0.05600176579 | I160: ='General Table'!T160 -> 292 | J160: 0.05326552316 | K160: 423.8 | L160: 0.07730797505 | M160: 599 | N160: 0.1092672889 | O160: ='General Table'!AB160 -> 303 | P160: 0.05527210109 | Q160: ='General Table'!AE160 -> 990 | R160: 0.1805920135 | S160: ='General Table'!AJ160 -> 1012 | T160: 0.1846051693 | U160: ='General Table'!AY160 -> 2581 | V160: 0.4708161482 | W160: 61.4 | X160: 353.4 | Y160: 0.06446587632
A161: ='General Table'!A161 -> 151 | C161: ='General Table'!C161 -> 352 | D161: ='General Table'!D161 -> Iceland | F161: ='General Table'!F161 -> 330.24 | G161: ='General Table'!R161 -> 23 | H161: 0.06964631783 | I161: ='General Table'!T161 -> 21 | J161: 0.06359011628 | K161: 31.4 | L161: 0.09508236434 | M161: 44 | N161: 0.1332364341 | O161: ='General Table'!AB161 -> 22 | P161: 0.06661821705 | Q161: ='General Table'!AE161 -> 70 | R161: 0.2119670543 | S161: ='General Table'!AJ161 -> 66 | T161: 0.1998546512 | U161: ='General Table'!AY161 -> 128 | V161: 0.3875968992 | W161: 4.6 | X161: 25.6 | Y161: 0.07751937984
A162: ='General Table'!A162 -> 152 | C162: ='General Table'!C162 -> 372 | D162: ='General Table'!D162 -> Ireland | F162: ='General Table'!F162 -> 4700.11 | G162: ='General Table'!R162 -> 356 | H162: 0.07574290814 | I162: ='General Table'!T162 -> 313 | J162: 0.06659418609 | K162: 481.2 | L162: 0.1023805826 | M162: 669 | N162: 0.1423370942 | O162: ='General Table'!AB162 -> 270 | P162: 0.05744546404 | Q162: ='General Table'!AE162 -> 819 | R162: 0.1742512409 | S162: ='General Table'!AJ162 -> 1117 | T162: 0.2376540124 | U162: ='General Table'!AY162 -> 1739 | V162: 0.3699913406 | W162: 71.2 | X162: 384.2 | Y162: 0.08174276772
A163: ='General Table'!A163 -> 153 | C163: ='General Table'!C163 -> 428 | D163: ='General Table'!D163 -> Latvia | F163: ='General Table'!F163 -> 1992.66 | G163: ='General Table'!R163 -> 107 | H163: 0.05369706824 | I163: ='General Table'!T163 -> 94 | J163: 0.04717312537 | K163: 144.6 | L163: 0.07256631839 | M163: 201 | N163: 0.1008701936 | O163: ='General Table'!AB163 -> 87 | P163: 0.04366023306 | Q163: ='General Table'!AE163 -> 358 | R163: 0.1796593498 | S163: ='General Table'!AJ163 -> 405 | T163: 0.2032459125 | U163: ='General Table'!AY163 -> 927 | V163: 0.4652073108 | W163: 21.4 | X163: 115.4 | Y163: 0.05791253902
A164: ='General Table'!A164 -> 154 | C164: ='General Table'!C164 -> 440 | D164: ='General Table'!D164 -> Lithuania | F164: ='General Table'!F164 -> 2931.93 | G164: ='General Table'!R164 -> 139 | H164: 0.04740904455 | I164: ='General Table'!T164 -> 138 | J164: 0.04706797229 | K164: 194.2 | L164: 0.06623623347 | M164: 277 | N164: 0.09447701685 | O164: ='General Table'!AB164 -> 170 | P164: 0.05798228471 | Q164: ='General Table'!AE164 -> 573 | R164: 0.1954344067 | S164: ='General Table'!AJ164 -> 560 | T164: 0.1910004673 | U164: ='General Table'!AY164 -> 1371 | V164: 0.4676100725 | W164: 27.8 | X164: 165.8 | Y164: 0.0565497812
A165: ='General Table'!A165 -> 155 | C165: ='General Table'!C165 -> 578 | D165: ='General Table'!D165 -> Norway | F165: ='General Table'!F165 -> 5199.84 | G165: ='General Table'!R165 -> 318 | H165: 0.06115572787 | I165: ='General Table'!T165 -> 307 | J165: 0.05904027816 | K165: 440.8 | L165: 0.08477183913 | M165: 625 | N165: 0.120196006 | O165: ='General Table'!AB165 -> 327 | P165: 0.06288655036 | Q165: ='General Table'!AE165 -> 1034 | R165: 0.1988522724 | S165: ='General Table'!AJ165 -> 1064 | T165: 0.2046216807 | U165: ='General Table'!AY165 -> 2168 | V165: 0.4169359057 | W165: 63.6 | X165: 370.6 | Y165: 0.07127142374
A166: ='General Table'!A166 -> 156 | C166: ='General Table'!C166 -> 752 | D166: ='General Table'!D166 -> Sweden | F166: ='General Table'!F166 -> 9763.57 | G166: ='General Table'!R166 -> 582 | H166: 0.05960934371 | I166: ='General Table'!T166 -> 520 | J166: 0.05325920744 | K166: 790 | L166: 0.08091302669 | M166: 1102 | N166: 0.1128685512 | O166: ='General Table'!AB166 -> 506 | P166: 0.0518253057 | Q166: ='General Table'!AE166 -> 1871 | R166: 0.1916307252 | S166: ='General Table'!AJ166 -> 1859 | T166: 0.1904016666 | U166: ='General Table'!AY166 -> 4343 | V166: 0.4448168037 | W166: 116.4 | X166: 636.4 | Y166: 0.06518107618
A167: ='General Table'!A167 -> 157 | C167: ='General Table'!C167 -> 826 | D167: ='General Table'!D167 -> United Kingdom | F167: ='General Table'!F167 -> 65397.08 | G167: ='General Table'!R167 -> 3928 | H167: 0.06006384383 | I167: ='General Table'!T167 -> 3529 | J167: 0.05396265399 | K167: 5339.6 | L167: 0.08164890543 | M167: 7457 | N167: 0.1140264978 | O167: ='General Table'!AB167 -> 3780 | P167: 0.05780074584 | Q167: ='General Table'!AE167 -> 12409 | R167: 0.1897485331 | S167: ='General Table'!AJ167 -> 12854 | T167: 0.1965531183 | U167: ='General Table'!AY167 -> 28635 | V167: 0.4378635866 | W167: 785.6 | X167: 4314.6 | Y167: 0.06597542276
A168: ='General Table'!A168 -> 158 | C168: ='General Table'!C168 -> 925 | D168: ='General Table'!D168 -> Southern Europe | F168: ='General Table'!F168 -> 152440.65 | G168: ='General Table'!R168 -> 7657 | H168: 0.05022938435 | I168: ='General Table'!T168 -> 7557 | J168: 0.04957339135 | K168: 10679.8 | L168: 0.07005874089 | M168: 15214 | N168: 0.0998027757 | O168: ='General Table'!AB168 -> 7556 | P168: 0.04956683142 | Q168: ='General Table'!AE168 -> 23874 | R168: 0.1566117699 | S168: ='General Table'!AJ168 -> 32875 | T168: 0.2156577002 | U168: ='General Table'!AY168 -> 73509 | V168: 0.4822138977 | W168: 1531.4 | X168: 9088.4 | Y168: 0.05961926822
A169: ='General Table'!A169 -> 159 | C169: ='General Table'!C169 -> 8 | D169: ='General Table'!D169 -> Albania | F169: ='General Table'!F169 -> 2923.35 | G169: ='General Table'!R169 -> 159 | H169: 0.0543896557 | I169: ='General Table'!T169 -> 196 | J169: 0.06704636804 | K169: 237.4 | L169: 0.08120820292 | M169: 355 | N169: 0.1214360237 | O169: ='General Table'!AB169 -> 250 | P169: 0.08551832658 | Q169: ='General Table'!AE169 -> 680 | R169: 0.2326098483 | S169: ='General Table'!AJ169 -> 586 | T169: 0.2004549575 | U169: ='General Table'!AY169 -> 1132 | V169: 0.3872269827 | W169: 31.8 | X169: 227.8 | Y169: 0.07792429918
A170: ='General Table'!A170 -> 160 | C170: ='General Table'!C170 -> 70 | D170: ='General Table'!D170 -> Bosnia and Herzegovina | F170: ='General Table'!F170 -> 3535.96 | G170: ='General Table'!R170 -> 173 | H170: 0.04892589283 | I170: ='General Table'!T170 -> 177 | J170: 0.05005712734 | K170: 243.8 | L170: 0.06894874376 | M170: 350 | N170: 0.09898302017 | O170: ='General Table'!AB170 -> 233 | P170: 0.06589441057 | Q170: ='General Table'!AE170 -> 716 | R170: 0.2024909784 | S170: ='General Table'!AJ170 -> 739 | T170: 0.2089955769 | U170: ='General Table'!AY170 -> 1567 | V170: 0.4431611217 | W170: 34.6 | X170: 211.6 | Y170: 0.05984230591
A171: ='General Table'!A171 -> 161 | C171: ='General Table'!C171 -> 191 | D171: ='General Table'!D171 -> Croatia | F171: ='General Table'!F171 -> 4236.02 | G171: ='General Table'!R171 -> 217 | H171: 0.05122733132 | I171: ='General Table'!T171 -> 206 | J171: 0.04863055415 | K171: 299.4 | L171: 0.07067955298 | M171: 423 | N171: 0.09985788547 | O171: ='General Table'!AB171 -> 241 | P171: 0.05689302695 | Q171: ='General Table'!AE171 -> 757 | R171: 0.178705483 | S171: ='General Table'!AJ171 -> 869 | T171: 0.2051453959 | U171: ='General Table'!AY171 -> 1984 | V171: 0.468364172 | W171: 43.4 | X171: 249.4 | Y171: 0.05887602042
A172: ='General Table'!A172 -> 162 | C172: ='General Table'!C172 -> 300 | D172: ='General Table'!D172 -> Greece | F172: ='General Table'!F172 -> 11217.8 | G172: ='General Table'!R172 -> 579 | H172: 0.05161439855 | I172: ='General Table'!T172 -> 549 | J172: 0.04894007738 | K172: 798.6 | L172: 0.0711904295 | M172: 1128 | N172: 0.1005544759 | O172: ='General Table'!AB172 -> 559 | P172: 0.04983151777 | Q172: ='General Table'!AE172 -> 1745 | R172: 0.1555563479 | S172: ='General Table'!AJ172 -> 2522 | T172: 0.2248212662 | U172: ='General Table'!AY172 -> 5317 | V172: 0.473978855 | W172: 115.8 | X172: 664.8 | Y172: 0.05926295709
A173: ='General Table'!A173 -> 163 | C173: ='General Table'!C173 -> 380 | D173: ='General Table'!D173 -> Italy | F173: ='General Table'!F173 -> 59504.21 | G173: ='General Table'!R173 -> 2810 | H173: 0.04722354939 | I173: ='General Table'!T173 -> 2804 | J173: 0.04712271619 | K173: 3931.6 | L173: 0.06607263587 | M173: 5614 | N173: 0.09434626558 | O173: ='General Table'!AB173 -> 2788 | P173: 0.04685382765 | Q173: ='General Table'!AE173 -> 8750 | R173: 0.1470484189 | S173: ='General Table'!AJ173 -> 11955 | T173: 0.2009101541 | U173: ='General Table'!AY173 -> 30630 | V173: 0.5147534939 | W173: 562 | X173: 3366 | Y173: 0.05656742607
A174: ='General Table'!A174 -> 164 | C174: ='General Table'!C174 -> 470 | D174: ='General Table'!D174 -> Malta | F174: ='General Table'!F174 -> 427.62 | G174: ='General Table'!R174 -> 20 | H174: 0.04677049717 | I174: ='General Table'!T174 -> 20 | J174: 0.04677049717 | K174: 28 | L174: 0.06547869604 | M174: 40 | N174: 0.09354099434 | O174: ='General Table'!AB174 -> 24 | P174: 0.0561245966 | Q174: ='General Table'!AE174 -> 84 | R174: 0.1964360881 | S174: ='General Table'!AJ174 -> 91 | T174: 0.2128057621 | U174: ='General Table'!AY174 -> 193 | V174: 0.4513352977 | W174: 4 | X174: 24 | Y174: 0.0561245966
A175: ='General Table'!A175 -> 165 | C175: ='General Table'!C175 -> 499 | D175: ='General Table'!D175 -> Montenegro | F175: ='General Table'!F175 -> 628.18 | G175: ='General Table'!R175 -> 39 | H175: 0.06208411602 | I175: ='General Table'!T175 -> 39 | J175: 0.06208411602 | K175: 54.6 | L175: 0.08691776242 | M175: 78 | N175: 0.124168232 | O175: ='General Table'!AB175 -> 42 | P175: 0.06685981725 | Q175: ='General Table'!AE175 -> 128 | R175: 0.2037632526 | S175: ='General Table'!AJ175 -> 131 | T175: 0.2085389538 | U175: ='General Table'!AY175 -> 253 | V175: 0.4027508039 | W175: 7.8 | X175: 46.8 | Y175: 0.07450093922
A176: ='General Table'!A176 -> 166 | C176: ='General Table'!C176 -> 620 | D176: ='General Table'!D176 -> Portugal | F176: ='General Table'!F176 -> 10418.47 | G176: ='General Table'!R176 -> 493 | H176: 0.04731980799 | I176: ='General Table'!T176 -> 531 | J176: 0.05096717656 | K176: 705.4 | L176: 0.06770667862 | M176: 1024 | N176: 0.09828698456 | O176: ='General Table'!AB176 -> 549 | P176: 0.05269487746 | Q176: ='General Table'!AE176 -> 1662 | R176: 0.1595243831 | S176: ='General Table'!AJ176 -> 2260 | T176: 0.2169224464 | U176: ='General Table'!AY176 -> 5030 | V176: 0.4827964183 | W176: 98.6 | X176: 629.6 | Y176: 0.06043113816
A177: ='General Table'!A177 -> 167 | C177: ='General Table'!C177 -> 688 | D177: ='General Table'!D177 -> Serbia | F177: ='General Table'!F177 -> 8851.28 | G177: ='General Table'!R177 -> 483 | H177: 0.05456837881 | I177: ='General Table'!T177 -> 524 | J177: 0.05920047722 | K177: 692.6 | L177: 0.0782485697 | M177: 1007 | N177: 0.113768856 | O177: ='General Table'!AB177 -> 539 | P177: 0.06089514737 | Q177: ='General Table'!AE177 -> 1730 | R177: 0.1954519572 | S177: ='General Table'!AJ177 -> 1824 | T177: 0.2060718902 | U177: ='General Table'!AY177 -> 3823 | V177: 0.4319149321 | W177: 96.6 | X177: 620.6 | Y177: 0.07011415298
A178: ='General Table'!A178 -> 168 | C178: ='General Table'!C178 -> 705 | D178: ='General Table'!D178 -> Slovenia | F178: ='General Table'!F178 -> 2074.79 | G178: ='General Table'!R178 -> 105 | H178: 0.05060753136 | I178: ='General Table'!T178 -> 91 | J178: 0.04385986052 | K178: 141.4 | L178: 0.06815147557 | M178: 196 | N178: 0.09446739188 | O178: ='General Table'!AB178 -> 95 | P178: 0.04578776647 | Q178: ='General Table'!AE178 -> 336 | R178: 0.1619441004 | S178: ='General Table'!AJ178 -> 455 | T178: 0.2192993026 | U178: ='General Table'!AY178 -> 978 | V178: 0.4713730064 | W178: 21 | X178: 112 | Y178: 0.05398136679
A179: ='General Table'!A179 -> 169 | C179: ='General Table'!C179 -> 724 | D179: ='General Table'!D179 -> Spain | F179: ='General Table'!F179 -> 46397.66 | G179: ='General Table'!R179 -> 2457 | H179: 0.0529552568 | I179: ='General Table'!T179 -> 2290 | J179: 0.04935593735 | K179: 3373 | L179: 0.07269763173 | M179: 4747 | N179: 0.1023111941 | O179: ='General Table'!AB179 -> 2096 | P179: 0.045174692 | Q179: ='General Table'!AE179 -> 6810 | R179: 0.1467746434 | S179: ='General Table'!AJ179 -> 10942 | T179: 0.2358308587 | U179: ='General Table'!AY179 -> 21729 | V179: 0.4683210317 | W179: 491.4 | X179: 2781.4 | Y179: 0.05994698871
A180: ='General Table'!A180 -> 170 | C180: ='General Table'!C180 -> 807 | D180: ='General Table'!D180 -> TFYR Macedonia | F180: ='General Table'!F180 -> 2079.31 | G180: ='General Table'!R180 -> 112 | H180: 0.0538640222 | I180: ='General Table'!T180 -> 122 | J180: 0.0586733099 | K180: 160.8 | L180: 0.07733334616 | M180: 234 | N180: 0.1125373321 | O180: ='General Table'!AB180 -> 131 | P180: 0.06300166882 | Q180: ='General Table'!AE180 -> 448 | R180: 0.2154560888 | S180: ='General Table'!AJ180 -> 468 | T180: 0.2250746642 | U180: ='General Table'!AY180 -> 813 | V180: 0.3909950897 | W180: 22.4 | X180: 144.4 | Y180: 0.06944611434
A181: ='General Table'!A181 -> 171 | C181: ='General Table'!C181 -> 926 | D181: ='General Table'!D181 -> Western Europe | F181: ='General Table'!F181 -> 192032.31 | G181: ='General Table'!R181 -> 9915 | H181: 0.05163193631 | I181: ='General Table'!T181 -> 10098 | J181: 0.05258490095 | K181: 13954.2 | L181: 0.07266589669 | M181: 20013 | N181: 0.1042168373 | O181: ='General Table'!AB181 -> 10473 | P181: 0.05453769733 | Q181: ='General Table'!AE181 -> 33704 | R181: 0.1755121313 | S181: ='General Table'!AJ181 -> 36430 | T181: 0.1897076591 | U181: ='General Table'!AY181 -> 92090 | V181: 0.4795547166 | W181: 1983 | X181: 12081 | Y181: 0.06291128821
A182: ='General Table'!A182 -> 172 | C182: ='General Table'!C182 -> 40 | D182: ='General Table'!D182 -> Austria | F182: ='General Table'!F182 -> 8678.66 | G182: ='General Table'!R182 -> 402 | H182: 0.04632051492 | I182: ='General Table'!T182 -> 416 | J182: 0.04793366718 | K182: 568.4 | L182: 0.06549398179 | M182: 818 | N182: 0.0942541821 | O182: ='General Table'!AB182 -> 457 | P182: 0.0526578988 | Q182: ='General Table'!AE182 -> 1585 | R182: 0.182631881 | S182: ='General Table'!AJ182 -> 1744 | T182: 0.2009526816 | U182: ='General Table'!AY182 -> 4123 | V182: 0.4750733408 | W182: 80.4 | X182: 496.4 | Y182: 0.05719777016
A183: ='General Table'!A183 -> 173 | C183: ='General Table'!C183 -> 56 | D183: ='General Table'!D183 -> Belgium | F183: ='General Table'!F183 -> 11287.94 | G183: ='General Table'!R183 -> 653 | H183: 0.05784935072 | I183: ='General Table'!T183 -> 622 | J183: 0.05510305689 | K183: 901.8 | L183: 0.07989057348 | M183: 1275 | N183: 0.1129524076 | O183: ='General Table'!AB183 -> 631 | P183: 0.055900368 | Q183: ='General Table'!AE183 -> 2042 | R183: 0.1809010324 | S183: ='General Table'!AJ183 -> 2242 | T183: 0.1986190572 | U183: ='General Table'!AY183 -> 5086 | V183: 0.4505693687 | W183: 130.6 | X183: 752.6 | Y183: 0.06667292704
A184: ='General Table'!A184 -> 174 | C184: ='General Table'!C184 -> 250 | D184: ='General Table'!D184 -> France | F184: ='General Table'!F184 -> 64457.2 | G184: ='General Table'!R184 -> 3978 | H184: 0.06171537082 | I184: ='General Table'!T184 -> 3922 | J184: 0.06084657726 | K184: 5546.8 | L184: 0.08605400173 | M184: 7900 | N184: 0.1225619481 | O184: ='General Table'!AB184 -> 3801 | P184: 0.05896936262 | Q184: ='General Table'!AE184 -> 11421 | R184: 0.1771873429 | S184: ='General Table'!AJ184 -> 12356 | T184: 0.1916930925 | U184: ='General Table'!AY184 -> 28908 | V184: 0.448483645 | W184: 795.6 | X184: 4717.6 | Y184: 0.07318965143
A185: ='General Table'!A185 -> 175 | C185: ='General Table'!C185 -> 276 | D185: ='General Table'!D185 -> Germany | F185: ='General Table'!F185 -> 81707.79 | G185: ='General Table'!R185 -> 3508 | H185: 0.04293348284 | I185: ='General Table'!T185 -> 3693 | J185: 0.04519764884 | K185: 4985.2 | L185: 0.06101254238 | M185: 7201 | N185: 0.08813113168 | O185: ='General Table'!AB185 -> 4102 | P185: 0.05020329151 | Q185: ='General Table'!AE185 -> 13886 | R185: 0.169947076 | S185: ='General Table'!AJ185 -> 15031 | T185: 0.1839604278 | U185: ='General Table'!AY185 -> 42071 | V185: 0.5148958257 | W185: 701.6 | X185: 4394.6 | Y185: 0.05378434541
A186: ='General Table'!A186 -> 176 | C186: ='General Table'!C186 -> 442 | D186: ='General Table'!D186 -> Luxembourg | F186: ='General Table'!F186 -> 566.74 | G186: ='General Table'!R186 -> 30 | H186: 0.05293432615 | I186: ='General Table'!T186 -> 31 | J186: 0.05469880368 | K186: 42.4 | L186: 0.07481384762 | M186: 61 | N186: 0.1076331298 | O186: ='General Table'!AB186 -> 34 | P186: 0.0599922363 | Q186: ='General Table'!AE186 -> 110 | R186: 0.1940925292 | S186: ='General Table'!AJ186 -> 131 | T186: 0.2311465575 | U186: ='General Table'!AY186 -> 232 | V186: 0.4093587889 | W186: 6 | X186: 37 | Y186: 0.06528566891
A187: ='General Table'!A187 -> 177 | C187: ='General Table'!C187 -> 528 | D187: ='General Table'!D187 -> Netherlands | F187: ='General Table'!F187 -> 16938.5 | G187: ='General Table'!R187 -> 936 | H187: 0.05525873011 | I187: ='General Table'!T187 -> 1011 | J187: 0.05968651297 | K187: 1340.4 | L187: 0.0791333353 | M187: 1947 | N187: 0.1149452431 | O187: ='General Table'!AB187 -> 1010 | P187: 0.05962747587 | Q187: ='General Table'!AE187 -> 3139 | R187: 0.185317472 | S187: ='General Table'!AJ187 -> 3166 | T187: 0.1869114739 | U187: ='General Table'!AY187 -> 7796 | V187: 0.4602532692 | W187: 187.2 | X187: 1198.2 | Y187: 0.070738259
A188: ='General Table'!A188 -> 178 | C188: ='General Table'!C188 -> 756 | D188: ='General Table'!D188 -> Switzerland | F188: ='General Table'!F188 -> 8319.77 | G188: ='General Table'!R188 -> 405 | H188: 0.04867923032 | I188: ='General Table'!T188 -> 398 | J188: 0.0478378609 | K188: 564.2 | L188: 0.06781437468 | M188: 803 | N188: 0.09651709122 | O188: ='General Table'!AB188 -> 435 | P188: 0.05228509923 | Q188: ='General Table'!AE188 -> 1510 | R188: 0.1814954019 | S188: ='General Table'!AJ188 -> 1747 | T188: 0.2099817663 | U188: ='General Table'!AY188 -> 3832 | V188: 0.4605896557 | W188: 81 | X188: 479 | Y188: 0.05757370697
A189: ='General Table'!A189 -> 179 | C189: ='General Table'!C189 -> 904 | D189: ='General Table'!D189 -> LATIN AMERICA AND THE CARIBBEAN | F189: ='General Table'!F189 -> 632380.83 | G189: ='General Table'!R189 -> 53466 | H189: 0.08454715492 | I189: ='General Table'!T189 -> 54876 | J189: 0.08677682402 | K189: 75416.4 | L189: 0.1192578845 | M189: 108342 | N189: 0.1713239789 | O189: ='General Table'!AB189 -> 55744 | P189: 0.08814941465 | Q189: ='General Table'!AE189 -> 163380 | R189: 0.2583569777 | S189: ='General Table'!AJ189 -> 138316 | T189: 0.2187226327 | U189: ='General Table'!AY189 -> 168896 | V189: 0.2670795698 | W189: 10693.2 | X189: 65569.2 | Y189: 0.103686255
A190: ='General Table'!A190 -> 180 | C190: ='General Table'!C190 -> 915 | D190: ='General Table'!D190 -> Caribbean | F190: ='General Table'!F190 -> 43309.61 | G190: ='General Table'!R190 -> 3609 | H190: 0.08333023548 | I190: ='General Table'!T190 -> 3606 | J190: 0.08326096679 | K190: 5051.4 | L190: 0.1166346222 | M190: 7215 | N190: 0.1665912023 | O190: ='General Table'!AB190 -> 3634 | P190: 0.08390747458 | Q190: ='General Table'!AE190 -> 10663 | R190: 0.246204018 | S190: ='General Table'!AJ190 -> 8713 | T190: 0.2011793687 | U190: ='General Table'!AY190 -> 13109 | V190: 0.3026810909 | W190: 721.8 | X190: 4327.8 | Y190: 0.09992701389
A191: ='General Table'!A191 -> 181 | C191: ='General Table'!C191 -> 28 | D191: ='General Table'!D191 -> Antigua and Barbuda | F191: ='General Table'!F191 -> 99.92 | G191: ='General Table'!R191 -> 8 | H191: 0.08006405124 | I191: ='General Table'!T191 -> 8 | J191: 0.08006405124 | K191: 11.2 | L191: 0.1120896717 | M191: 16 | N191: 0.1601281025 | O191: ='General Table'!AB191 -> 9 | P191: 0.09007205765 | Q191: ='General Table'!AE191 -> 25 | R191: 0.2502001601 | S191: ='General Table'!AJ191 -> 21 | T191: 0.2101681345 | U191: ='General Table'!AY191 -> 30 | V191: 0.3002401922 | W191: 1.6 | X191: 9.6 | Y191: 0.09607686149
A192: ='General Table'!A192 -> 182 | C192: ='General Table'!C192 -> 533 | D192: ='General Table'!D192 -> Aruba | F192: ='General Table'!F192 -> 104.34 | G192: ='General Table'!R192 -> 7 | H192: 0.06708836496 | I192: ='General Table'!T192 -> 7 | J192: 0.06708836496 | K192: 9.8 | L192: 0.09392371094 | M192: 14 | N192: 0.1341767299 | O192: ='General Table'!AB192 -> 8 | P192: 0.0766724171 | Q192: ='General Table'!AE192 -> 20 | R192: 0.1916810427 | S192: ='General Table'!AJ192 -> 21 | T192: 0.2012650949 | U192: ='General Table'!AY192 -> 44 | V192: 0.421698294 | W192: 1.4 | X192: 8.4 | Y192: 0.08050603795
A193: ='General Table'!A193 -> 183 | C193: ='General Table'!C193 -> 44 | D193: ='General Table'!D193 -> Bahamas | F193: ='General Table'!F193 -> 386.84 | G193: ='General Table'!R193 -> 27 | H193: 0.06979629821 | I193: ='General Table'!T193 -> 25 | J193: 0.06462620205 | K193: 37 | L193: 0.09564677903 | M193: 52 | N193: 0.1344225003 | O193: ='General Table'!AB193 -> 31 | P193: 0.08013649054 | Q193: ='General Table'!AE193 -> 98 | R193: 0.253334712 | S193: ='General Table'!AJ193 -> 88 | T193: 0.2274842312 | U193: ='General Table'!AY193 -> 122 | V193: 0.315375866 | W193: 5.4 | X193: 30.4 | Y193: 0.07858546169
A194: ='General Table'!A194 -> 184 | C194: ='General Table'!C194 -> 52 | D194: ='General Table'!D194 -> Barbados | F194: ='General Table'!F194 -> 284.22 | G194: ='General Table'!R194 -> 19 | H194: 0.06684962353 | I194: ='General Table'!T194 -> 19 | J194: 0.06684962353 | K194: 26.6 | L194: 0.09358947294 | M194: 38 | N194: 0.1336992471 | O194: ='General Table'!AB194 -> 18 | P194: 0.06333122229 | Q194: ='General Table'!AE194 -> 54 | R194: 0.1899936669 | S194: ='General Table'!AJ194 -> 58 | T194: 0.2040672718 | U194: ='General Table'!AY194 -> 117 | V194: 0.4116529449 | W194: 3.8 | X194: 22.8 | Y194: 0.08021954824
A195: ='General Table'!A195 -> 185 | C195: ='General Table'!C195 -> 192 | D195: ='General Table'!D195 -> Cuba | F195: ='General Table'!F195 -> 11461.43 | G195: ='General Table'!R195 -> 602 | H195: 0.05252398697 | I195: ='General Table'!T195 -> 636 | J195: 0.055490458 | K195: 856.4 | L195: 0.07472017017 | M195: 1238 | N195: 0.108014445 | O195: ='General Table'!AB195 -> 700 | P195: 0.06107440346 | Q195: ='General Table'!AE195 -> 2269 | R195: 0.1979683163 | S195: ='General Table'!AJ195 -> 2376 | T195: 0.2073039752 | U195: ='General Table'!AY195 -> 4950 | V195: 0.4318832816 | W195: 120.4 | X195: 756.4 | Y195: 0.06599525539
A196: ='General Table'!A196 -> 186 | C196: ='General Table'!C196 -> 531 | D196: ='General Table'!D196 -> Curaçao | F196: ='General Table'!F196 -> 158.01 | G196: ='General Table'!R196 -> 10 | H196: 0.06328713373 | I196: ='General Table'!T196 -> 10 | J196: 0.06328713373 | K196: 14 | L196: 0.08860198722 | M196: 20 | N196: 0.1265742675 | O196: ='General Table'!AB196 -> 11 | P196: 0.0696158471 | Q196: ='General Table'!AE196 -> 29 | R196: 0.1835326878 | S196: ='General Table'!AJ196 -> 29 | T196: 0.1835326878 | U196: ='General Table'!AY196 -> 73 | V196: 0.4619960762 | W196: 2 | X196: 12 | Y196: 0.07594456047
A197: ='General Table'!A197 -> 187 | C197: ='General Table'!C197 -> 214 | D197: ='General Table'!D197 -> Dominican Republic | F197: ='General Table'!F197 -> 10528.39 | G197: ='General Table'!R197 -> 1059 | H197: 0.1005851797 | I197: ='General Table'!T197 -> 1033 | J197: 0.09811566631 | K197: 1472.2 | L197: 0.1398314462 | M197: 2092 | N197: 0.198700846 | O197: ='General Table'!AB197 -> 975 | P197: 0.09260675184 | Q197: ='General Table'!AE197 -> 2783 | R197: 0.2643329132 | S197: ='General Table'!AJ197 -> 2097 | T197: 0.1991757524 | U197: ='General Table'!AY197 -> 2493 | V197: 0.2367883409 | W197: 211.8 | X197: 1244.8 | Y197: 0.1182327022
A198: ='General Table'!A198 -> 188 | C198: ='General Table'!C198 -> 308 | D198: ='General Table'!D198 -> Grenada | F198: ='General Table'!F198 -> 106.82 | G198: ='General Table'!R198 -> 9 | H198: 0.08425388504 | I198: ='General Table'!T198 -> 9 | J198: 0.08425388504 | K198: 12.6 | L198: 0.1179554391 | M198: 18 | N198: 0.1685077701 | O198: ='General Table'!AB198 -> 10 | P198: 0.09361542782 | Q198: ='General Table'!AE198 -> 31 | R198: 0.2902078262 | S198: ='General Table'!AJ198 -> 22 | T198: 0.2059539412 | U198: ='General Table'!AY198 -> 26 | V198: 0.2434001123 | W198: 1.8 | X198: 10.8 | Y198: 0.101104662
A199: ='General Table'!A199 -> 189 | C199: ='General Table'!C199 -> 312 | D199: ='General Table'!D199 -> Guadeloupe | F199: ='General Table'!F199 -> 450.42 | G199: ='General Table'!R199 -> 29 | H199: 0.06438435238 | I199: ='General Table'!T199 -> 32 | J199: 0.07104480263 | K199: 41.8 | L199: 0.09280227343 | M199: 61 | N199: 0.135429155 | O199: ='General Table'!AB199 -> 34 | P199: 0.07548510279 | Q199: ='General Table'!AE199 -> 83 | R199: 0.1842724568 | S199: ='General Table'!AJ199 -> 77 | T199: 0.1709515563 | U199: ='General Table'!AY199 -> 202 | V199: 0.4484703166 | W199: 5.8 | X199: 37.8 | Y199: 0.08392167311
A200: ='General Table'!A200 -> 190 | C200: ='General Table'!C200 -> 332 | D200: ='General Table'!D200 -> Haiti | F200: ='General Table'!F200 -> 10711.06 | G200: ='General Table'!R200 -> 1212 | H200: 0.1131540669 | I200: ='General Table'!T200 -> 1164 | J200: 0.1086727177 | K200: 1677.6 | L200: 0.156623154 | M200: 2376 | N200: 0.2218267847 | O200: ='General Table'!AB200 -> 1121 | P200: 0.1046581758 | Q200: ='General Table'!AE200 -> 3129 | R200: 0.29212795 | S200: ='General Table'!AJ200 -> 2038 | T200: 0.1902706175 | U200: ='General Table'!AY200 -> 1931 | V200: 0.1802809432 | W200: 242.4 | X200: 1406.4 | Y200: 0.1313035311
A201: ='General Table'!A201 -> 191 | C201: ='General Table'!C201 -> 388 | D201: ='General Table'!D201 -> Jamaica | F201: ='General Table'!F201 -> 2871.93 | G201: ='General Table'!R201 -> 224 | H201: 0.07799632999 | I201: ='General Table'!T201 -> 243 | J201: 0.08461209013 | K201: 321.2 | L201: 0.111841166 | M201: 467 | N201: 0.1626084201 | O201: ='General Table'!AB201 -> 277 | P201: 0.09645081879 | Q201: ='General Table'!AE201 -> 793 | R201: 0.2761209361 | S201: ='General Table'!AJ201 -> 577 | T201: 0.2009101893 | U201: ='General Table'!AY201 -> 829 | V201: 0.2886560606 | W201: 44.8 | X201: 287.8 | Y201: 0.1002113561
A202: ='General Table'!A202 -> 192 | C202: ='General Table'!C202 -> 474 | D202: ='General Table'!D202 -> Martinique | F202: ='General Table'!F202 -> 385.84 | G202: ='General Table'!R202 -> 26 | H202: 0.06738544474 | I202: ='General Table'!T202 -> 25 | J202: 0.06479369687 | K202: 36 | L202: 0.09330292349 | M202: 51 | N202: 0.1321791416 | O202: ='General Table'!AB202 -> 24 | P202: 0.06220194899 | Q202: ='General Table'!AE202 -> 63 | R202: 0.1632801161 | S202: ='General Table'!AJ202 -> 66 | T202: 0.1710553597 | U202: ='General Table'!AY202 -> 186 | V202: 0.4820651047 | W202: 5.2 | X202: 30.2 | Y202: 0.07827078582
... 49 more rows

Sheet Crude birth rate (hidden)
C1: MSF-OCBA. Emergency Preparedness | N1: File: POP/DB/WPP/Rev.2017/FERT/F03
C2: Crude birth rate by major area, region and country, 2010-2015 (births per 1000 population)
C3: Estimates 2015 (as of 1 July)
C4: Source: United Nations, Department of Economic and Social Affairs, Population Division (2017). World Population Prospects: The 2017 Revision, DVD Edition.
C5: http://esa.un.org/unpd/wpp/Excel-Data/population.htm
C6: 1 | D6: 2 | E6: 3
B7: Index | C7: Major area, region, country or area | E7: 2010-2015
B10: 1 | C10: WORLD | E10: 19.6
B11: 2 | C11: More developed regions | D11: a | E11: 11.1
B12: 3 | C12: Less developed regions | D12: b | E12: 21.3
B13: 4 | C13: Least developed countries | D13: c | E13: 33.5
B14: 5 | C14: Less developed regions, excluding least developed countries | D14: d | E14: 19.2
B15: 6 | C15: Less developed regions, excluding China | E15: 24.1
B16: 7 | C16: High-income countries | D16: e | E16: 11.2
B17: 8 | C17: Middle-income countries | D17: e | E17: 19.4
B18: 9 | C18: Upper-middle-income countries | D18: e | E18: 14.8
B19: 10 | C19: Lower-middle-income countries | D19: e | E19: 23.5
B20: 11 | C20: Low-income countries | D20: e | E20: 37.1
B21: 12 | C21: Sub-Saharan Africa | D21: f | E21: 37.9
B22: 13 | C22: AFRICA | E22: 35.9
B23: 14 | C23: Eastern Africa | E23: 37
B24: 15 | C24: Burundi | E24: 43.3
B25: 16 | C25: Comoros | E25: 34.4
B26: 17 | C26: Djibouti | E26: 24.3
B27: 18 | C27: Eritrea | E27: 34.3
B28: 19 | C28: Ethiopia | E28: 33.6
B29: 20 | C29: Kenya | E29: 33.1
B30: 21 | C30: Madagascar | E30: 34.1
B31: 22 | C31: Malawi | E31: 38.1
B32: 23 | C32: Mauritius | D32: 1 | E32: 11.1
B33: 24 | C33: Mayotte | E33: 31.7
B34: 25 | C34: Mozambique | E34: 40.4
B35: 26 | C35: Réunion | E35: 16.6
B36: 27 | C36: Rwanda | E36: 33.5
B37: 28 | C37: Seychelles | E37: 17.7
B38: 29 | C38: Somalia | E38: 44.4
B39: 30 | C39: South Sudan | E39: 37.3
B40: 31 | C40: Uganda | E40: 43.9
B41: 32 | C41: United Republic of Tanzania | D41: 2 | E41: 39.8
B42: 33 | C42: Zambia | E42: 39.3
B43: 34 | C43: Zimbabwe | E43: 35.6
B44: 35 | C44: Middle Africa | E44: 42.5
B45: 36 | C45: Angola | E45: 43.7
B46: 37 | C46: Cameroon | E46: 38.2
B47: 38 | C47: Central African Republic | E47: 37.3
B48: 39 | C48: Chad | E48: 45.2
B49: 40 | C49: Congo | E49: 36.8
B50: 41 | C50: Democratic Republic of the Congo | E50: 44
B51: 42 | C51: Equatorial Guinea | E51: 36
B52: 43 | C52: Gabon | E52: 31.3
B53: 44 | C53: Sao Tome and Principe | E53: 35.6
B54: 45 | C54: Northern Africa | E54: 27.1
B55: 46 | C55: Algeria | E55: 25.3
B56: 47 | C56: Egypt | E56: 28.5
B57: 48 | C57: Libya | E57: 21.3
B58: 49 | C58: Morocco | E58: 21.3
B59: 50 | C59: Sudan | E59: 34.4
B60: 51 | C60: Tunisia | E60: 19.1
B61: 52 | C61: Western Sahara | E61: 22.2
B62: 53 | C62: Southern Africa | E62: 22.8
B63: 54 | C63: Botswana | E63: 25.1
B64: 55 | C64: Lesotho | E64: 28.7
B65: 56 | C65: Namibia | E65: 30.4
B66: 57 | C66: South Africa | E66: 22
B67: 58 | C67: Swaziland | E67: 30.2
B68: 59 | C68: Western Africa | D68: 3 | E68: 39.8
B69: 60 | C69: Benin | E69: 38.4
B70: 61 | C70: Burkina Faso | E70: 40.8
B71: 62 | C71: Cabo Verde | E71: 21.8
B72: 63 | C72: Côte d'Ivoire | E72: 37.7
B73: 64 | C73: Gambia | E73: 41.2
B74: 65 | C74: Ghana | E74: 32.7
B75: 66 | C75: Guinea | E75: 37.5
B76: 67 | C76: Guinea-Bissau | E76: 38.4
B77: 68 | C77: Liberia | E77: 35.8
B78: 69 | C78: Mali | E78: 44.7
B79: 70 | C79: Mauritania | E79: 35.5
B80: 71 | C80: Niger | E80: 49.2
B81: 72 | C81: Nigeria | E81: 40.5
B82: 73 | C82: Senegal | E82: 37.6
B83: 74 | C83: Sierra Leone | E83: 37.3
B84: 75 | C84: Togo | E84: 35.8
B85: 76 | C85: ASIA | E85: 17.7
B86: 77 | C86: Eastern Asia | E86: 12.2
B87: 78 | C87: China | D87: 4 | E87: 12.6
B88: 79 | C88: China, Hong Kong SAR | D88: 5 | E88: 10.5
B89: 80 | C89: China, Macao SAR | D89: 6 | E89: 11.3
B90: 81 | C90: Dem. People's Republic of Korea | E90: 8.7
B91: 82 | C91: Japan | E91: 14
B92: 83 | C92: Mongolia | E92: 8.4
B93: 84 | C93: Republic of Korea | E93: 26
B94: 85 | C94: Other non-specified areas | E94: 8.9
B95: 86 | C95: South-Central Asia | D95: 7 | E95: 21.3
B96: 87 | C96: Central Asia | E96: 24.2
B97: 88 | C97: Kazakhstan | E97: 22.8
B98: 89 | C98: Kyrgyzstan | E98: 27.1
B99: 90 | C99: Tajikistan | E99: 30.2
B100: 91 | C100: Turkmenistan | E100: 27
B101: 92 | C101: Uzbekistan | E101: 22.2
B102: 93 | C102: Southern Asia | E102: 21.2
B103: 94 | C103: Afghanistan | E103: 36.2
B104: 95 | C104: Bangladesh | E104: 20.2
B105: 96 | C105: Bhutan | E105: 19.3
B106: 97 | C106: India | E106: 20
B107: 98 | C107: Iran (Islamic Republic of) | E107: 18.2
B108: 99 | C108: Maldives | E108: 19.8
B109: 100 | C109: Nepal | E109: 20.9
B110: 101 | C110: Pakistan | E110: 29.7
B111: 102 | C111: Sri Lanka | E111: 16.4
B112: 103 | C112: South-Eastern Asia | E112: 19.3
B113: 104 | C113: Brunei Darussalam | E113: 16.7
B114: 105 | C114: Cambodia | E114: 24.5
B115: 106 | C115: Indonesia | E115: 20.2
B116: 107 | C116: Lao People's Democratic Republic | E116: 25.5
B117: 108 | C117: Malaysia | D117: 8 | E117: 17.2
B118: 109 | C118: Myanmar | E118: 18.7
B119: 110 | C119: Philippines | E119: 24.1
B120: 111 | C120: Singapore | E120: 9.3
B121: 112 | C121: Thailand | E121: 11.3
B122: 113 | C122: Timor-Leste | E122: 36.8
B123: 114 | C123: Viet Nam | E123: 17.4
B124: 115 | C124: Western Asia | E124: 22.8
B125: 116 | C125: Armenia | E125: 14.5
B126: 117 | C126: Azerbaijan | D126: 9 | E126: 19.2
B127: 118 | C127: Bahrain | E127: 16
B128: 119 | C128: Cyprus | D128: 10 | E128: 11.3
B129: 120 | C129: Georgia | D129: 11 | E129: 14.4
B130: 121 | C130: Iraq | E130: 34.5
B131: 122 | C131: Israel | E131: 21.4
B132: 123 | C132: Jordan | E132: 28.4
B133: 124 | C133: Kuwait | E133: 18
B134: 125 | C134: Lebanon | E134: 15
B135: 126 | C135: Oman | E135: 21.5
B136: 127 | C136: Qatar | E136: 10.9
B137: 128 | C137: Saudi Arabia | E137: 20.8
B138: 129 | C138: State of Palestine | D138: 12 | E138: 32.9
B139: 130 | C139: Syrian Arab Republic | E139: 24.3
B140: 131 | C140: Turkey | E140: 17.3
B141: 132 | C141: United Arab Emirates | E141: 10.8
B142: 133 | C142: Yemen | E142: 33.6
B143: 134 | C143: EUROPE | E143: 10.8
B144: 135 | C144: Eastern Europe | E144: 11.6
B145: 136 | C145: Belarus | E145: 12.1
B146: 137 | C146: Bulgaria | E146: 9.4
B147: 138 | C147: Czech Republic | E147: 10.4
B148: 139 | C148: Hungary | E148: 9.1
B149: 140 | C149: Poland | E149: 10
B150: 141 | C150: Republic of Moldova | D150: 13 | E150: 10.9
B151: 142 | C151: Romania | E151: 9.8
B152: 143 | C152: Russian Federation | E152: 13
B153: 144 | C153: Slovakia | E153: 10.5
B154: 145 | C154: Ukraine | D154: 14 | E154: 10.8
B155: 146 | C155: Northern Europe | D155: 15 | E155: 12.2
B156: 147 | C156: Channel Islands | D156: 16 | E156: 9.6
B157: 148 | C157: Denmark | E157: 10.4
B158: 149 | C158: Estonia | E158: 10.8
B159: 150 | C159: Finland | D159: 17 | E159: 10.8
B160: 151 | C160: Iceland | E160: 13.8
B161: 152 | C161: Ireland | E161: 15.4
B162: 153 | C162: Latvia | E162: 10.2
B163: 154 | C163: Lithuania | E163: 10.4
B164: 155 | C164: Norway | D164: 18 | E164: 11.9
B165: 156 | C165: Sweden | E165: 12
B166: 157 | C166: United Kingdom | E166: 12.4
B167: 158 | C167: Southern Europe | D167: 19 | E167: 9.1
B168: 159 | C168: Albania | E168: 12
B169: 160 | C169: Bosnia and Herzegovina | E169: 9.1
B170: 161 | C170: Croatia | E170: 9.6
B171: 162 | C171: Greece | E171: 9
B172: 163 | C172: Italy | E172: 8.6
B173: 164 | C173: Malta | E173: 9.7
B174: 165 | C174: Montenegro | E174: 12
B175: 166 | C175: Portugal | E175: 8.5
B176: 167 | C176: Serbia | D176: 20 | E176: 10.6
B177: 168 | C177: Slovenia | E177: 10.5
B178: 169 | C178: Spain | D178: 21 | E178: 9.4
B179: 170 | C179: TFYR Macedonia | D179: 22 | E179: 11.3
B180: 171 | C180: Western Europe | D180: 23 | E180: 10.2
B181: 172 | C181: Austria | E181: 9.4
B182: 173 | C182: Belgium | E182: 11.4
B183: 174 | C183: France | E183: 12.1
B184: 175 | C184: Germany | E184: 8.5
B185: 176 | C185: Luxembourg | E185: 11.2
B186: 177 | C186: Netherlands | E186: 10.6
B187: 178 | C187: Switzerland | E187: 10.3
B188: 179 | C188: LATIN AMERICA AND THE CARIBBEAN | E188: 17.8
B189: 180 | C189: Caribbean | D189: 24 | E189: 17.8
B190: 181 | C190: Antigua and Barbuda | E190: 16.8
B191: 182 | C191: Aruba | E191: 11.1
B192: 183 | C192: Bahamas | E192: 14.8
B193: 184 | C193: Barbados | E193: 12.2
B194: 185 | C194: Cuba | E194: 11.2
B195: 186 | C195: Curaçao | E195: 12.9
B196: 187 | C196: Dominican Republic | E196: 21.4
B197: 188 | C197: Grenada | E197: 19.4
B198: 189 | C198: Guadeloupe | D198: 25 | E198: 11.9
B199: 190 | C199: Haiti | E199: 25.5
B200: 191 | C200: Jamaica | E200: 17.2
B201: 192 | C201: Martinique | E201: 12
B202: 193 | C202: Puerto Rico | E202: 11.2
... 48 more rows

Sheet Crude Death Rate (hidden)
D1: MSF-OCBA. Emergency Preparedness | I1: File MORT/2: Crude death rate by major area, region and country, 1950-2100 (deaths per 1,000 population)
D2: Total population (both sexes combined) by five-year age group, major area, region and country | I2: POP/DB/WPP/Rev.2015/MORT/F02
D3: Reference date (as of 1 July)
D4: Source: United Nations, Department of Economic and Social Affairs, Population Division (2017). World Population Prospects: The 2017 Revision, DVD Edition.
D7: 1 | E7: 2 | F7: 3 | G7: 4
D8: Major area, region, country | E8: Notes | F8: Total Population (Thousands) | G8: Crude death rate (deaths per 1,000 population)
B10: Order | C10: Code | G10: 2010-2015
A11: ='General Table'!A11 -> 1 | C11: ='General Table'!C11 -> 900 | D11: ='General Table'!D11 -> WORLD | F11: ='General Table'!F11 -> 7383008.82 | G11: 7.7
A12: ='General Table'!A12 -> 2 | C12: ='General Table'!C12 -> 901 | D12: ='General Table'!D12 -> More developed regions | F12: ='General Table'!F12 -> 1253206.55 | G12: 9.9
A13: ='General Table'!A13 -> 3 | C13: ='General Table'!C13 -> 902 | D13: ='General Table'!D13 -> Less developed regions | F13: ='General Table'!F13 -> 6129802.27 | G13: 7.2
A14: ='General Table'!A14 -> 4 | C14: ='General Table'!C14 -> 941 | D14: ='General Table'!D14 -> Least developed countries | F14: ='General Table'!F14 -> 956631.11 | G14: 8.3
A15: ='General Table'!A15 -> 5 | C15: ='General Table'!C15 -> 934 | D15: ='General Table'!D15 -> Less developed regions, excluding least developed countries | F15: ='General Table'!F15 -> 5173171.17 | G15: 7.1
A16: ='General Table'!A16 -> 6 | C16: ='General Table'!C16 -> 948 | D16: ='General Table'!D16 -> Less developed regions, excluding China | F16: ='General Table'!F16 -> 4701441.32 | G16: 7.3
A17: ='General Table'!A17 -> 7 | C17: ='General Table'!C17 -> 1503 | D17: ='General Table'!D17 -> High-income countries | F17: ='General Table'!F17 -> 1180060.96 | G17: 8.5
A18: ='General Table'!A18 -> 8 | C18: ='General Table'!C18 -> 1517 | D18: ='General Table'!D18 -> Middle-income countries | F18: ='General Table'!F18 -> 5558263.98 | G18: 7.4
A19: ='General Table'!A19 -> 9 | C19: ='General Table'!C19 -> 1502 | D19: ='General Table'!D19 -> Upper-middle-income countries | F19: ='General Table'!F19 -> 2588362.98 | G19: 7.1
A20: ='General Table'!A20 -> 10 | C20: ='General Table'!C20 -> 1501 | D20: ='General Table'!D20 -> Lower-middle-income countries | F20: ='General Table'!F20 -> 2969901 | G20: 7.6
A21: ='General Table'!A21 -> 11 | C21: ='General Table'!C21 -> 1500 | D21: ='General Table'!D21 -> Low-income countries | F21: ='General Table'!F21 -> 641858.61 | G21: 9.2
A22: ='General Table'!A22 -> 12 | C22: ='General Table'!C22 -> 947 | D22: ='General Table'!D22 -> Sub-Saharan Africa | F22: ='General Table'!F22 -> 969234.25 | G22: 10.3
A23: ='General Table'!A23 -> 13 | C23: ='General Table'!C23 -> 903 | D23: ='General Table'!D23 -> AFRICA | F23: ='General Table'!F23 -> 1194369.91 | G23: 9.4
A24: ='General Table'!A24 -> 14 | C24: ='General Table'!C24 -> 910 | D24: ='General Table'!D24 -> Eastern Africa | F24: ='General Table'!F24 -> 399458.03 | G24: 8.4
A25: ='General Table'!A25 -> 15 | C25: ='General Table'!C25 -> 108 | D25: ='General Table'!D25 -> Burundi | F25: ='General Table'!F25 -> 10199.27 | G25: 11.6
A26: ='General Table'!A26 -> 16 | C26: ='General Table'!C26 -> 174 | D26: ='General Table'!D26 -> Comoros | F26: ='General Table'!F26 -> 777.42 | G26: 7.8
A27: ='General Table'!A27 -> 17 | C27: ='General Table'!C27 -> 262 | D27: ='General Table'!D27 -> Djibouti | F27: ='General Table'!F27 -> 927.41 | G27: 8.5
A28: ='General Table'!A28 -> 18 | C28: ='General Table'!C28 -> 232 | D28: ='General Table'!D28 -> Eritrea | F28: ='General Table'!F28 -> 4846.98 | G28: 7.7
A29: ='General Table'!A29 -> 19 | C29: ='General Table'!C29 -> 231 | D29: ='General Table'!D29 -> Ethiopia | F29: ='General Table'!F29 -> 99873.03 | G29: 7.6
A30: ='General Table'!A30 -> 20 | C30: ='General Table'!C30 -> 404 | D30: ='General Table'!D30 -> Kenya | F30: ='General Table'!F30 -> 47236.26 | G30: 6.3
A31: ='General Table'!A31 -> 21 | C31: ='General Table'!C31 -> 450 | D31: ='General Table'!D31 -> Madagascar | F31: ='General Table'!F31 -> 24234.09 | G31: 6.9
A32: ='General Table'!A32 -> 22 | C32: ='General Table'!C32 -> 454 | D32: ='General Table'!D32 -> Malawi | F32: ='General Table'!F32 -> 17573.61 | G32: 8.3
A33: ='General Table'!A33 -> 23 | C33: ='General Table'!C33 -> 480 | D33: ='General Table'!D33 -> Mauritius | F33: ='General Table'!F33 -> 1259.46 | G33: 7.4
A34: ='General Table'!A34 -> 24 | C34: ='General Table'!C34 -> 175 | D34: ='General Table'!D34 -> Mayotte | F34: ='General Table'!F34 -> 240.02 | G34: 2.5
A35: ='General Table'!A35 -> 25 | C35: ='General Table'!C35 -> 508 | D35: ='General Table'!D35 -> Mozambique | F35: ='General Table'!F35 -> 28010.69 | G35: 11.2
A36: ='General Table'!A36 -> 26 | C36: ='General Table'!C36 -> 638 | D36: ='General Table'!D36 -> Réunion | F36: ='General Table'!F36 -> 863.36 | G36: 5.5
A37: ='General Table'!A37 -> 27 | C37: ='General Table'!C37 -> 646 | D37: ='General Table'!D37 -> Rwanda | F37: ='General Table'!F37 -> 11629.55 | G37: 6.8
A38: ='General Table'!A38 -> 28 | C38: ='General Table'!C38 -> 690 | D38: ='General Table'!D38 -> Seychelles | F38: ='General Table'!F38 -> 93.74 | G38: 7.9
A39: ='General Table'!A39 -> 29 | C39: ='General Table'!C39 -> 706 | D39: ='General Table'!D39 -> Somalia | F39: ='General Table'!F39 -> 13908.13 | G39: 12.3
A40: ='General Table'!A40 -> 30 | C40: ='General Table'!C40 -> 728 | D40: ='General Table'!D40 -> South Sudan | F40: ='General Table'!F40 -> 11882.14 | G40: 11.9
A41: ='General Table'!A41 -> 31 | C41: ='General Table'!C41 -> 800 | D41: ='General Table'!D41 -> Uganda | F41: ='General Table'!F41 -> 40144.87 | G41: 9.4
A42: ='General Table'!A42 -> 32 | C42: ='General Table'!C42 -> 834 | D42: ='General Table'!D42 -> United Republic of Tanzania | F42: ='General Table'!F42 -> 53879.96 | G42: 7.9
A43: ='General Table'!A43 -> 33 | C43: ='General Table'!C43 -> 894 | D43: ='General Table'!D43 -> Zambia | F43: ='General Table'!F43 -> 16100.59 | G43: 8.8
A44: ='General Table'!A44 -> 34 | C44: ='General Table'!C44 -> 716 | D44: ='General Table'!D44 -> Zimbabwe | F44: ='General Table'!F44 -> 15777.45 | G44: 9.6
A45: ='General Table'!A45 -> 35 | C45: ='General Table'!C45 -> 911 | D45: ='General Table'!D45 -> Middle Africa | F45: ='General Table'!F45 -> 153742.72 | G45: 10.9
A46: ='General Table'!A46 -> 36 | C46: ='General Table'!C46 -> 24 | D46: ='General Table'!D46 -> Angola | F46: ='General Table'!F46 -> 27859.31 | G46: 9.3
A47: ='General Table'!A47 -> 37 | C47: ='General Table'!C47 -> 120 | D47: ='General Table'!D47 -> Cameroon | F47: ='General Table'!F47 -> 22834.52 | G47: 11.1
A48: ='General Table'!A48 -> 38 | C48: ='General Table'!C48 -> 140 | D48: ='General Table'!D48 -> Central African Republic | F48: ='General Table'!F48 -> 4546.1 | G48: 15.3
A49: ='General Table'!A49 -> 39 | C49: ='General Table'!C49 -> 148 | D49: ='General Table'!D49 -> Chad | F49: ='General Table'!F49 -> 14009.41 | G49: 14
A50: ='General Table'!A50 -> 40 | C50: ='General Table'!C50 -> 178 | D50: ='General Table'!D50 -> Congo | F50: ='General Table'!F50 -> 4995.65 | G50: 8.3
A51: ='General Table'!A51 -> 41 | C51: ='General Table'!C51 -> 180 | D51: ='General Table'!D51 -> Democratic Republic of the Congo | F51: ='General Table'!F51 -> 76196.62 | G51: 10.9
A52: ='General Table'!A52 -> 42 | C52: ='General Table'!C52 -> 226 | D52: ='General Table'!D52 -> Equatorial Guinea | F52: ='General Table'!F52 -> 1175.39 | G52: 10.7
A53: ='General Table'!A53 -> 43 | C53: ='General Table'!C53 -> 266 | D53: ='General Table'!D53 -> Gabon | F53: ='General Table'!F53 -> 1930.18 | G53: 8.4
A54: ='General Table'!A54 -> 44 | C54: ='General Table'!C54 -> 678 | D54: ='General Table'!D54 -> Sao Tome and Principe | F54: ='General Table'!F54 -> 195.55 | G54: 7.1
A55: ='General Table'!A55 -> 45 | C55: ='General Table'!C55 -> 912 | D55: ='General Table'!D55 -> Northern Africa | F55: ='General Table'!F55 -> 225135.66 | G55: 6
A56: ='General Table'!A56 -> 46 | C56: ='General Table'!C56 -> 12 | D56: ='General Table'!D56 -> Algeria | F56: ='General Table'!F56 -> 39871.53 | G56: 4.8
A57: ='General Table'!A57 -> 47 | C57: ='General Table'!C57 -> 818 | D57: ='General Table'!D57 -> Egypt | F57: ='General Table'!F57 -> 93778.17 | G57: 6.1
A58: ='General Table'!A58 -> 48 | C58: ='General Table'!C58 -> 434 | D58: ='General Table'!D58 -> Libya | F58: ='General Table'!F58 -> 6234.96 | G58: 5.2
A59: ='General Table'!A59 -> 49 | C59: ='General Table'!C59 -> 504 | D59: ='General Table'!D59 -> Morocco | F59: ='General Table'!F59 -> 34803.32 | G59: 5.2
A60: ='General Table'!A60 -> 50 | C60: ='General Table'!C60 -> 729 | D60: ='General Table'!D60 -> Sudan | F60: ='General Table'!F60 -> 38647.8 | G60: 7.8
A61: ='General Table'!A61 -> 51 | C61: ='General Table'!C61 -> 788 | D61: ='General Table'!D61 -> Tunisia | F61: ='General Table'!F61 -> 11273.66 | G61: 6.4
A62: ='General Table'!A62 -> 52 | C62: ='General Table'!C62 -> 732 | D62: ='General Table'!D62 -> Western Sahara | F62: ='General Table'!F62 -> 526.22 | G62: 5.1
A63: ='General Table'!A63 -> 53 | C63: ='General Table'!C63 -> 913 | D63: ='General Table'!D63 -> Southern Africa | F63: ='General Table'!F63 -> 63419.64 | G63: 11
A64: ='General Table'!A64 -> 54 | C64: ='General Table'!C64 -> 72 | D64: ='General Table'!D64 -> Botswana | F64: ='General Table'!F64 -> 2209.2 | G64: 8.1
A65: ='General Table'!A65 -> 55 | C65: ='General Table'!C65 -> 426 | D65: ='General Table'!D65 -> Lesotho | F65: ='General Table'!F65 -> 2174.65 | G65: 13.6
A66: ='General Table'!A66 -> 56 | C66: ='General Table'!C66 -> 516 | D66: ='General Table'!D66 -> Namibia | F66: ='General Table'!F66 -> 2425.56 | G66: 8.3
A67: ='General Table'!A67 -> 57 | C67: ='General Table'!C67 -> 710 | D67: ='General Table'!D67 -> South Africa | F67: ='General Table'!F67 -> 55291.23 | G67: 11.2
A68: ='General Table'!A68 -> 58 | C68: ='General Table'!C68 -> 748 | D68: ='General Table'!D68 -> Swaziland | F68: ='General Table'!F68 -> 1319.01 | G68: 10.8
A69: ='General Table'!A69 -> 59 | C69: ='General Table'!C69 -> 914 | D69: ='General Table'!D69 -> Western Africa | F69: ='General Table'!F69 -> 352613.86 | G69: 11.9
A70: ='General Table'!A70 -> 60 | C70: ='General Table'!C70 -> 204 | D70: ='General Table'!D70 -> Benin | F70: ='General Table'!F70 -> 10575.95 | G70: 9.7
A71: ='General Table'!A71 -> 61 | C71: ='General Table'!C71 -> 854 | D71: ='General Table'!D71 -> Burkina Faso | F71: ='General Table'!F71 -> 18110.62 | G71: 9.6
A72: ='General Table'!A72 -> 62 | C72: ='General Table'!C72 -> 132 | D72: ='General Table'!D72 -> Cabo Verde | F72: ='General Table'!F72 -> 532.91 | G72: 5.7
A73: ='General Table'!A73 -> 63 | C73: ='General Table'!C73 -> 384 | D73: ='General Table'!D73 -> Côte d'Ivoire | F73: ='General Table'!F73 -> 23108.47 | G73: 13.4
A74: ='General Table'!A74 -> 64 | C74: ='General Table'!C74 -> 270 | D74: ='General Table'!D74 -> Gambia | F74: ='General Table'!F74 -> 1977.59 | G74: 8.6
A75: ='General Table'!A75 -> 65 | C75: ='General Table'!C75 -> 288 | D75: ='General Table'!D75 -> Ghana | F75: ='General Table'!F75 -> 27582.82 | G75: 8.8
A76: ='General Table'!A76 -> 66 | C76: ='General Table'!C76 -> 324 | D76: ='General Table'!D76 -> Guinea | F76: ='General Table'!F76 -> 12091.53 | G76: 10.4
A77: ='General Table'!A77 -> 67 | C77: ='General Table'!C77 -> 624 | D77: ='General Table'!D77 -> Guinea-Bissau | F77: ='General Table'!F77 -> 1770.53 | G77: 11.4
A78: ='General Table'!A78 -> 68 | C78: ='General Table'!C78 -> 430 | D78: ='General Table'!D78 -> Liberia | F78: ='General Table'!F78 -> 4499.62 | G78: 8.8
A79: ='General Table'!A79 -> 69 | C79: ='General Table'!C79 -> 466 | D79: ='General Table'!D79 -> Mali | F79: ='General Table'!F79 -> 17467.91 | G79: 11.6
A80: ='General Table'!A80 -> 70 | C80: ='General Table'!C80 -> 478 | D80: ='General Table'!D80 -> Mauritania | F80: ='General Table'!F80 -> 4182.34 | G80: 8.2
A81: ='General Table'!A81 -> 71 | C81: ='General Table'!C81 -> 562 | D81: ='General Table'!D81 -> Niger | F81: ='General Table'!F81 -> 19896.97 | G81: 10.7
A82: ='General Table'!A82 -> 72 | C82: ='General Table'!C82 -> 566 | D82: ='General Table'!D82 -> Nigeria | F82: ='General Table'!F82 -> 181181.74 | G82: 13.6
A83: ='General Table'!A83 -> 73 | C83: ='General Table'!C83 -> 686 | D83: ='General Table'!D83 -> Senegal | F83: ='General Table'!F83 -> 14976.99 | G83: 6.6
A84: ='General Table'!A84 -> 74 | C84: ='General Table'!C84 -> 694 | D84: ='General Table'!D84 -> Sierra Leone | F84: ='General Table'!F84 -> 7237.03 | G84: 13.9
A85: ='General Table'!A85 -> 75 | C85: ='General Table'!C85 -> 768 | D85: ='General Table'!D85 -> Togo | F85: ='General Table'!F85 -> 7416.8 | G85: 9.3
A86: ='General Table'!A86 -> 76 | C86: ='General Table'!C86 -> 935 | D86: ='General Table'!D86 -> ASIA | F86: ='General Table'!F86 -> 4419897.6 | G86: 7
A87: ='General Table'!A87 -> 77 | C87: ='General Table'!C87 -> 906 | D87: ='General Table'!D87 -> Eastern Asia | F87: ='General Table'!F87 -> 1635150.37 | G87: 7.2
A88: ='General Table'!A88 -> 78 | C88: ='General Table'!C88 -> 156 | D88: ='General Table'!D88 -> China | F88: ='General Table'!F88 -> 1397028.55 | G88: 7
A89: ='General Table'!A89 -> 79 | C89: ='General Table'!C89 -> 344 | D89: ='General Table'!D89 -> China, Hong Kong SAR | F89: ='General Table'!F89 -> 7245.7 | G89: 6.4
A90: ='General Table'!A90 -> 80 | C90: ='General Table'!C90 -> 446 | D90: ='General Table'!D90 -> China, Macao SAR | F90: ='General Table'!F90 -> 600.94 | G90: 3.7
A91: ='General Table'!A91 -> 81 | C91: ='General Table'!C91 -> 408 | D91: ='General Table'!D91 -> Dem. People's Republic of Korea | F91: ='General Table'!F91 -> 23485.76 | G91: 6.8
A92: ='General Table'!A92 -> 82 | C92: ='General Table'!C92 -> 392 | D92: ='General Table'!D92 -> Japan | F92: ='General Table'!F92 -> 25243.92 | G92: 8.6
A93: ='General Table'!A93 -> 83 | C93: ='General Table'!C93 -> 496 | D93: ='General Table'!D93 -> Mongolia | F93: ='General Table'!F93 -> 127974.96 | G93: 9.9
A94: ='General Table'!A94 -> 84 | C94: ='General Table'!C94 -> 410 | D94: ='General Table'!D94 -> Republic of Korea | F94: ='General Table'!F94 -> 2976.88 | G94: 6.3
A95: ='General Table'!A95 -> 85 | C95: ='General Table'!C95 -> 158 | D95: ='General Table'!D95 -> Other non-specified areas | F95: ='General Table'!F95 -> 50593.66 | G95: 5.5
A96: ='General Table'!A96 -> 86 | C96: ='General Table'!C96 -> 921 | D96: ='General Table'!D96 -> South-Central Asia | F96: ='General Table'!F96 -> 1892013.48 | G96: 7
A97: ='General Table'!A97 -> 87 | C97: ='General Table'!C97 -> 5500 | D97: ='General Table'!D97 -> Central Asia | F97: ='General Table'!F97 -> 68705.01 | G97: 6.7
A98: ='General Table'!A98 -> 88 | C98: ='General Table'!C98 -> 398 | D98: ='General Table'!D98 -> Kazakhstan | F98: ='General Table'!F98 -> 17749.65 | G98: 8.9
A99: ='General Table'!A99 -> 89 | C99: ='General Table'!C99 -> 417 | D99: ='General Table'!D99 -> Kyrgyzstan | F99: ='General Table'!F99 -> 5865.4 | G99: 6.5
A100: ='General Table'!A100 -> 90 | C100: ='General Table'!C100 -> 762 | D100: ='General Table'!D100 -> Tajikistan | F100: ='General Table'!F100 -> 8548.65 | G100: 5.3
A101: ='General Table'!A101 -> 91 | C101: ='General Table'!C101 -> 795 | D101: ='General Table'!D101 -> Turkmenistan | F101: ='General Table'!F101 -> 5565.28 | G101: 7.2
A102: ='General Table'!A102 -> 92 | C102: ='General Table'!C102 -> 860 | D102: ='General Table'!D102 -> Uzbekistan | F102: ='General Table'!F102 -> 30976.02 | G102: 5.9
A103: ='General Table'!A103 -> 93 | C103: ='General Table'!C103 -> 5501 | D103: ='General Table'!D103 -> Southern Asia | F103: ='General Table'!F103 -> 1823308.47 | G103: 7.1
A104: ='General Table'!A104 -> 94 | C104: ='General Table'!C104 -> 4 | D104: ='General Table'!D104 -> Afghanistan | F104: ='General Table'!F104 -> 33736.49 | G104: 7.5
A105: ='General Table'!A105 -> 95 | C105: ='General Table'!C105 -> 50 | D105: ='General Table'!D105 -> Bangladesh | F105: ='General Table'!F105 -> 161200.89 | G105: 5.4
A106: ='General Table'!A106 -> 96 | C106: ='General Table'!C106 -> 64 | D106: ='General Table'!D106 -> Bhutan | F106: ='General Table'!F106 -> 787.39 | G106: 6.1
A107: ='General Table'!A107 -> 97 | C107: ='General Table'!C107 -> 356 | D107: ='General Table'!D107 -> India | F107: ='General Table'!F107 -> 1309053.98 | G107: 7.3
A108: ='General Table'!A108 -> 98 | C108: ='General Table'!C108 -> 364 | D108: ='General Table'!D108 -> Iran (Islamic Republic of) | F108: ='General Table'!F108 -> 79360.49 | G108: 4.7
A109: ='General Table'!A109 -> 99 | C109: ='General Table'!C109 -> 462 | D109: ='General Table'!D109 -> Maldives | F109: ='General Table'!F109 -> 418.4 | G109: 3.5
A110: ='General Table'!A110 -> 100 | C110: ='General Table'!C110 -> 524 | D110: ='General Table'!D110 -> Nepal | F110: ='General Table'!F110 -> 28656.28 | G110: 6.5
A111: ='General Table'!A111 -> 101 | C111: ='General Table'!C111 -> 586 | D111: ='General Table'!D111 -> Pakistan | F111: ='General Table'!F111 -> 189380.51 | G111: 7.5
A112: ='General Table'!A112 -> 102 | C112: ='General Table'!C112 -> 144 | D112: ='General Table'!D112 -> Sri Lanka | F112: ='General Table'!F112 -> 20714.04 | G112: 6.6
A113: ='General Table'!A113 -> 103 | C113: ='General Table'!C113 -> 920 | D113: ='General Table'!D113 -> South-Eastern Asia | F113: ='General Table'!F113 -> 634609.85 | G113: 6.7
A114: ='General Table'!A114 -> 104 | C114: ='General Table'!C114 -> 96 | D114: ='General Table'!D114 -> Brunei Darussalam | F114: ='General Table'!F114 -> 417.54 | G114: 3.4
A115: ='General Table'!A115 -> 105 | C115: ='General Table'!C115 -> 116 | D115: ='General Table'!D115 -> Cambodia | F115: ='General Table'!F115 -> 15517.64 | G115: 6.3
A116: ='General Table'!A116 -> 106 | C116: ='General Table'!C116 -> 360 | D116: ='General Table'!D116 -> Indonesia | F116: ='General Table'!F116 -> 258162.11 | G116: 7.1
A117: ='General Table'!A117 -> 107 | C117: ='General Table'!C117 -> 418 | D117: ='General Table'!D117 -> Lao People's Democratic Republic | F117: ='General Table'!F117 -> 6663.97 | G117: 7
A118: ='General Table'!A118 -> 108 | C118: ='General Table'!C118 -> 458 | D118: ='General Table'!D118 -> Malaysia | F118: ='General Table'!F118 -> 30723.16 | G118: 4.7
A119: ='General Table'!A119 -> 109 | C119: ='General Table'!C119 -> 104 | D119: ='General Table'!D119 -> Myanmar | F119: ='General Table'!F119 -> 52403.67 | G119: 8.1
A120: ='General Table'!A120 -> 110 | C120: ='General Table'!C120 -> 608 | D120: ='General Table'!D120 -> Philippines | F120: ='General Table'!F120 -> 101716.36 | G120: 6.4
A121: ='General Table'!A121 -> 111 | C121: ='General Table'!C121 -> 702 | D121: ='General Table'!D121 -> Singapore | F121: ='General Table'!F121 -> 5535.26 | G121: 4.7
A122: ='General Table'!A122 -> 112 | C122: ='General Table'!C122 -> 764 | D122: ='General Table'!D122 -> Thailand | F122: ='General Table'!F122 -> 68657.6 | G122: 7.5
A123: ='General Table'!A123 -> 113 | C123: ='General Table'!C123 -> 626 | D123: ='General Table'!D123 -> Timor-Leste | F123: ='General Table'!F123 -> 1240.98 | G123: 5.9
A124: ='General Table'!A124 -> 114 | C124: ='General Table'!C124 -> 704 | D124: ='General Table'!D124 -> Viet Nam | F124: ='General Table'!F124 -> 93571.57 | G124: 5.8
A125: ='General Table'!A125 -> 115 | C125: ='General Table'!C125 -> 922 | D125: ='General Table'!D125 -> Western Asia | F125: ='General Table'!F125 -> 258123.91 | G125: 5.3
A126: ='General Table'!A126 -> 116 | C126: ='General Table'!C126 -> 51 | D126: ='General Table'!D126 -> Armenia | F126: ='General Table'!F126 -> 2916.95 | G126: 9.7
A127: ='General Table'!A127 -> 117 | C127: ='General Table'!C127 -> 31 | D127: ='General Table'!D127 -> Azerbaijan | F127: ='General Table'!F127 -> 9617.48 | G127: 6.7
A128: ='General Table'!A128 -> 118 | C128: ='General Table'!C128 -> 48 | D128: ='General Table'!D128 -> Bahrain | F128: ='General Table'!F128 -> 1371.86 | G128: 2.3
A129: ='General Table'!A129 -> 119 | C129: ='General Table'!C129 -> 196 | D129: ='General Table'!D129 -> Cyprus | F129: ='General Table'!F129 -> 1160.99 | G129: 6.8
A130: ='General Table'!A130 -> 120 | C130: ='General Table'!C130 -> 268 | D130: ='General Table'!D130 -> Georgia | F130: ='General Table'!F130 -> 3951.52 | G130: 13.1
A131: ='General Table'!A131 -> 121 | C131: ='General Table'!C131 -> 368 | D131: ='General Table'!D131 -> Iraq | F131: ='General Table'!F131 -> 36115.65 | G131: 5.3
A132: ='General Table'!A132 -> 122 | C132: ='General Table'!C132 -> 376 | D132: ='General Table'!D132 -> Israel | F132: ='General Table'!F132 -> 8064.55 | G132: 5.4
A133: ='General Table'!A133 -> 123 | C133: ='General Table'!C133 -> 400 | D133: ='General Table'!D133 -> Jordan | F133: ='General Table'!F133 -> 9159.3 | G133: 3.8
A134: ='General Table'!A134 -> 124 | C134: ='General Table'!C134 -> 414 | D134: ='General Table'!D134 -> Kuwait | F134: ='General Table'!F134 -> 3935.79 | G134: 2.6
A135: ='General Table'!A135 -> 125 | C135: ='General Table'!C135 -> 422 | D135: ='General Table'!D135 -> Lebanon | F135: ='General Table'!F135 -> 5851.48 | G135: 4.6
A136: ='General Table'!A136 -> 126 | C136: ='General Table'!C136 -> 512 | D136: ='General Table'!D136 -> Oman | F136: ='General Table'!F136 -> 4199.81 | G136: 2.7
A137: ='General Table'!A137 -> 127 | C137: ='General Table'!C137 -> 634 | D137: ='General Table'!D137 -> Qatar | F137: ='General Table'!F137 -> 2481.54 | G137: 1.5
A138: ='General Table'!A138 -> 128 | C138: ='General Table'!C138 -> 682 | D138: ='General Table'!D138 -> Saudi Arabia | F138: ='General Table'!F138 -> 31557.14 | G138: 3.5
A139: ='General Table'!A139 -> 129 | C139: ='General Table'!C139 -> 275 | D139: ='General Table'!D139 -> State of Palestine | F139: ='General Table'!F139 -> 4662.88 | G139: 3.6
A140: ='General Table'!A140 -> 130 | C140: ='General Table'!C140 -> 760 | D140: ='General Table'!D140 -> Syrian Arab Republic | F140: ='General Table'!F140 -> 18734.99 | G140: 5.4
A141: ='General Table'!A141 -> 131 | C141: ='General Table'!C141 -> 792 | D141: ='General Table'!D141 -> Turkey | F141: ='General Table'!F141 -> 78271.47 | G141: 5.8
A142: ='General Table'!A142 -> 132 | C142: ='General Table'!C142 -> 784 | D142: ='General Table'!D142 -> United Arab Emirates | F142: ='General Table'!F142 -> 9154.3 | G142: 1.5
A143: ='General Table'!A143 -> 133 | C143: ='General Table'!C143 -> 887 | D143: ='General Table'!D143 -> Yemen | F143: ='General Table'!F143 -> 26916.21 | G143: 6.8
A144: ='General Table'!A144 -> 134 | C144: ='General Table'!C144 -> 908 | D144: ='General Table'!D144 -> EUROPE | F144: ='General Table'!F144 -> 740813.96 | G144: 10.9
A145: ='General Table'!A145 -> 135 | C145: ='General Table'!C145 -> 923 | D145: ='General Table'!D145 -> Eastern Europe | F145: ='General Table'!F145 -> 293243.71 | G145: 12.9
A146: ='General Table'!A146 -> 136 | C146: ='General Table'!C146 -> 112 | D146: ='General Table'!D146 -> Belarus | F146: ='General Table'!F146 -> 9485.77 | G146: 13.4
A147: ='General Table'!A147 -> 137 | C147: ='General Table'!C147 -> 100 | D147: ='General Table'!D147 -> Bulgaria | F147: ='General Table'!F147 -> 7177.4 | G147: 15
A148: ='General Table'!A148 -> 138 | C148: ='General Table'!C148 -> 203 | D148: ='General Table'!D148 -> Czech Republic | F148: ='General Table'!F148 -> 10603.76 | G148: 10.3
A149: ='General Table'!A149 -> 139 | C149: ='General Table'!C149 -> 348 | D149: ='General Table'!D149 -> Hungary | F149: ='General Table'!F149 -> 9783.93 | G149: 12.6
A150: ='General Table'!A150 -> 140 | C150: ='General Table'!C150 -> 616 | D150: ='General Table'!D150 -> Poland | F150: ='General Table'!F150 -> 38265.23 | G150: 9.9
A151: ='General Table'!A151 -> 141 | C151: ='General Table'!C151 -> 498 | D151: ='General Table'!D151 -> Republic of Moldova | F151: ='General Table'!F151 -> 4065.98 | G151: 11.4
A152: ='General Table'!A152 -> 142 | C152: ='General Table'!C152 -> 642 | D152: ='General Table'!D152 -> Romania | F152: ='General Table'!F152 -> 19876.62 | G152: 12.4
A153: ='General Table'!A153 -> 143 | C153: ='General Table'!C153 -> 643 | D153: ='General Table'!D153 -> Russian Federation | F153: ='General Table'!F153 -> 143888 | G153: 13.4
A154: ='General Table'!A154 -> 144 | C154: ='General Table'!C154 -> 703 | D154: ='General Table'!D154 -> Slovakia | F154: ='General Table'!F154 -> 5439.32 | G154: 9.7
A155: ='General Table'!A155 -> 145 | C155: ='General Table'!C155 -> 804 | D155: ='General Table'!D155 -> Ukraine | F155: ='General Table'!F155 -> 44657.7 | G155: 14.9
A156: ='General Table'!A156 -> 146 | C156: ='General Table'!C156 -> 924 | D156: ='General Table'!D156 -> Northern Europe | F156: ='General Table'!F156 -> 103097.29 | G156: 9.2
A157: ='General Table'!A157 -> 147 | C157: ='General Table'!C157 -> 830 | D157: ='General Table'!D157 -> Channel Islands | F157: ='General Table'!F157 -> 163.76 | G157: 8.9
A158: ='General Table'!A158 -> 148 | C158: ='General Table'!C158 -> 208 | D158: ='General Table'!D158 -> Denmark | F158: ='General Table'!F158 -> 5688.7 | G158: 9.5
A159: ='General Table'!A159 -> 149 | C159: ='General Table'!C159 -> 233 | D159: ='General Table'!D159 -> Estonia | F159: ='General Table'!F159 -> 1315.32 | G159: 11.7
A160: ='General Table'!A160 -> 150 | C160: ='General Table'!C160 -> 246 | D160: ='General Table'!D160 -> Finland | F160: ='General Table'!F160 -> 5481.97 | G160: 9.5
A161: ='General Table'!A161 -> 151 | C161: ='General Table'!C161 -> 352 | D161: ='General Table'!D161 -> Iceland | F161: ='General Table'!F161 -> 330.24 | G161: 6.4
A162: ='General Table'!A162 -> 152 | C162: ='General Table'!C162 -> 372 | D162: ='General Table'!D162 -> Ireland | F162: ='General Table'!F162 -> 4700.11 | G162: 6.2
A163: ='General Table'!A163 -> 153 | C163: ='General Table'!C163 -> 428 | D163: ='General Table'!D163 -> Latvia | F163: ='General Table'!F163 -> 1992.66 | G163: 14.3
A164: ='General Table'!A164 -> 154 | C164: ='General Table'!C164 -> 440 | D164: ='General Table'!D164 -> Lithuania | F164: ='General Table'!F164 -> 2931.93 | G164: 13.5
A165: ='General Table'!A165 -> 155 | C165: ='General Table'!C165 -> 578 | D165: ='General Table'!D165 -> Norway | F165: ='General Table'!F165 -> 5199.84 | G165: 8.2
A166: ='General Table'!A166 -> 156 | C166: ='General Table'!C166 -> 752 | D166: ='General Table'!D166 -> Sweden | F166: ='General Table'!F166 -> 9763.57 | G166: 9.5
A167: ='General Table'!A167 -> 157 | C167: ='General Table'!C167 -> 826 | D167: ='General Table'!D167 -> United Kingdom | F167: ='General Table'!F167 -> 65397.08 | G167: 9
A168: ='General Table'!A168 -> 158 | C168: ='General Table'!C168 -> 925 | D168: ='General Table'!D168 -> Southern Europe | F168: ='General Table'!F168 -> 152440.65 | G168: 9.8
A169: ='General Table'!A169 -> 159 | C169: ='General Table'!C169 -> 8 | D169: ='General Table'!D169 -> Albania | F169: ='General Table'!F169 -> 2923.35 | G169: 6.8
A170: ='General Table'!A170 -> 160 | C170: ='General Table'!C170 -> 70 | D170: ='General Table'!D170 -> Bosnia and Herzegovina | F170: ='General Table'!F170 -> 3535.96 | G170: 10.4
A171: ='General Table'!A171 -> 161 | C171: ='General Table'!C171 -> 191 | D171: ='General Table'!D171 -> Croatia | F171: ='General Table'!F171 -> 4236.02 | G171: 12.4
A172: ='General Table'!A172 -> 162 | C172: ='General Table'!C172 -> 300 | D172: ='General Table'!D172 -> Greece | F172: ='General Table'!F172 -> 11217.8 | G172: 10.2
A173: ='General Table'!A173 -> 163 | C173: ='General Table'!C173 -> 380 | D173: ='General Table'!D173 -> Italy | F173: ='General Table'!F173 -> 59504.21 | G173: 10.2
A174: ='General Table'!A174 -> 164 | C174: ='General Table'!C174 -> 470 | D174: ='General Table'!D174 -> Malta | F174: ='General Table'!F174 -> 427.62 | G174: 8.7
A175: ='General Table'!A175 -> 165 | C175: ='General Table'!C175 -> 499 | D175: ='General Table'!D175 -> Montenegro | F175: ='General Table'!F175 -> 628.18 | G175: 9.7
A176: ='General Table'!A176 -> 166 | C176: ='General Table'!C176 -> 620 | D176: ='General Table'!D176 -> Portugal | F176: ='General Table'!F176 -> 10418.47 | G176: 10.3
A177: ='General Table'!A177 -> 167 | C177: ='General Table'!C177 -> 688 | D177: ='General Table'!D177 -> Serbia | F177: ='General Table'!F177 -> 8851.28 | G177: 12.4
A178: ='General Table'!A178 -> 168 | C178: ='General Table'!C178 -> 705 | D178: ='General Table'!D178 -> Slovenia | F178: ='General Table'!F178 -> 2074.79 | G178: 9.2
A179: ='General Table'!A179 -> 169 | C179: ='General Table'!C179 -> 724 | D179: ='General Table'!D179 -> Spain | F179: ='General Table'!F179 -> 46397.66 | G179: 8.6
A180: ='General Table'!A180 -> 170 | C180: ='General Table'!C180 -> 807 | D180: ='General Table'!D180 -> TFYR Macedonia | F180: ='General Table'!F180 -> 2079.31 | G180: 9.6
A181: ='General Table'!A181 -> 171 | C181: ='General Table'!C181 -> 926 | D181: ='General Table'!D181 -> Western Europe | F181: ='General Table'!F181 -> 192032.31 | G181: 9.7
A182: ='General Table'!A182 -> 172 | C182: ='General Table'!C182 -> 40 | D182: ='General Table'!D182 -> Austria | F182: ='General Table'!F182 -> 8678.66 | G182: 9.4
A183: ='General Table'!A183 -> 173 | C183: ='General Table'!C183 -> 56 | D183: ='General Table'!D183 -> Belgium | F183: ='General Table'!F183 -> 11287.94 | G183: 9.8
A184: ='General Table'!A184 -> 174 | C184: ='General Table'!C184 -> 250 | D184: ='General Table'!D184 -> France | F184: ='General Table'!F184 -> 64457.2 | G184: 8.8
A185: ='General Table'!A185 -> 175 | C185: ='General Table'!C185 -> 276 | D185: ='General Table'!D185 -> Germany | F185: ='General Table'!F185 -> 81707.79 | G185: 10.9
A186: ='General Table'!A186 -> 176 | C186: ='General Table'!C186 -> 442 | D186: ='General Table'!D186 -> Luxembourg | F186: ='General Table'!F186 -> 566.74 | G186: 7.4
A187: ='General Table'!A187 -> 177 | C187: ='General Table'!C187 -> 528 | D187: ='General Table'!D187 -> Netherlands | F187: ='General Table'!F187 -> 16938.5 | G187: 8.3
A188: ='General Table'!A188 -> 178 | C188: ='General Table'!C188 -> 756 | D188: ='General Table'!D188 -> Switzerland | F188: ='General Table'!F188 -> 8319.77 | G188: 8.1
A189: ='General Table'!A189 -> 179 | C189: ='General Table'!C189 -> 904 | D189: ='General Table'!D189 -> LATIN AMERICA AND THE CARIBBEAN | F189: ='General Table'!F189 -> 632380.83 | G189: 5.8
A190: ='General Table'!A190 -> 180 | C190: ='General Table'!C190 -> 915 | D190: ='General Table'!D190 -> Caribbean | F190: ='General Table'!F190 -> 43309.61 | G190: 7.6
A191: ='General Table'!A191 -> 181 | C191: ='General Table'!C191 -> 28 | D191: ='General Table'!D191 -> Antigua and Barbuda | F191: ='General Table'!F191 -> 99.92 | G191: 5.8
A192: ='General Table'!A192 -> 182 | C192: ='General Table'!C192 -> 533 | D192: ='General Table'!D192 -> Aruba | F192: ='General Table'!F192 -> 104.34 | G192: 8.3
A193: ='General Table'!A193 -> 183 | C193: ='General Table'!C193 -> 44 | D193: ='General Table'!D193 -> Bahamas | F193: ='General Table'!F193 -> 386.84 | G193: 6
A194: ='General Table'!A194 -> 184 | C194: ='General Table'!C194 -> 52 | D194: ='General Table'!D194 -> Barbados | F194: ='General Table'!F194 -> 284.22 | G194: 10.5
A195: ='General Table'!A195 -> 185 | C195: ='General Table'!C195 -> 192 | D195: ='General Table'!D195 -> Cuba | F195: ='General Table'!F195 -> 11461.43 | G195: 7.6
A196: ='General Table'!A196 -> 186 | C196: ='General Table'!C196 -> 531 | D196: ='General Table'!D196 -> Curaçao | F196: ='General Table'!F196 -> 158.01 | G196: 8.2
A197: ='General Table'!A197 -> 187 | C197: ='General Table'!C197 -> 214 | D197: ='General Table'!D197 -> Dominican Republic | F197: ='General Table'!F197 -> 10528.39 | G197: 6
A198: ='General Table'!A198 -> 188 | C198: ='General Table'!C198 -> 308 | D198: ='General Table'!D198 -> Grenada | F198: ='General Table'!F198 -> 106.82 | G198: 7.2
A199: ='General Table'!A199 -> 189 | C199: ='General Table'!C199 -> 312 | D199: ='General Table'!D199 -> Guadeloupe | F199: ='General Table'!F199 -> 450.42 | G199: 7.6
A200: ='General Table'!A200 -> 190 | C200: ='General Table'!C200 -> 332 | D200: ='General Table'!D200 -> Haiti | F200: ='General Table'!F200 -> 10711.06 | G200: 8.9
A201: ='General Table'!A201 -> 191 | C201: ='General Table'!C201 -> 388 | D201: ='General Table'!D201 -> Jamaica | F201: ='General Table'!F201 -> 2871.93 | G201: 6.8
A202: ='General Table'!A202 -> 192 | C202: ='General Table'!C202 -> 474 | D202: ='General Table'!D202 -> Martinique | F202: ='General Table'!F202 -> 385.84 | G202: 8.1
A203: ='General Table'!A203 -> 193 | C203: ='General Table'!C203 -> 630 | D203: ='General Table'!D203 -> Puerto Rico | F203: ='General Table'!F203 -> 3673.73 | G203: 7.9
... 48 more rows

Sheet General Table (hidden)
D1: MSF-OCBA. Emergency Preparedness
D2: Total population (both sexes combined) by five-year age group, major area, region and country | P2: UN tables | AB2: File POP/7-1: Total population (both sexes combined) by five-year age group, major area, region and country, 1950-2100 (thousands)
D3: Reference date (as of 1 July) | P3: Calculated from UN tables | AB3: File POP/15-1: Annual total population (both sexes combined) by five-year age group, major area, region and country, 1950-2100 (thousands)
D4: Source: United Nations, Department of Economic and Social Affairs, Population Division (2017). World Population Prospects: The 2017 Revision, DVD Edition. | AB4: File POP/8-1: Total population (both sexes combined) by broad age group, major area, region and country, 1950-2100 (thousands)
D7: 1 | E7: 2 | F7: 3 | G7: 4 | H7: 5 | I7: 6 | J7: 7 | K7: 8 | L7: 9 | M7: 10 | N7: 11 | O7: 12 | P7: 13 | Q7: 14 | R7: 15 | S7: 16 | T7: 17 | U7: 18 | V7: 19 | W7: 20 | X7: 21 | Y7: 22 | Z7: 23 | AA7: 24 | AB7: 25 | AC7: 26 | AD7: 27 | AE7: 28 | AF7: 29 | AG7: 30 | AH7: 31 | AI7: 32 | AJ7: 33 | AK7: 34 | AL7: 35 | AM7: 36 | AN7: 37 | AO7: 38 | AP7: 39 | AQ7: 40 | AR7: 41 | AS7: 42 | AT7: 43 | AU7: 44 | AV7: 45 | AW7: 46 | AX7: 47 | AY7: 48 | AZ7: 49 | BA7: 50 | BB7: 51 | BC7: 52 | BD7: 53 | BE7: 54 | BF7: 55 | BG7: 56 | BH7: 57 | BI7: 58 | BJ7: 59 | BK7: 60 | BL7: 61 | BM7: 62 | BN7: 63 | BO7: 64 | BP7: 65 | BQ7: 66 | BR7: 67 | BS7: 68 | BT7: 69 | BU7: 70 | BV7: 71
D8: Major area, region, country | E8: Notes | F8: Total Population (Thousands) | I8: Total population, both sexes combined, by five-year age group (thousands)
G9: 0-1 y.o (<2 y.o.) | I9: 0-4 y.o (<5 y.o.) | K9: 0-14 y.o (<15y.o.) | R9: 5-9 | T9: 10-14 | V9: 5-14 | X9: <18 y.o | Z9: >=18 y.o. | AB9: 15-29 y.o. | AG9: 30-44 y.o. | AL9: >=45 y.o. | BA9: 15-49 | BC9: >=50 y.o. | BE9: 5-17 y.o. | BG9: 18-49 y.o.
B10: Order | C10: Code | G10: # | H10: % | I10: # | J10: % | K10: # | L10: % | M10: 5-10 | N10: 4-5 | O10: 4-6 | P10: 5-6 | Q10: 6-9 | R10: # | S10: % | T10: # | U10: % | V10: # | W10: % | X10: # | Y10: % | Z10: # | AA10: % | AB10: 15-19 | AC10: 20-24 | AD10: 25-29 | AE10: # | AF10: % | AG10: 30-34 | AH10: 35-39 | AI10: 40-44 | AJ10: # | AK10: % | AL10: 45-49 | AM10: % | AN10: 50-54 | AO10: 55-59 | AP10: 60-64 | AQ10: 65-69 | AR10: 70-74 | AS10: 75-79 | AT10: 80-84 | AU10: 85-89 | AV10: 90-94 | AW10: 95-99 | AX10: +100 (>=100) | AY10: # | AZ10: % | BA10: # | BB10: % | BC10: # | BD10: % | BE10: # | BF10: % | BG10: # | BH10: %
A11: 1 | C11: 900 | D11: WORLD | F11: 7383008.82 | G11: 272101.8 | H11: =G11/F11 -> 0.03685513679 | I11: 673649.68 | J11: =I11/F11 -> 0.09124324465 | K11: 1930532.35 | L11: =K11/F11 -> 0.2614831429 | M11: 769324.51 | N11: 264328.54 | O11: 394589.64 | P11: =O11-N11 -> 130261.1 | Q11: 512920.74 | R11: 644476 | S11: =R11/F11 -> 0.08729178248 | T11: 612407 | U11: =T11/F11 -> 0.08294816042 | V11: 1256882.67 | W11: =V11/F11 -> 0.1702398982 | X11: 2287093 | Y11: =X11/F11 -> 0.3097779043 | Z11: 5095915.54 | AA11: =Z11/F11 -> 0.6902220577 | AB11: 593639 | AC11: 600867 | AD11: 612403 | AE11: =AB11+AC11+AD11 -> 1806909 | AF11: =AE11/F11 -> 0.2447388381 | AG11: 553200 | AH11: 500817 | AI11: 486172 | AJ11: =AG11+AH11+AI11 -> 1540189 | AK11: =AJ11/F11 -> 0.2086126453 | AL11: 455906 | AM11: =AL11/F11 -> 0.06175070505 | AN11: 403243 | AO11: 340228 | AP11: 294105 | AQ11: 216506 | AR11: 153908 | AS11: 115532 | AT11: 71831 | AU11: 37295 | AV11: 13475 | AW11: 2917 | AX11: 434 | AY11: =SUM(AN11:AX11)+AL11 -> 2105380 | AZ11: =AY11/F11 -> 0.285165581 | BA11: =AE11+AJ11+AL11 -> 3803004 | BB11: =BA11/F11 -> 0.5151021884 | BC11: =SUM(AN11:AX11) -> 1649474 | BD11: =BC11/F11 -> 0.223414876 | BE11: =X11-I11 -> 1613443.32 | BF11: =BE11/F11 -> 0.2185346597 | BG11: =Z11-BC11 -> 3446441.54 | BH11: =BG11/F11 -> 0.4668071817
A12: 2 | C12: 901 | D12: More developed regions | E12: a | F12: 1253206.55 | G12: 27029.13 | H12: =G12/F12 -> 0.02156797696 | I12: 69120.51 | J12: 0.05515492239 | K12: 206040.6 | L12: 0.164410727 | M12: 83389.98 | N12: 28245.85 | O12: 42319.79 | P12: =O12-N12 -> 14073.94 | Q12: 55667.27 | R12: 69791 | S12: 0.05568994193 | T12: 67129 | U12: 0.05356579089 | V12: 136920.09 | W12: 0.1092558046 | X12: 246668 | Y12: 0.1968294851 | Z12: 1006538.32 | AA12: 0.8031703313 | AB12: 68954 | AC12: 77519 | AD12: 85019 | AE12: =AB12+AC12+AD12 -> 231492 | AF12: 0.1847197495 | AG12: 85495 | AH12: 84740 | AI12: 86789 | AJ12: =AG12+AH12+AI12 -> 257024 | AK12: 0.205093087 | AL12: 86118 | AM12: 0.06871812153 | AN12: 89169 | AO12: 85009 | AP12: 77782 | AQ12: 67253 | AR12: 50564 | AS12: 43790 | AT12: 30421 | AU12: 18970 | AV12: 7683 | AW12: 1647 | AX12: 243 | AY12: =SUM(AN12:AX12)+AL12 -> 558649 | AZ12: 0.4457756784 | BA12: 574634 | BB12: 0.458530958 | BC12: 472531 | BD12: 0.3770575569 | BE12: =X12-I12 -> 177547.49 | BF12: 0.1416745627 | BG12: 534007.32 | BH12: 0.4261127745
A13: 3 | C13: 902 | D13: Less developed regions | E13: b | F13: 6129802.27 | G13: 245072.67 | H13: 0.039980518 | I13: 604529.18 | J13: 0.09862131817 | K13: 1724491.75 | L13: 0.2813290991 | M13: 685934.54 | N13: 236082.69 | O13: 352269.86 | P13: 116187.17 | Q13: 457253.47 | R13: 574685 | S13: 0.09375261627 | T13: 545278 | U13: 0.08895523477 | V13: 1119962.58 | W13: 0.1827077825 | X13: 2040425 | Y13: 0.3328696278 | Z13: 4089377.21 | AA13: 0.6671303624 | AB13: 524685 | AC13: 523348 | AD13: 527384 | AE13: 1575417 | AF13: 0.2570094321 | AG13: 467704 | AH13: 416077 | AI13: 399384 | AJ13: 1283165 | AK13: 0.2093322009 | AL13: 369788 | AM13: 0.06032625258 | AN13: 314074 | AO13: 255219 | AP13: 216323 | AQ13: 149252 | AR13: 103344 | AS13: 71742 | AT13: 41410 | AU13: 18325 | AV13: 5793 | AW13: 1270 | AX13: 190 | AY13: 1546730 | AZ13: 0.2523295095 | BA13: 3228370 | BB13: 0.5266678855 | BC13: =SUM(AN13:AX13) -> 1176942 | BD13: 0.1920032569 | BE13: 1435895.82 | BF13: 0.2342483096 | BG13: 2912435.21 | BH13: 0.4751271055
A14: 4 | C14: 941 | D14: Least developed countries | E14: c | F14: 956631.11 | G14: 58057.57 | H14: 0.06068961107 | I14: 140770.36 | J14: 0.147152187 | K14: 384031.72 | L14: 0.4014418055 | M14: 151748.17 | N14: 53533.13 | O14: 79541.23 | P14: 26008.1 | Q14: 101139.44 | R14: 127648 | S14: 0.1334349246 | T14: 115614 | U14: 0.1208553629 | V14: 243261.36 | W14: 0.2542896185 | X14: 447000 | Y14: 0.4672647537 | Z14: 509630.83 | AA14: 0.5327349536 | AB14: 102145 | AC14: 88188 | AD14: 75578 | AE14: 265911 | AF14: 0.2779660804 | AG14: 65694 | AH14: 54031 | AI14: 44502 | AJ14: 164227 | AK14: 0.1716722342 | AL14: 37041 | AM14: 0.03872025446 | AN14: 30128 | AO14: 23462 | AP14: 17920 | AQ14: 13544 | AR14: 9572 | AS14: 5933 | AT14: 3177 | AU14: 1267 | AV14: 347 | AW14: 61 | AX14: 9 | AY14: 142461 | AZ14: 0.1489194722 | BA14: 467179 | BB14: 0.4883585691 | BC14: 105420 | BD14: 0.1101992178 | BE14: 306229.64 | BF14: 0.3201125667 | BG14: 404210.83 | BH14: 0.4225357358
A15: 5 | C15: 934 | D15: Less developed regions, excluding least developed countries | E15: d | F15: 5173171.17 | G15: 187015.1 | H15: 0.03615095922 | I15: 463758.81 | J15: 0.08964690994 | K15: 1340460.03 | L15: 0.2591176642 | M15: 534186.37 | N15: 182549.56 | O15: 272728.63 | P15: 90179.07 | Q15: 356114.03 | R15: 447037 | S15: 0.08641449999 | T15: 429664 | U15: 0.08305621173 | V15: 876701.22 | W15: 0.1694707542 | X15: 1593425 | Y15: 0.3080170649 | Z15: 3579746.38 | AA15: 0.6919829757 | AB15: 422540 | AC15: 435160 | AD15: 451806 | AE15: 1309506 | AF15: 0.2531340945 | AG15: 402010 | AH15: 362046 | AI15: 354881 | AJ15: 1118937 | AK15: 0.2162961486 | AL15: 332747 | AM15: 0.06432166829 | AN15: 283946 | AO15: 231757 | AP15: 198402 | AQ15: 135708 | AR15: 93772 | AS15: 65809 | AT15: 38233 | AU15: 17058 | AV15: 5446 | AW15: 1208 | AX15: 181 | AY15: 1404267 | AZ15: 0.2714518723 | BA15: 2761190 | BB15: 0.5337519114 | BC15: 1071520 | BD15: 0.207130204 | BE15: 1129666.19 | BF15: 0.218370155 | BG15: 2508226.38 | BH15: 0.4848527717
A16: 6 | C16: 948 | D16: Less developed regions, excluding China | F16: 4701441.32 | G16: 209969.44 | H16: 0.04466065313 | I16: 517312.56 | J16: 0.1100327591 | K16: 1473300.93 | L16: 0.3133721831 | M16: 586049.4 | N16: 201750.73 | O16: 301027.89 | P16: 99277.16 | Q16: 390692.16 | R16: 491037 | S16: 0.1044439283 | T16: 464951 | U16: 0.09889541703 | V16: 955988.37 | W16: 0.203339424 | X16: 1741103 | Y16: 0.3703338788 | Z16: 2960338.63 | AA16: 0.6296661871 | AB16: 441954 | AC16: 419952 | AD16: 395472 | AE16: 1257378 | AF16: 0.2674452183 | AG16: 363030 | AH16: 317386 | AI16: 278298 | AJ16: 958714 | AK16: 0.2039191675 | AL16: 242944 | AM16: 0.05167436611 | AN16: 209311 | AO16: 172863 | AP16: 134817 | AQ16: 95600 | AR16: 67759 | AS16: 46084 | AT16: 26121 | AU16: 11781 | AV16: 3796 | AW16: 838 | AX16: 134 | AY16: 1012048 | AZ16: 0.2152633482 | BA16: 2459036 | BB16: 0.5230387519 | BC16: 769104 | BD16: 0.1635889821 | BE16: 1223790.44 | BF16: 0.2603011197 | BG16: 2191234.63 | BH16: 0.466077205
A17: 7 | C17: 1503 | D17: High-income countries | E17: e | F17: 1180060.96 | G17: 25346.75 | H17: 0.02147918697 | I17: 65104.56 | J17: 0.05517050577 | K17: 197534.09 | L17: 0.1673931235 | M17: 80006.82 | N17: 26806.34 | O17: 40232.16 | P17: 13425.82 | Q17: 53406.2 | R17: 66832 | S17: 0.05663436235 | T17: 65597 | U17: 0.05558780624 | V17: 132429.53 | W17: 0.1122226177 | X17: 237997 | Y17: 0.2016819538 | Z17: 942063.95 | AA17: 0.7983180377 | AB17: 68564 | AC17: 75025 | AD17: 78728 | AE17: 222317 | AF17: 0.1883945046 | AG17: 81430 | AH17: 81696 | AI17: 84002 | AJ17: 247128 | AK17: 0.2094196896 | AL17: 83603 | AM17: 0.07084634001 | AN17: 82775 | AO17: 76963 | AP17: 68936 | AQ17: 61668 | AR17: 46834 | AS17: 37974 | AT17: 27737 | AU17: 17257 | AV17: 7430 | AW17: 1659 | AX17: 247 | AY17: 513083 | AZ17: 0.4347936398 | BA17: 553048 | BB17: 0.4686605343 | BC17: 429480 | BD17: 0.3639472998 | BE17: 172892.44 | BF17: 0.146511448 | BG17: 512583.95 | BH17: 0.4343707379
A18: 8 | C18: 1517 | D18: Middle-income countries | E18: e | F18: 5558263.98 | G18: 203777.16 | H18: 0.03666201547 | I18: 504903.9 | J18: 0.09083841678 | K18: 1456904.92 | L18: 0.2621151002 | M18: 580565.46 | N18: 198530.79 | O18: 296570.41 | P18: 98039.62 | Q18: 387034.97 | R18: 485905 | S18: 0.08742028118 | T18: 466097 | U18: 0.08385657854 | V18: 952001.02 | W18: 0.1712766834 | X18: 1729844 | Y18: 0.3112201951 | Z18: 3828419.56 | AA18: 0.6887797294 | AB18: 455397 | AC18: 467271 | AD18: 484649 | AE18: 1407317 | AF18: 0.253193624 | AG18: 430449 | AH18: 385582 | AI18: 374315 | AJ18: 1190346 | AK18: 0.2141578745 | AL18: 349646 | AM18: 0.06290561248 | AN18: 302426 | AO18: 248401 | AP18: 213867 | AQ18: 146012 | AR18: 100768 | AS18: 73728 | AT18: 42190 | AU18: 19352 | AV18: 5884 | AW18: 1235 | AX18: 185 | AY18: 1503694 | AZ18: 0.2705330307 | BA18: 2947309 | BB18: 0.530257111 | BC18: 1154048 | BD18: 0.2076274182 | BE18: 1224940.1 | BF18: 0.2203817783 | BG18: 2674371.56 | BH18: 0.4811523112
A19: 9 | C19: 1502 | D19: Upper-middle-income countries | E19: e | F19: 2588362.98 | G19: 74836.85 | H19: 0.02891281114 | I19: 185151.94 | J19: 0.07153244789 | K19: 533256.52 | L19: 0.2060207645 | M19: 211637.87 | N19: 72572.46 | O19: 108333.53 | P19: 35761.07 | Q19: 141016.81 | R19: 177131 | S19: 0.06843360123 | T19: 170974 | U19: 0.06605487767 | V19: 348104.59 | W19: 0.1344883205 | X19: 635803 | Y19: 0.2456390409 | Z19: 1952560.27 | AA19: 0.7543610711 | AB19: 174030 | AC19: 199086 | AD19: 232280 | AE19: 605396 | AF19: 0.2338914614 | AG19: 199974 | AH19: 184915 | AI19: 198783 | AJ19: 583672 | AK19: 0.2254985118 | AL19: 196167 | AM19: 0.07578805659 | AN19: 169209 | AO19: 138128 | AP19: 127924 | AQ19: 86315 | AR19: 58969 | AS19: 45183 | AT19: 26795 | AU19: 12557 | AV19: 3860 | AW19: 817 | AX19: 116 | AY19: 866040 | AZ19: 0.3345898573 | BA19: 1385235 | BB19: 0.5351780298 | BC19: 669873 | BD19: 0.2588018007 | BE19: 450651.06 | BF19: 0.174106593 | BG19: 1282687.27 | BH19: 0.4955592704
A20: 10 | C20: 1501 | D20: Lower-middle-income countries | E20: e | F20: 2969901 | G20: 128940.32 | H20: 0.04341569635 | I20: 319751.96 | J20: 0.1076641814 | K20: 923648.4 | L20: 0.311003094 | M20: 368927.59 | N20: 125958.34 | O20: 188236.88 | P20: 62278.54 | Q20: 246018.17 | R20: 308774 | S20: 0.1039677754 | T20: 295123 | U20: 0.09937132585 | V20: 603896.44 | W20: 0.2033389126 | X20: 1094042 | Y20: 0.368376589 | Z20: 1875859.29 | AA20: 0.6316235087 | AB20: 281367 | AC20: 268186 | AD20: 252369 | AE20: 801922 | AF20: 0.270016408 | AG20: 230475 | AH20: 200668 | AI20: 175532 | AJ20: =AG20+AH20+AI20 -> 606675 | AK20: 0.2042744859 | AL20: 153479 | AM20: 0.05167815358 | AN20: 133217 | AO20: 110273 | AP20: 85943 | AQ20: 59698 | AR20: 41799 | AS20: 28545 | AT20: 15395 | AU20: 6795 | AV20: 2024 | AW20: 418 | AX20: 69 | AY20: 637655 | AZ20: 0.2147058101 | BA20: 1562076 | BB20: 0.5259690475 | BC20: 484176 | BD20: 0.1630276565 | BE20: 774290.04 | BF20: 0.2607124076 | BG20: 1391683.29 | BH20: 0.4685958522
A21: 11 | C21: 1500 | D21: Low-income countries | E21: e | F21: 641858.61 | G21: 42880.55 | H21: 0.06680684707 | I21: 103397.44 | J21: 0.1610906801 | K21: 275365.28 | L21: 0.4290123646 | M21: 108459.45 | N21: 38893.65 | O21: 57640.41 | P21: 18746.76 | Q21: 72284.26 | R21: 91494 | S21: 0.142545412 | T21: 80473 | U21: 0.1253749638 | V21: 171967.85 | W21: 0.2679217001 | X21: 318385 | Y21: 0.4960360351 | Z21: 323473.54 | AA21: 0.5039638558 | AB21: 69451 | AC21: 58368 | AD21: 48841 | AE21: 176660 | AF21: 0.2752319549 | AG21: 41142 | AH21: 33352 | AI21: 27661 | AJ21: 102155 | AK21: 0.159154989 | AL21: 22464 | AM21: 0.03499836202 | AN21: 17863 | AO21: 14713 | AP21: 11178 | AQ21: 8733 | AR21: 6238 | AS21: 3779 | AT21: 1869 | AU21: 666 | AV21: 152 | AW21: 20 | AX21: 2 | AY21: 87677 | AZ21: 0.1365986194 | BA21: 301279 | BB21: 0.4693853059 | BC21: 65213 | BD21: 0.1016002574 | BE21: 214987.56 | BF21: 0.334945355 | BG21: 258260.54 | BH21: 0.4023635984
A22: 12 | C22: 947 | D22: Sub-Saharan Africa | E22: f | F22: 969234.25 | G22: 66177.68 | H22: 0.06827831352 | I22: 158928.36 | J22: 0.1639731159 | K22: 417500.19 | L22: 0.4307526173 | M22: 163925.97 | N22: 59335.53 | O22: 87797.88 | P22: 28462.35 | Q22: 109230.74 | R22: 138491 | S22: 0.1428870265 | T22: 120081 | U22: 0.1238926503 | V22: 258571.84 | W22: 0.2667795118 | X22: 481332 | Y22: 0.4966105975 | Z22: 487901.79 | AA22: 0.5033889279 | AB22: 103123 | AC22: 87685 | AD22: 75195 | AE22: 266003 | AF22: 0.2744465541 | AG22: 63916 | AH22: 52205 | AI22: 41826 | AJ22: 157947 | AK22: 0.1629606052 | AL22: 33196 | AM22: 0.03424971827 | AN22: 26782 | AO22: 21539 | AP22: 16786 | AQ22: 12366 | AR22: 8491 | AS22: 5036 | AT22: 2483 | AU22: 872 | AV22: 202 | AW22: 29 | AX22: 3 | AY22: 127785 | AZ22: 0.1318411932 | BA22: 457146 | BB22: 0.4716568776 | BC22: 94589 | BD22: 0.09759147492 | BE22: 322403.64 | BF22: 0.3326374816 | BG22: 393312.79 | BH22: 0.405797453
A23: 13 | C23: 903 | D23: AFRICA | F23: 1194369.91 | G23: 78084.2 | H23: 0.06537689818 | I23: 186990.41 | J23: 0.1565598802 | K23: 490264.55 | L23: 0.4104796562 | M23: 191922.34 | N23: 69530.09 | O23: 102843.98 | P23: 33313.89 | Q23: 127845.28 | R23: 162115 | S23: 0.1357326559 | T23: 141159 | U23: 0.1181870029 | V23: 303274.14 | W23: 0.253919776 | X23: 565981 | Y23: 0.4738741283 | Z23: 628389.1 | AA23: 0.5261260308 | AB23: 122872 | AC23: 107639 | AD23: 94837 | AE23: 325348 | AF23: 0.2724013702 | AG23: 81752 | AH23: 67495 | AI23: 54631 | AJ23: 203878 | AK23: 0.1706992099 | AL23: 44439 | AM23: 0.03720706594 | AN23: 36523 | AO23: 29574 | AP23: 23071 | AQ23: 16902 | AR23: 11602 | AS23: 7248 | AT23: 3763 | AU23: 1379 | AV23: 327 | AW23: 49 | AX23: 4 | AY23: 174881 | AZ23: 0.1464211368 | BA23: 573665 | BB23: 0.4803076461 | BC23: 130442 | BD23: 0.1092140709 | BE23: 378990.59 | BF23: 0.3173142481 | BG23: 497947.1 | BH23: 0.4169119599
A24: 14 | C24: 910 | D24: Eastern Africa | F24: 399458.03 | G24: 26771.61 | H24: 0.06701983185 | I24: 64685.58 | J24: 0.1619333576 | K24: 173280.85 | L24: 0.4337898778 | M24: 68339.76 | N24: 24416.37 | O24: 36208.06 | P24: 11791.69 | Q24: 45549.48 | R24: 57617 | S24: 0.1442379316 | T24: 50978 | U24: 0.1276179127 | V24: 108595.27 | W24: 0.2718565202 | X24: 200679 | Y24: 0.5023781848 | Z24: 198778.6 | AA24: 0.4976207388 | AB24: 44247 | AC24: 37184 | AD24: 31392 | AE24: 112823 | AF24: 0.2824401853 | AG24: 26299 | AH24: 21029 | AI24: 16555 | AJ24: 63883 | AK24: 0.1599241853 | AL24: 12814 | AM24: 0.03207846391 | AN24: 10113 | AO24: 8141 | AP24: 6381 | AQ24: 4834 | AR24: 3371 | AS24: 2105 | AT24: 1151 | AU24: 435 | AV24: 107 | AW24: 16 | AX24: 1 | AY24: 49469 | AZ24: 0.1238402943 | BA24: 189520 | BB24: 0.4744428345 | BC24: 36655 | BD24: 0.0917618304 | BE24: 135993.42 | BF24: 0.3404448272 | BG24: 162123.6 | BH24: 0.4058589084
A25: 15 | C25: 108 | D25: Burundi | F25: 10199.27 | G25: 778.87 | H25: 0.07636526928 | I25: 1853.26 | J25: 0.1817051613 | K25: 4564.45 | L25: 0.4475271269 | M25: 1773.12 | N25: 675.19 | O25: 991.52 | P25: 316.33 | Q25: 1181.17 | R25: 1512 | S25: 0.1482459039 | T25: 1199 | U25: 0.117557433 | V25: 2711.19 | W25: 0.2658219657 | X25: 5201 | Y25: 0.5099384564 | Z25: 4998.54 | AA25: 0.4900880161 | AB25: 1044 | AC25: 979 | AD25: 851 | AE25: 2874 | AF25: 0.2817848728 | AG25: 657 | AH25: 478 | AI25: 347 | AJ25: =AG25+AH25+AI25 -> 1482 | AK25: 0.1453045169 | AL25: 323 | AM25: 0.03166893317 | AN25: 282 | AO25: 245 | AP25: 175 | AQ25: 102 | AR25: 70 | AS25: 46 | AT25: 25 | AU25: 10 | AV25: 2 | AW25: 0 | AX25: 0 | AY25: 1280 | AZ25: 0.1254991779 | BA25: 4679 | BB25: 0.4587583229 | BC25: 957 | BD25: 0.09383024471 | BE25: 3347.74 | BF25: 0.3282332951 | BG25: 4041.54 | BH25: 0.3962577714
A26: 16 | C26: 174 | D26: Comoros | F26: 777.42 | G26: 48.62 | H26: 0.06254019706 | I26: 117.26 | J26: 0.15083224 | K26: 312.07 | L26: 0.4014175092 | M26: 122.68 | N26: 44.08 | O26: 65.3 | P26: 21.22 | Q26: 81.74 | R26: 104 | S26: 0.1337758226 | T26: 91 | U26: 0.1170538448 | V26: 194.82 | W26: 0.2505981323 | X26: 362 | Y26: 0.4656427671 | Z26: 415.44 | AA26: 0.534382959 | AB26: 81 | AC26: 73 | AD26: 65 | AE26: 219 | AF26: 0.281701011 | AG26: 55 | AH26: 44 | AI26: 36 | AJ26: 135 | AK26: 0.1736513082 | AL26: 30 | AM26: 0.03858917959 | AN26: 25 | AO26: 19 | AP26: 14 | AQ26: 9 | AR26: 7 | AS26: 4 | AT26: 2 | AU26: 1 | AV26: 0 | AW26: 0 | AX26: 0 | AY26: 111 | AZ26: 0.1427799645 | BA26: 384 | BB26: 0.4939414988 | BC26: 81 | BD26: 0.1041907849 | BE26: 244.74 | BF26: 0.3148105271 | BG26: 334.44 | BH26: 0.4301921741
A27: 17 | C27: 262 | D27: Djibouti | F27: 927.41 | G27: 41.69 | H27: 0.04495314909 | I27: 101.12 | J27: 0.109034839 | K27: 296.84 | L27: 0.3200741851 | M27: 116.61 | N27: 38.96 | O27: 58.32 | P27: 19.36 | Q27: 77.6 | R27: 97 | S27: 0.1045923594 | T27: 99 | U27: 0.1067489029 | V27: 195.72 | W27: 0.2110393461 | X27: 355 | Y27: 0.3827864698 | Z27: 571.95 | AA27: 0.6167175252 | AB27: 97 | AC27: 94 | AD27: 91 | AE27: 282 | AF27: 0.3040726324 | AG27: 71 | AH27: 64 | AI27: 51 | AJ27: 186 | AK27: 0.2005585448 | AL27: 43 | AM27: 0.04636568508 | AN27: 36 | AO27: 27 | AP27: 19 | AQ27: 16 | AR27: 11 | AS27: 7 | AT27: 3 | AU27: 1 | AV27: 0 | AW27: 0 | AX27: 0 | AY27: 163 | AZ27: 0.1757582946 | BA27: 511 | BB27: 0.5509968622 | BC27: 120 | BD27: 0.1293926095 | BE27: 253.88 | BF27: 0.2737516309 | BG27: 451.95 | BH27: 0.4873249156
A28: 18 | C28: 232 | D28: Eritrea | F28: 4846.98 | G28: 297.07 | H28: 0.06128971029 | I28: 744.47 | J28: 0.1535946094 | K28: 2050.16 | L28: 0.4229767814 | M28: 833.31 | N28: 294.82 | O28: 438.95 | P28: 144.13 | Q28: 556.99 | R28: 704 | S28: 0.1452450804 | T28: 602 | U28: 0.1242010489 | V28: 1305.69 | W28: 0.269382172 | X28: 2350 | Y28: 0.4848379816 | Z28: 2497.01 | AA28: 0.5151682078 | AB28: 483 | AC28: 436 | AD28: 431 | AE28: 1350 | AF28: 0.2785239469 | AG28: 371 | AH28: 266 | AI28: 182 | AJ28: 819 | AK28: 0.1689711944 | AL28: 143 | AM28: 0.02950290696 | AN28: 122 | AO28: 104 | AP28: 81 | AQ28: 72 | AR28: 51 | AS28: 31 | AT28: 15 | AU28: 6 | AV28: 1 | AW28: 0 | AX28: 0 | AY28: 626 | AZ28: 0.1291525857 | BA28: 2312 | BB28: 0.4769980483 | BC28: 483 | BD28: 0.09964967877 | BE28: 1605.53 | BF28: 0.3312433722 | BG28: 2014.01 | BH28: 0.4155185291
A29: 19 | C29: 231 | D29: Ethiopia | F29: 99873.03 | G29: 6193.05 | H29: 0.06200923312 | I29: 14901.07 | J29: 0.1492001394 | K29: 41557.92 | L29: 0.4161075317 | M29: 16316.12 | N29: 5639.44 | O29: 8398.39 | P29: 2758.95 | Q29: 10864.2 | R29: 13661 | S29: 0.1367836742 | T29: 12996 | U29: 0.13012522 | V29: 26656.85 | W29: 0.2669073923 | X29: 48835 | Y29: 0.4889708463 | Z29: 51037.9 | AA29: 0.5110278521 | AB29: 11776 | AC29: 9707 | AD29: 7693 | AE29: =AB29+AC29+AD29 -> 29176 | AF29: 0.2921309186 | AG29: 6503 | AH29: 5080 | AI29: 4204 | AJ29: 15787 | AK29: 0.1580707024 | AL29: 3330 | AM29: 0.03334233476 | AN29: 2602 | AO29: 2199 | AP29: 1746 | AQ29: 1416 | AR29: 987 | AS29: 595 | AT29: 323 | AU29: 123 | AV29: 28 | AW29: 4 | AX29: 0 | AY29: 13353 | AZ29: 0.1336997586 | BA29: 48293 | BB29: 0.4835439558 | BC29: 10023 | BD29: 0.1003574238 | BE29: 33933.93 | BF29: 0.3397707069 | BG29: 41014.9 | BH29: 0.4106704282
A30: 20 | C30: 404 | D30: Kenya | F30: 47236.26 | G30: 2804.49 | H30: 0.05937155058 | I30: 6997.25 | J30: 0.1481330232 | K30: 19529.77 | L30: 0.4134486939 | M30: 7874.9 | N30: 2760.61 | O30: 4113.19 | P30: 1352.58 | Q30: 5259.17 | R30: 6632 | S30: 0.140400616 | T30: 5901 | U30: 0.1249252163 | V30: 12532.53 | W30: 0.2653158823 | X30: 22730 | Y30: 0.4811981304 | Z30: 24506 | AA30: 0.5187963653 | AB30: 5164 | AC30: 4344 | AD30: 4059 | AE30: 13567 | AF30: 0.2872157957 | AG30: 3522 | AH30: 2830 | AI30: 2143 | AJ30: 8495 | AK30: 0.1798406563 | AL30: 1569 | AM30: 0.03321600821 | AN30: 1197 | AO30: 935 | AP30: 724 | AQ30: 497 | AR30: 309 | AS30: 219 | AT30: 130 | AU30: 50 | AV30: 13 | AW30: 2 | AX30: 0 | AY30: 5645 | AZ30: 0.119505651 | BA30: 23631 | BB30: 0.5002724602 | BC30: 4076 | BD30: 0.08628964274 | BE30: 15732.75 | BF30: 0.3330651072 | BG30: 20430 | BH30: 0.4325067226
A31: 21 | C31: 450 | D31: Madagascar | F31: 24234.09 | G31: 1524.01 | H31: 0.06288703228 | I31: 3699.6 | J31: 0.1526609829 | K31: 10091.89 | L31: 0.4164336272 | M31: 3988.79 | N31: 1408.54 | O31: 2092.67 | P31: 684.13 | Q31: 2658.74 | R31: 3356 | S31: 0.1384826086 | T31: 3036 | U31: 0.125278069 | V31: 6392.29 | W31: 0.2637726442 | X31: 11764 | Y31: 0.4854318854 | Z31: 12470.42 | AA31: 0.5145817318 | AB31: 2704 | AC31: 2250 | AD31: 1856 | AE31: 6810 | AF31: 0.2810091074 | AG31: 1569 | AH31: 1345 | AI31: 1106 | AJ31: 4020 | AK31: 0.1658820282 | AL31: 893 | AM31: 0.0368489182 | AN31: 719 | AO31: 574 | AP31: 440 | AQ31: 278 | AR31: 189 | AS31: 123 | AT31: 65 | AU31: 24 | AV31: 6 | AW31: 1 | AX31: 0 | AY31: 3312 | AZ31: 0.1366669844 | BA31: 11723 | BB31: 0.4837400538 | BC31: 2419 | BD31: 0.0998180662 | BE31: 8064.4 | BF31: 0.3327709025 | BG31: 10051.42 | BH31: 0.4147636656
A32: 22 | C32: 454 | D32: Malawi | F32: 17573.61 | G32: 1156.66 | H32: 0.0658180078 | I32: 2887.87 | J32: 0.1643299242 | K32: 7847.05 | L32: 0.4465246469 | M32: 3166.27 | N32: 1134.13 | O32: 1684.83 | P32: 550.7 | Q32: 2115.45 | R32: 2678 | S32: 0.1523875857 | T32: 2281 | U32: 0.1297968943 | V32: 4959.19 | W32: 0.2821952917 | X32: 9070 | Y32: 0.516114788 | Z32: 8504.09 | AA32: 0.4839125257 | AB32: 1981 | AC32: 1703 | AD32: 1444 | AE32: 5128 | AF32: 0.2918011723 | AG32: 1120 | AH32: 898 | AI32: 674 | AJ32: 2692 | AK32: 0.1531842348 | AL32: 496 | AM32: 0.02822413835 | AN32: 369 | AO32: 284 | AP32: 229 | AQ32: 215 | AR32: 157 | AS32: 94 | AT32: 45 | AU32: 15 | AV32: 3 | AW32: 0 | AX32: 0 | AY32: 1907 | AZ32: 0.1085149835 | BA32: 8316 | BB32: 0.4732095454 | BC32: 1411 | BD32: 0.08029084519 | BE32: 6182.13 | BF32: 0.3517848638 | BG32: 7093.09 | BH32: 0.4036216805
A33: 23 | C33: 480 | D33: Mauritius | E33: 1 | F33: 1259.46 | G33: 27.03 | H33: 0.02146157877 | I33: 68.95 | J33: 0.05474568466 | K33: 244.34 | L33: 0.1940037794 | M33: 98.75 | N33: 29.23 | O33: 44.7 | P33: 15.47 | Q33: 65.77 | R33: 81 | S33: 0.06431327712 | T33: 95 | U33: 0.07542915218 | V33: 175.39 | W33: 0.1392580947 | X33: 300 | Y33: 0.2381973227 | Z33: 959.27 | AA33: 0.761651819 | AB33: 94 | AC33: 103 | AD33: 89 | AE33: 286 | AF33: 0.2270814476 | AG33: 87 | AH33: 101 | AI33: 84 | AJ33: 272 | AK33: 0.2159655725 | AL33: 88 | AM33: 0.06987121465 | AN33: 94 | AO33: 80 | AP33: 69 | AQ33: 51 | AR33: 30 | AS33: 21 | AT33: 13 | AU33: 6 | AV33: 2 | AW33: 1 | AX33: 0 | AY33: 455 | AZ33: 0.3612659394 | BA33: 646 | BB33: 0.5129182348 | BC33: 367 | BD33: 0.2913947247 | BE33: 231.05 | BF33: 0.183451638 | BG33: 592.27 | BH33: 0.4702570943
A34: 24 | C34: 175 | D34: Mayotte | F34: 240.02 | G34: 13.69 | H34: 0.05703691359 | I34: 35.42 | J34: 0.1475710357 | K34: 100.04 | L34: 0.4167986001 | M34: 41.36 | N34: 14.55 | O34: 21.72 | P34: 7.17 | Q34: 27.69 | R34: 35 | S34: 0.1458211816 | T34: 30 | U34: 0.1249895842 | V34: 64.62 | W34: 0.2692275644 | X34: 116 | Y34: 0.4832930589 | Z34: 124.29 | AA34: 0.5178318473 | AB34: 25 | AC34: 19 | AD34: 17 | AE34: 61 | AF34: 0.2541454879 | AG34: 16 | AH34: 15 | AI34: 13 | AJ34: 44 | AK34: 0.1833180568 | AL34: 9 | AM34: 0.03749687526 | AN34: 7 | AO34: 5 | AP34: 4 | AQ34: 3 | AR34: 2 | AS34: 2 | AT34: 1 | AU34: 0 | AV34: 0 | AW34: 0 | AX34: 0 | AY34: 33 | AZ34: 0.1374885426 | BA34: 114 | BB34: 0.47496042 | BC34: 24 | BD34: 0.09999166736 | BE34: 80.58 | BF34: 0.3357220232 | BG34: 100.29 | BH34: 0.41784018
A35: 25 | C35: 508 | D35: Mozambique | F35: 28010.69 | G35: 2023.36 | H35: 0.07223527875 | I35: 4844.01 | J35: 0.1729343333 | K35: 12660.55 | L35: 0.4519899367 | M35: 4966.16 | N35: 1800.87 | O35: 2663.7 | P35: 862.83 | Q35: 3308.94 | R35: 4197 | S35: 0.149835652 | T35: 3620 | U35: 0.1292363737 | V35: 7816.54 | W35: 0.2790556034 | X35: 14546 | Y35: 0.519301738 | Z35: 13464.22 | AA35: 0.4806814827 | AB35: 3029 | AC35: 2495 | AD35: 2048 | AE35: 7572 | AF35: 0.2703253651 | AG35: 1727 | AH35: 1406 | AI35: 1123 | AJ35: 4256 | AK35: 0.1519419907 | AL35: 870 | AM35: 0.03105957047 | AN35: 711 | AO35: 587 | AP35: 475 | AQ35: 354 | AR35: 254 | AS35: 156 | AT35: 78 | AU35: 28 | AV35: 6 | AW35: 1 | AX35: 0 | AY35: 3520 | AZ35: 0.1256663081 | BA35: 12698 | BB35: 0.4533269263 | BC35: 2650 | BD35: 0.09460673764 | BE35: 9701.99 | BF35: 0.3463674047 | BG35: 10814.22 | BH35: 0.386074745
A36: 26 | C36: 638 | D36: Réunion | F36: 863.36 | G36: 28.19 | H36: 0.03265150111 | I36: 68.98 | J36: 0.07989714603 | K36: 209.58 | L36: 0.2427492587 | M36: 83.13 | N36: 27.08 | O36: 40.72 | P36: 13.64 | Q36: 55.35 | R36: 69 | S36: 0.07992031134 | T36: 72 | U36: 0.08339510749 | V36: 140.6 | W36: 0.1628521127 | X36: 251 | Y36: 0.2907246108 | Z36: 612.41 | AA36: 0.7093333024 | AB36: 68 | AC36: 59 | AD36: 51 | AE36: 178 | AF36: 0.206171238 | AG36: 49 | AH36: 56 | AI36: 60 | AJ36: 165 | AK36: 0.191113788 | AL36: 67 | AM36: 0.07760378058 | AN36: 61 | AO36: 51 | AP36: 43 | AQ36: 30 | AR36: 23 | AS36: 17 | AT36: 11 | AU36: 5 | AV36: 3 | AW36: 1 | AX36: 0 | AY36: 312 | AZ36: 0.3613787991 | BA36: 410 | BB36: 0.4748888065 | BC36: 245 | BD36: 0.2837750185 | BE36: 182.02 | BF36: 0.2108274648 | BG36: 367.41 | BH36: 0.4255582839
A37: 27 | C37: 646 | D37: Rwanda | F37: 11629.55 | G37: 698.44 | H37: 0.0600573539 | I37: 1734.54 | J37: 0.1491493652 | K37: 4744.93 | L37: 0.4080063287 | M37: 1908.65 | N37: 678.28 | O37: 1008.44 | P37: 330.16 | Q37: 1274.65 | R37: 1611 | S37: 0.1385264262 | T37: 1399 | U37: 0.120297002 | V37: 3010.39 | W37: 0.2588569635 | X37: 5497 | Y37: 0.472675211 | Z37: 6132.88 | AA37: 0.527353165 | AB37: 1207 | AC37: 1006 | AD37: 1067 | AE37: 3280 | AF37: 0.2820401477 | AG37: 907 | AH37: 643 | AI37: 476 | AJ37: 2026 | AK37: 0.1742113839 | AL37: 367 | AM37: 0.03155754092 | AN37: 390 | AO37: 281 | AP37: 213 | AQ37: 136 | AR37: 92 | AS37: 45 | AT37: 40 | AU37: 8 | AV37: 5 | AW37: 1 | AX37: 0 | AY37: 1578 | AZ37: 0.1356888272 | BA37: 5673 | BB37: 0.4878090726 | BC37: 1211 | BD37: 0.1041312862 | BE37: 3762.46 | BF37: 0.3235258458 | BG37: 4921.88 | BH37: 0.4232218787
A38: 28 | C38: 690 | D38: Seychelles | F38: 93.74 | G38: 3.2 | H38: 0.03413697461 | I38: 7.79 | J38: 0.08310219757 | K38: 20.38 | L38: 0.2174098571 | M38: 8 | N38: 2.94 | O38: 4.34 | P38: 1.4 | Q38: 5.33 | R38: 7 | S38: 0.07467463196 | T38: 6 | U38: 0.06400682739 | V38: 12.59 | W38: 0.1343076595 | X38: 24 | Y38: 0.2560273096 | Z38: 69.94 | AA38: 0.7461062513 | AB38: 6 | AC38: 7 | AD38: 7 | AE38: 20 | AF38: 0.2133560913 | AG38: 8 | AH38: 8 | AI38: 7 | AJ38: 23 | AK38: 0.245359505 | AL38: 7 | AM38: 0.07467463196 | AN38: 7 | AO38: 6 | AP38: 4 | AQ38: 2 | AR38: 2 | AS38: 1 | AT38: 1 | AU38: 1 | AV38: 0 | AW38: 0 | AX38: 0 | AY38: 31 | AZ38: 0.3307019415 | BA38: 50 | BB38: 0.5333902283 | BC38: 24 | BD38: 0.2560273096 | BE38: 16.21 | BF38: 0.172925112 | BG38: 45.94 | BH38: 0.4900789418
A39: 29 | C39: 706 | D39: Somalia | F39: 13908.13 | G39: 1075.43 | H39: 0.07732383865 | I39: 2554.49 | J39: 0.1836688325 | K39: 6490.45 | L39: 0.4666658997 | M39: 2523.96 | N39: 934.86 | O39: 1377.87 | P39: 443.01 | Q39: 1680.88 | R39: 2140 | S39: 0.153866839 | T39: 1796 | U39: 0.1291331042 | V39: 3935.96 | W39: 0.2829970672 | X39: 7448 | Y39: 0.5355141202 | Z39: 6460.53 | AA39: 0.46451464 | AB39: 1537 | AC39: 1229 | AD39: 992 | AE39: 3758 | AF39: 0.2702016734 | AG39: 787 | AH39: 640 | AI39: 539 | AJ39: 1966 | AK39: 0.1413561708 | AL39: 445 | AM39: 0.03199567447 | AN39: 357 | AO39: 289 | AP39: 228 | AQ39: 166 | AR39: 106 | AS39: 62 | AT39: 27 | AU39: 10 | AV39: 3 | AW39: 0 | AX39: 0 | AY39: 1693 | AZ39: 0.1217273638 | BA39: 6169 | BB39: 0.4435535187 | BC39: =SUM(AN39:AX39) -> 1248 | BD39: 0.08973168931 | BE39: 4893.51 | BF39: 0.3518452876 | BG39: 5212.53 | BH39: 0.3747829507
A40: 30 | C40: 728 | D40: South Sudan | F40: 11882.14 | G40: 782.38 | H40: 0.06584504138 | I40: 1882.43 | J40: 0.1584251658 | K40: 5000.52 | L40: 0.4208433834 | M40: 1962.17 | N40: 705.4 | O40: 1044.75 | P40: 339.35 | Q40: 1307.27 | R40: 1655 | S40: 0.1392846743 | T40: 1463 | U40: 0.1231259689 | V40: 3118.08 | W40: 0.262417376 | X40: 5804 | Y40: 0.4884641992 | Z40: 6077.91 | AA40: 0.511516444 | AB40: 1305 | AC40: 1115 | AD40: 927 | AE40: 3347 | AF40: 0.2816832658 | AG40: 744 | AH40: 624 | AI40: 518 | AJ40: 1886 | AK40: 0.1587256168 | AL40: 429 | AM40: 0.03610460742 | AN40: 343 | AO40: 267 | AP40: 198 | AQ40: 171 | AR40: 122 | AS40: 72 | AT40: 34 | AU40: 11 | AV40: 2 | AW40: 0 | AX40: 0 | AY40: 1649 | AZ40: 0.1387797148 | BA40: 5662 | BB40: 0.47651349 | BC40: =SUM(AN40:AX40) -> 1220 | BD40: 0.1026751073 | BE40: 3921.57 | BF40: 0.3300390334 | BG40: 4857.91 | BH40: 0.4088413367
A41: 31 | C41: 800 | D41: Uganda | F41: 40144.87 | G41: 3146.97 | H41: 0.07839033979 | I41: 7512.14 | J41: 0.1871257772 | K41: 19360.96 | L41: 0.4822773121 | M41: 7578.9 | N41: 2775.77 | O41: 4099.39 | P41: 1323.62 | Q41: 5049.55 | R41: 6416 | S41: 0.1598211677 | T41: 5433 | U41: 0.135334851 | V41: 11848.82 | W41: 0.2951515349 | X41: 22156 | Y41: 0.551901152 | Z41: 17988.6 | AA41: 0.4480921224 | AB41: 4487 | AC41: 3700 | AD41: 2983 | AE41: 11170 | AF41: 0.278242276 | AG41: 2412 | AH41: 1923 | AI41: 1478 | AJ41: 5813 | AK41: 0.1448005685 | AL41: 1085 | AM41: 0.02702711455 | AN41: 779 | AO41: 594 | AP41: 471 | AQ41: 348 | AR41: 249 | AS41: 145 | AT41: 89 | AU41: 33 | AV41: 8 | AW41: 1 | AX41: 0 | AY41: 3802 | AZ41: 0.09470699494 | BA41: 18068 | BB41: 0.4500699591 | BC41: 2717 | BD41: 0.06767988039 | BE41: 14643.86 | BF41: 0.3647753748 | BG41: 15271.6 | BH41: 0.380412242
A42: 32 | C42: 834 | D42: United Republic of Tanzania | E42: 2 | F42: 53879.96 | G42: 3939.87 | H42: 0.07312310551 | I42: 9419.08 | J42: 0.1748160169 | K42: 24349.8 | L42: 0.4519268388 | M42: 9544.95 | N42: 3488.98 | O42: 5154.67 | P42: 1665.69 | Q42: 6360.01 | R42: 8078 | S42: 0.1499258723 | T42: 6853 | U42: 0.1271901464 | V42: 14930.72 | W42: 0.2771108219 | X42: 27862 | Y42: 0.5171124849 | Z42: 26017.52 | AA42: 0.4828793488 | AB42: 5652 | AC42: 4792 | AD42: 4034 | AE42: 14478 | AF42: 0.26870844 | AG42: 3403 | AH42: 2810 | AI42: 2219 | AJ42: 8432 | AK42: 0.156496033 | AL42: 1714 | AM42: 0.03181145643 | AN42: 1333 | AO42: 1069 | AP42: 828 | AQ42: 666 | AR42: 467 | AS42: 303 | AT42: 159 | AU42: 65 | AV42: 14 | AW42: 2 | AX42: 0 | AY42: 6620 | AZ42: 0.1228657185 | BA42: 24624 | BB42: 0.4570159295 | BC42: 4906 | BD42: 0.0910542621 | BE42: 18442.92 | BF42: 0.3422964679 | BG42: 21111.52 | BH42: 0.3918250867
A43: 33 | C43: 894 | D43: Zambia | F43: 16100.59 | G43: 1149.57 | H43: 0.07139924686 | I43: 2750.36 | J43: 0.1708235537 | K43: 7306.14 | L43: 0.4537808863 | M43: 2864.52 | N43: 1024.96 | O43: 1518.72 | P43: 493.76 | Q43: 1908.09 | R43: 2414 | S43: 0.1499323938 | T43: 2142 | U43: 0.1330386029 | V43: 4555.78 | W43: 0.2829573326 | X43: 8434 | Y43: 0.5238317354 | Z43: 7666.11 | AA43: 0.4761384521 | AB43: 1814 | AC43: 1499 | AD43: 1258 | AE43: 4571 | AF43: 0.2839026396 | AG43: 1052 | AH43: 861 | AI43: 654 | AJ43: 2567 | AK43: 0.1594351511 | AL43: 465 | AM43: 0.02888092921 | AN43: 340 | AO43: 252 | AP43: 195 | AQ43: 155 | AR43: 115 | AS43: 75 | AT43: 39 | AU43: 15 | AV43: 4 | AW43: 1 | AX43: 0 | AY43: 1656 | AZ43: 0.1028533737 | BA43: 7603 | BB43: 0.4722187199 | BC43: 1191 | BD43: 0.07397244449 | BE43: 5683.64 | BF43: 0.3530081817 | BG43: 6475.11 | BH43: 0.4021660076
A44: 34 | C44: 716 | D44: Zimbabwe | F44: 15777.45 | G44: 1039.01 | H44: 0.06585411457 | I44: 2505.48 | J44: 0.1588013272 | K44: 6543 | L44: 0.4147057985 | M44: 2567.42 | N44: 937.69 | O44: 1385.89 | P44: 448.2 | Q44: 1710.88 | R44: 2173 | S44: 0.1377282134 | T44: 1865 | U44: 0.1182066811 | V44: 4037.51 | W44: 0.2559038374 | X44: 7574 | Y44: 0.4800522264 | Z44: 8203.6 | AA44: 0.5199572808 | AB44: 1692 | AC44: 1574 | AD44: 1428 | AE44: 4694 | AF44: 0.297513223 | AG44: 1239 | AH44: 938 | AI44: 640 | AJ44: 2817 | AK44: 0.1785459628 | AL44: 442 | AM44: 0.0280146665 | AN44: 340 | AO44: 273 | AP44: 223 | AQ44: 149 | AR44: 130 | AS44: 88 | AT44: 50 | AU44: 22 | AV44: 6 | AW44: 1 | AX44: 0 | AY44: 1724 | AZ44: 0.1092698757 | BA44: 7953 | BB44: 0.5040738522 | BC44: 1282 | BD44: 0.08125520918 | BE44: 5068.52 | BF44: 0.3212508992 | BG44: 6921.6 | BH44: 0.4387020716
A45: 35 | C45: 911 | D45: Middle Africa | F45: 153742.72 | G45: 11589.21 | H45: 0.07538054485 | I45: 27615.85 | J45: 0.1796237897 | K45: 70243.82 | L45: 0.4568920076 | M45: 27439.96 | N45: 10154.55 | O45: 14973.46 | P45: 4818.91 | Q45: 18281.34 | R45: 23272 | S45: 0.1513697689 | T45: 19356 | U45: 0.1258986442 | V45: 42627.98 | W45: 0.277268283 | X45: 80195 | Y45: 0.5216181943 | Z45: 73547.99 | AA45: 0.4783835618 | AB45: 16013 | AC45: 13509 | AD45: 11385 | AE45: 40907 | AF45: 0.2660743871 | AG45: 9467 | AH45: 7735 | AI45: 6225 | AJ45: 23427 | AK45: 0.1523779467 | AL45: 4993 | AM45: 0.03247633449 | AN45: 4008 | AO45: 3186 | AP45: 2509 | AQ45: 1833 | AR45: 1287 | AS45: 789 | AT45: 388 | AU45: 138 | AV45: 31 | AW45: 4 | AX45: 0 | AY45: 19166 | AZ45: 0.1246628133 | BA45: 69327 | BB45: 0.4509286684 | BC45: 14173 | BD45: 0.09218647881 | BE45: 52579.15 | BF45: 0.3419944047 | BG45: 59374.99 | BH45: 0.386197083
A46: 36 | C46: 24 | D46: Angola | F46: 27859.31 | G46: 2150.67 | H46: 0.07719753289 | I46: 5158.37 | J46: 0.1851578521 | K46: 13116.25 | L46: 0.4708031175 | M46: 5154.68 | N46: 1912.22 | O46: 2820.25 | P46: 908.03 | Q46: 3436.53 | R46: 4377 | S46: 0.1571108545 | T46: 3581 | U46: 0.1285387183 | V46: 7957.87 | W46: 0.2856449065 | X46: 14927 | Y46: 0.5357993432 | Z46: 12932.36 | AA46: 0.4642024515 | AB46: 2905 | AC46: 2424 | AD46: 2033 | AE46: 7362 | AF46: 0.2642563653 | AG46: 1670 | AH46: 1390 | AI46: 1101 | AJ46: 4161 | AK46: 0.1493576115 | AL46: 866 | AM46: 0.03108476125 | AN46: 703 | AO46: 561 | AP46: 448 | AQ46: 263 | AR46: 184 | AS46: 115 | AT46: 56 | AU46: 20 | AV46: 4 | AW46: 1 | AX46: 0 | AY46: 3221 | AZ46: 0.1156166466 | BA46: 12389 | BB46: 0.4446987381 | BC46: 2355 | BD46: 0.08453188539 | BE46: 9768.63 | BF46: 0.3506414911 | BG46: 10577.36 | BH46: 0.3796705661
A47: 37 | C47: 120 | D47: Cameroon | F47: 22834.52 | G47: 1550.64 | H47: 0.06790771166 | I47: 3741.54 | J47: 0.16385455 | K47: 9827.2 | L47: 0.4303659547 | M47: 3873.69 | N47: 1404.82 | O47: 2078.88 | P47: 674.06 | Q47: 2582.24 | R47: 3275 | S47: 0.1434232031 | T47: 2810 | U47: 0.1230592979 | V47: 6085.66 | W47: 0.2665114047 | X47: 11304 | Y47: 0.4950399658 | Z47: 11530.59 | AA47: 0.5049630997 | AB47: 2396 | AC47: 2127 | AD47: 1874 | AE47: 6397 | AF47: 0.2801460245 | AG47: 1564 | AH47: 1223 | AI47: 950 | AJ47: 3737 | AK47: 0.1636557283 | AL47: 741 | AM47: 0.03245086825 | AN47: 582 | AO47: 458 | AP47: 370 | AQ47: 284 | AR47: 205 | AS47: 133 | AT47: 68 | AU47: 25 | AV47: 6 | AW47: 1 | AX47: 0 | AY47: 2873 | AZ47: 0.1258182786 | BA47: 10875 | BB47: 0.476252621 | BC47: 2132 | BD47: 0.09336741039 | BE47: 7562.46 | BF47: 0.3311854158 | BG47: 9398.59 | BH47: 0.4115956893
A48: 38 | C48: 140 | D48: Central African Republic | F48: 4546.1 | G48: 302.39 | H48: 0.06651635468 | I48: 728.31 | J48: 0.1602054508 | K48: 1987.48 | L48: 0.4371835199 | M48: 783.12 | N48: 275.04 | O48: 408.78 | P48: 133.74 | Q48: 521.78 | R48: 658 | S48: 0.144739447 | T48: 601 | U48: 0.1322012274 | V48: 1259.17 | W48: 0.2769780691 | X48: 2309 | Y48: 0.5079078771 | Z48: 2236.7 | AA48: 0.4920041354 | AB48: 516 | AC48: 410 | AD48: 332 | AE48: 1258 | AF48: 0.2767207057 | AG48: 275 | AH48: 224 | AI48: 181 | AJ48: 680 | AK48: 0.1495787598 | AL48: 146 | AM48: 0.03211543961 | AN48: 122 | AO48: 103 | AP48: 83 | AQ48: 64 | AR48: 49 | AS48: 31 | AT48: 16 | AU48: 6 | AV48: 1 | AW48: 0 | AX48: 0 | AY48: 621 | AZ48: 0.1366006027 | BA48: 2084 | BB48: 0.4584149051 | BC48: =SUM(AN48:AX48) -> 475 | BD48: 0.1044851631 | BE48: 1580.69 | BF48: 0.3477024263 | BG48: 1761.7 | BH48: 0.3875189723
A49: 39 | C49: 148 | D49: Chad | F49: 14009.41 | G49: 1096.48 | H49: 0.07826739313 | I49: 2600.64 | J49: 0.1856352266 | K49: 6665.64 | L49: 0.4757973391 | M49: 2593.94 | N49: 952.19 | O49: 1405.08 | P49: 452.89 | Q49: 1727.27 | R49: 2195 | S49: 0.1566804027 | T49: 1870 | U49: 0.1334817098 | V49: 4064.99 | W49: 0.2901613987 | X49: 7639 | Y49: 0.5452763535 | Z49: 6370.16 | AA49: 0.4547058013 | AB49: 1564 | AC49: 1280 | AD49: 1026 | AE49: 3870 | AF49: 0.2762428967 | AG49: 817 | AH49: 643 | AI49: 498 | AJ49: 1958 | AK49: 0.139763202 | AL49: 384 | AM49: 0.02741014789 | AN49: 315 | AO49: 262 | AP49: 211 | AQ49: 142 | AR49: 100 | AS49: 61 | AT49: 29 | AU49: 10 | AV49: 2 | AW49: 0 | AX49: 0 | AY49: 1516 | AZ49: 0.1082129797 | BA49: 6212 | BB49: 0.4434162467 | BC49: 1132 | BD49: 0.08080283181 | BE49: 5038.36 | BF49: 0.3596411269 | BG49: 5238.16 | BH49: 0.3739029695
A50: 40 | C50: 178 | D50: Congo | F50: 4995.65 | G50: 334.64 | H50: 0.06698627806 | I50: 813.95 | J50: 0.1629317506 | K50: 2119.54 | L50: 0.4242771211 | M50: 841.37 | N50: 308.08 | O50: 455.6 | P50: 147.52 | Q50: 561.4 | R50: 713 | S50: 0.14272417 | T50: 592 | U50: 0.1185030977 | V50: 1305.59 | W50: 0.2613453705 | X50: 2426 | Y50: 0.4856224916 | Z50: 2570.12 | AA50: 0.5144715903 | AB50: 491 | AC50: 409 | AD50: 367 | AE50: 1267 | AF50: 0.25362065 | AG50: 341 | AH50: 305 | AI50: 250 | AJ50: 896 | AK50: 0.1793560398 | AL50: 195 | AM50: 0.03903395954 | AN50: 150 | AO50: 113 | AP50: 86 | AQ50: 65 | AR50: 48 | AS50: 31 | AT50: 16 | AU50: 6 | AV50: 2 | AW50: 0 | AX50: 0 | AY50: 712 | AZ50: 0.1425239959 | BA50: 2358 | BB50: 0.4720106493 | BC50: 517 | BD50: 0.1034900363 | BE50: 1612.05 | BF50: 0.3226907409 | BG50: 2053.12 | BH50: 0.410981554
A51: 41 | C51: 180 | D51: Democratic Republic of the Congo | F51: 76196.62 | G51: 5955.78 | H51: 0.07816330961 | I51: 14098.81 | J51: 0.1850319607 | K51: 35312.6 | L51: 0.4634405043 | M51: 13719.63 | N51: 5127.41 | O51: 7547.08 | P51: 2419.67 | Q51: 9136.79 | R51: 11652 | S51: 0.1529201689 | T51: 9562 | U51: 0.1254911307 | V51: 21213.79 | W51: 0.2784085436 | X51: 40192 | Y51: 0.5274774655 | Z51: 36005.02 | AA51: 0.472527784 | AB51: 7839 | AC51: 6553 | AD51: 5444 | AE51: 19836 | AF51: 0.2603265079 | AG51: 4518 | AH51: 3724 | AI51: 3073 | AJ51: 11315 | AK51: 0.1484974005 | AL51: 2526 | AM51: 0.03315107678 | AN51: 2040 | AO51: 1616 | AP51: 1252 | AQ51: 970 | AR51: 667 | AS51: 394 | AT51: 187 | AU51: 64 | AV51: 14 | AW51: 2 | AX51: 0 | AY51: 9732 | AZ51: 0.1277222008 | BA51: 33677 | BB51: 0.4419749852 | BC51: 7206 | BD51: 0.09457112402 | BE51: 26093.19 | BF51: 0.3424455048 | BG51: 28799.02 | BH51: 0.37795666
A52: 42 | C52: 226 | D52: Equatorial Guinea | F52: 1175.39 | G52: 74.27 | H52: 0.06318753775 | I52: 176.33 | J52: 0.1500182918 | K52: 439.89 | L52: 0.3742502489 | M52: 171.09 | N52: 64.28 | O52: 94.56 | P52: 30.28 | Q52: 113.94 | R52: 145 | S52: 0.1233633092 | T52: 118 | U52: 0.1003922102 | V52: 263.55 | W52: 0.2242234492 | X52: 499 | Y52: 0.4245399399 | Z52: 676.12 | AA52: 0.5752303491 | AB52: 99 | AC52: 111 | AD52: 121 | AE52: 331 | AF52: 0.2816086576 | AG52: 115 | AH52: 81 | AI52: 57 | AJ52: 253 | AK52: 0.215247705 | AL52: 43 | AM52: 0.03658360204 | AN52: 30 | AO52: 24 | AP52: 20 | AQ52: 13 | AR52: 10 | AS52: 6 | AT52: 3 | AU52: 1 | AV52: 0 | AW52: 0 | AX52: 0 | AY52: 150 | AZ52: 0.1276172164 | BA52: 627 | BB52: 0.5334399646 | BC52: 107 | BD52: 0.09103361437 | BE52: 322.67 | BF52: 0.2745216481 | BG52: 569.12 | BH52: 0.4841967347
A53: 43 | C53: 266 | D53: Gabon | F53: 1930.18 | G53: 111.62 | H53: 0.05782880353 | I53: 266.92 | J53: 0.1382876208 | K53: 690.26 | L53: 0.3576143158 | M53: 268.61 | N53: 98.66 | O53: 145.6 | P53: 46.94 | Q53: 178.85 | R53: 227 | S53: 0.1176056119 | T53: 196 | U53: 0.1015449336 | V53: 423.34 | W53: 0.2193266949 | X53: 801 | Y53: 0.4149872033 | Z53: 1129.41 | AA53: 0.5851319566 | AB53: 183 | AC53: 177 | AD53: 171 | AE53: 531 | AF53: 0.2751038763 | AG53: 156 | AH53: 132 | AI53: 107 | AJ53: 395 | AK53: 0.2046441265 | AL53: 84 | AM53: 0.04351925727 | AN53: 62 | AO53: 46 | AP53: 37 | AQ53: 30 | AR53: 24 | AS53: 17 | AT53: 11 | AU53: 5 | AV53: 1 | AW53: 0 | AX53: 0 | AY53: 317 | AZ53: 0.1642333876 | BA53: 1010 | BB53: 0.52326726 | BC53: 233 | BD53: 0.1207141303 | BE53: 534.08 | BF53: 0.2766995824 | BG53: 896.41 | BH53: 0.4644178263
A54: 44 | C54: 678 | D54: Sao Tome and Principe | F54: 195.55 | G54: 12.72 | H54: 0.06504730248 | I54: 30.96 | J54: 0.1583226796 | K54: 84.97 | L54: 0.4345180261 | M54: 33.83 | N54: 11.86 | O54: 17.64 | P54: 5.78 | Q54: 22.56 | R54: 28 | S54: 0.143185886 | T54: 26 | U54: 0.1329583227 | V54: 54 | W54: 0.2761442086 | X54: 98 | Y54: 0.5011506009 | Z54: 97.52 | AA54: 0.4986959857 | AB54: 21 | AC54: 17 | AD54: 16 | AE54: 54 | AF54: 0.2761442086 | AG54: 12 | AH54: 12 | AI54: 8 | AJ54: 32 | AK54: 0.1636410125 | AL54: 7 | AM54: 0.03579647149 | AN54: 5 | AO54: 4 | AP54: 3 | AQ54: 2 | AR54: 1 | AS54: 1 | AT54: 1 | AU54: 0 | AV54: 0 | AW54: 0 | AX54: 0 | AY54: 24 | AZ54: 0.1227307594 | BA54: 93 | BB54: 0.4755816927 | BC54: 17 | BD54: 0.08693428791 | BE54: 67.04 | BF54: 0.3428279212 | BG54: 80.52 | BH54: 0.4117616978
A55: 45 | C55: 912 | D55: Northern Africa | F55: 225135.66 | G55: 11906.52 | H55: 0.05288597995 | I55: 28062.05 | J55: 0.1246450696 | K55: 72764.35 | L55: 0.3232022417 | M55: 27996.38 | N55: 10194.56 | O55: 15046.1 | P55: 4851.54 | Q55: 18614.54 | R55: 23624 | S55: 0.1049322884 | T55: 21078 | U55: 0.09362355124 | V55: 44702.31 | W55: 0.1985572166 | X55: 84648 | Y55: 0.3759866385 | Z55: 140487.31 | AA55: 0.6240118069 | AB55: 19749 | AC55: 19953 | AD55: 19642 | AE55: 59344 | AF55: 0.2635921826 | AG55: 17835 | AH55: 15290 | AI55: 12805 | AJ55: 45930 | AK55: 0.2040103287 | AL55: 11243 | AM55: 0.04993877913 | AN55: 9741 | AO55: 8035 | AP55: 6285 | AQ55: 4536 | AR55: 3111 | AS55: 2211 | AT55: 1279 | AU55: 506 | AV55: 125 | AW55: 20 | AX55: 2 | AY55: 47094 | AZ55: 0.2091805447 | BA55: 116517 | BB55: 0.5175412904 | BC55: 35851 | BD55: 0.1592417656 | BE55: 56585.95 | BF55: 0.2513415689 | BG55: 104636.31 | BH55: 0.4647700413
A56: 46 | C56: 12 | D56: Algeria | F56: 39871.53 | G56: 1913.42 | H56: 0.0479896307 | I56: 4663.61 | J56: 0.1169659153 | K56: 11424.4 | L56: 0.2865302636 | M56: 4475.98 | N56: 1740.84 | O56: 2552.21 | P56: 811.37 | Q56: 2985.12 | R56: 3837 | S56: 0.09623407981 | T56: 2924 | U56: 0.07333553541 | V56: 6760.78 | W56: 0.1695640975 | X56: 13176 | Y56: 0.3304613593 | Z56: 26695.29 | AA56: 0.6695326214 | AB56: 3018 | AC56: 3596 | AD56: 3772 | AE56: 10386 | AF56: 0.2604866179 | AG56: 3597 | AH56: 3060 | AI56: 2478 | AJ56: 9135 | AK56: 0.2291108468 | AL56: 2110 | AM56: 0.0529199657 | AN56: 1795 | AO56: 1456 | AP56: 1224 | AQ56: 802 | AR56: 611 | AS56: 468 | AT56: 294 | AU56: 124 | AV56: 33 | AW56: 7 | AX56: 1 | AY56: 8925 | AZ56: 0.2238439307 | BA56: 21631 | BB56: 0.5425174304 | BC56: 6815 | BD56: 0.170923965 | BE56: 8512.39 | BF56: 0.213495444 | BG56: 19880.29 | BH56: 0.4986086564
A57: 47 | C57: 818 | D57: Egypt | F57: 93778.17 | G57: 5431.45 | H57: 0.05791806345 | I57: 12374.44 | J57: 0.131954377 | K57: 31075.14 | L57: 0.3313685904 | M57: 11626.66 | N57: 4276.86 | O57: 6286.58 | P57: 2009.72 | Q57: 7707.96 | R57: 9797 | S57: 0.1044699422 | T57: 8903 | U57: 0.09493680672 | V57: 18700.7 | W57: 0.1994142134 | X57: 35992 | Y57: 0.3837993426 | Z57: 57786.31 | AA57: 0.6162021502 | AB57: 8137 | AC57: 8206 | AD57: 8432 | AE57: 24775 | AF57: 0.2641872837 | AG57: 7390 | AH57: 6317 | AI57: 5215 | AJ57: 18922 | AK57: 0.2017740376 | AL57: 4567 | AM57: 0.04870003328 | AN57: 3957 | AO57: 3256 | AP57: 2478 | AQ57: 2037 | AR57: 1194 | AS57: 809 | AT57: 461 | AU57: 189 | AV57: 50 | AW57: 8 | AX57: 1 | AY57: 19007 | AZ57: 0.2026804319 | BA57: 48264 | BB57: 0.5146613546 | BC57: 14440 | BD57: 0.1539803986 | BE57: 23617.56 | BF57: 0.2518449656 | BG57: 43346.31 | BH57: 0.4622217516
A58: 48 | C58: 434 | D58: Libya | F58: 6234.96 | G58: 254.54 | H58: 0.04082464041 | I58: 629.9 | J58: 0.1010271116 | K58: 1783.33 | L58: 0.2860210811 | M58: 710.75 | N58: 246.46 | O58: 367.44 | P58: 120.98 | Q58: 473.94 | R58: 596 | S58: 0.09559002784 | T58: 557 | U58: 0.08933497569 | V58: 1153.43 | W58: 0.1849939695 | X58: 2106 | Y58: 0.3377728165 | Z58: 4129.13 | AA58: 0.6622544491 | AB58: 536 | AC58: 544 | AD58: 574 | AE58: 1654 | AF58: 0.2652783659 | AG58: 568 | AH58: 556 | AI58: 478 | AJ58: 1602 | AK58: 0.2569382963 | AL58: 371 | AM58: 0.05950318847 | AN58: 249 | AO58: 172 | AP58: 133 | AQ58: 94 | AR58: 77 | AS58: 54 | AT58: 30 | AU58: 12 | AV58: 3 | AW58: 0 | AX58: 0 | AY58: 1195 | AZ58: 0.1916612135 | BA58: 3627 | BB58: 0.5817198506 | BC58: 824 | BD58: 0.1321580251 | BE58: 1476.1 | BF58: 0.2367457049 | BG58: 3305.13 | BH58: 0.530096424
A59: 49 | C59: 504 | D59: Morocco | F59: 34803.32 | G59: 1437.37 | H59: 0.04129979554 | I59: 3456.78 | J59: 0.09932328295 | K59: 9626.41 | L59: 0.2765945893 | M59: 3757.49 | N59: 1304.46 | O59: 1940.59 | P59: 636.13 | Q59: 2500.05 | R59: 3146 | S59: 0.09039367509 | T59: 3023 | U59: 0.08685952949 | V59: 6169.63 | W59: 0.1772713063 | X59: 11391 | Y59: 0.3272963614 | Z59: 23412.17 | AA59: 0.6726993287 | AB59: 2958 | AC59: 3087 | AD59: 2941 | AE59: 8986 | AF59: 0.2581937585 | AG59: 2806 | AH59: 2390 | AI59: 2108 | AJ59: 7304 | AK59: 0.2098650359 | AL59: 1946 | AM59: 0.05591420589 | AN59: 1855 | AO59: 1622 | AP59: 1238 | AQ59: 761 | AR59: 631 | AS59: 470 | AT59: 258 | AU59: 91 | AV59: 13 | AW59: 1 | AX59: 0 | AY59: 8886 | AZ59: 0.2553204694 | BA59: 18236 | BB59: 0.5239730003 | BC59: 6940 | BD59: 0.1994062635 | BE59: 7934.22 | BF59: 0.2279730784 | BG59: 16472.17 | BH59: 0.4732930651
A60: 50 | C60: 729 | D60: Sudan | F60: 38647.8 | G60: 2410.91 | H60: 0.06238155859 | I60: 5858.97 | J60: 0.1515990561 | K60: 16034.06 | L60: 0.4148763966 | M60: 6350.55 | N60: 2235.91 | O60: 3323.77 | P60: 1087.86 | Q60: 4233.58 | R60: 5341 | S60: 0.1381967408 | T60: 4834 | U60: 0.1250782709 | V60: 10175.09 | W60: 0.2632773405 | X60: 18649 | Y60: 0.482537169 | Z60: 19999.25 | AA60: 0.5174744746 | AB60: 4226 | AC60: 3545 | AD60: 2862 | AE60: 10633 | AF60: 0.2751256216 | AG60: 2458 | AH60: 2076 | AI60: 1752 | AJ60: 6286 | AK60: 0.1626483267 | AL60: 1483 | AM60: 0.03837217125 | AN60: 1190 | AO60: 943 | AP60: 743 | AQ60: 549 | AR60: 376 | AS60: 232 | AT60: 118 | AU60: 46 | AV60: 12 | AW60: 2 | AX60: 0 | AY60: 5694 | AZ60: 0.1473305078 | BA60: 18402 | BB60: 0.4761461196 | BC60: 4211 | BD60: 0.1089583366 | BE60: 12790.03 | BF60: 0.3309381129 | BG60: 15788.25 | BH60: 0.408516138
A61: 51 | C61: 788 | D61: Tunisia | F61: 11273.66 | G61: 436 | H61: 0.03867421938 | I61: 1023.73 | J61: 0.0908072445 | K61: 2670.97 | L61: 0.2369212838 | M61: 1016.62 | N61: 369.6 | O61: 545.17 | P61: 175.57 | Q61: 675.08 | R61: 857 | S61: 0.07601790368 | T61: 791 | U61: 0.07016354937 | V61: 1647.25 | W61: 0.1461149263 | X61: 3158 | Y61: 0.2801219835 | Z61: 8116.11 | AA61: 0.7199179326 | AB61: 827 | AC61: 925 | AD61: 1010 | AE61: 2762 | AF61: 0.2449958576 | AG61: 966 | AH61: 846 | AI61: 737 | AJ61: 2549 | AK61: 0.2261022596 | AL61: 736 | AM61: 0.06528492078 | AN61: 672 | AO61: 567 | AP61: 459 | AQ61: 286 | AR61: 217 | AS61: 177 | AT61: 118 | AU61: 45 | AV61: 13 | AW61: 2 | AX61: 0 | AY61: 3292 | AZ61: 0.2920080967 | BA61: 6047 | BB61: 0.536383038 | BC61: 2556 | BD61: 0.226723176 | BE61: 2134.27 | BF61: 0.189314739 | BG61: 5560.11 | BH61: 0.4931947566
A62: 52 | C62: 732 | D62: Western Sahara | F62: 526.22 | G62: 22.82 | H62: 0.04336589259 | I62: 54.61 | J62: 0.1037778876 | K62: 150.05 | L62: 0.2851468967 | M62: 58.34 | N62: 20.43 | O62: 30.35 | P62: 9.92 | Q62: 38.8 | R62: 49 | S62: 0.09311694728 | T62: 47 | U62: 0.08931625556 | V62: 95.44 | W62: 0.1813690092 | X62: 177 | Y62: 0.3363612177 | Z62: 349.04 | AA62: 0.66329672 | AB62: 46 | AC62: 49 | AD62: 52 | AE62: 147 | AF62: 0.2793508419 | AG62: 50 | AH62: 45 | AI62: 37 | AJ62: 132 | AK62: 0.2508456539 | AL62: 30 | AM62: 0.05701037589 | AN62: 24 | AO62: 19 | AP62: 12 | AQ62: 6 | AR62: 3 | AS62: 2 | AT62: 1 | AU62: 0 | AV62: 0 | AW62: 0 | AX62: 0 | AY62: 97 | AZ62: 0.1843335487 | BA62: 309 | BB62: 0.5872068717 | BC62: 67 | BD62: 0.1273231728 | BE62: 122.39 | BF62: 0.2325833302 | BG62: 282.04 | BH62: 0.5359735472
A63: 53 | C63: 913 | D63: Southern Africa | F63: 63419.64 | G63: 2739.28 | H63: 0.04319292888 | I63: 6712.73 | J63: 0.1058462331 | K63: 19097.61 | L63: 0.3011308484 | M63: 7545.3 | N63: 2598.75 | O63: 3875.12 | P63: 1276.37 | Q63: 5026.44 | R63: 6318 | S63: 0.09962213598 | T63: 6067 | U63: 0.09566437148 | V63: 12384.88 | W63: 0.1952846153 | X63: 22709 | Y63: 0.3580751956 | Z63: 40710.55 | AA63: 0.6419233852 | AB63: 6019 | AC63: 6008 | AD63: 5904 | AE63: 17931 | AF63: 0.2827357582 | AG63: 5341 | AH63: 4418 | AI63: 3697 | AJ63: 13456 | AK63: 0.2121740205 | AL63: 3113 | AM63: 0.04908574063 | AN63: 2658 | AO63: 2242 | AP63: 1809 | AQ63: 1243 | AR63: 870 | AS63: 543 | AT63: 293 | AU63: 121 | AV63: 36 | AW63: 7 | AX63: 1 | AY63: 12936 | AZ63: 0.2039746678 | BA63: 34500 | BB63: 0.5439955194 | BC63: 9823 | BD63: 0.1548889272 | BE63: 15996.27 | BF63: 0.2522289625 | BG63: 30887.55 | BH63: 0.4870344581
A64: 54 | C64: 72 | D64: Botswana | F64: 2209.2 | G64: 105.63 | H64: 0.04781368821 | I64: 255.55 | J64: 0.1156753576 | K64: 702.34 | L64: 0.3179159877 | M64: 274.84 | N64: 96.79 | O64: 143.75 | P64: 46.96 | Q64: 182.97 | R64: 231 | S64: 0.1045627376 | T64: 216 | U64: 0.09777294948 | V64: 446.79 | W64: 0.2022406301 | X64: 831 | Y64: 0.376154264 | Z64: 1378.08 | AA64: 0.6237914177 | AB64: 215 | AC64: 215 | AD64: 212 | AE64: 642 | AF64: 0.2906029332 | AG64: 205 | AH64: 165 | AI64: 123 | AJ64: 493 | AK64: 0.2231577041 | AL64: 95 | AM64: 0.04300199167 | AN64: 77 | AO64: 65 | AP64: 52 | AQ64: 33 | AR64: 24 | AS64: 15 | AT64: 7 | AU64: 2 | AV64: 1 | AW64: 0 | AX64: 0 | AY64: 371 | AZ64: 0.1679340938 | BA64: 1230 | BB64: 0.556762629 | BC64: 276 | BD64: 0.1249321021 | BE64: 575.45 | BF64: 0.2604789064 | BG64: 1102.08 | BH64: 0.4988593156
A65: 55 | C65: 426 | D65: Lesotho | F65: 2174.65 | G65: 117.47 | H65: 0.05401788794 | I65: 280.08 | J65: 0.1287931391 | K65: 775.31 | L65: 0.3565217391 | M65: 299.6 | N65: 104.35 | O65: 155.04 | P65: 50.69 | Q65: 199.17 | R65: 251 | S65: 0.1154208723 | T65: 244 | U65: 0.1122019635 | V65: 495.23 | W65: 0.2277286 | X65: 926 | Y65: 0.4258156485 | Z65: 1248.49 | AA65: 0.5741107764 | AB65: 250 | AC65: 233 | AD65: 211 | AE65: 694 | AF65: 0.3191318143 | AG65: 174 | AH65: 123 | AI65: 85 | AJ65: 382 | AK65: 0.1756604511 | AL65: 66 | AM65: 0.03034971145 | AN65: 56 | AO65: 54 | AP65: 50 | AQ65: 39 | AR65: 24 | AS65: 18 | AT65: 11 | AU65: 4 | AV65: 1 | AW65: 0 | AX65: 0 | AY65: 323 | AZ65: 0.1485296484 | BA65: 1142 | BB65: 0.5251419769 | BC65: 257 | BD65: 0.118179937 | BE65: 645.92 | BF65: 0.2970225094 | BG65: 991.49 | BH65: 0.4559308394
A66: 56 | C66: 516 | D66: Namibia | F66: 2425.56 | G66: 141.56 | H66: 0.05836178037 | I66: 335.03 | J66: 0.1381248042 | K66: 898.04 | L66: 0.3702402744 | M66: 346 | N66: 123.04 | O66: 182.22 | P66: 59.18 | Q66: 230.02 | R66: 291 | S66: 0.1199722951 | T66: 272 | U66: 0.1121390524 | V66: 563.02 | W66: 0.232119593 | X66: 1059 | Y66: 0.4366002078 | Z66: 1366.76 | AA66: 0.5634822474 | AB66: 267 | AC66: 252 | AD66: 213 | AE66: 732 | AF66: 0.3017859793 | AG66: 171 | AH66: 145 | AI66: 118 | AJ66: 434 | AK66: 0.1789277528 | AL66: 95 | AM66: 0.03916621316 | AN66: 77 | AO66: 60 | AP66: 46 | AQ66: 34 | AR66: 24 | AS66: 15 | AT66: 8 | AU66: 3 | AV66: 1 | AW66: 0 | AX66: 0 | AY66: 363 | AZ66: 0.1496561619 | BA66: 1261 | BB66: 0.5198799452 | BC66: 268 | BD66: 0.1104899487 | BE66: 723.97 | BF66: 0.2984754036 | BG66: 1098.76 | BH66: 0.4529922987
A67: 57 | C67: 710 | D67: South Africa | F67: 55291.23 | G67: 2302.35 | H67: 0.04164041929 | I67: 5663.77 | J67: 0.1024352325 | K67: 16225.36 | L67: 0.2934526868 | M67: 6427.67 | N67: 2205.29 | O67: 3291.05 | P67: 1085.76 | Q67: 4282.8 | R67: 5380 | S67: 0.09730295383 | T67: 5182 | U67: 0.09372191575 | V67: 10561.6 | W67: 0.1910176352 | X67: 19307 | Y67: 0.3491873847 | Z67: 35984.59 | AA67: 0.6508191263 | AB67: 5137 | AC67: 5159 | AD67: 5134 | AE67: 15430 | AF67: 0.2790677654 | AG67: 4689 | AH67: 3915 | AI67: 3319 | AJ67: 11923 | AK67: 0.2156399849 | AL67: 2816 | AM67: 0.05093031933 | AN67: 2413 | AO67: 2035 | AP67: 1639 | AQ67: 1121 | AR67: 787 | AS67: 487 | AT67: 263 | AU67: 110 | AV67: 33 | AW67: 7 | AX67: 1 | AY67: 11712 | AZ67: 0.2118238281 | BA67: 30169 | BB67: 0.5456380695 | BC67: 8896 | BD67: 0.1608935088 | BE67: 13643.23 | BF67: 0.2467521522 | BG67: 27088.59 | BH67: 0.4899256175
A68: 58 | C68: 748 | D68: Swaziland | F68: 1319.01 | G68: 72.26 | H68: 0.05478351188 | I68: 178.31 | J68: 0.1351847219 | K68: 496.56 | L68: 0.3764641663 | M68: 197.19 | N68: 69.27 | O68: 103.06 | P68: 33.79 | Q68: 131.48 | R68: 166 | S68: 0.1258519647 | T68: 152 | U68: 0.1152379436 | V68: 318.25 | W68: 0.2412794444 | X68: 586 | Y68: 0.4442725984 | Z68: 732.64 | AA68: 0.5554468882 | AB68: 150 | AC68: 149 | AD68: 135 | AE68: 434 | AF68: 0.3290346548 | AG68: 102 | AH68: 70 | AI68: 51 | AJ68: 223 | AK68: 0.1690661936 | AL68: 42 | AM68: 0.03184206337 | AN68: 34 | AO68: 28 | AP68: 22 | AQ68: 17 | AR68: 12 | AS68: 7 | AT68: 4 | AU68: 1 | AV68: 0 | AW68: 0 | AX68: 0 | AY68: 167 | AZ68: 0.1266101091 | BA68: 699 | BB68: 0.5299429117 | BC68: 125 | BD68: 0.09476804573 | BE68: 407.69 | BF68: 0.3090878765 | BG68: 607.64 | BH68: 0.4606788425
A69: 59 | C69: 914 | D69: Western Africa | E69: 3 | F69: 352613.86 | G69: 25077.58 | H69: 0.07111909895 | I69: 59914.2 | J69: 0.1699144781 | K69: 154877.91 | L69: 0.4392280837 | M69: 60600.95 | N69: 22165.85 | O69: 32741.24 | P69: 10575.39 | Q69: 40373.48 | R69: 51284 | S69: 0.1454395468 | T69: 43679 | U69: 0.1238720452 | V69: 94963.71 | W69: 0.2693136055 | X69: 177749 | Y69: 0.5040896577 | Z69: 174864.64 | AA69: 0.4959097184 | AB69: 36843 | AC69: 30985 | AD69: 26514 | AE69: 94342 | AF69: 0.2675504587 | AG69: 22809 | AH69: 19023 | AI69: 15349 | AJ69: 57181 | AK69: 0.162163223 | AL69: 12275 | AM69: 0.03481145069 | AN69: 10004 | AO69: 7970 | AP69: 6087 | AQ69: 4455 | AR69: 2963 | AS69: 1600 | AT69: 652 | AU69: 178 | AV69: 27 | AW69: 2 | AX69: 0 | AY69: 46213 | AZ69: 0.1310583764 | BA69: 163798 | BB69: 0.4645251324 | BC69: 33938 | BD69: 0.09624692574 | BE69: 117834.8 | BF69: 0.3341751796 | BG69: 140926.64 | BH69: 0.3996627926
A70: 60 | C70: 204 | D70: Benin | F70: 10575.95 | G70: 725.53 | H70: 0.06860187501 | I70: 1739.04 | J70: 0.1644334552 | K70: 4551.58 | L70: 0.4303707941 | M70: 1783.09 | N70: 647.14 | O70: 957.04 | P70: 309.9 | Q70: 1187.93 | R70: 1507 | S70: 0.1424931094 | T70: 1306 | U70: 0.1234877245 | V70: 2812.54 | W70: 0.265937339 | X70: 5252 | Y70: 0.4965984143 | Z70: 5323.79 | AA70: 0.503386457 | AB70: 1134 | AC70: 965 | AD70: 802 | AE70: 2901 | AF70: 0.2743015994 | AG70: 667 | AH70: 554 | AI70: 458 | AJ70: 1679 | AK70: 0.1587564238 | AL70: 379 | AM70: 0.03583602419 | AN70: 305 | AO70: 237 | AP70: 183 | AQ70: 136 | AR70: 102 | AS70: 59 | AT70: 29 | AU70: 11 | AV70: 3 | AW70: 0 | AX70: 0 | AY70: 1444 | AZ70: 0.1365361977 | BA70: 4959 | BB70: 0.4688940473 | BC70: 1065 | BD70: 0.1007001735 | BE70: 3512.96 | BF70: 0.3321649592 | BG70: 4258.79 | BH70: 0.4026862835
A71: 61 | C71: 854 | D71: Burkina Faso | F71: 18110.62 | G71: 1310.2 | H71: 0.07234429302 | I71: 3161.24 | J71: 0.1745517271 | K71: 8253.73 | L71: 0.4557397814 | M71: 3254.84 | N71: 1185.71 | O71: 1753.63 | P71: 567.92 | Q71: 2170.08 | R71: 2755 | S71: 0.1521206894 | T71: 2338 | U71: 0.1290955252 | V71: 5092.49 | W71: 0.2811880543 | X71: 9476 | Y71: 0.5232289121 | Z71: 8634.18 | AA71: 0.4767467928 | AB71: 1968 | AC71: 1642 | AD71: 1367 | AE71: 4977 | AF71: 0.2748111329 | AG71: 1147 | AH71: 927 | AI71: 724 | AJ71: 2798 | AK71: 0.1544949869 | AL71: 583 | AM71: 0.03219105696 | AN71: 454 | AO71: 350 | AP71: 259 | AQ71: 190 | AR71: 132 | AS71: 73 | AT71: 31 | AU71: 9 | AV71: 1 | AW71: 0 | AX71: 0 | AY71: 2082 | AZ71: 0.1149601725 | BA71: 8358 | BB71: 0.4614971768 | BC71: 1499 | BD71: 0.08276911558 | BE71: 6314.76 | BF71: 0.348677185 | BG71: 7135.18 | BH71: 0.3939776772
A72: 62 | C72: 132 | D72: Cabo Verde | F72: 532.91 | G72: 21.84 | H72: 0.04098252988 | I72: 54.77 | J72: 0.1027753279 | K72: 166.09 | L72: 0.311666135 | M72: 66.4 | N72: 22.01 | O72: 33.04 | P72: 11.03 | Q72: 44.26 | R72: 55 | S72: 0.1032069205 | T72: 56 | U72: 0.10508341 | V72: 111.33 | W72: 0.208909572 | X72: 201 | Y72: 0.3771743822 | Z72: 332.33 | AA72: 0.6236137434 | AB72: 58 | AC72: 57 | AD72: 52 | AE72: 167 | AF72: 0.3133737404 | AG72: 43 | AH72: 32 | AI72: 26 | AJ72: 101 | AK72: 0.1895254358 | AL72: 25 | AM72: 0.04691223659 | AN72: 23 | AO72: 16 | AP72: 12 | AQ72: 6 | AR72: 6 | AS72: 6 | AT72: 4 | AU72: 2 | AV72: 0 | AW72: 0 | AX72: 0 | AY72: 100 | AZ72: 0.1876489464 | BA72: 293 | BB72: 0.5498114128 | BC72: 75 | BD72: 0.1407367098 | BE72: 146.23 | BF72: 0.2743990542 | BG72: 257.33 | BH72: 0.4828770336
A73: 63 | C73: 384 | D73: Côte d'Ivoire | F73: 23108.47 | G73: 1582.76 | H73: 0.06849263495 | I73: 3764.66 | J73: 0.1629125598 | K73: 9867.89 | L73: 0.4270248095 | M73: 3838.31 | N73: 1387.83 | O73: 2052.19 | P73: 664.36 | Q73: 2555.14 | R73: 3239 | S73: 0.1401650564 | T73: 2865 | U73: 0.1239805145 | V73: 6103.23 | W73: 0.2641122498 | X73: 11440 | Y73: 0.4950565745 | Z73: 11668.42 | AA73: 0.5049412618 | AB73: 2545 | AC73: 2126 | AD73: 1743 | AE73: 6414 | AF73: 0.2775605655 | AG73: 1453 | AH73: 1233 | AI73: 999 | AJ73: 3685 | AK73: 0.1594653389 | AL73: 816 | AM73: 0.03531172769 | AN73: 678 | AO73: 554 | AP73: 429 | AQ73: 301 | AR73: 200 | AS73: 108 | AT73: 44 | AU73: 12 | AV73: 2 | AW73: 0 | AX73: 0 | AY73: 3144 | AZ73: 0.1360540096 | BA73: 10915 | BB73: 0.472337632 | BC73: 2328 | BD73: 0.1007422819 | BE73: 7675.34 | BF73: 0.3321440147 | BG73: 9340.42 | BH73: 0.4041989799
A74: 64 | C74: 270 | D74: Gambia | F74: 1977.59 | G74: 147.98 | H74: 0.07482845281 | I74: 351.97 | J74: 0.1779792576 | K74: 903.15 | L74: 0.4566922365 | M74: 352.05 | N74: 129.32 | O74: 190.84 | P74: 61.52 | Q74: 234.46 | R74: 298 | S74: 0.1506884642 | T74: 253 | U74: 0.1279334948 | V74: 551.18 | W74: 0.2787129789 | X74: 1036 | Y74: 0.5238699629 | Z74: 941.72 | AA74: 0.4761957736 | AB74: 214 | AC74: 179 | AD74: 150 | AE74: 543 | AF74: 0.2745766312 | AG74: 128 | AH74: 104 | AI74: 75 | AJ74: 307 | AK74: 0.1552394581 | AL74: 64 | AM74: 0.03236262319 | AN74: 49 | AO74: 38 | AP74: 28 | AQ74: 18 | AR74: 15 | AS74: 8 | AT74: 4 | AU74: 1 | AV74: 0 | AW74: 0 | AX74: 0 | AY74: 225 | AZ74: 0.1137748472 | BA74: 914 | BB74: 0.4621787125 | BC74: 161 | BD74: 0.08141222397 | BE74: 684.03 | BF74: 0.3458907054 | BG74: 780.72 | BH74: 0.3947835497
A75: 65 | C75: 288 | D75: Ghana | F75: 27582.82 | G75: 1665.19 | H75: 0.06037054949 | I75: 4022.86 | J75: =I75/F75 -> 0.1458465813 | K75: 10701.09 | L75: =K75/F75 -> 0.3879621446 | M75: 4203.25 | N75: 1514.06 | O75: 2242.18 | P75: 728.12 | Q75: 2800.72 | R75: 3548 | S75: =R75/F75 -> 0.1286307926 | T75: 3130 | U75: =T75/F75 -> 0.1134764321 | V75: 6678.23 | W75: =V75/F75 -> 0.2421155632 | X75: 12462 | Y75: =X75/F75 -> 0.4518029701 | Z75: 15120.89 | AA75: =Z75/F75 -> 0.5481995677 | AB75: 2879 | AC75: 2562 | AD75: 2252 | AE75: 7693 | AF75: =AE75/F75 -> 0.2789054926 | AG75: 1972 | AH75: 1663 | AI75: 1375 | AJ75: 5010 | AK75: =AJ75/F75 -> 0.1816348002 | AL75: 1134 | AM75: =AL75/F75 -> 0.04111254759 | AN75: 892 | AO75: 705 | AP75: 513 | AQ75: 397 | AR75: 251 | AS75: 163 | AT75: 86 | AU75: 32 | AV75: 6 | AW75: 0 | AX75: 0 | AY75: 4179 | AZ75: =AY75/F75 -> 0.1515073513 | BA75: =AE75+AJ75+AL75 -> 13837 | BB75: =BA75/F75 -> 0.5016528404 | BC75: 3045 | BD75: =BC75/F75 -> 0.1103948037 | BE75: =X75-I75 -> 8439.14 | BF75: =BE75/F75 -> 0.3059563888 | BG75: =Z75-BC75 -> 12075.89 | BH75: =BG75/F75 -> 0.437804764
A76: 66 | C76: 324 | D76: Guinea | F76: 12091.53 | G76: 809.21 | H76: =G76/F76 -> 0.0669237061 | I76: 1949.42 | J76: 0.1612219463 | K76: 5157.06 | L76: 0.4265018571 | M76: 2029.21 | N76: 731.45 | O76: 1083.15 | P76: =O76-N76 -> 351.7 | Q76: 1352.36 | R76: 1713 | S76: 0.1416694165 | T76: 1494 | U76: 0.1235575647 | V76: 3207.64 | W76: 0.2652799108 | X76: 5955 | Y76: 0.4924935058 | Z76: 6136.38 | AA76: 0.5074940888 | AB76: 1291 | AC76: 1105 | AD76: 927 | AE76: =AB76+AC76+AD76 -> 3323 | AF76: 0.2748204735 | AG76: 768 | AH76: 629 | AI76: 511 | AJ76: 1908 | AK76: 0.1577964079 | AL76: 423 | AM76: 0.0349831659 | AN76: 361 | AO76: 304 | AP76: 246 | AQ76: 160 | AR76: 111 | AS76: 63 | AT76: 26 | AU76: 7 | AV76: 1 | AW76: 0 | AX76: 0 | AY76: =SUM(AN76:AX76)+AL76 -> 1702 | AZ76: 0.1407596888 | BA76: 5654 | BB76: 0.4676000473 | BC76: 1279 | BD76: 0.1057765229 | BE76: 4005.58 | BF76: 0.3312715595 | BG76: 4857.38 | BH76: 0.4017175659
A77: 67 | C77: 624 | D77: Guinea-Bissau | F77: 1770.53 | G77: 119.41 | H77: 0.06744308201 | I77: 285.49 | J77: 0.1612455028 | K77: 738.2 | L77: 0.4169373013 | M77: 288.04 | N77: 105.6 | O77: 155.91 | P77: 50.31 | Q77: 191.84 | R77: 244 | S77: 0.1378118417 | T77: 209 | U77: 0.1180437496 | V77: 452.7 | W77: 0.2556861505 | X77: 852 | Y77: 0.4812118405 | Z77: 918.37 | AA77: 0.5186977911 | AB77: 186 | AC77: 169 | AD77: 147 | AE77: 502 | AF77: 0.2835309201 | AG77: 123 | AH77: 95 | AI77: 77 | AJ77: 295 | AK77: 0.1666167758 | AL77: 59 | AM77: 0.03332335515 | AN77: 49 | AO77: 40 | AP77: 36 | AQ77: 23 | AR77: 15 | AS77: 8 | AT77: 3 | AU77: 1 | AV77: 0 | AW77: 0 | AX77: 0 | AY77: 234 | AZ77: 0.1321638154 | BA77: 856 | BB77: 0.483471051 | BC77: 175 | BD77: 0.0988404602 | BE77: 566.51 | BF77: 0.3199663378 | BG77: 743.37 | BH77: 0.4198573309
A78: 68 | C78: 430 | D78: Liberia | F78: 4499.62 | G78: 290.27 | H78: 0.06450989195 | I78: 704.63 | J78: 0.1565976682 | K78: 1907.17 | L78: 0.4238513474 | M78: 756.35 | N78: 268.16 | O78: 398.27 | P78: 130.11 | Q78: 504.34 | R78: 637 | S78: 0.1415675101 | T78: 565 | U78: 0.1255661589 | V78: 1202.54 | W78: 0.2672536792 | X78: 2204 | Y78: 0.4898191403 | Z78: 2295.83 | AA78: 0.5102275303 | AB78: 476 | AC78: 390 | AD78: 344 | AE78: 1210 | AF78: 0.268911597 | AG78: 302 | AH78: 251 | AI78: 206 | AJ78: 759 | AK78: 0.1686809108 | AL78: 166 | AM78: 0.03689200421 | AN78: 134 | AO78: 107 | AP78: 81 | AQ78: 57 | AR78: 43 | AS78: 24 | AT78: 10 | AU78: 3 | AV78: 0 | AW78: 0 | AX78: 0 | AY78: 625 | AZ78: 0.1389006183 | BA78: 2135 | BB78: 0.474484512 | BC78: 459 | BD78: 0.1020086141 | BE78: 1499.37 | BF78: 0.333221472 | BG78: 1836.83 | BH78: 0.4082189163
A79: 69 | C79: 466 | D79: Mali | F79: 17467.91 | G79: 1359.16 | H79: 0.07780896513 | I79: 3274.15 | J79: 0.1874379934 | K79: 8372.3 | L79: 0.4792960348 | M79: 3303.73 | N79: 1221.64 | O79: 1803.15 | P79: 581.51 | Q79: 2203.38 | R79: 2805 | S79: 0.1605801724 | T79: 2294 | U79: 0.1313265296 | V79: 5098.15 | W79: 0.2918580414 | X79: 9524 | Y79: 0.5452283645 | Z79: 7943.98 | AA79: 0.4547756429 | AB79: 1841 | AC79: 1500 | AD79: 1229 | AE79: 4570 | AF79: 0.2616225982 | AG79: 1042 | AH79: 867 | AI79: 692 | AJ79: 2601 | AK79: 0.1489016144 | AL79: 519 | AM79: 0.02971162549 | AN79: 389 | AO79: 312 | AP79: 260 | AQ79: 183 | AR79: 138 | AS79: 75 | AT79: 34 | AU79: 10 | AV79: 2 | AW79: 0 | AX79: 0 | AY79: 1922 | AZ79: 0.1100303356 | BA79: 7690 | BB79: 0.4402358382 | BC79: 1403 | BD79: 0.08031871014 | BE79: 6249.85 | BF79: 0.357790371 | BG79: 6540.98 | BH79: 0.3744569327
A80: 70 | C80: 478 | D80: Mauritania | F80: 4182.34 | G80: 267.36 | H80: 0.0639259362 | I80: 640.17 | J80: 0.1530650306 | K80: 1682.94 | L80: 0.4023919624 | M80: 658.19 | N80: 238.05 | O80: 352.17 | P80: 114.12 | Q80: 438.38 | R80: 556 | S80: 0.1329399331 | T80: 487 | U80: 0.1164419918 | V80: 1042.77 | W80: 0.2493269318 | X80: 1947 | Y80: 0.4655288666 | Z80: 2234.87 | AA80: 0.5343587561 | AB80: 430 | AC80: 381 | AD80: 336 | AE80: 1147 | AF80: 0.2742483873 | AG80: 290 | AH80: 247 | AI80: 205 | AJ80: 742 | AK80: 0.1774126446 | AL80: 166 | AM80: 0.03969069946 | AN80: 133 | AO80: 104 | AP80: 76 | AQ80: 55 | AR80: 38 | AS80: 23 | AT80: 11 | AU80: 3 | AV80: 1 | AW80: 0 | AX80: 0 | AY80: 610 | AZ80: 0.1458513655 | BA80: 2055 | BB80: 0.4913517313 | BC80: 444 | BD80: 0.106160666 | BE80: 1306.83 | BF80: 0.312463836 | BG80: 1790.87 | BH80: 0.4281980901
A81: 71 | C81: 562 | D81: Niger | F81: 19896.97 | G81: 1738.52 | H81: 0.08737611807 | I81: 4066.1 | J81: 0.2043577489 | K81: 9988.71 | L81: 0.5020216646 | M81: 3849.93 | N81: 1452.27 | O81: 2133.31 | P81: 681.04 | Q81: 2562.26 | R81: 3273 | S81: 0.1644974084 | T81: 2650 | U81: 0.1331861082 | V81: 5922.61 | W81: 0.2976639157 | X81: 11291 | Y81: 0.5674733389 | Z81: 8606.27 | AA81: 0.4325417388 | AB81: 2054 | AC81: 1528 | AD81: 1234 | AE81: 4816 | AF81: 0.2420469046 | AG81: 1052 | AH81: 890 | AI81: 721 | AJ81: 2663 | AK81: 0.1338394741 | AL81: 600 | AM81: 0.03015534526 | AN81: 568 | AO81: 439 | AP81: 317 | AQ81: 232 | AR81: 152 | AS81: 79 | AT81: 33 | AU81: 9 | AV81: 1 | AW81: 0 | AX81: 0 | AY81: 2430 | AZ81: 0.1221291483 | BA81: 8079 | BB81: 0.4060417239 | BC81: 1830 | BD81: 0.09197380305 | BE81: 7224.9 | BF81: 0.36311559 | BG81: 6776.27 | BH81: 0.3405679357
A82: 72 | C82: 566 | D82: Nigeria | F82: 181181.74 | G82: 13066.94 | H82: 0.07212062319 | I82: 31109.16 | J82: 0.1717014088 | K82: 79928.27 | L82: 0.4411496986 | M82: 31206.43 | N82: 11449.02 | O82: 16900.73 | P82: 5451.71 | Q82: 20786.4 | R82: 26418 | S82: 0.1458093956 | T82: 22401 | U82: 0.1236382872 | V82: 48819.11 | W82: 0.2694482899 | X82: 91524 | Y82: 0.5051502431 | Z82: 89657.95 | AA82: 0.494850916 | AB82: 18649 | AC82: 15671 | AD82: 13565 | AE82: 47885 | AF82: 0.2642926379 | AG82: 11795 | AH82: 9884 | AI82: 7965 | AJ82: 29644 | AK82: 0.1636147219 | AL82: 6320 | AM82: 0.03488210236 | AN82: 5165 | AO82: 4131 | AP82: 3151 | AQ82: 2336 | AR82: 1509 | AS82: 765 | AT82: 277 | AU82: 63 | AV82: 7 | AW82: 0 | AX82: 0 | AY82: 23724 | AZ82: 0.1309403475 | BA82: 83849 | BB82: 0.4627894621 | BC82: 17404 | BD82: 0.09605824516 | BE82: 60414.84 | BF82: 0.3334488343 | BG82: 72253.95 | BH82: 0.3987926708
A83: 73 | C83: 686 | D83: Senegal | F83: 14976.99 | G83: 1035.45 | H83: 0.06913605471 | I83: 2492.79 | J83: 0.166441321 | K83: 6449.14 | L83: 0.430603212 | M83: 2533.68 | N83: 930.25 | O83: 1373.97 | P83: 443.72 | Q83: 1688.79 | R83: 2147 | S83: 0.1433532372 | T83: 1809 | U83: 0.1207852846 | V83: 3956.35 | W83: 0.264161891 | X83: 7416 | Y83: 0.4951595748 | Z83: 7561.41 | AA83: 0.5048684682 | AB83: 1570 | AC83: 1385 | AD83: 1201 | AE83: 4156 | AF83: 0.2774923399 | AG83: 1021 | AH83: 810 | AI83: 641 | AJ83: 2472 | AK83: 0.1650531916 | AL83: 497 | AM83: 0.03318423795 | AN83: 393 | AO83: 312 | AP83: 250 | AQ83: 180 | AR83: 134 | AS83: 84 | AT83: 38 | AU83: 11 | AV83: 2 | AW83: 0 | AX83: 0 | AY83: 1901 | AZ83: 0.1269280409 | BA83: 7125 | BB83: 0.4757297695 | BC83: 1404 | BD83: 0.09374380299 | BE83: 4923.21 | BF83: 0.3287182538 | BG83: 6157.41 | BH83: 0.4111246652
A84: 74 | C84: 694 | D84: Sierra Leone | F84: 7237.03 | G84: 461.76 | H84: 0.06380517975 | I84: 1135.22 | J84: 0.1568626909 | K84: 3092.62 | L84: 0.4273327594 | M84: 1235.62 | N84: 438.64 | O84: 651.84 | P84: 213.2 | Q84: 824.58 | R84: 1042 | S84: 0.1439817163 | T84: 915 | U84: 0.126433081 | V84: 1957.4 | W84: 0.2704700685 | X84: 3581 | Y84: 0.4948162437 | Z84: 3655.62 | AA84: 0.5051271032 | AB84: 789 | AC84: 665 | AD84: 568 | AE84: 2022 | AF84: 0.2793963822 | AG84: 490 | AH84: 403 | AI84: 326 | AJ84: 1219 | AK84: 0.1684392631 | AL84: 253 | AM84: 0.03495909233 | AN84: 198 | AO84: 153 | AP84: 119 | AQ84: 88 | AR84: 55 | AS84: 27 | AT84: 9 | AU84: 2 | AV84: 0 | AW84: 0 | AX84: 0 | AY84: 904 | AZ84: 0.1249131204 | BA84: 3494 | BB84: 0.4827947376 | BC84: 651 | BD84: 0.0899540281 | BE84: 2445.78 | BF84: 0.3379535528 | BG84: 3004.62 | BH84: 0.4151730751
A85: 75 | C85: 768 | D85: Togo | F85: 7416.8 | G85: 475.92 | H85: 0.06416783518 | I85: 1162.34 | J85: 0.1567171826 | K85: 3117.31 | L85: 0.4203039046 | M85: 1241.61 | N85: 444.63 | O85: 659.71 | P85: 215.08 | Q85: 828.39 | R85: 1048 | S85: 0.1413008305 | T85: 907 | U85: 0.1222899364 | V85: 1954.96 | W85: 0.2635853737 | X85: 3587 | Y85: 0.4836317549 | Z85: 3829.51 | AA85: 0.5163291446 | AB85: 759 | AC85: 661 | AD85: 595 | AE85: 2015 | AF85: 0.2716805091 | AG85: 516 | AH85: 434 | AI85: 349 | AJ85: 1299 | AK85: 0.1751429188 | AL85: 272 | AM85: 0.036673498 | AN85: 213 | AO85: 166 | AP85: 128 | AQ85: 94 | AR85: 62 | AS85: 34 | AT85: 14 | AU85: 4 | AV85: 1 | AW85: 0 | AX85: 0 | AY85: 988 | AZ85: 0.1332110883 | BA85: 3586 | BB85: 0.4834969259 | BC85: 716 | BD85: 0.09653759034 | BE85: 2424.66 | BF85: 0.3269145723 | BG85: 3113.51 | BH85: 0.4197915543
A86: 76 | C86: 935 | D86: ASIA | F86: 4419897.6 | G86: 147015.09 | H86: 0.03326210318 | I86: 368116.98 | J86: 0.08328631414 | K86: 1085155.47 | L86: 0.2455159753 | M86: 434808.97 | N86: 146983.98 | O86: 220056.5 | P86: 73072.52 | Q86: 289972.45 | R86: 363350 | S86: 0.0822077869 | T86: 353688 | U86: 0.0800217634 | V86: 717038.49 | W86: 0.1622296612 | X86: 1294773 | Y86: 0.2929418546 | Z86: 3125124.59 | AA86: 0.7070581432 | AB86: 350920 | AC86: 366183 | AD86: 385471 | AE86: 1102574 | AF86: 0.2494569105 | AG86: 342465 | AH86: 310089 | AI86: 312421 | AJ86: 964975 | AK86: 0.2183251938 | AL86: 296069 | AM86: 0.06698548853 | AN86: 251865 | AO86: 205417 | AP86: 179101 | AQ86: 125063 | AR86: 87041 | AS86: 61886 | AT86: 36858 | AU86: 16879 | AV86: 5557 | AW86: 1270 | AX86: 190 | AY86: 1267196 | AZ86: 0.2867025698 | BA86: 2363618 | BB86: 0.5347675928 | BC86: 971127 | BD86: 0.2197170812 | BE86: 926656.02 | BF86: 0.2096555404 | BG86: 2153997.59 | BH86: 0.4873410619
A87: 77 | C87: 906 | D87: Eastern Asia | F87: 1635150.37 | G87: 38965.21 | H87: 0.02382974111 | I87: 96913.27 | J87: 0.05926872034 | K87: 281036.15 | L87: 0.1718717466 | M87: 111750.89 | N87: 38236.97 | O87: 57108.63 | P87: 18871.66 | Q87: 74465.18 | R87: 93506 | S87: 0.0571849548 | T87: 90617 | U87: 0.05541814482 | V87: 184122.88 | W87: 0.1126030262 | X87: 335858 | Y87: 0.2053988466 | Z87: 1299292.27 | AA87: 0.7946010923 | AB87: 94063 | AC87: 115383 | AD87: 144099 | AE87: 353545 | AF87: 0.2162155888 | AG87: 118149 | AH87: 112776 | AI87: 137806 | AJ87: 368731 | AK87: 0.225502808 | AL87: 142271 | AM87: 0.08700790007 | AN87: 118593 | AO87: 95584 | AP87: 93761 | AQ87: 66419 | AR87: 45763 | AS87: 33759 | AT87: 21205 | AU87: 10060 | AV87: 3474 | AW87: 830 | AX87: 117 | AY87: 631836 | AZ87: 0.3864084989 | BA87: 864547 | BB87: 0.5287262969 | BC87: 489565 | BD87: 0.2994005989 | BE87: 238944.73 | BF87: 0.1461301262 | BG87: 809727.27 | BH87: 0.4952004934
A88: 78 | C88: 156 | D88: China | E88: 4 | F88: 1397028.55 | G88: 34542.32 | H88: 0.02472556484 | I88: 85884.7 | J88: 0.06147669638 | K88: 247072.79 | L88: 0.1768559347 | M88: 98329.49 | N88: 33830.52 | O88: 50489.9 | P88: 16659.38 | Q88: 65531.05 | R88: 82367 | S88: 0.05895870918 | T88: 78821 | U88: 0.05642046471 | V88: 161188.09 | W88: 0.1153792383 | X88: 294096 | Y88: 0.2105153828 | Z88: 1102932.92 | AA88: 0.789484882 | AB88: 80820 | AC88: 101287 | AD88: 129735 | AE88: 311842 | AF88: 0.2232180581 | AG88: 102116 | AH88: 96078 | AI88: 118700 | AJ88: 316894 | AK88: 0.2268343049 | AL88: 124372 | AM88: 0.08902609757 | AN88: 102186 | AO88: 79973 | AP88: 79509 | AQ88: 52347 | AR88: 34699 | AS88: 24878 | AT88: 14730 | AU88: 6203 | AV88: 1869 | AW88: 401 | AX88: 51 | AY88: 521218 | AZ88: 0.3730904426 | BA88: 753108 | BB88: 0.5390784605 | BC88: 396846 | BD88: 0.284064345 | BE88: 208211.3 | BF88: 0.1490386864 | BG88: 706086.92 | BH88: 0.505420537
A89: 79 | C89: 344 | D89: China, Hong Kong SAR | E89: 5 | F89: 7245.7 | G89: 103.47 | H89: 0.01428019377 | I89: 275.07 | J89: 0.03796320576 | K89: 809.99 | L89: 0.1117890611 | M89: 326.37 | N89: 115.35 | O89: 171.86 | P89: 56.51 | Q89: 217.93 | R89: 275 | S89: 0.03795354486 | T89: 260 | U89: 0.03588335151 | V89: 534.91 | W89: 0.07382447521 | X89: 1013 | Y89: 0.139807058 | Z89: 6233 | AA89: 0.8602343459 | AB89: 359 | AC89: 450 | AD89: 505 | AE89: 1314 | AF89: 0.181348938 | AG89: 572 | AH89: 562 | AI89: 569 | AJ89: =AG89+AH89+AI89 -> 1703 | AK89: 0.2350359524 | AL89: 577 | AM89: 0.07963343776 | AN89: 653 | AO89: 608 | AP89: 477 | AQ89: 367 | AR89: 202 | AS89: 214 | AT89: 164 | AU89: 100 | AV89: 42 | AW89: 13 | AX89: 2 | AY89: 3419 | AZ89: 0.4718660723 | BA89: 3594 | BB89: 0.4960183281 | BC89: 2842 | BD89: 0.3922326345 | BE89: 737.93 | BF89: 0.1018438522 | BG89: 3391 | BH89: 0.4680017114
A90: 80 | C90: 446 | D90: China, Macao SAR | E90: 6 | F90: 600.94 | G90: 14.04 | H90: 0.02336339734 | I90: 32.35 | J90: 0.05383232935 | K90: 74.62 | L90: 0.1241721303 | M90: 26.69 | N90: 11 | O90: 15.9 | P90: 4.9 | Q90: 17.64 | R90: 23 | S90: 0.03827337172 | T90: 19 | U90: 0.03161713316 | V90: 42.27 | W90: 0.07033980098 | X90: 92 | Y90: 0.1530934869 | Z90: 509.38 | AA90: 0.8476386994 | AB90: 31 | AC90: 48 | AD90: 64 | AE90: 143 | AF90: 0.2379605285 | AG90: 60 | AH90: 43 | AI90: 49 | AJ90: 152 | AK90: 0.2529370653 | AL90: 47 | AM90: 0.07821080308 | AN90: 53 | AO90: 45 | AP90: 35 | AQ90: 22 | AR90: 10 | AS90: 8 | AT90: 6 | AU90: 4 | AV90: 2 | AW90: 0 | AX90: 0 | AY90: 232 | AZ90: 0.3860618365 | BA90: 342 | BB90: 0.5691083968 | BC90: 185 | BD90: 0.3078510334 | BE90: 59.65 | BF90: 0.09926115752 | BG90: 324.38 | BH90: 0.539787666
A91: 81 | C91: 408 | D91: Dem. People's Republic of Korea | F91: 23485.76 | G91: 443.4 | H91: 0.0188795253 | I91: 1024.49 | J91: 0.04362175207 | K91: 3233.43 | L91: 0.1376761919 | M91: 1202.59 | N91: 375.09 | O91: 564.31 | P91: 189.22 | Q91: 794.7 | R91: 982 | S91: 0.04181257068 | T91: 1227 | U91: 0.05224442386 | V91: 2208.94 | W91: 0.0940544398 | X91: 4122 | Y91: 0.1755106073 | Z91: 19363.28 | AA91: 0.8244689548 | AB91: 1519 | AC91: 1610 | AD91: 1607 | AE91: 4736 | AF91: 0.2016541087 | AG91: 1926 | AH91: 2009 | AI91: 1767 | AJ91: 5702 | AK91: 0.2427854155 | AL91: 1849 | AM91: 0.07872855722 | AN91: 1871 | AO91: 1729 | AP91: 1485 | AQ91: 917 | AR91: 673 | AS91: 558 | AT91: 389 | AU91: 237 | AV91: 85 | AW91: 18 | AX91: 2 | AY91: 9813 | AZ91: 0.4178276539 | BA91: 12287 | BB91: 0.5231680814 | BC91: 7964 | BD91: 0.3390990966 | BE91: 3097.51 | BF91: 0.1318888552 | BG91: 11399.28 | BH91: 0.4853698582
A92: 82 | C92: 392 | D92: Japan | F92: 25243.92 | G92: 698.04 | H92: 0.02765180685 | I92: 1709.65 | J92: 0.06772521859 | K92: 5328.22 | L92: 0.2110694377 | M92: 2098.3 | N92: 673.61 | O92: 1014.56 | P92: 340.95 | Q92: 1395.71 | R92: 1733 | S92: 0.06865019379 | T92: 1885 | U92: 0.07467144564 | V92: 3618.57 | W92: 0.1433442191 | X92: 6491 | Y92: 0.2571312221 | Z92: 18752.54 | AA92: 0.7428537248 | AB92: 1954 | AC92: 2005 | AD92: 1872 | AE92: 5831 | AF92: 0.2309863127 | AG92: 1811 | AH92: 1576 | AI92: 2190 | AJ92: 5577 | AK92: 0.220924484 | AL92: 2184 | AM92: 0.08651588184 | AN92: 1536 | AO92: 1587 | AP92: 754 | AQ92: 898 | AR92: 749 | AS92: 492 | AT92: 215 | AU92: 74 | AV92: 17 | AW92: 2 | AX92: 0 | AY92: 8508 | AZ92: 0.3370316496 | BA92: 13592 | BB92: 0.5384266786 | BC92: 6324 | BD92: 0.2505157678 | BE92: 4781.35 | BF92: 0.1894060035 | BG92: 12428.54 | BH92: 0.492337957
A93: 83 | C93: 496 | D93: Mongolia | F93: 127974.96 | G93: 2124.44 | H93: 0.01660043496 | I93: 5395.54 | J93: 0.04216090398 | K93: 16625.51 | L93: 0.129912211 | M93: 6681.45 | N93: 2202.7 | O93: 3311.45 | P93: 1108.75 | Q93: 4455.72 | R93: 5560 | S93: 0.04344599912 | T93: 5670 | U93: 0.04430554227 | V93: 11229.97 | W93: 0.08775130697 | X93: 20192 | Y93: 0.1577808659 | Z93: 107783.21 | AA93: 0.8422210876 | AB93: 5980 | AC93: 6139 | AD93: 6756 | AE93: 18875 | AF93: 0.1474897902 | AG93: 7609 | AH93: 8481 | AI93: 10046 | AJ93: 26136 | AK93: 0.204227452 | AL93: 8722 | AM93: 0.06815395762 | AN93: 7988 | AO93: 7661 | AP93: 8674 | AQ93: 9627 | AR93: 7704 | AS93: 6255 | AT93: 4876 | AU93: 3073 | AV93: 1328 | AW93: 372 | AX93: 58 | AY93: 66338 | AZ93: 0.5183670306 | BA93: 53733 | BB93: 0.4198711998 | BC93: 57616 | BD93: 0.4502130729 | BE93: 14796.46 | BF93: 0.1156199619 | BG93: 50167.21 | BH93: 0.3920080147
A94: 84 | C94: 410 | D94: Republic of Korea | F94: 2976.88 | G94: 152.64 | H94: 0.05127516057 | I94: 359.08 | J94: 0.1206229341 | K94: 856.75 | L94: 0.2878013222 | M94: 325.5 | N94: 127.73 | O94: 186.54 | P94: 58.81 | Q94: 216.4 | R94: 279 | S94: 0.09372228642 | T94: 219 | U94: 0.07356695601 | V94: 497.67 | W94: 0.1671783881 | X94: 990 | Y94: 0.3325629518 | Z94: 1986.97 | AA94: 0.6674672812 | AB94: 229 | AC94: 271 | AD94: 310 | AE94: 810 | AF94: 0.2720969606 | AG94: 256 | AH94: 226 | AI94: 205 | AJ94: 687 | AK94: 0.2307785332 | AL94: 176 | AM94: 0.05912230254 | AN94: 156 | AO94: 107 | AP94: 69 | AQ94: 44 | AR94: 34 | AS94: 21 | AT94: 12 | AU94: 4 | AV94: 1 | AW94: 0 | AX94: 0 | AY94: 624 | AZ94: 0.2096154363 | BA94: 1673 | BB94: 0.5619977964 | BC94: 448 | BD94: 0.1504931338 | BE94: 630.92 | BF94: 0.2119400177 | BG94: 1538.97 | BH94: 0.5169741474
A95: 85 | C95: 158 | D95: Other non-specified areas | F95: 50593.66 | G95: 886.88 | H95: 0.01752946911 | I95: 2232.39 | J95: 0.04412390802 | K95: 7034.85 | L95: 0.1390460781 | M95: 2760.51 | N95: 900.98 | O95: 1354.11 | P95: 453.13 | Q95: 1836.04 | R95: 2287 | S95: 0.04520329227 | T95: 2515 | U95: 0.04970978577 | V95: 4802.46 | W95: 0.09492217009 | X95: 8863 | Y95: 0.1751800522 | Z95: 41730.96 | AA95: 0.8248258774 | AB95: 3171 | AC95: 3573 | AD95: 3248 | AE95: 9992 | AF95: 0.1974951012 | AG95: 3798 | AH95: 3803 | AI95: 4278 | AJ95: 11879 | AK95: 0.2347922645 | AL95: 4345 | AM95: 0.08588032572 | AN95: 4151 | AO95: 3873 | AP95: 2759 | AQ95: 2198 | AR95: 1691 | AS95: 1333 | AT95: 815 | AU95: 365 | AV95: 131 | AW95: 24 | AX95: 3 | AY95: 21688 | AZ95: 0.4286703117 | BA95: 26216 | BB95: 0.5181676914 | BC95: 17343 | BD95: 0.3427899859 | BE95: 6630.61 | BF95: 0.1310561442 | BG95: 24387.96 | BH95: 0.4820358915
A96: 86 | C96: 921 | D96: South-Central Asia | E96: 7 | F96: 1892013.48 | G96: 73389.27 | H96: 0.0387889784 | I96: 185857.04 | J96: 0.09823240794 | K96: 557368 | L96: 0.2945898673 | M96: 225142.28 | N96: 75404.59 | O96: 113129.82 | P96: 37725.23 | Q96: 150262.41 | R96: 187997 | S96: 0.09936345697 | T96: 183514 | U96: 0.09699402353 | V96: 371510.95 | W96: 0.1963574541 | X96: 665384 | Y96: 0.3516803696 | Z96: 1226629.31 | AA96: 0.6483195405 | AB96: 178967 | AC96: 173010 | AD96: 166382 | AE96: 518359 | AF96: 0.2739721495 | AG96: 151907 | AH96: 131169 | AI96: 114031 | AJ96: 397107 | AK96: 0.2098859253 | AL96: 100287 | AM96: 0.0530054363 | AN96: 87412 | AO96: 72238 | AP96: 57189 | AQ96: 39601 | AR96: 27874 | AS96: 18560 | AT96: 10087 | AU96: 4321 | AV96: 1307 | AW96: 265 | AX96: 38 | AY96: 419179 | AZ96: 0.2215518042 | BA96: 1015753 | BB96: 0.5368635111 | BC96: 318892 | BD96: 0.1685463679 | BE96: 479526.96 | BF96: 0.2534479617 | BG96: 907737.31 | BH96: 0.4797731727
A97: 87 | C97: 5500 | D97: Central Asia | F97: 68705.01 | G97: 3172.91 | H97: 0.04618163945 | I97: 7779.76 | J97: 0.1132342459 | K97: 19963.65 | L97: 0.290570513 | M97: 7850.42 | N97: 2948.3 | O97: 4343.55 | P97: 1395.25 | Q97: 5234.41 | R97: 6684 | S97: 0.0972854818 | T97: 5500 | U97: 0.08005238628 | V97: 12183.89 | W97: 0.177336267 | X97: 23333 | Y97: 0.3396113326 | Z97: 45372.29 | AA97: 0.6603927428 | AB97: 5784 | AC97: 6675 | AD97: 6693 | AE97: 19152 | AF97: 0.278756964 | AG97: 5456 | AH97: 4587 | AI97: 4091 | AJ97: 14134 | AK97: 0.2057200778 | AL97: 3628 | AM97: 0.05280546499 | AN97: 3609 | AO97: 2863 | AP97: 2083 | AQ97: 1066 | AR97: 782 | AS97: 781 | AT97: 379 | AU97: 197 | AV97: 54 | AW97: 10 | AX97: 2 | AY97: 15454 | AZ97: 0.2249326505 | BA97: 36914 | BB97: 0.5372825068 | BC97: 11826 | BD97: 0.1721271855 | BE97: 15553.24 | BF97: 0.2263770866 | BG97: 33546.29 | BH97: 0.4882655573
A98: 88 | C98: 398 | D98: Kazakhstan | F98: 17749.65 | G98: 808.68 | H98: 0.04556033499 | I98: 1991.07 | J98: 0.1121751697 | K98: 4752.63 | L98: 0.2677590826 | M98: 1881.4 | N98: 749.03 | O98: 1095.8 | P98: 346.77 | Q98: 1256.49 | R98: 1623 | S98: 0.09143842273 | T98: 1139 | U98: 0.06417027941 | V98: 2761.57 | W98: 0.1555844763 | X98: 5397 | Y98: 0.3040623336 | Z98: 12352.4 | AA98: 0.6959235816 | AB98: 1130 | AC98: 1515 | AD98: 1699 | AE98: 4344 | AF98: 0.2447372202 | AG98: 1372 | AH98: 1216 | AI98: 1140 | AJ98: 3728 | AK98: 0.2100323105 | AL98: 1021 | AM98: 0.057522261 | AN98: 1125 | AO98: 879 | AP98: 701 | AQ98: 378 | AR98: 302 | AS98: 324 | AT98: 118 | AU98: 62 | AV98: 13 | AW98: 2 | AX98: 0 | AY98: 4925 | AZ98: 0.27747026 | BA98: 9093 | BB98: 0.5122917917 | BC98: 3904 | BD98: 0.219947999 | BE98: 3405.93 | BF98: 0.191887164 | BG98: 8448.4 | BH98: 0.4759755826
A99: 89 | C99: 417 | D99: Kyrgyzstan | F99: 5865.4 | G99: 313.55 | H99: 0.0534575647 | I99: 747.69 | J99: 0.127474682 | K99: 1824.1 | L99: 0.3109932826 | M99: 700.13 | N99: 271.45 | O99: 397.44 | P99: 125.99 | Q99: 465.93 | R99: 598 | S99: 0.1019538309 | T99: 478 | U99: 0.08149486821 | V99: 1076.41 | W99: 0.1835186006 | X99: 2125 | Y99: 0.3622941317 | Z99: 3740.73 | AA99: 0.6377621305 | AB99: 513 | AC99: 565 | AD99: 587 | AE99: 1665 | AF99: 0.2838681079 | AG99: 435 | AH99: 353 | AI99: 323 | AJ99: 1111 | AK99: 0.1894158966 | AL99: 308 | AM99: 0.05251133768 | AN99: 306 | AO99: 230 | AP99: 169 | AQ99: 82 | AR99: 54 | AS99: 60 | AT99: 39 | AU99: 13 | AV99: 3 | AW99: 0 | AX99: 0 | AY99: 1264 | AZ99: 0.2155010741 | BA99: 3084 | BB99: 0.5257953422 | BC99: 956 | BD99: 0.1629897364 | BE99: 1377.31 | BF99: 0.2348194497 | BG99: 2784.73 | BH99: 0.474772394
A100: 90 | C100: 762 | D100: Tajikistan | F100: 8548.65 | G100: 480.8 | H100: 0.05624279857 | I100: 1165.05 | J100: 0.1362846765 | K100: 3002.39 | L100: 0.3512121797 | M100: 1171.8 | N100: 436.1 | O100: 642.8 | P100: 206.7 | Q100: 780.73 | R100: 995 | S100: 0.1163926468 | T100: 842 | U100: 0.09849508402 | V100: 1837.34 | W100: 0.2149275032 | X100: 3522 | Y100: 0.4119948764 | Z100: 5027.05 | AA100: 0.5880519146 | AB100: 867 | AC100: 845 | AD100: 812 | AE100: 2524 | AF100: 0.295251297 | AG100: 630 | AH100: 493 | AI100: 433 | AJ100: 1556 | AK100: 0.1820170436 | AL100: 387 | AM100: 0.04527030584 | AN100: 341 | AO100: 271 | AP100: 183 | AQ100: 100 | AR100: 62 | AS100: 63 | AT100: 35 | AU100: 18 | AV100: 6 | AW100: 1 | AX100: 0 | AY100: 1467 | AZ100: 0.1716060431 | BA100: 4467 | BB100: 0.5225386465 | BC100: 1080 | BD100: 0.1263357372 | BE100: 2356.95 | BF100: 0.2757101999 | BG100: 3947.05 | BH100: 0.4617161774
A101: 91 | C101: 795 | D101: Turkmenistan | F101: 5565.28 | G101: 300.78 | H101: 0.05404579823 | I101: 678.77 | J101: 0.1219651123 | K101: 1694.3 | L101: 0.3044411063 | M101: 626.56 | N101: 231.03 | O101: 339.12 | P101: 108.09 | Q101: 414.77 | R101: 527 | S101: 0.09469424719 | T101: 488 | U101: 0.08768651353 | V101: 1015.54 | W101: 0.1824777909 | X101: 1967 | Y101: 0.3534413363 | Z101: 3598.1 | AA101: 0.6465263203 | AB101: 466 | AC101: 554 | AD101: 532 | AE101: 1552 | AF101: 0.2788718627 | AG101: 440 | AH101: 387 | AI101: 329 | AJ101: 1156 | AK101: 0.2077164132 | AL101: 296 | AM101: 0.05318690165 | AN101: 267 | AO101: 221 | AP101: 152 | AQ101: 85 | AR101: 47 | AS101: 50 | AT101: 26 | AU101: 13 | AV101: 3 | AW101: 1 | AX101: 0 | AY101: 1161 | AZ101: 0.2086148406 | BA101: 3004 | BB101: 0.5397751775 | BC101: 865 | BD101: 0.1554279389 | BE101: 1288.23 | BF101: 0.231476224 | BG101: 2733.1 | BH101: 0.4910983814
A102: 92 | C102: 860 | D102: Uzbekistan | F102: 30976.02 | G102: 1269.09 | H102: 0.04097007944 | I102: 3197.19 | J102: 0.1032150031 | K102: 8690.22 | L102: 0.2805466939 | M102: 3470.53 | N102: 1260.69 | O102: 1868.39 | P102: 607.7 | Q102: 2316.49 | R102: 2940 | S102: 0.0949121288 | T102: 2553 | U102: 0.08241859348 | V102: 5493.03 | W102: 0.1773316908 | X102: 10322 | Y102: 0.333225508 | Z102: 20654.02 | AA102: 0.666774492 | AB102: 2807 | AC102: 3196 | AD102: 3062 | AE102: 9065 | AF102: 0.2926457305 | AG102: 2579 | AH102: 2139 | AI102: 1865 | AJ102: 6583 | AK102: 0.2125192326 | AL102: 1617 | AM102: 0.05220167084 | AN102: 1570 | AO102: 1262 | AP102: 878 | AQ102: 421 | AR102: 317 | AS102: 284 | AT102: 162 | AU102: 92 | AV102: 28 | AW102: 6 | AX102: 2 | AY102: 6639 | AZ102: 0.2143270827 | BA102: 17265 | BB102: 0.5573666339 | BC102: 5022 | BD102: 0.1621254119 | BE102: 7124.81 | BF102: 0.2300105049 | BG102: 15632.02 | BH102: 0.5046490802
A103: 93 | C103: 5501 | D103: Southern Asia | F103: 1823308.47 | G103: 70216.36 | H103: 0.03851041179 | I103: 178077.29 | J103: 0.09766712157 | K103: 537404.35 | L103: 0.2947413226 | M103: 217291.86 | N103: 72456.29 | O103: 108786.28 | P103: 36329.99 | Q103: 145028 | R103: 181313 | S103: 0.0994417582 | T103: 178014 | U103: 0.09763240995 | V103: 359327.06 | W103: 0.1970742011 | X103: 642051 | Y103: 0.3521351491 | Z103: 1181257.02 | AA103: 0.6478646041 | AB103: 173184 | AC103: 166335 | AD103: 159689 | AE103: 499208 | AF103: 0.2737923989 | AG103: 146451 | AH103: 126581 | AI103: 109940 | AJ103: 382972 | AK103: 0.2100423523 | AL103: 96659 | AM103: 0.05301297152 | AN103: 83803 | AO103: 69375 | AP103: 55106 | AQ103: 38535 | AR103: 27092 | AS103: 17779 | AT103: 9708 | AU103: 4124 | AV103: 1254 | AW103: 255 | AX103: 36 | AY103: 403726 | AZ103: 0.2214249572 | BA103: 978839 | BB103: 0.5368477228 | BC103: 307067 | BD103: 0.1684119857 | BE103: 463973.71 | BF103: 0.2544680276 | BG103: 874190.02 | BH103: 0.4794526183
A104: 94 | C104: 4 | D104: Afghanistan | F104: 33736.49 | G104: 2073.24 | H104: 0.06145393312 | I104: 5239.4 | J104: 0.155303649 | K104: 15023.53 | L104: 0.4453198895 | M104: 6119.32 | N104: 2108.51 | O104: 3152.07 | P104: 1043.56 | Q104: 4089.87 | R104: 5142 | S104: 0.1524165673 | T104: 4642 | U104: 0.1375958198 | V104: 9784.13 | W104: 0.2900162406 | X104: 17488 | Y104: 0.5183704647 | Z104: 16248.4 | AA104: 0.4816268675 | AB104: 3945 | AC104: 3117 | AD104: 2511 | AE104: 9573 | AF104: 0.2837580317 | AG104: 2119 | AH104: 1724 | AI104: 1353 | AJ104: 5196 | AK104: 0.1540172081 | AL104: 1074 | AM104: 0.03183496564 | AN104: 850 | AO104: 666 | AP104: 513 | AQ104: 390 | AR104: 238 | AS104: 131 | AT104: 58 | AU104: 19 | AV104: 4 | AW104: 0 | AX104: 0 | AY104: 3943 | AZ104: 0.1168764148 | BA104: 15843 | BB104: 0.4696102054 | BC104: =SUM(AN104:AX104) -> 2869 | BD104: 0.08504144918 | BE104: 12248.6 | BF104: 0.3630668158 | BG104: 13379.4 | BH104: 0.3965854183
A105: 95 | C105: 50 | D105: Bangladesh | F105: 161200.89 | G105: 6120.83 | H105: 0.03797019979 | I105: 15253.91 | J105: 0.09462671081 | K105: 47428.21 | L105: 0.2942180406 | M105: 18966.28 | N105: 6132.36 | O105: 9239.43 | P105: 3107.07 | Q105: 12638.34 | R105: 15716 | S105: 0.09749325826 | T105: 16458 | U105: 0.1020962105 | V105: 32174.29 | W105: 0.1995912678 | X105: 57191 | Y105: 0.3547809196 | Z105: 104010.24 | AA105: 0.6452212516 | AB105: 16116 | AC105: 15204 | AD105: 14475 | AE105: 45795 | AF105: 0.2840865209 | AG105: 13502 | AH105: 11874 | AI105: 9926 | AJ105: 35302 | AK105: 0.2189938281 | AL105: 8969 | AM105: 0.05563865063 | AN105: 7282 | AO105: 5050 | AP105: 3253 | AQ105: 2864 | AR105: 2220 | AS105: 1477 | AT105: 908 | AU105: 450 | AV105: 160 | AW105: 36 | AX105: 7 | AY105: 32676 | AZ105: 0.2027035955 | BA105: 90066 | BB105: 0.5587189996 | BC105: 23707 | BD105: 0.1470649449 | BE105: 41937.09 | BF105: 0.2601542088 | BG105: 80303.24 | BH105: 0.4981563067
A106: 96 | C106: 64 | D106: Bhutan | F106: 787.39 | G106: 27.51 | H106: 0.03493821359 | I106: 70.7 | J106: 0.08979031992 | K106: 215.88 | L106: 0.2741716303 | M106: 87.4 | N106: 29.16 | O106: 43.8 | P106: 14.64 | Q106: 58.34 | R106: 73 | S106: 0.09271136286 | T106: 72 | U106: 0.09144134419 | V106: 145.18 | W106: 0.1843813104 | X106: 261 | Y106: 0.3314748727 | Z106: 526.4 | AA106: 0.6685378275 | AB106: 76 | AC106: 81 | AD106: 82 | AE106: 239 | AF106: 0.303534462 | AG106: 76 | AH106: 61 | AI106: 47 | AJ106: 184 | AK106: 0.2336834351 | AL106: 41 | AM106: 0.05207076544 | AN106: 30 | AO106: 25 | AP106: 17 | AQ106: 13 | AR106: 10 | AS106: 7 | AT106: 4 | AU106: 2 | AV106: 1 | AW106: 0 | AX106: 0 | AY106: 150 | AZ106: 0.1905028004 | BA106: 464 | BB106: 0.5892886625 | BC106: 109 | BD106: 0.138432035 | BE106: 190.3 | BF106: 0.2416845528 | BG106: 417.4 | BH106: 0.5301057926
A107: 97 | C107: 356 | D107: India | F107: 1309053.98 | G107: 47420.55 | H107: 0.03622505315 | I107: 121415.29 | J107: 0.09275040744 | K107: 375144.88 | L107: 0.2865770898 | M107: 152483.32 | N107: 50131.75 | O107: 75464.31 | P107: 25332.56 | Q107: 101804.14 | R107: 126977 | S107: 0.09699905576 | T107: 126752 | U107: 0.09682717591 | V107: 253729.59 | W107: 0.1938266824 | X107: 449700 | Y107: 0.3435305242 | Z107: 859354.43 | AA107: 0.6564698195 | AB107: 123333 | AC107: 118180 | AD107: 112809 | AE107: 354322 | AF107: 0.2706702744 | AG107: 104208 | AH107: 91299 | AI107: 81036 | AJ107: 276543 | AK107: 0.2112540844 | AL107: 71138 | AM107: 0.05434306078 | AN107: 62323 | AO107: 52822 | AP107: 42980 | AQ107: 29093 | AR107: 20166 | AS107: 13256 | AT107: 7129 | AU107: 3001 | AV107: 918 | AW107: 194 | AX107: 27 | AY107: 303047 | AZ107: 0.2315007667 | BA107: 702003 | BB107: 0.5362674196 | BC107: 231909 | BD107: 0.1771577059 | BE107: 328284.71 | BF107: 0.2507801168 | BG107: 627445.43 | BH107: 0.4793121136
A108: 98 | C108: 364 | D108: Iran (Islamic Republic of) | F108: 79360.49 | G108: 2721.79 | H108: 0.03429653723 | I108: 6899.49 | J108: 0.08693860131 | K108: 18754.55 | L108: 0.2363209955 | M108: 7571.29 | N108: 2744.55 | O108: 4071.68 | P108: 1327.13 | Q108: 5057.82 | R108: 6418 | S108: 0.08087147647 | T108: 5437 | U108: 0.06851016167 | V108: 11855.06 | W108: 0.1493823942 | X108: 21930 | Y108: 0.2763339793 | Z108: 57430.74 | AA108: 0.7236691709 | AB108: 5491 | AC108: 7120 | AD108: 9200 | AE108: 21811 | AF108: 0.2748344926 | AG108: 9083 | AH108: 6778 | AI108: 5050 | AJ108: 20911 | AK108: 0.2634938368 | AL108: 4450 | AM108: 0.05607324249 | AN108: 3812 | AO108: 3128 | AP108: 2497 | AQ108: 1470 | AR108: 1005 | AS108: 785 | AT108: 478 | AU108: 195 | AV108: 54 | AW108: 7 | AX108: 0 | AY108: 17881 | AZ108: 0.225313629 | BA108: 47172 | BB108: 0.5944015719 | BC108: 13431 | BD108: 0.1692403865 | BE108: 15030.51 | BF108: 0.189395378 | BG108: 43999.74 | BH108: 0.5544287844
A109: 99 | C109: 462 | D109: Maldives | F109: 418.4 | G109: 15.92 | H109: 0.03804971319 | I109: 38.42 | J109: 0.09182600382 | K109: 97.95 | L109: 0.2341061185 | M109: 37.83 | N109: 14.25 | O109: 20.95 | P109: 6.7 | Q109: 25.16 | R109: 32 | S109: 0.07648183556 | T109: 27 | U109: 0.06453154876 | V109: 59.53 | W109: 0.1422801147 | X109: 115 | Y109: 0.2748565966 | Z109: 303.06 | AA109: 0.7243307839 | AB109: 31 | AC109: 46 | AD109: 58 | AE109: 135 | AF109: 0.3226577438 | AG109: 50 | AH109: 33 | AI109: 26 | AJ109: 109 | AK109: 0.2605162524 | AL109: 21 | AM109: 0.05019120459 | AN109: 18 | AO109: 13 | AP109: 8 | AQ109: 5 | AR109: 5 | AS109: 4 | AT109: 2 | AU109: 1 | AV109: 0 | AW109: 0 | AX109: 0 | AY109: 77 | AZ109: 0.1840344168 | BA109: 265 | BB109: 0.6333652008 | BC109: 56 | BD109: 0.1338432122 | BE109: 76.58 | BF109: 0.1830305927 | BG109: 247.06 | BH109: 0.5904875717
A110: 100 | C110: 524 | D110: Nepal | F110: 28656.28 | G110: 1082.11 | H110: 0.03776170529 | I110: 2804.98 | J110: 0.09788360527 | K110: 9329.03 | L110: 0.3255492339 | M110: 3815.21 | N110: 1191.65 | O110: 1809.01 | P110: 617.36 | Q110: 2547.15 | R110: 3150 | S110: 0.109923549 | T110: 3374 | U110: 0.1177403348 | V110: 6524.06 | W110: 0.2276659776 | X110: 11328 | Y110: 0.3953060202 | Z110: 17327.97 | AA110: 0.6046831619 | AB110: 3251 | AC110: 2714 | AD110: 2305 | AE110: 8270 | AF110: 0.2885929367 | AG110: 1986 | AH110: 1746 | AI110: 1531 | AJ110: 5263 | AK110: 0.1836595678 | AL110: 1310 | AM110: 0.04571423786 | AN110: 1120 | AO110: 915 | AP110: 878 | AQ110: 649 | AR110: 452 | AS110: 276 | AT110: 132 | AU110: 49 | AV110: 10 | AW110: 1 | AX110: 0 | AY110: 5792 | AZ110: 0.2021197448 | BA110: 14843 | BB110: 0.5179667424 | BC110: 4482 | BD110: 0.1564055069 | BE110: 8523.02 | BF110: 0.2974224149 | BG110: 12845.97 | BH110: 0.448277655
A111: 101 | C111: 586 | D111: Pakistan | F111: 189380.51 | G111: 10123.75 | H111: 0.0534571905 | I111: 24712.07 | J111: 0.1304889822 | K111: 66319.82 | L111: 0.3501934808 | M111: 26115.2 | N111: 9412.72 | O111: 13943.69 | P111: 4530.97 | Q111: 17405.96 | R111: 22056 | S111: 0.1164639381 | T111: 19552 | U111: 0.1032418806 | V111: 41607.75 | W111: 0.2197044986 | X111: 77988 | Y111: 0.41180584 | Z111: 111392.38 | AA111: 0.5881934736 | AB111: 19355 | AC111: 18337 | AD111: 16799 | AE111: 54491 | AF111: 0.2877328823 | AG111: 13910 | AH111: 11516 | AI111: 9606 | AJ111: 35032 | AK111: 0.1849820766 | AL111: 8332 | AM111: 0.04399607964 | AN111: 7109 | AO111: 5602 | AP111: 4000 | AQ111: 3228 | AR111: 2487 | AS111: 1564 | AT111: 817 | AU111: 312 | AV111: 75 | AW111: 10 | AX111: 1 | AY111: 33537 | AZ111: 0.1770879168 | BA111: 97855 | BB111: 0.5167110385 | BC111: 25205 | BD111: 0.1330918372 | BE111: 53275.93 | BF111: 0.2813168578 | BG111: 86187.38 | BH111: 0.4551016364
A112: 102 | C112: 144 | D112: Sri Lanka | F112: 20714.04 | G112: 630.66 | H112: 0.03044601633 | I112: 1643.02 | J112: 0.07931914779 | K112: 5090.49 | L112: 0.2457507082 | M112: 2096.02 | N112: 691.33 | O112: 1041.35 | P112: 350.02 | Q112: 1401.22 | R112: 1749 | S112: 0.08443548434 | T112: 1699 | U112: 0.0820216626 | V112: 3447.48 | W112: 0.1664320432 | X112: 6051 | Y112: 0.2921207065 | Z112: 14663.41 | AA112: 0.7078971557 | AB112: 1585 | AC112: 1535 | AD112: 1449 | AE112: 4569 | AF112: 0.2205750303 | AG112: 1517 | AH112: 1551 | AI112: 1365 | AJ112: 4433 | AK112: 0.2140094351 | AL112: 1324 | AM112: 0.06391799958 | AN112: 1259 | AO112: 1153 | AP112: 960 | AQ112: 822 | AR112: 509 | AS112: 280 | AT112: 180 | AU112: 95 | AV112: 32 | AW112: 7 | AX112: 1 | AY112: 6622 | AZ112: 0.3196865508 | BA112: 10326 | BB112: 0.498502465 | BC112: 5298 | BD112: 0.2557685512 | BE112: 4407.98 | BF112: 0.2128015587 | BG112: 9365.41 | BH112: 0.4521286046
A113: 103 | C113: 920 | D113: South-Eastern Asia | F113: 634609.85 | G113: 23436.16 | H113: 0.03693002874 | I113: 57783.74 | J113: 0.09105396016 | K113: 169596.73 | L113: 0.2672456628 | M113: 67307.28 | N113: 22671.9 | O113: 33928.92 | P113: 11257.02 | Q113: 44841.4 | R113: 56147 | S113: 0.08847483221 | T113: 55666 | U113: 0.08771688621 | V113: 111812.99 | W113: 0.1761917027 | X113: 202588 | Y113: 0.3192323599 | Z113: 432021.39 | AA113: 0.6807669153 | AB113: 55089 | AC113: 55611 | AD113: 52360 | AE113: 163060 | AF113: 0.2569452712 | AG113: 50545 | AH113: 46314 | AI113: 43648 | AJ113: 140507 | AK113: 0.2214069006 | AL113: 39647 | AM113: 0.06247460546 | AN113: 34448 | AO113: 28632 | AP113: 21155 | AQ113: 14199 | AR113: 9853 | AS113: 6931 | AT113: 3978 | AU113: 1827 | AV113: 596 | AW113: 147 | AX113: 31 | AY113: 161444 | AZ113: 0.2543988247 | BA113: 343214 | BB113: 0.5408267773 | BC113: 121797 | BD113: 0.1919242193 | BE113: 144804.26 | BF113: 0.2281783997 | BG113: 310224.39 | BH113: 0.488842696
A114: 104 | C114: 96 | D114: Brunei Darussalam | F114: 417.54 | G114: 14.13 | H114: 0.03384106912 | I114: 33.47 | J114: 0.08015998467 | K114: 98.82 | L114: 0.2366719356 | M114: 37.98 | N114: 12.53 | O114: 18.75 | P114: 6.22 | Q114: 25.21 | R114: 31 | S114: 0.07424438377 | T114: 34 | U114: 0.08142932414 | V114: 65.35 | W114: 0.156511951 | X114: 120 | Y114: 0.2873976146 | Z114: 297.29 | AA114: 0.7120036404 | AB114: 36 | AC114: 35 | AD114: 39 | AE114: 110 | AF114: 0.2634478134 | AG114: 39 | AH114: 36 | AI114: 33 | AJ114: 108 | AK114: 0.2586578531 | AL114: 29 | AM114: 0.06945442353 | AN114: 23 | AO114: 18 | AP114: 12 | AQ114: 7 | AR114: 4 | AS114: 3 | AT114: 2 | AU114: 1 | AV114: 0 | AW114: 0 | AX114: 0 | AY114: 99 | AZ114: 0.237103032 | BA114: 247 | BB114: 0.5915600901 | BC114: 70 | BD114: 0.1676486085 | BE114: 86.53 | BF114: 0.2072376299 | BG114: 227.29 | BH114: 0.5443550319
A115: 105 | C115: 116 | D115: Cambodia | F115: 15517.64 | G115: 702.47 | H115: 0.04526912598 | I115: 1764.6 | J115: 0.1137157454 | K115: 4903.91 | L115: 0.3160216373 | M115: 1960.2 | N115: 697.41 | O115: 1036.54 | P115: 339.13 | Q115: 1308.16 | R115: 1654 | S115: 0.106588373 | T115: 1485 | U115: 0.09569754164 | V115: 3139.31 | W115: 0.2023058919 | X115: 5828 | Y115: 0.3755725742 | Z115: 9689.89 | AA115: 0.6244435365 | AB115: 1567 | AC115: 1630 | AD115: 1275 | AE115: 4472 | AF115: 0.2881881523 | AG115: 1685 | AH115: 648 | AI115: 827 | AJ115: 3160 | AK115: 0.2036392132 | AL115: 759 | AM115: 0.04891207684 | AN115: 685 | AO115: 488 | AP115: 410 | AQ115: 269 | AR115: 181 | AS115: 111 | AT115: 56 | AU115: 18 | AV115: 4 | AW115: 0 | AX115: 0 | AY115: 2981 | AZ115: 0.192103954 | BA115: 8391 | BB115: 0.5407394423 | BC115: 2222 | BD115: 0.1431918771 | BE115: 4063.4 | BF115: 0.2618568287 | BG115: 7467.89 | BH115: 0.4812516594
A116: 106 | C116: 360 | D116: Indonesia | F116: 258162.11 | G116: 10101.52 | H116: 0.0391285925 | I116: 24592.48 | J116: 0.09525983499 | K116: 71920.63 | L116: 0.2785870862 | M116: 28397.91 | N116: 9517.89 | O116: 14245.35 | P116: 4727.46 | Q116: 18907.8 | R116: 23651 | S116: 0.09161297915 | T116: 23677 | U116: 0.09171369106 | V116: 47328.15 | W116: 0.1833272512 | X116: 85541 | Y116: 0.3313460678 | Z116: 172620.71 | AA116: 0.6686523828 | AB116: 22512 | AC116: 21859 | AD116: 21243 | AE116: 65614 | AF116: 0.2541581334 | AG116: 21054 | AH116: 19553 | AI116: 18215 | AJ116: 58822 | AK116: 0.2278490829 | AL116: 16189 | AM116: 0.06270866007 | AN116: 13611 | AO116: 11051 | AP116: 7803 | AQ116: 5273 | AR116: 3760 | AS116: 2432 | AT116: 1114 | AU116: 466 | AV116: 98 | AW116: 11 | AX116: 1 | AY116: 61809 | AZ116: 0.2394193323 | BA116: 140625 | BB116: 0.5447158764 | BC116: 45620 | BD116: 0.1767106722 | BE116: 60948.52 | BF116: 0.2360862328 | BG116: 127000.71 | BH116: 0.4919417106
A117: 107 | C117: 418 | D117: Lao People's Democratic Republic | F117: 6663.97 | G117: 306.01 | H117: 0.04592007467 | I117: 771.63 | J117: 0.1157913376 | K117: 2246.56 | L117: 0.3371203652 | M117: 903.79 | N117: 309.56 | O117: 462.77 | P117: 153.21 | Q117: 603.18 | R117: 758 | S117: 0.1137460103 | T117: 717 | U117: 0.1075935216 | V117: 1474.93 | W117: 0.2213290276 | X117: 2675 | Y117: 0.4014123713 | Z117: 3988.61 | AA117: 0.5985336068 | AB117: 715 | AC117: 698 | AD117: 607 | AE117: 2020 | AF117: 0.3031226131 | AG117: 504 | AH117: 414 | AI117: 351 | AJ117: 1269 | AK117: 0.1904270277 | AL117: 291 | AM117: 0.04366766357 | AN117: 241 | AO117: 191 | AP117: 148 | AQ117: 104 | AR117: 72 | AS117: 47 | AT117: 24 | AU117: 9 | AV117: 2 | AW117: 0 | AX117: 0 | AY117: 1129 | AZ117: 0.1694185298 | BA117: 3580 | BB117: 0.5372173044 | BC117: 838 | BD117: 0.1257508662 | BE117: 1903.37 | BF117: 0.2856210337 | BG117: 3150.61 | BH117: 0.4727827406
A118: 108 | C118: 458 | D118: Malaysia | E118: 8 | F118: 30723.16 | G118: 1053.83 | H118: 0.03430083364 | I118: 2569.35 | J118: 0.08362909284 | K118: 7669.68 | L118: 0.2496383836 | M118: 2992.25 | N118: 995.51 | O118: 1490.41 | P118: 494.9 | Q118: 1989.45 | R118: 2486 | S118: 0.08091615576 | T118: 2615 | U118: 0.0851149426 | V118: 5100.33 | W118: 0.1660092907 | X118: 9371 | Y118: 0.3050141978 | Z118: 21351.94 | AA118: 0.6949786415 | AB118: 2898 | AC118: 3147 | AD118: 3076 | AE118: 9121 | AF118: 0.296877014 | AG118: 2660 | AH118: 2109 | AI118: 1889 | AJ118: 6658 | AK118: 0.2167094791 | AL118: 1680 | AM118: 0.05468187517 | AN118: 1512 | AO118: 1278 | AP118: 1003 | AQ118: 754 | AR118: 465 | AS118: 327 | AT118: 175 | AU118: 63 | AV118: 14 | AW118: 2 | AX118: 0 | AY118: 7273 | AZ118: 0.2367269513 | BA118: 17459 | BB118: 0.5682683682 | BC118: 5593 | BD118: 0.1820450761 | BE118: 6801.65 | BF118: 0.2213851049 | BG118: 15758.94 | BH118: 0.5129335654
A119: 109 | C119: 104 | D119: Myanmar | F119: 52403.67 | G119: 1816.74 | H119: 0.03466818259 | I119: 4552.88 | J119: 0.08688093792 | K119: 14608.72 | L119: 0.2787728417 | M119: 5884.82 | N119: 1856.96 | O119: 2809.84 | P119: 952.88 | Q119: 3922.74 | R119: 4858 | S119: 0.09270343089 | T119: 5197 | U119: 0.09917244346 | V119: 10055.84 | W119: 0.1918919038 | X119: 17564 | Y119: 0.3351673652 | Z119: 34839.92 | AA119: 0.6648374055 | AB119: 4845 | AC119: 4501 | AD119: 4216 | AE119: 13562 | AF119: 0.2587986681 | AG119: 4067 | AH119: 3859 | AI119: 3543 | AJ119: 11469 | AK119: 0.2188587173 | AL119: 3142 | AM119: 0.05995763274 | AN119: 2672 | AO119: 2291 | AP119: 1870 | AQ119: 1152 | AR119: 744 | AS119: 484 | AT119: 276 | AU119: 105 | AV119: 23 | AW119: 3 | AX119: 0 | AY119: 12762 | AZ119: 0.2435325617 | BA119: 28173 | BB119: 0.5376150182 | BC119: 9620 | BD119: 0.183574929 | BE119: 13011.12 | BF119: 0.2482864273 | BG119: 25219.92 | BH119: 0.4812624765
A120: 110 | C120: 608 | D120: Philippines | F120: 101716.36 | G120: 4643.79 | H120: 0.04565430772 | I120: 11434.44 | J120: 0.1124149547 | K120: 32782.35 | L120: 0.3222918123 | M120: 13009.7 | N120: 4459.52 | O120: 6656.96 | P120: 2197.44 | Q120: 8670.54 | R120: 10889 | S120: 0.1070525921 | T120: 10459 | U120: 0.1028251503 | V120: 21347.91 | W120: 0.2098768576 | X120: 38950 | Y120: 0.3829275841 | Z120: 62766.16 | AA120: 0.6170704496 | AB120: 10208 | AC120: 9610 | AD120: 8315 | AE120: 28133 | AF120: 0.2765828427 | AG120: 7329 | AH120: 6666 | AI120: 5906 | AJ120: 19901 | AK120: 0.1956519089 | AL120: 5323 | AM120: 0.05233179795 | AN120: 4498 | AO120: 3675 | AP120: 2755 | AQ120: 1943 | AR120: 1235 | AS120: 849 | AT120: 435 | AU120: 150 | AV120: 32 | AW120: 5 | AX120: 0 | AY120: 20900 | AZ120: 0.2054733378 | BA120: 53357 | BB120: 0.5245665496 | BC120: 15577 | BD120: 0.1531415399 | BE120: 27515.56 | BF120: 0.2705126294 | BG120: 47189.16 | BH120: 0.4639289098
A121: 111 | C121: 702 | D121: Singapore | F121: 5535.26 | G121: 104.55 | H121: 0.01888800165 | I121: 263.91 | J121: 0.04767797719 | K121: 858.13 | L121: 0.1550297547 | M121: 341.13 | N121: 108.03 | O121: 163.26 | P121: 55.23 | Q121: 227.09 | R121: 281 | S121: 0.05076545637 | T121: 313 | U121: 0.05654657595 | V121: 594.21 | W121: 0.1073499709 | X121: 1065 | Y121: 0.1924028862 | Z121: 4469.93 | AA121: 0.807537496 | AB121: 353 | AC121: 377 | AD121: 356 | AE121: 1086 | AF121: 0.196196746 | AG121: 392 | AH121: 429 | AI121: 456 | AJ121: 1277 | AK121: 0.2307028035 | AL121: 444 | AM121: 0.08021303426 | AN121: 458 | AO121: 424 | AP121: 342 | AQ121: 257 | AR121: 147 | AS121: 114 | AT121: 73 | AU121: 37 | AV121: 15 | AW121: 4 | AX121: 1 | AY121: 2316 | AZ121: 0.41840853 | BA121: 2807 | BB121: 0.5071125837 | BC121: 1872 | BD121: 0.3381954958 | BE121: 801.09 | BF121: 0.144724909 | BG121: 2597.93 | BH121: 0.4693420002
A122: 112 | C122: 764 | D122: Thailand | F122: 68657.6 | G122: 1496.32 | H122: 0.02179394561 | I122: 3843.8 | J122: 0.05598506211 | K122: 12352.8 | L122: 0.1799189019 | M122: 4973.33 | N122: 1599.22 | O122: 2413.99 | P122: 814.77 | Q122: 3316.17 | R122: 4121 | S122: 0.06002248841 | T122: 4388 | U122: 0.0639113514 | V122: 8509 | W122: 0.1239338398 | X122: 15216 | Y122: 0.2216214957 | Z122: 53441.89 | AA122: 0.7783827282 | AB122: 4819 | AC122: 4829 | AD122: 4477 | AE122: 14125 | AF122: 0.205731048 | AG122: 4799 | AH122: 5391 | AI122: 5718 | AJ122: 15908 | AK122: 0.2317004964 | AL122: 5732 | AM122: 0.08348675165 | AN122: 5243 | AO122: 4564 | AP122: 3479 | AQ122: 2523 | AR122: 1858 | AS122: 1394 | AT122: 862 | AU122: 436 | AV122: 141 | AW122: 33 | AX122: 5 | AY122: 26270 | AZ122: 0.3826233367 | BA122: 35765 | BB122: 0.520918296 | BC122: 20538 | BD122: 0.299136585 | BE122: 11372.2 | BF122: 0.1656364335 | BG122: 32903.89 | BH122: 0.4792461432
A123: 113 | C123: 626 | D123: Timor-Leste | F123: 1240.98 | G123: 83.25 | H123: 0.06708407871 | I123: 204.32 | J123: 0.1646440716 | K123: 545.98 | L123: 0.4399587423 | M123: 216.01 | N123: 78.28 | O123: 115.92 | P123: 37.64 | Q123: 144.1 | R123: 183 | S123: 0.147464101 | T123: 159 | U123: 0.1281245467 | V123: 341.66 | W123: 0.2753146707 | X123: 643 | Y123: 0.5181388902 | Z123: 598.45 | AA123: 0.4822398427 | AB123: 155 | AC123: 108 | AD123: 81 | AE123: 344 | AF123: 0.2772002772 | AG123: 69 | AH123: 43 | AI123: 58 | AJ123: 170 | AK123: 0.1369885091 | AL123: 48 | AM123: 0.03867910845 | AN123: 37 | AO123: 29 | AP123: 24 | AQ123: 19 | AR123: 12 | AS123: 7 | AT123: 3 | AU123: 1 | AV123: 0 | AW123: 0 | AX123: 0 | AY123: 180 | AZ123: 0.1450466567 | BA123: 562 | BB123: 0.4528678947 | BC123: 132 | BD123: 0.1063675482 | BE123: 438.68 | BF123: 0.3534948186 | BG123: 466.45 | BH123: 0.3758722945
A124: 114 | C124: 704 | D124: Viet Nam | F124: 93571.57 | G124: 3113.55 | H124: 0.03327452986 | I124: 7752.86 | J124: 0.08285486714 | K124: 21609.16 | L124: 0.2309372387 | M124: 8590.17 | N124: 3037 | O124: 4515.12 | P124: 1478.12 | Q124: 5726.97 | R124: 7233 | S124: 0.07729911981 | T124: 6623 | U124: 0.07078004569 | V124: 13856.3 | W124: 0.1480823716 | X124: 25615 | Y124: 0.2737476778 | Z124: 67956.59 | AA124: 0.7262525359 | AB124: 6982 | AC124: 8817 | AD124: 8674 | AE124: 24473 | AF124: 0.2615431161 | AG124: 7947 | AH124: 7166 | AI124: 6653 | AJ124: 21766 | AK124: 0.2326133889 | AL124: 6011 | AM124: 0.06423959756 | AN124: 5469 | AO124: 4623 | AP124: 3310 | AQ124: 1896 | AR124: 1375 | AS124: 1162 | AT124: 958 | AU124: 541 | AV124: 266 | AW124: 89 | AX124: 24 | AY124: 25724 | AZ124: 0.2749125616 | BA124: 52250 | BB124: 0.5583961026 | BC124: 19713 | BD124: 0.210672964 | BE124: 17862.14 | BF124: 0.1908928107 | BG124: 48243.59 | BH124: 0.5155795719
A125: 115 | C125: 922 | D125: Western Asia | F125: 258123.91 | G125: 11224.44 | H125: 0.04348469694 | I125: 27562.93 | J125: 0.1067817778 | K125: 77154.6 | L125: 0.2989052816 | M125: 30608.52 | N125: 10670.52 | O125: 15889.13 | P125: 5218.61 | Q125: 20403.46 | R125: 25700 | S125: 0.09956458509 | T125: 23891 | U125: 0.09255632305 | V125: 49591.67 | W125: 0.1921235038 | X125: 90942 | Y125: 0.3523191633 | Z125: 167181.63 | AA125: 0.6476797519 | AB125: 22800 | AC125: 22179 | AD125: 22631 | AE125: 67610 | AF125: 0.2619284668 | AG125: 21863 | AH125: 19829 | AI125: 16936 | AJ125: 58628 | AK125: 0.2271312255 | AL125: 13863 | AM125: 0.05370676432 | AN125: 11412 | AO125: 8962 | AP125: 6995 | AQ125: 4844 | AR125: 3550 | AS125: 2635 | AT125: 1588 | AU125: 671 | AV125: 179 | AW125: 28 | AX125: 3 | AY125: 54730 | AZ125: 0.212029951 | BA125: 140101 | BB125: 0.5427664566 | BC125: 40867 | BD125: 0.1583231867 | BE125: 63379.07 | BF125: 0.2455373855 | BG125: 126314.63 | BH125: 0.4893565652
A126: 116 | C126: 51 | D126: Armenia | F126: 2916.95 | G126: 79.94 | H126: 0.02740533777 | I126: 206.15 | J126: 0.07067313461 | K126: 578.86 | L126: 0.198447008 | M126: 235.48 | N126: 83.92 | O126: 124.89 | P126: 40.97 | Q126: 157.38 | R126: 199 | S126: 0.06822194415 | T126: 174 | U126: 0.05965134815 | V126: 372.71 | W126: 0.1277738734 | X126: 683 | Y126: 0.2341486827 | Z126: 2233.77 | AA126: 0.765789609 | AB126: 182 | AC126: 238 | AD126: 272 | AE126: 692 | AF126: 0.2372340973 | AG126: 240 | AH126: 194 | AI126: 166 | AJ126: 600 | AK126: 0.205694304 | AL126: 168 | AM126: 0.05759440511 | AN126: 207 | AO126: 209 | AP126: 144 | AQ126: 97 | AR126: 54 | AS126: 89 | AT126: 43 | AU126: 26 | AV126: 6 | AW126: 1 | AX126: 0 | AY126: 1044 | AZ126: 0.3579080889 | BA126: 1460 | BB126: 0.5005228064 | BC126: 876 | BD126: 0.3003136838 | BE126: 476.85 | BF126: 0.1634755481 | BG126: 1357.77 | BH126: 0.4654759252
A127: 117 | C127: 31 | D127: Azerbaijan | E127: 9 | F127: 9617.48 | G127: 371.89 | H127: 0.03866813344 | I127: 866.4 | J127: 0.09008596847 | K127: 2203.41 | L127: 0.2291047135 | M127: 827.39 | N127: 307.5 | O127: 451.76 | P127: 144.26 | Q127: 548.76 | R127: 699 | S127: 0.07268016154 | T127: 638 | U127: 0.06633754372 | V127: 1337.01 | W127: 0.139018745 | X127: 2616 | Y127: 0.2720047247 | Z127: 7001.14 | AA127: 0.727959923 | AB127: 720 | AC127: 891 | AD127: 943 | AE127: 2554 | AF127: 0.2655581296 | AG127: 829 | AH127: 669 | AI127: 624 | AJ127: 2122 | AK127: 0.2206399181 | AL127: 642 | AM127: 0.06675345309 | AN127: 677 | AO127: 527 | AP127: 340 | AQ127: 180 | AR127: 120 | AS127: 140 | AT127: 75 | AU127: 28 | AV127: 7 | AW127: 1 | AX127: 0 | AY127: 2737 | AZ127: 0.284585983 | BA127: 5318 | BB127: 0.5529515008 | BC127: 2095 | BD127: 0.2178325299 | BE127: 1749.6 | BF127: 0.1819187563 | BG127: 4906.14 | BH127: 0.510127393
A128: 118 | C128: 48 | D128: Bahrain | F128: 1371.86 | G128: 43.51 | H128: 0.03171606432 | I128: 106.23 | J128: 0.07743501523 | K128: 286.03 | L128: 0.2084979517 | M128: 113.58 | N128: 40.61 | O128: 60.24 | P128: 19.63 | Q128: 75.71 | R128: 96 | S128: 0.06997798609 | T128: 84 | U128: 0.06123073783 | V128: 179.8 | W128: 0.1310629365 | X128: 329 | Y128: 0.2398203898 | Z128: 1042.46 | AA128: 0.7598880352 | AB128: 74 | AC128: 106 | AD128: 174 | AE128: 354 | AF128: 0.2580438237 | AG128: 192 | AH128: 147 | AI128: 120 | AJ128: 459 | AK128: 0.334582246 | AL128: 92 | AM128: 0.06706223667 | AN128: 69 | AO128: 53 | AP128: 25 | AQ128: 13 | AR128: 9 | AS128: 6 | AT128: 3 | AU128: 1 | AV128: 0 | AW128: 0 | AX128: 0 | AY128: 271 | AZ128: 0.1975420232 | BA128: 905 | BB128: 0.6596883064 | BC128: 179 | BD128: 0.1304797866 | BE128: 222.77 | BF128: 0.1623853746 | BG128: 863.46 | BH128: 0.6294082487
A129: 119 | C129: 196 | D129: Cyprus | E129: 10 | F129: 1160.99 | G129: 25.86 | H129: 0.02227409366 | I129: 65.92 | J129: 0.05677912816 | K129: 196.15 | L129: 0.168950637 | M129: 78.14 | N129: 26.7 | O129: 39.91 | P129: 13.21 | Q129: 52.07 | R129: 65 | S129: 0.05598670101 | T129: 65 | U129: 0.05598670101 | V129: 130.23 | W129: 0.1121715088 | X129: 240 | Y129: 0.2067201268 | Z129: 921.35 | AA129: 0.7935899534 | AB129: 78 | AC129: 108 | AD129: 105 | AE129: 291 | AF129: 0.2506481537 | AG129: 95 | AH129: 86 | AI129: 78 | AJ129: 259 | AK129: 0.2230854702 | AL129: 74 | AM129: 0.06373870576 | AN129: 71 | AO129: 65 | AP129: 57 | AQ129: 50 | AR129: 38 | AS129: 29 | AT129: 19 | AU129: 10 | AV129: 3 | AW129: 1 | AX129: 0 | AY129: 417 | AZ129: 0.3591762203 | BA129: 624 | BB129: 0.5374723296 | BC129: 343 | BD129: 0.2954375145 | BE129: 174.08 | BF129: 0.1499409986 | BG129: 578.35 | BH129: 0.4981524389
A130: 120 | C130: 268 | D130: Georgia | E130: 11 | F130: 3951.52 | G130: 109.67 | H130: 0.02775387699 | I130: 275.31 | J130: 0.06967192372 | K130: 739.48 | L130: 0.1871381139 | M130: 294.63 | N130: 107.9 | O130: 159.7 | P130: 51.8 | Q130: 196.63 | R130: 250 | S130: 0.06326679354 | T130: 214 | U130: 0.05415637527 | V130: 464.17 | W130: 0.1174661902 | X130: 876 | Y130: 0.2216868446 | Z130: 3075.5 | AA130: 0.7783080941 | AB130: 236 | AC130: 279 | AD130: 288 | AE130: 803 | AF130: 0.2032129408 | AG130: 271 | AH130: 270 | AI130: 263 | AJ130: 804 | AK130: 0.203466008 | AL130: 254 | AM130: 0.06427906223 | AN130: 284 | AO130: 266 | AP130: 224 | AQ130: 173 | AR130: 130 | AS130: 147 | AT130: 75 | AU130: 43 | AV130: 9 | AW130: 1 | AX130: 0 | AY130: 1606 | AZ130: 0.4064258817 | BA130: 1861 | BB130: 0.4709580111 | BC130: 1352 | BD130: 0.3421468195 | BE130: 600.69 | BF130: 0.1520149208 | BG130: 1723.5 | BH130: 0.4361612746
A131: 121 | C131: 368 | D131: Iraq | F131: 36115.65 | G131: 2328.09 | H131: 0.06446208223 | I131: 5602.88 | J131: 0.1551371774 | K131: 14685.02 | L131: 0.4066109844 | M131: 5756.32 | N131: 2093.85 | O131: 3096.04 | P131: 1002.19 | Q131: 3835.44 | R131: 4867 | S131: 0.1347615231 | T131: 4215 | U131: 0.1167084076 | V131: 9082.14 | W131: 0.2514738071 | X131: 17023 | Y131: 0.4713469092 | Z131: 19093.02 | AA131: 0.5286633357 | AB131: 3804 | AC131: 3299 | AD131: 2877 | AE131: 9980 | AF131: 0.2763344976 | AG131: 2482 | AH131: 2170 | AI131: 1823 | AJ131: 6475 | AK131: 0.1792851575 | AL131: 1463 | AM131: 0.04050875452 | AN131: 976 | AO131: 725 | AP131: 702 | AQ131: 403 | AR131: 331 | AS131: 212 | AT131: 110 | AU131: 41 | AV131: 10 | AW131: 2 | AX131: 0 | AY131: 4975 | AZ131: 0.1377519164 | BA131: 17918 | BB131: 0.4961284097 | BC131: 3512 | BD131: 0.0972431619 | BE131: 11420.12 | BF131: 0.3162097318 | BG131: 15581.02 | BH131: 0.4314201738
A132: 122 | C132: 376 | D132: Israel | F132: 8064.55 | G132: 342.64 | H132: 0.04248718155 | I132: 830.07 | J132: 0.1029282477 | K132: 2246.72 | L132: 0.2785921099 | M132: 884.09 | N132: 314.47 | O132: 466.58 | P132: 152.11 | Q132: 589.06 | R132: 745 | S132: 0.09237961201 | T132: 672 | U132: 0.08332765002 | V132: 1416.65 | W132: 0.1756638622 | X132: 2628 | Y132: 0.3258706313 | Z132: 5436.62 | AA132: 0.6741380486 | AB132: 624 | AC132: 571 | AD132: 564 | AE132: 1759 | AF132: 0.2181150839 | AG132: 559 | AH132: 547 | AI132: 502 | AJ132: 1608 | AK132: 0.1993911626 | AL132: 425 | AM132: 0.05269977866 | AN132: 387 | AO132: 362 | AP132: 371 | AQ132: 312 | AR132: 195 | AS132: 156 | AT132: 124 | AU132: 78 | AV132: 34 | AW132: 7 | AX132: 1 | AY132: 2452 | AZ132: 0.304046723 | BA132: 3792 | BB132: 0.4702060251 | BC132: 2027 | BD132: 0.2513469443 | BE132: 1797.93 | BF132: 0.2229423836 | BG132: 3409.62 | BH132: 0.4227911043
A133: 123 | C133: 400 | D133: Jordan | F133: 9159.3 | G133: 491.04 | H133: 0.05361108382 | I133: 1201.91 | J133: 0.13122291 | K133: 3299.86 | L133: 0.3602742568 | M133: 1308.62 | N133: 462.12 | O133: 686.83 | P133: 224.71 | Q133: 872.53 | R133: 1102 | S133: 0.1203148712 | T133: 996 | U133: 0.1087419344 | V133: 2097.95 | W133: 0.2290513467 | X133: 3863 | Y133: 0.4217571212 | Z133: 5296.56 | AA133: 0.5782712653 | AB133: 922 | AC133: 836 | AD133: 763 | AE133: 2521 | AF133: 0.2752393742 | AG133: 704 | AH133: 602 | AI133: 534 | AJ133: 1840 | AK133: 0.2008887142 | AL133: 437 | AM133: 0.04771106962 | AN133: 329 | AO133: 226 | AP133: 161 | AQ133: 128 | AR133: 102 | AS133: 66 | AT133: 34 | AU133: 12 | AV133: 2 | AW133: 0 | AX133: 0 | AY133: 1497 | AZ133: 0.1634404376 | BA133: 4798 | BB133: 0.523839158 | BC133: 1060 | BD133: 0.115729368 | BE133: 2661.09 | BF133: 0.2905342111 | BG133: 4236.56 | BH133: 0.4625418973
A134: 124 | C134: 414 | D134: Kuwait | F134: 3935.79 | G134: 124.86 | H134: 0.03172425358 | I134: 310.78 | J134: 0.07896254627 | K134: 822.03 | L134: 0.2088602288 | M134: 329.27 | N134: 120.78 | O134: 178.75 | P134: 57.97 | Q134: 219.89 | R134: 280 | S134: 0.07114200707 | T134: 232 | U134: 0.05894623443 | V134: 511.24 | W134: 0.1298951418 | X134: 954 | Y134: 0.2423909812 | Z134: 2981.52 | AA134: 0.7575404176 | AB134: 218 | AC134: 229 | AD134: 357 | AE134: 804 | AF134: 0.2042791917 | AG134: 503 | AH134: 508 | AI134: 437 | AJ134: 1448 | AK134: 0.367905808 | AL134: 341 | AM134: 0.08664080147 | AN134: 209 | AO134: 151 | AP134: 79 | AQ134: 37 | AR134: 23 | AS134: 14 | AT134: 6 | AU134: 1 | AV134: 0 | AW134: 0 | AX134: 0 | AY134: 861 | AZ134: 0.2187616717 | BA134: 2593 | BB134: 0.6588258012 | BC134: 520 | BD134: 0.1321208703 | BE134: 643.22 | BF134: 0.163428435 | BG134: 2461.52 | BH134: 0.6254195473
A135: 125 | C135: 422 | D135: Lebanon | F135: 5851.48 | G135: 197.02 | H135: 0.03367011423 | I135: 461.17 | J135: 0.07881253973 | K135: 1403.81 | L135: 0.239906827 | M135: 533.21 | N135: 171.07 | O135: 256.76 | P135: 85.69 | Q135: 353.3 | R135: 439 | S135: 0.07502375467 | T135: 504 | U135: 0.08613205548 | V135: 942.64 | W135: 0.1610942873 | X135: 1733 | Y135: 0.2961643892 | Z135: 4118.75 | AA135: 0.703881753 | AB135: 557 | AC135: 583 | AD135: 544 | AE135: 1684 | AF135: 0.2877904393 | AG135: 481 | AH135: 392 | AI135: 336 | AJ135: 1209 | AK135: 0.206614395 | AL135: 331 | AM135: 0.05656688564 | AN135: 310 | AO135: 244 | AP135: 194 | AQ135: 159 | AR135: 129 | AS135: 100 | AT135: 59 | AU135: 22 | AV135: 6 | AW135: 1 | AX135: 0 | AY135: 1555 | AZ135: 0.2657447347 | BA135: 3224 | BB135: 0.55097172 | BC135: 1224 | BD135: 0.209177849 | BE135: 1271.83 | BF135: 0.2173518494 | BG135: 2894.75 | BH135: 0.494703904
A136: 126 | C136: 512 | D136: Oman | F136: 4199.81 | G136: 164.09 | H136: 0.03907081511 | I136: 384.26 | J136: 0.09149461523 | K136: 931.19 | L136: 0.221721935 | M136: 354.75 | N136: 136.52 | O136: 199.86 | P136: 63.34 | Q136: 235.7 | R136: 302 | S136: 0.07190801489 | T136: 245 | U136: 0.05833597234 | V136: 546.94 | W136: 0.1302297009 | X136: 1065 | Y136: 0.2535829002 | Z136: 3135.13 | AA136: 0.7464932937 | AB136: 236 | AC136: 382 | AD136: 694 | AE136: 1312 | AF136: 0.3123950845 | AG136: 637 | AH136: 412 | AI136: 301 | AJ136: 1350 | AK136: 0.3214431129 | AL136: 196 | AM136: 0.04666877787 | AN136: 146 | AO136: 104 | AP136: 64 | AQ136: 33 | AR136: 30 | AS136: 18 | AT136: 9 | AU136: 5 | AV136: 2 | AW136: 1 | AX136: 0 | AY136: 608 | AZ136: 0.1447684538 | BA136: 2858 | BB136: 0.6805069753 | BC136: 412 | BD136: 0.09809967594 | BE136: 680.74 | BF136: 0.1620882849 | BG136: 2723.13 | BH136: 0.6483936178
A137: 127 | C137: 634 | D137: Qatar | F137: 2481.54 | G137: 50.23 | H137: 0.02024146296 | I137: 127.39 | J137: 0.05133505807 | K137: 343.11 | L137: 0.1382649484 | M137: 138.53 | N137: 50.58 | O137: 74.94 | P137: 24.36 | Q137: 92.41 | R137: 117 | S137: 0.04714814188 | T137: 98 | U137: 0.03949160602 | V137: 215.71 | W137: 0.08692586055 | X137: 393 | Y137: 0.1583693996 | Z137: 2088.77 | AA137: 0.8417232847 | AB137: 102 | AC137: 261 | AD137: 431 | AE137: 794 | AF137: 0.3199626039 | AG137: 404 | AH137: 312 | AI137: 239 | AJ137: 955 | AK137: 0.3848416709 | AL137: 163 | AM137: 0.06568501817 | AN137: 108 | AO137: 62 | AP137: 31 | AQ137: 12 | AR137: 7 | AS137: 6 | AT137: 1 | AU137: 1 | AV137: 0 | AW137: 0 | AX137: 0 | AY137: 391 | AZ137: 0.1575634485 | BA137: 1912 | BB137: 0.7704892929 | BC137: 228 | BD137: 0.09187843033 | BE137: 265.61 | BF137: 0.1070343416 | BG137: 1860.77 | BH137: 0.7498448544
A138: 128 | C138: 682 | D138: Saudi Arabia | F138: 31557.14 | G138: 1192 | H138: 0.03777275127 | I138: 2960.32 | J138: 0.09380824752 | K138: 8204.39 | L138: 0.2599852205 | M138: 3282.29 | N138: 1158.36 | O138: 1723.22 | P138: 564.86 | Q138: 2190.01 | R138: 2765 | S138: 0.08761883998 | T138: 2479 | U138: 0.07855591476 | V138: 5244.07 | W138: 0.1661769729 | X138: 9600 | Y138: 0.3042100773 | Z138: 21957.08 | AA138: 0.6957880213 | AB138: 2339 | AC138: 2542 | AD138: 2819 | AE138: 7700 | AF138: 0.2440018329 | AG138: 3103 | AH138: 3389 | AI138: 2892 | AJ138: 9384 | AK138: 0.2973653506 | AL138: 2088 | AM138: 0.06616569182 | AN138: 1537 | AO138: 990 | AP138: 689 | AQ138: 381 | AR138: 270 | AS138: 166 | AT138: 91 | AU138: 41 | AV138: 13 | AW138: 2 | AX138: 0 | AY138: 6268 | AZ138: 0.1986238297 | BA138: 19172 | BB138: 0.6075328753 | BC138: 4180 | BD138: 0.1324581378 | BE138: 6639.68 | BF138: 0.2104018298 | BG138: 17777.08 | BH138: 0.5633298835
A139: 129 | C139: 275 | D139: State of Palestine | E139: 12 | F139: 4662.88 | G139: 288.61 | H139: 0.06189522355 | I139: 698.9 | J139: =I139/F139 -> 0.1498859074 | K139: 1871.29 | L139: =K139/F139 -> 0.4013163538 | M139: 734.28 | N139: 263.86 | O139: 390.88 | P139: 127.02 | Q139: 489.2 | R139: 619 | S139: =R139/F139 -> 0.1327505748 | T139: 553 | U139: =T139/F139 -> 0.1185962324 | V139: 1172.39 | W139: =V139/F139 -> 0.2514304464 | X139: 2193 | Y139: =X139/F139 -> 0.4703101946 | Z139: 2470.08 | AA139: =Z139/F139 -> 0.5297326974 | AB139: 530 | AC139: 484 | AD139: 384 | AE139: 1398 | AF139: =AE139/F139 -> 0.2998147068 | AG139: 306 | AH139: 258 | AI139: 210 | AJ139: 774 | AK139: =AJ139/F139 -> 0.1659918334 | AL139: 175 | AM139: =AL139/F139 -> 0.03753045328 | AN139: 138 | AO139: 96 | AP139: 72 | AQ139: 58 | AR139: 39 | AS139: 25 | AT139: 12 | AU139: 4 | AV139: 1 | AW139: 0 | AX139: 0 | AY139: 620 | AZ139: =AY139/F139 -> 0.1329650345 | BA139: =AE139+AJ139+AL139 -> 2347 | BB139: =BA139/F139 -> 0.5033369934 | BC139: 445 | BD139: =BC139/F139 -> 0.0954345812 | BE139: =X139-I139 -> 1494.1 | BF139: =BE139/F139 -> 0.3204242871 | BG139: =Z139-BC139 -> 2025.08 | BH139: =BG139/F139 -> 0.4342981162
A140: 130 | C140: 760 | D140: Syrian Arab Republic | F140: 18734.99 | G140: 846.65 | H140: =G140/F140 -> 0.04519084344 | I140: 2237.55 | J140: 0.119431609 | K140: 7136.47 | L140: 0.3809166698 | M140: 2968.64 | N140: 961.61 | O140: 1453.79 | P140: =O140-N140 -> 492.18 | Q140: 1986.58 | R140: 2472 | S140: 0.1319456269 | T140: 2427 | U140: 0.1295437041 | V140: 4898.92 | W140: 0.2614850608 | X140: 8496 | Y140: 0.4534830283 | Z140: 10239.38 | AA140: 0.5465377884 | AB140: 2159 | AC140: 1553 | AD140: 1361 | AE140: =AB140+AC140+AD140 -> 5073 | AF140: 0.2707767658 | AG140: 1300 | AH140: 1108 | AI140: 896 | AJ140: 3304 | AK140: 0.176354511 | AL140: 782 | AM140: 0.04174008099 | AN140: 696 | AO140: 552 | AP140: 435 | AQ140: 274 | AR140: 206 | AS140: 141 | AT140: 90 | AU140: 36 | AV140: 9 | AW140: 1 | AX140: 0 | AY140: =SUM(AN140:AX140)+AL140 -> 3222 | AZ140: 0.1719776739 | BA140: 9159 | BB140: 0.4888713578 | BC140: 2440 | BD140: 0.1302375929 | BE140: 6258.45 | BF140: 0.3340514193 | BG140: 7799.38 | BH140: 0.4163001955
A141: 131 | C141: 792 | D141: Turkey | F141: 78271.47 | G141: 2730.13 | H141: 0.03488026991 | I141: 6740.35 | J141: 0.08611503016 | K141: 20024.54 | L141: 0.2558344694 | M141: 7946.44 | N141: 2654.45 | O141: 3977.4 | P141: 1322.95 | Q141: 5293.83 | R141: 6619 | S141: 0.08456465683 | T141: 6665 | U141: 0.085152355 | V141: 13284.19 | W141: 0.1697194393 | X141: 24057 | Y141: 0.307353369 | Z141: 54214.66 | AA141: 0.6926490585 | AB141: 6670 | AC141: 6315 | AD141: 6312 | AE141: 19297 | AF141: 0.246539384 | AG141: 6303 | AH141: 5937 | AI141: 5375 | AJ141: 17615 | AK141: 0.2250500725 | AL141: 4701 | AM141: 0.06006019818 | AN141: 4115 | AO141: 3536 | AP141: 2877 | AQ141: 2145 | AR141: 1627 | AS141: 1185 | AT141: 770 | AU141: 299 | AV141: 70 | AW141: 9 | AX141: 1 | AY141: 21335 | AZ141: 0.2725769683 | BA141: 41613 | BB141: 0.5316496547 | BC141: 16634 | BD141: 0.2125167702 | BE141: 17316.65 | BF141: 0.2212383388 | BG141: 37580.66 | BH141: 0.4801322883
A142: 132 | C142: 784 | D142: United Arab Emirates | F142: 9154.3 | G142: 184.22 | H142: 0.02012387621 | I142: 470.66 | J142: 0.05141408955 | K142: 1262.06 | L142: 0.1378652655 | M142: 515.34 | N142: 188.62 | O142: 279.66 | P142: 91.04 | Q142: 344.51 | R142: 438 | S142: 0.04784636728 | T142: 353 | U142: 0.03856111336 | V142: 791.4 | W142: 0.08645117595 | X142: 1447 | Y142: 0.1580677933 | Z142: 7707.46 | AA142: 0.8419496848 | AB142: 329 | AC142: 605 | AD142: 1326 | AE142: 2260 | AF142: 0.2468785161 | AG142: 1551 | AH142: 1370 | AI142: 1129 | AJ142: 4050 | AK142: 0.4424150399 | AL142: 714 | AM142: 0.07799613296 | AN142: 458 | AO142: 231 | AP142: 86 | AQ142: 45 | AR142: 26 | AS142: 11 | AT142: 7 | AU142: 2 | AV142: 1 | AW142: 0 | AX142: 0 | AY142: 1581 | AZ142: 0.172705723 | BA142: 7024 | BB142: 0.767289689 | BC142: 867 | BD142: 0.09470959003 | BE142: 976.34 | BF142: 0.1066537037 | BG142: 6840.46 | BH142: 0.7472400948
A143: 133 | C143: 887 | D143: Yemen | F143: 26916.21 | G143: 1653.99 | H143: 0.06144958744 | I143: 4016.66 | J143: 0.1492282903 | K143: 10920.18 | L143: 0.405710165 | M143: 4307.52 | N143: 1527.62 | O143: 2267.94 | P143: 740.32 | Q143: 2870.46 | R143: 3626 | S143: 0.1347143599 | T143: 3277 | U143: 0.1217481956 | V143: 6903.52 | W143: 0.2564818747 | X143: 12748 | Y143: 0.4736179425 | Z143: 14168.38 | AA143: 0.5263883734 | AB143: 3020 | AC143: 2897 | AD143: 2418 | AE143: 8335 | AF143: 0.3096646965 | AG143: 1903 | AH143: 1459 | AI143: 1012 | AJ143: 4374 | AK143: 0.162504305 | AL143: 816 | AM143: 0.03031630382 | AN143: 694 | AO143: 563 | AP143: 444 | AQ143: 343 | AR143: 213 | AS143: 125 | AT143: 60 | AU143: 22 | AV143: 5 | AW143: 1 | AX143: 0 | AY143: 3286 | AZ143: 0.1220825666 | BA143: 13525 | BB143: 0.5024853053 | BC143: 2470 | BD143: 0.09176626278 | BE143: 8731.34 | BF143: 0.3243896522 | BG143: 11698.38 | BH143: 0.4346221106
A144: 134 | C144: 908 | D144: EUROPE | F144: 740813.96 | G144: 15776.86 | H144: 0.02129665591 | I144: 40069.69 | J144: 0.05408873504 | K144: 116776.36 | L144: 0.1576325047 | M144: 47128.76 | N144: 16190.27 | O144: 24200.51 | P144: 8010.24 | Q144: 31457.42 | R144: 39534 | S144: 0.05336562502 | T144: 37172 | U144: 0.05017724018 | V144: 76706.67 | W144: 0.1035437696 | X144: 138959 | Y144: 0.1875761089 | Z144: 601855.11 | AA144: 0.8124240936 | AB144: 37753 | AC144: 43923 | AD144: 51287 | AE144: 132963 | AF144: 0.1794823089 | AG144: 52053 | AH144: 51884 | AI144: 52357 | AJ144: 156294 | AK144: 0.2109760459 | AL144: 52241 | AM144: 0.07051837954 | AN144: 54351 | AO144: 51410 | AP144: 46401 | AQ144: 38612 | AR144: 29288 | AS144: 27695 | AT144: 18518 | AU144: 11174 | AV144: 4249 | AW144: 731 | AX144: 111 | AY144: 334781 | AZ144: 0.4519096805 | BA144: 341498 | BB144: 0.4609767343 | BC144: 282540 | BD144: 0.381391301 | BE144: 98889.31 | BF144: 0.1334873738 | BG144: 319315.11 | BH144: 0.4310327926
